Workbook

Sheet LDC Info
AA3: Algoma Power Inc.
AA4: Atikokan Hydro Inc.
AA5: Attawapiskat Power Corporation
AA6: Bluewater Power Distribution Corporation
AA7: Brant County Power Inc.
AA8: Brantford Power Inc.
AA9: Burlington Hydro Inc.
AA10: Cambridge and North Dumfries Hydro Inc.
AA11: Canadian Niagara Power Inc.
AA12: Centre Wellington Hydro Ltd.
AA13: Chapleau Public Utilities Corporation
D14: Utility Name | E14: Lakefront Utilities Inc. | AA14: COLLUS PowerStream Corp.
AA15: Cooperative Hydro Embrun Inc.
D16: Assigned EB Number | E16: EB-2016-0089 | AA16: E.L.K. Energy Inc.
AA17: Enersource Hydro Mississauga Inc.
D18: Name of Contact and Title | E18: Adam Giddings, Manager of Regulatory Compliance and Finance | AA18: Entegrus Powerlines Inc.
AA19: EnWin Utilities Ltd.
D20: Phone Number | E20: 1-905-372-2193 ext: 5242 | AA20: Erie Thames Powerlines Corporation
AA21: Espanola Regional Hydro Distribution Corporation
D22: Email Address | E22: agiddings@lusi.on.ca | AA22: Essex Powerlines Corporation
AA23: Festival Hydro Inc.
D24: Test Year | E24: 2017 | AA24: Fort Albany Power Corporation
AA25: Fort Frances Power Corporation
D26: Bridge Year | E26: =IF(ISBLANK(E24), "", E24-1) -> 2016 | AA26: Greater Sudbury Hydro Inc.
AA27: Grimsby Power Inc.
D28: Last Rebasing Year | E28: 2012 | AA28: Guelph Hydro Electric Systems Inc.
AA29: Haldimand County Hydro Inc.
A30: Identify the accounting standard used for the test year | AA30: Halton Hills Hydro Inc.
E31: MIFRS | AA31: Hearst Power Distribution Company Limited
AA32: Horizon Utilities Corporation
A33: Did you update your depreciation and capitalization policies? | AA33: Hydro 2000 Inc.
E34: No | AA34: Hydro Hawkesbury Inc.
AA35: Hydro One Brampton Networks Inc.
A36: When did you update your depreciation and capitalization policies? | AA36: Hydro One Networks Inc.
E37: 2001-01-01 | AA37: Hydro One Remote Communities Inc.
AA38: Hydro Ottawa Limited
A39: Identify the year that the applicant has adopted or is expected to adopt IFRS for financial reporting purposes | AA39: Innpower Corporation
E40: 2015 or Later | AA40: Kashechewan Power Corporation
AA41: Kenora Hydro Electric Corporation Ltd.
AA42: Kingston Hydro Corporation
A43: Are you applying for cost recovery for the test and/or future year(s) for Green Energy initiatives? | AA43: Kitchener-Wilmot Hydro Inc.
E44: No | AA44: Lakefront Utilities Inc.
AA45: Lakeland Power Distribution Ltd.
A46: ="Is " & E14 & " an embedded distributor?" -> Is Lakefront Utilities Inc. an embedded distributor? | E46: Yes | AA46: London Hydro Inc.
AA47: Midland Power Utility Corporation
AA48: Milton Hydro Distribution Inc.
B49: Notes | AA49: Newmarket-Tay Power Distribution Ltd.
AA50: Niagara Peninsula Energy Inc.
C51: Pale green cells represent input cells. | AA51: Niagara-on-the-Lake Hydro Inc.
AA52: Norfolk Power Distribution Inc.
C53: Pale blue cells represent drop-down lists. The applicant should select the appropriate item from the drop-down list. | AA53: North Bay Hydro Distribution Limited
AA54: Northern Ontario Wires Inc.
C55: White cells contain fixed values, automatically generated values or formulae. | AA55: Oakville Hydro Electricity Distribution Inc.
AA56: Orangeville Hydro Limited
AA57: Orillia Power Distribution Corporation
AA58: Oshawa PUC Networks Inc.
AA59: Ottawa River Power Corporation
AA60: Peterborough Distribution Incorporated
AA61: PowerStream Inc.
AA62: PUC Distribution Inc.
AA63: Renfrew Hydro Inc.
AA64: Rideau St. Lawrence Distribution Inc.
AA65: Sioux Lookout Hydro Inc.
AA66: St. Thomas Energy Inc.
AA67: Thunder Bay Hydro Electricity Distribution Inc.
AA68: Tillsonburg Hydro Inc.
AA69: Toronto Hydro-Electric System Limited
AA70: Veridian Connections Inc.
AA71: Wasaga Distribution Inc.
AA72: Waterloo North Hydro Inc.
AA73: Welland Hydro-Electric System Corp.
AA74: Wellington North Power Inc.
AA75: West Coast Huron Energy Inc.
AA76: Westario Power Inc.
AA77: Whitby Hydro Electric Corporation
AA78: Woodstock Hydro Services Inc.

Sheet Index
A15: 1 | B15: LDC Information Sheet | E15: 28 | F15: App.2-G: Service Reliability Indicators
A16: 2 | B16: Index | E16: 29 | F16: App.2-H: Other Operating Revenue
A17: 3 | B17: Cost of Service Application Flowchart | E17: 30 | F17: App.2-I: Load Forecast CDM Adjustment Workform
A18: 4 | B18: List of Key References | E18: 31 | F18: App.2-IA: Actual and Forecast Load and Customer Data
A19: 5 | B19: App.2-AA: Capital Projects Table | E19: 32 | F19: App.2-JA: OM&A Summary Analysis
A20: 6 | B20: App.2-AB: Capital Expenditures | E20: 33 | F20: App.2-JB: Recoverable OM&A Cost Driver Table
A21: 7 | B21: App. 2-AC: Customer Engagement Worksheet | E21: 34 | F21: App.2-JC: OM&A Programs Table
A22: 8 | B22: App.2-B: General Accounting Instructions | E22: 35 | F22: App.2-K: Employee Costs
A23: 9 | B23: App.2-BA: Fixed Asset Continuity Schedule | E23: 36 | F23: App.2-L: Recoverable OM&A Cost per Customer and per FTE
A24: 10 | B24: Appendix 2-BB: Service Life Comparison | E24: 37 | F24: App.2-M: Regulatory Costs Schedule
A25: 11 | B25: App.2-CA: 2012 Depreciation and Amortization Expense (Old CGAAP) | E25: 38 | F25: App.2-N: Shared Servcies and Corporate Cost Allocation
A26: 12 | B26: App.2-CB: 2012 Depreciation and Amortization Expense (New CGAAP) | E26: 39 | F26: App.2-OA: Capital Structure and Cost of Capital
A27: 13 | B27: App.2-CC: 2013 Depreciation and Amortization Expense (New CGAAP) | E27: 40 | F27: App.2-OB: Debt Instruments
A28: 14 | B28: App.2-CD: 2014 Depreciation and Amortization Expense (MIFRS) | E28: 41 | F28: App.2-P: Cost Allocation
A29: 15 | B29: App.2-CE: 2015 Depreciation and Amortization Expense (MIFRS) | E29: 42 | F29: App.2-PA: New Rate Design Policy For Residential Customers
A30: 16 | B30: App.2-CF: 2015 Depreciation and Amortization Expense (MIFRS) | E30: 43 | F30: App.2-Q: Cost of Serving Embedded Distributor(s)
A31: 17 | B31: App.2-CG: 2013 Depreciation and Amortization Expense (Old CGAAP) | E31: 44 | F31: App.2-R: Loss Factors
A32: 18 | B32: App.2-CH: 2013 Depreciation and Amortization Expense (New CGAAP) | E32: 45 | F32: App.2-S: Stranded Meter Treatment
A33: 19 | B33: App.2-CI: 2014 Depreciation and Amortization Expense (MIFRS) | E33: 46 | F33: App.2-TA: Account 1592, PILs and Tax Variances
A34: 20 | B34: App.2-CJ: 2015 Depreciation and Amortization Expense (MIFRS) | E34: 47 | F34: App.2-TB: Account 1592, HST-OVAT Input Tax Credits
A35: 21 | B35: App.2-CK: 2016 Depreciation and Amortization Expense (MIFRS) | E35: 48 | F35: App.2-U: One-Time Incremental IFRS Transition Costs
A36: 22 | B36: App.2-D: Overhead Expenses | E36: 49 | F36: App.2-V: Revenue Reconciliation
A37: 23 | B37: App.2-EA: Account 1575 PP&E Deferral Account (2015 IFRS Adopters) | E37: 50 | F37: App.2-W: Bill Impacts
A38: 24 | B38: App.2-EB: Account 1576 - Accounting Changes Under CGAAP (2012 Changes) | E38: 51 | F38: App.2-Y: Transition to MIFRS Summary Impact
A39: 25 | B39: App.2-EC: Account 1576 - Accounting Changes Under CGAAP (2013 Changes) | E39: 52 | F39: App. 2-Z: Tariff Schedule
A40: 26 | B40: App.2-FA: Renewable Generation Connection Investment Summary
A41: 27 | B41: App.2-FB: Calculation of Renewable Generation Connection Direct Benefits/Provincial Amount: Renewable Enabling Improvement Investments
A42: 28 | B42: App.2-FC: Calculation of Renewable Generation Connection Direct Benefits/Provincial Amount: Renewable Expansion Investments

Sheet COS Flowchart
B4: Cost of Service Rate Application Schematic
B6: The Cost of Service Rate Application Schematic is a flowchart appended to Chapter 2 of the Filing Requirements as a guide for the components of an application and how demand and costs interrelate to derive the revenue requirement and then how the revenue requirement is allocated between classes and through fixed/variable splits to derive rates that will be compensatory for the annual revenue requirement, based on the the forecasted demand. There is no form to be filled out; therefore, this Schedule is not required to be filed.

Sheet List of Key References
B3: List of Key References
A5: A list of key references for understanding the Filing Requirements has been embedded in the document below. To access the list of references and associated hyperlinks double-click the icon below.

Sheet App.2-AA_Capital Projects
G1: File Number: | H1: =EBNUMBER -> EB-2016-0089
G2: Exhibit: | H2: 2
G3: Tab: | H3: 5
G4: Schedule: | H4: 3
G5: Page: | H5: 48
G7: Date: | H7: 2016-04-29
A9: Appendix 2-AA
A10: Capital Projects Table
A13: Projects | B13: =C13-1 -> 2012 | C13: =D13-1 -> 2013 | D13: =E13-1 -> 2014 | E13: =BridgeYear - 1 -> 2015 | F13: =BridgeYear & " Bridge Year" -> 2016 Bridge Year | G13: =TestYear & " Test Year" -> 2017 Test Year
A14: System Access | B14: MIFRS | C14: MIFRS | D14: MIFRS | E14: MIFRS | F14: MIFRS | G14: MIFRS
A15: Smart metering | B15: 1986658 | C15: 117332 | D15: 10392 | E15: 39921 | F15: 35000 | G15: 76500
A16: Overhead replacements | C16: 9256 | D16: 24250 | E16: 5700
A17: Underground replacements | C17: 26193 | D17: 10693 | E17: 3939
A18: Transformer replacements | C18: 22277 | E18: 13474
A19: New and upgraded services (net of contributions) | C19: 34062 | D19: 47104 | E19: 64213 | F19: 50000 | G19: 50000
A20: Pole line upgrade | D20: 691 | E20: 11354
A21: Miscellaneous | B21: 1768
A22: Sub-Total | B22: =SUM(B15:B21) -> 1988426 | C22: =SUM(C15:C21) -> 209120 | D22: 93130 | E22: 138601 | F22: 85000 | G22: 126500
A23: System Renewal
A24: Pole replacements | B24: 251174 | C24: 96959 | D24: 244855 | E24: 312130 | F24: 99016 | G24: 265320
A25: Overhead replacements | B25: 468224 | C25: 160549 | D25: 364593 | E25: 195219 | F25: 83314 | G25: 258665
A26: Transformer replacements | B26: 124546 | C26: 50868 | D26: 111959 | E26: 49026 | F26: 23701 | G26: 73584
A27: Distribution system equipment replacement | C27: 6414 | D27: 80630 | E27: 61558 | F27: 599000 | G27: 370000
A28: Underground replacements | D28: 25872 | E28: 24429 | F28: 24741 | G28: 76814
A29: New and upgraded services (net of contributions) | E29: 59515 | F29: 38028 | G29: 118067
A30: Miscellaneous | E30: 20299 | F30: 21000 | G30: 21000
A31: Sub-Total | B31: =SUM(B24:B30) -> 843944 | C31: 314790 | D31: 827909 | E31: 722176 | F31: 888800 | G31: 1183450
A32: System Service
A33: Distribution system equipment replacement | B33: 22303 | C33: 60819 | E33: 216334 | G33: 180000
A34: Pole replacements | B34: 8777 | E34: 33851 | F34: 108615
A35: Overhead replacements | B35: 279306 | D35: 10173 | E35: 167089 | F35: 114523
A36: Underground replacements | B36: 224389 | C36: 4157 | E36: 19366 | F36: 34009 | G36: 134640
A37: Transformer replacements | B37: 2673 | D37: 791 | E37: 289 | F37: 32579
A38: Smart metering | B38: 58218 | D38: 11309
A39: SCADA | B39: 97796 | C39: 14812 | D39: 245130 | E39: 145085
A40: GIS | D40: 40953 | E40: 80138 | F40: 50000
A41: New and upgraded services (net of contributions) | F41: 52274
A42: Miscellaneous | B42: 1426
A43: Sub-Total | B43: =SUM(B33:B42) -> 694888 | C43: =SUM(C33:C42) -> 79788 | D43: 308356 | E43: 662152 | F43: 392000 | G43: 314640
A44: General Plant
A45: Building and fixtures - new garage storage building | B45: 188993 | C45: 38411
A46: Building and fixtures - electrical work | D46: 54231
A47: Building and fixtures - miscellaneous | F47: 10000 | G47: 10000
A48: Office furniture and equipment - new desks, boardroom furniture | B48: 31047
A49: Office furniture equipment - phone system | C49: 13799
A50: Computer equipment hardware - servers/laptops | B50: 21321 | D50: 21136 | E50: 29160 | F50: 15000 | G50: 15000
A51: Computer software - accounting software | B51: 277365 | C51: 24126
A52: Computer software - work order estimating tool | C52: 26107
A53: Computer software - miscellaneous | D53: 19400 | F53: 10000 | G53: 10000
A54: Computer software - billing software conversion | E54: 215983
A55: Transportation equipment - bucket truck, two vehicles | B55: 317215
A56: Transportation equipment - electric vehicle, van, derrick truck | D56: 77846
A57: Transportation equipment - new vehicles | G57: 35000
A58: Transportation equipment - bucket truck | F58: 280000
A59: Tools and equipment - forklift | B59: 32759
A60: Tools and equipment - tension machine | C60: 181952
A61: Tools and equipment - miscellaneous | D61: 26756 | E61: 5368 | F61: 5000 | G61: 5000
A62: Measurement and testing equipment - meter probe | C62: 1475
A63: Miscellaneous | D63: 1340 | E63: 7140 | F63: 7000
A64: Sub-Total | B64: =SUM(B45:B63) -> 868700 | C64: 285870 | D64: 200709 | E64: 257651 | F64: 327000 | G64: 75000
A65: Miscellaneous
A66: Total | B66: =SUMPRODUCT(--($A15:$A65="Sub-Total"), B$15:B$65)+B65 -> 4395958 | C66: 889568 | D66: 1430104 | E66: =SUMPRODUCT(--($A15:$A65="Sub-Total"), E$15:E$65)+E65 -> 1780580 | F66: 1692800 | G66: 1699590
A67: Less Renewable Generation Facility Assets and Other Non-Rate-Regulated Utility Assets (input as negative)
A68: Total | B68: =B66+B67 -> 4395958 | C68: 889568 | D68: 1430104 | E68: =E66+E67 -> 1780580 | F68: 1692800 | G68: 1699590
A73: 2 The applicant should group projects appropriately and avoid presentations that result in classification of significant components of the capital budget in the miscellaneous category.

Sheet App.2-AB_Capital Expenditures
S1: File Number: | U1: =EBNUMBER -> EB-2016-0089
S2: Exhibit: | U2: 2
S3: Tab: | U3: DSP
S4: Schedule:
S5: Page:
S7: Date:
A9: Appendix 2-AB
A10: Table 2 - Capital Expenditure Summary from Chapter 5 Consolidated Distribution System Plan Filing Requirements
A12: First year of Forecast Period: | B12: =TestYear -> 2017
A13: CATEGORY | B13: Historical Period (previous plan1 & actual) | Q13: Forecast Period (planned)
B14: =E14-1 -> 2012 | E14: =H14-1 -> 2013 | H14: =K14-1 -> 2014 | K14: =N14-1 -> 2015 | N14: =Q14-1 -> 2016 | Q14: =B12 -> 2017 | R14: =Q14+1 -> 2018 | S14: =R14+1 -> 2019 | T14: =S14+1 -> 2020 | U14: =T14+1 -> 2021
B15: Plan | C15: Actual | D15: Var | E15: Plan | F15: Actual | G15: Var | H15: Plan | I15: Actual | J15: Var | K15: Plan | L15: Actual | M15: Var | N15: Plan | O15: Actual2 | P15: Var
B16: $ '000 | D16: % | E16: $ '000 | G16: % | H16: $ '000 | J16: % | K16: $ '000 | M16: % | N16: $ '000 | P16: % | Q16: $ '000
A17: System Access | C17: ='App.2-AA_Capital Projects'!B22/1000 -> 1988.426 | D17: =IF(ISERROR((C17-B17)/B17),"--",(C17-B17)/B17) -> -- | F17: ='App.2-AA_Capital Projects'!C22/1000 -> 209.12 | G17: =IF(ISERROR((F17-E17)/E17),"--",(F17-E17)/E17) -> -- | I17: ='App.2-AA_Capital Projects'!D22/1000 -> 93.13 | J17: =IF(ISERROR((I17-H17)/H17),"--",(I17-H17)/H17) -> -- | L17: ='App.2-AA_Capital Projects'!E22/1000 -> 138.601 | M17: =IF(ISERROR((L17-K17)/K17),"--",(L17-K17)/K17) -> -- | N17: 0 | O17: ='App.2-AA_Capital Projects'!F22/1000 -> 85 | P17: =IF(ISERROR((O17-N17)/N17),"--",(O17-N17)/N17) -> -- | Q17: ='App.2-AA_Capital Projects'!G22/1000 -> 126.5 | R17: =50000/1000 -> 50 | S17: =50000/1000 -> 50 | T17: =50000/1000 -> 50 | U17: =50000/1000 -> 50
A18: System Renewal | B18: =803000/1000 -> 803 | C18: ='App.2-AA_Capital Projects'!B31/1000 -> 843.944 | D18: 0.05098879203 | E18: =649000/1000 -> 649 | F18: ='App.2-AA_Capital Projects'!C31/1000 -> 314.79 | G18: -0.5149614792 | H18: =469000/1000 -> 469 | I18: ='App.2-AA_Capital Projects'!D31/1000 -> 827.909 | J18: 0.7652643923 | K18: =698000/1000 -> 698 | L18: ='App.2-AA_Capital Projects'!E31/1000 -> 722.176 | M18: 0.03463610315 | N18: =1110640/1000 -> 1110.64 | O18: ='App.2-AA_Capital Projects'!F31/1000 -> 888.8 | P18: -0.1997406901 | Q18: ='App.2-AA_Capital Projects'!G31/1000 -> 1183.45 | R18: =1498090/1000 -> 1498.09 | S18: =1459800/1000 -> 1459.8 | T18: =1153650/1000 -> 1153.65 | U18: =1140100/1000 -> 1140.1
A19: System Service | B19: =190000/1000 -> 190 | C19: ='App.2-AA_Capital Projects'!B43/1000 -> 694.888 | D19: 2.657305263 | E19: =50000/1000 -> 50 | F19: ='App.2-AA_Capital Projects'!C43/1000 -> 79.788 | G19: 0.59576 | H19: =50000/1000 -> 50 | I19: ='App.2-AA_Capital Projects'!D43/1000 -> 308.356 | J19: 5.16712 | K19: 0 | L19: ='App.2-AA_Capital Projects'!E43/1000 -> 662.152 | M19: -- | N19: =191160/1000 -> 191.16 | O19: ='App.2-AA_Capital Projects'!F43/1000 -> 392 | P19: 1.050638209 | Q19: ='App.2-AA_Capital Projects'!G43/1000 -> 314.64 | R19: =76500/1000 -> 76.5 | S19: 0 | T19: 0 | U19: 0
A20: General Plant | B20: =672000/1000 -> 672 | C20: ='App.2-AA_Capital Projects'!B64/1000 -> 868.7 | D20: 0.2927083333 | E20: =585000/1000 -> 585 | F20: ='App.2-AA_Capital Projects'!C64/1000 -> 285.87 | G20: -0.5113333333 | H20: =833000/1000 -> 833 | I20: ='App.2-AA_Capital Projects'!D64/1000 -> 200.709 | J20: -0.7590528211 | K20: =727000/1000 -> 727 | L20: ='App.2-AA_Capital Projects'!E64/1000 -> 257.651 | M20: -0.6455969739 | N20: =391000/1000 -> 391 | O20: ='App.2-AA_Capital Projects'!F64/1000 -> 327 | P20: -0.1636828645 | Q20: ='App.2-AA_Capital Projects'!G64/1000 -> 75 | R20: =(151500-76500)/1000 -> 75 | S20: =190000/1000 -> 190 | T20: =495000/1000 -> 495 | U20: =505000/1000 -> 505
A21: TOTAL EXPENDITURE | B21: =SUM(B17:B20) -> 1665 | C21: =SUM(C17:C20) -> 4395.958 | D21: 1.640215015 | E21: 1284 | F21: 889.568 | G21: -0.3071900312 | H21: 1352 | I21: 1430.104 | J21: 0.05776923077 | K21: 1425 | L21: 1780.58 | M21: 0.2495298246 | N21: 1692.8 | O21: 1692.8 | P21: -1.343180975e-16 | Q21: 1699.59 | R21: 1699.59 | S21: 1699.8 | T21: 1698.65 | U21: =SUM(U17:U20) -> 1695.1
A22: System O&M | C22: =689143/1000 -> 689.143 | D22: -- | F22: =897562/1000 -> 897.562 | G22: -- | I22: =815732/1000 -> 815.732 | J22: -- | L22: =683340/1000 -> 683.34 | M22: -- | N22: =700185/1000 -> 700.185 | O22: =N22 -> 700.185 | P22: 0 | Q22: =721191/1000 -> 721.191 | R22: =Q22*1.0195 -> 735.2542245 | S22: =R22*1.0195 -> 749.5916819 | T22: =S22*1.0195 -> 764.2087197 | U22: =T22*1.0195 -> 779.1107897
A24: Notes to the Table:
A25: 1. Historical “previous plan” data is not required unless a plan has previously been filed
A26: 2. Indicate the number of months of 'actual' data included in the last year of the Historical Period (normally a 'bridge' year): | J26: 0
A28: Explanatory Notes on Variances (complete only if applicable)
A29: Notes on shifts in forecast vs. historical budgets by category
A32: Notes on year over year Plan vs. Actual variances for Total Expenditures
A35: Notes on Plan vs. Actual variance trends for individual expenditure categories

Sheet App. 2-AC_Customer Engagement
B1: File Number: | C1: =EBNUMBER -> EB-2016-0089
B2: Exhibit: | C2: 1
B3: Tab: | C3: 5
B4: Schedule: | C4: 1
B5: Page: | C5: 49
B7: Date: | C7: 2016-04-29
A9: Appendix 2-AC
A10: Customer Engagement Activities Summary
A12: Provide a list of customer engagement activities | B12: Provide a list of customer needs and preferences identified through each engagement activity | C12: Actions taken to respond to identified needs and preferences. If no action was taken, explain why.
A13: E-Billing - Online account services | B13: Customers need online access to their consumption data, invoice and details, as well as their historical data. | C13: LUI created the E-billing account service which provides electronic access to customer invoices and consumption data, current and historical.
A14: CDM and SaveOnEnergy programs - Inform and assist customer on IESO conservation and demand management programs | B14: Customers expressed the need for consultation and assistance with these programs. Greater details and conditions of RetroFit and SaveOnEnergy programs were requested. | C14: Marketing of programs through LUI's online website and newspaper ads, as well as group and one-on-one consultations.
A15: Bi-annual customer survey - Identify customer needs and opinions | B15: Customers were given the opportunity to express their needs and opinions by completing an online or hard copy survey. The results identified an overall good or excellent performance of the utility. | C15: As the survey identified possible areas where LUI could improve, the following actions were taken: - build a database of customers opinions and establish trends
A16: Christmas lights | B16: LUI works with the Town of Cobourg to install Christmas lights for the Town's Christmas Magic festivities. | C16: LUI's crew sets up Christmas lights.
A17: Financial Assistance Program (LEAP) | B17: Low-income customers need assistance to pay for higher costs of heating during winter months. | C17: LUI continues to verbally promote, emergency financial assistance programs that are designed to help low-income customers having difficulty making their electricity bill payments.
A18: In-Office Customer Engagement | B18: LUI's office is located downtown and open to all customers. | C18: Concerns and issues are dealt with immediately and any concerns that need to be escalated are brought forward to senior management.
A19: EmPower Hour | B19: LUI held an "open house" each Friday in August and allowed customers to come in and ask questions regarding CDM, their bill, etc. | C19: Provided customers with the opportunity to ask questions in a casual environment.
A21: Note: Use "ALT-ENTER" to go to the next line within a cell

Sheet App.2-B_Acct Instructions
A1: General Instructions to MIFRS Appendices
A2: Types of Schedules to File
A4: The purpose of this tab is to provide general instructions. The specific instructions to each appendix are listed in footnotes of each appendix.
A6: The typical applicant is expected to have made capitalization and depreciation policy changes under CGAAP as permitted by the Board on January 1, 2012 or mandated by the Board by January 1, 2013, and adopted IFRS for reporting purposes on January 1, 2015 (transition date January 1, 2014). In general, applicants under the two scenarios should provide the following information in the appendices:
E9: Accounting Policy Changes in 2012 and Adopted IFRS in 2015 | F9: Accounting Policy Changes in 2013 and Adopted IFRS in 2015
E10: (Date of Transition to IFRS 2014)
A11: Information to be filed in 2016 CoS Application | B11: 2016 | C11: Test | E11: MIFRS | F11: MIFRS
B12: 2015 | C12: Bridge | E12: MIFRS | F12: MIFRS
B13: 2014 | C13: Historical | E13: MIFRS and Revised CGAAP* | F13: MIFRS and Revised CGAAP*
B14: 2013 | C14: Historical | E14: Revised CGAAP | F14: CGAAP and Revised CGAAP
B15: 2012 | C15: Historical | E15: CGAAP and Revised CGAAP | F15: CGAAP
B16: 2011 and Prior | C16: Historical | E16: CGAAP | F16: CGAAP
A18: 1) For the year that the applicant implemented changes to its capitalization and depreciation policies (2012 or 2013), the applicant must file two appendices, one before and one after the policy changes.
A21: 2) For the transition year (2014), the applicant may file two appendices, one under Revised CGAAP and one under MIFRS, depending on the materiality of impacts. See the specific instructions under each appendix below for further details.
A26: Appendix 2-BA - Fixed Asset Schedule
A28: Applicants are to provide Appendix 2-BA in accordance with the years and corresponding accounting standards noted in the above table to provide a year over year continuity in fixed assets.
A29: *For the transition year (2014), the applicant should file two appendices, one under Revised CGAAP and one under MIFRS if the change between Revised CGAAP and MIFRS is material. If the change from the accounting standards is not material, the applicant may choose to only provide one appendix under MIFRS. However, the applicant must also indicate the fixed asset net book value balance under Revised CGAAP, the total dollar value of the change and explain why it is not material.
A33: Regulatory Gross Assets of Property, Plant and Equipment
A35: For an applicant that adopted IFRS on January 1, 2015 for financial reporting purposes, the applicant must establish the continuity of historic cost by using the December 31, 2013 regulatory gross assets of property, plant and equipment as the opening January 1, 2014 regulatory gross assets. The applicant must provide schedules (including Appendix 2-BA, Fixed Asset Continuity Schedule) which must identify the following details to substantiate the continuity of historic cost for regulatory purposes:
A38: · December 31, 2013 regulatory gross assets of property, plant and equipment, by asset class; and
A39: · January 1, 2014 regulatory gross assets of property, plant and equipment, by asset class.
A41: Accumulated Depreciation
A43: For an applicant that adopted IFRS on January 1, 2015 for financial reporting purposes, the applicant must establish the continuity of historic cost by using the December 31, 2013 regulatory accumulated depreciation as the opening January 1, 2014 regulatory accumulated depreciation. The applicant must provide schedules (including Appendix 2-BA, Fixed Asset Continuity Schedule) which must identify the following details to substantiate the continuity of historic cost for regulatory purposes:
A46: · December 31, 2013 regulatory accumulated depreciation, by asset class; and
A47: · January 1, 2014 regulatory accumulated depreciation, by asset class.
A49: Appendix 2-C - Depreciation and Amortization
A51: Applicants are to provide Appendix 2-C starting in the year capitalization and depreciation policy changes were implemented in accordance with the years and corresponding accounting standards listed in the above table.
A52: If an applicant changed capitalization and depreciation policies effective January 1, 2012 and adopted IFRS for reporting purposes effective January 1, 2015, the applicant must complete Appendix 2-CA to 2-CF (inclusive).
A53: If an applicant changed capitalization and depreciation policies effective January 1, 2013 and adopted IFRS for reporting purposes effective January 1, 2015, the applicant must complete Appendix 2-CG to 2-CK (inclusive).
A54: *Depreciation accounting policy changes were mandated by the Board by January 1, 2013. These accounting changes should be implemented consistent with the Board’s regulatory accounting policies as set out for MIFRS as contained in the Report of the Board, Transition to International Financial Reporting Standards (EB-2008-0408), the Depreciation Study for Use by Electricity Distributors (EB-2010-0178) and the Revised 2012 Accounting Procedures Handbook for Electricity Distributors. In general, no further changes to an applicant's depreciation policy (i.e. assets' service lives) are expected after the Board mandated changes by January 1, 2013. The set of Appendix CA to CK assumes this to be the case. If the applicant has made any changes to its depreciation policy subsequent to the Board mandated changes, applicants must identify the change, explain the nature of the change, the reason for the change, quantify the impact of the change, and quantify the depreciation expense before and after the change.
A57: Appendix 2-E - Account 1575, IFRS-CGAAP Transitional PP&E Amounts (2-EA), Account 1576, Accounting Changes Under CGAAP (2-EB, 2-EC)
A59: If an applicant changed capitalization and depreciation policies effective January 1, 2012 and adopted IFRS for reporting purposes effective January 1, 2015, the applicant must complete Appendix 2-EA and 2-EB. If the applicant did not make any further PP&E accounting policy changes beyond the capitalization and depreciation policy changes as permitted by the Board on January 1, 2012 (i.e. no further changes made on transition to IFRS), the applicant must indicate this and does not need to complete Appendix 2-EA.
A61: If an applicant changed capitalization and depreciation policies effective January 1, 2013 and adopted IFRS for reporting purposes effective January 1, 2015, the applicant must complete Appendix 2-EA and 2-EC. If the applicant did not make any further PP&E accounting policy changes beyond the capitalization and depreciation policy changes as mandated by the Board by January 1, 2013 (i.e. no further changes made on transition to IFRS), the applicant must indicate this and does not need to complete Appendix 2-EA.
A63: Please refer to section 2.12.4 and 2.12.5 of the Filing Requirements for further details.
A65: Appendix 2-YA - Summary of Impacts to Revenue Requirement from Transition to MIFRS
A67: For applicants adopting MIFRS, the applicants must provide a summary of the dollar impacts of MIFRS to each component of the revenue requirement (e.g. rate base, operating costs, etc), including the overall impact on the proposed revenue requirement. Accordingly, the applicants must identify financial differences and resulting revenue requirement impacts arising from the adoption of MIFRS as compared to CGAAP prior to capitalization and depreciation policy changes.

Sheet App.2-BA_Fixed Asset Cont
L1: File Number: | M1: =EBNUMBER -> EB-2016-0089
L2: Exhibit: | M2: 2
L3: Tab: | M3: 1
L4: Schedule: | M4: 4
L5: Page: | M5: 13-18
L7: Date: | M7: 2016-04-29
A9: Appendix 2-BA
A10: Fixed Asset Continuity Schedule 1
E12: Accounting Standard | F12: MIFRS
E13: Year | F13: 2012
D15: Cost | J15: Accumulated Depreciation
A16: CCA Class 2 | B16: OEB Account 3 | C16: Description 3 | D16: Opening Balance | E16: Additions 4 | F16: Disposals | G16: Closing Balance | I16: Opening Balance | J16: Additions | K16: Disposals | L16: Closing Balance | M16: Net Book Value
A17: 12 | B17: 1611 | C17: Computer Software (Formally known as Account 1925) | D17: 138259 | E17: 277365 | G17: =D17+E17+F17 -> 415624 | I17: -71150 | J17: -48998 | L17: =I17+J17+K17 -> -120148 | M17: =G17+L17 -> 295476
A18: CEC | B18: 1612 | C18: Land Rights (Formally known as Account 1906) | G18: =D18+E18+F18 -> 0 | L18: =I18+J18+K18 -> 0 | M18: =G18+L18 -> 0
A19: N/A | B19: 1805 | C19: Land | D19: 219284 | G19: =D19+E19+F19 -> 219284 | L19: =I19+J19+K19 -> 0 | M19: =G19+L19 -> 219284
A20: 47 | B20: 1808 | C20: Buildings | D20: 957745 | E20: 153163 | G20: =D20+E20+F20 -> 1110908 | I20: -139259 | J20: -12729 | L20: =I20+J20+K20 -> -151988 | M20: =G20+L20 -> 958920
A21: 13 | B21: 1810 | C21: Leasehold Improvements | G21: 0 | L21: 0 | M21: 0
A22: 47 | B22: 1815 | C22: Transformer Station Equipment >50 kV | G22: 0 | L22: 0 | M22: 0
A23: 47 | B23: 1820 | C23: Distribution Station Equipment <50 kV | D23: 2887416 | E23: 22303 | G23: 2909719 | I23: -1684761 | J23: -33681 | L23: -1718442 | M23: 1191277
A24: 47 | B24: 1825 | C24: Storage Battery Equipment | G24: 0 | L24: 0 | M24: 0
A25: 47 | B25: 1830 | C25: Poles, Towers & Fixtures | D25: 1378277 | E25: 263466 | G25: 1641743 | I25: -213013 | J25: -22649 | L25: -235662 | M25: 1406081
A26: 47 | B26: 1835 | C26: Overhead Conductors & Devices | D26: 4255646 | E26: 774550 | G26: 5030196 | I26: -1037159 | J26: -43645 | L26: -1080804 | M26: 3949392
A27: 47 | B27: 1840 | C27: Underground Conduit | D27: 941911 | E27: 3350 | G27: 945261 | I27: -211202 | J27: -12896 | L27: -224098 | M27: 721163
A28: 47 | B28: 1845 | C28: Underground Conductors & Devices | D28: 3224655 | E28: 227824 | G28: 3452479 | I28: -1944602 | J28: -62611 | L28: -2007213 | M28: 1445266
A29: 47 | B29: 1850 | C29: Line Transformers | D29: 5262523 | E29: 265754 | G29: 5528277 | I29: -2406860 | J29: -101838 | L29: -2508698 | M29: 3019579
A30: 47 | B30: 1855 | C30: Services (Overhead & Underground) | D30: 517496 | E30: 14709 | G30: 532205 | I30: -162546 | J30: -2256 | L30: -164802 | M30: 367403
A31: 47 | B31: 1860 | C31: Meters | D31: 916538 | F31: -688736 | G31: 227802 | I31: -567058 | J31: -31681 | K31: 436068 | L31: -162671 | M31: 65131
A32: 47 | B32: 1860 | C32: Meters (Smart Meters) | E32: 2044874 | G32: 2044874 | J32: -68162 | L32: -68162 | M32: 1976712
A33: N/A | B33: 1905 | C33: Land | G33: 0 | L33: 0 | M33: 0
A34: 47 | B34: 1908 | C34: Buildings & Fixtures | G34: 0 | L34: 0 | M34: 0
A35: 13 | B35: 1910 | C35: Leasehold Improvements | G35: 0 | L35: 0 | M35: 0
A36: 8 | B36: 1915 | C36: Office Furniture & Equipment (10 years) | D36: 62480 | E36: 31047 | G36: 93527 | I36: -13308 | J36: -6680 | L36: -19988 | M36: 73539
A37: 8 | B37: 1915 | C37: Office Furniture & Equipment (5 years) | G37: 0 | L37: 0 | M37: 0
A38: 10 | B38: 1920 | C38: Computer Equipment - Hardware | D38: 40254 | E38: 21321 | G38: 61575 | I38: -19850 | J38: -7900 | L38: -27750 | M38: 33825
A39: 45 | B39: 1920 | C39: Computer Equip.-Hardware(Post Mar. 22/04) | G39: 0 | L39: 0 | M39: 0
A40: 45.1 | B40: 1920 | C40: Computer Equip.-Hardware(Post Mar. 19/07) | G40: 0 | L40: 0 | M40: 0
A41: 10 | B41: 1930 | C41: Transportation Equipment | D41: 759706 | E41: 317215 | G41: 1076921 | I41: -244837 | J41: -105115 | L41: -349952 | M41: 726969
A42: 8 | B42: 1935 | C42: Stores Equipment | G42: 0 | L42: 0 | M42: 0
A43: 8 | B43: 1940 | C43: Tools, Shop & Garage Equipment | D43: 248692 | E43: 32759 | G43: 281451 | I43: -68532 | J43: -22989 | L43: -91521 | M43: 189930
A44: 8 | B44: 1945 | C44: Measurement & Testing Equipment | D44: 20870 | G44: 20870 | I44: -2915 | J44: -1772 | L44: -4687 | M44: 16183
A45: 8 | B45: 1950 | C45: Power Operated Equipment | G45: 0 | L45: 0 | M45: 0
A46: 8 | B46: 1955 | C46: Communications Equipment | G46: 0 | L46: 0 | M46: 0
A47: 8 | B47: 1955 | C47: Communication Equipment (Smart Meters) | G47: 0 | L47: 0 | M47: 0
A48: 8 | B48: 1960 | C48: Miscellaneous Equipment | D48: 1030 | E48: 1426 | G48: 2456 | I48: -34 | J48: -157 | L48: -191 | M48: 2265
A49: 47 | B49: 1970 | C49: Load Management Controls Customer Premises | G49: 0 | L49: 0 | M49: 0
A50: 47 | B50: 1975 | C50: Load Management Controls Utility Premises | G50: 0 | L50: 0 | M50: 0
A51: 47 | B51: 1980 | C51: System Supervisor Equipment | E51: 97796 | G51: 97796 | J51: -2445 | L51: -2445 | M51: 95351
A52: 47 | B52: 1985 | C52: Miscellaneous Fixed Assets | G52: 0 | L52: 0 | M52: 0
A53: 47 | B53: 1990 | C53: Other Tangible Property | G53: 0 | L53: 0 | M53: 0
A54: 47 | B54: 1995 | C54: Contributions & Grants | D54: -2400063 | E54: -152967 | G54: -2553030 | I54: 448589 | J54: 86608 | L54: 535197 | M54: -2017833
A55: 47 | B55: 2440 | C55: Deferred Revenue5
G56: 0 | L56: 0 | M56: 0
C57: Sub-Total | D57: =SUM(D17:D56) -> 19432719 | E57: =SUM(E17:E56) -> 4395955 | F57: =SUM(F17:F56) -> -688736 | G57: =SUM(G17:G56) -> 23139938 | I57: =SUM(I17:I56) -> -8338497 | J57: =SUM(J17:J56) -> -501596 | K57: =SUM(K17:K56) -> 436068 | L57: =SUM(L17:L56) -> -8404025 | M57: =SUM(M17:M56) -> 14735913
C58: Less Socialized Renewable Energy Generation Investments (input as negative) | G58: =D58+E58+F58 -> 0 | L58: =I58+J58+K58 -> 0 | M58: =G58+L58 -> 0
C59: Less Other Non Rate-Regulated Utility Assets (input as negative) | G59: 0 | L59: =I59+J59+K59 -> 0 | M59: 0
C60: Total PP&E | D60: =SUM(D57:D59) -> 19432719 | E60: =SUM(E57:E59) -> 4395955 | F60: =SUM(F57:F59) -> -688736 | G60: =SUM(G57:G59) -> 23139938 | I60: =SUM(I57:I59) -> -8338497 | J60: =SUM(J57:J59) -> -501596 | K60: =SUM(K57:K59) -> 436068 | L60: =SUM(L57:L59) -> -8404025 | M60: =SUM(M57:M59) -> 14735913
C61: Depreciation Expense adj. from gain or loss on the retirement of assets (pool of like assets), if applicable6
C62: Total | J62: =J60+J61 -> -501596
I64: Less: Fully Allocated Depreciation
A65: 10 | C65: Transportation | I65: Transportation
A66: 8 | C66: Stores Equipment | I66: Stores Equipment
I67: Net Depreciation | K67: =J62-K65-K66 -> -501596
A69: Notes:
A71: 1 | B71: Tables in the format outlined above covering all fixed asset accounts should be submitted for the Test Year, Bridge Year and all relevant historical years. At a minimum , the applicant must provide data for the earlier of: 1) all historical years back to its last rebasing; or 2) at least three years of historical actuals, in addition to Bridge Year and Test Year forecasts.
A74: 2 | B74: The "CCA Class" for fixed assets should agree with the CCA Class used for tax purposes in Tax Returns. Fixed Assets sub-components may be used where the underlying asset components are classified under multiple CCA Classes for tax purposes. If an applicant uses any different classes from those shown in the table, an explanation should be provided. (also see note 3).
A77: 3 | B77: The table may need to be customized for a utility's asset categories or for any new asset accounts announced or authorized by the Board.
A79: 4 | B79: The additions in column (E) must not include construction work in progress (CWIP).
A81: 5 | B81: Effective on the date of IFRS adoption, customer contributions will no longer be recorded in Account 1995 Contributions & Grants, but will be recorded in Account 2440, Deferred Revenues.
A83: 6 | B83: Where a distributor for general financial reporting purposes under IFRS has accounted for the amount of gain or loss on the retirement of assets in a pool of like assets as a charge or credit to income, for reporting and rate application filings, the distributor shall reclassify such gains and losses as depreciation expense, and disclose the amount separately.
A86: Appendix 2-BA
A87: Fixed Asset Continuity Schedule 1
E89: Accounting Standard | F89: MIFRS
E90: Year | F90: 2013
D92: Cost | J92: Accumulated Depreciation
A93: CCA Class 2 | B93: OEB Account 3 | C93: Description 3 | D93: Opening Balance | E93: Additions 4 | F93: Disposals | G93: Closing Balance | I93: Opening Balance | J93: Additions | K93: Disposals | L93: Closing Balance | M93: Net Book Value
A94: 12 | B94: 1611 | C94: Computer Software (Formally known as Account 1925) | D94: =G17 -> 415624 | E94: 26107 | G94: =D94+E94+F94 -> 441731 | I94: =L17 -> -120148 | J94: -76176 | L94: =I94+J94+K94 -> -196324 | M94: =G94+L94 -> 245407
A95: CEC | B95: 1612 | C95: Land Rights (Formally known as Account 1906) | D95: =G18 -> 0 | G95: =D95+E95+F95 -> 0 | I95: =L18 -> 0 | L95: =I95+J95+K95 -> 0 | M95: =G95+L95 -> 0
A96: N/A | B96: 1805 | C96: Land | D96: 219284 | G96: =D96+E96+F96 -> 219284 | I96: 0 | L96: =I96+J96+K96 -> 0 | M96: =G96+L96 -> 219284
A97: 47 | B97: 1808 | C97: Buildings | D97: 1110908 | E97: 38411 | G97: =D97+E97+F97 -> 1149319 | I97: -151988 | J97: -28715 | L97: =I97+J97+K97 -> -180703 | M97: =G97+L97 -> 968616
A98: 13 | B98: 1810 | C98: Leasehold Improvements | D98: 0 | G98: 0 | I98: 0 | L98: 0 | M98: 0
A99: 47 | B99: 1815 | C99: Transformer Station Equipment >50 kV | D99: 0 | G99: 0 | I99: 0 | L99: 0 | M99: 0
A100: 47 | B100: 1820 | C100: Distribution Station Equipment <50 kV | D100: 2909719 | E100: 67234 | G100: 2976953 | I100: -1718442 | J100: -55745 | L100: -1774187 | M100: 1202766
A101: 47 | B101: 1825 | C101: Storage Battery Equipment | D101: 0 | G101: 0 | I101: 0 | L101: 0 | M101: 0
A102: 47 | B102: 1830 | C102: Poles, Towers & Fixtures | D102: 1641743 | E102: 133398 | G102: 1775141 | I102: -235662 | J102: -47472 | L102: -283134 | M102: 1492007
A103: 47 | B103: 1835 | C103: Overhead Conductors & Devices | D103: 5030196 | E103: 190493 | G103: 5220689 | I103: -1080804 | J103: -108963 | L103: -1189767 | M103: 4030922
A104: 47 | B104: 1840 | C104: Underground Conduit | D104: 945261 | E104: 86322 | G104: 1031583 | I104: -224098 | J104: -26590 | L104: -250688 | M104: 780895
A105: 47 | B105: 1845 | C105: Underground Conductors & Devices | D105: 3452479 | E105: 151915 | G105: 3604394 | I105: -2007213 | J105: -90460 | L105: -2097673 | M105: 1506721
A106: 47 | B106: 1850 | C106: Line Transformers | D106: 5528277 | E106: 153741 | G106: 5682018 | I106: -2508698 | J106: -157657 | L106: -2666355 | M106: 3015663
A107: 47 | B107: 1855 | C107: Services (Overhead & Underground) | D107: 532205 | E107: 80834 | G107: 613039 | I107: -164802 | J107: -9343 | L107: -174145 | M107: 438894
A108: 47 | B108: 1860 | C108: Meters | D108: 227802 | G108: 227802 | I108: -162671 | J108: -37804 | L108: -200475 | M108: 27327
A109: 47 | B109: 1860 | C109: Meters (Smart Meters) | D109: 2044874 | E109: 117332 | G109: 2162206 | I109: -68162 | J109: -140236 | L109: -208398 | M109: 1953808
A110: N/A | B110: 1905 | C110: Land | D110: 0 | G110: 0 | I110: 0 | L110: 0 | M110: 0
A111: 47 | B111: 1908 | C111: Buildings & Fixtures | D111: 0 | G111: 0 | I111: 0 | L111: 0 | M111: 0
A112: 13 | B112: 1910 | C112: Leasehold Improvements | D112: 0 | G112: 0 | I112: 0 | L112: 0 | M112: 0
A113: 8 | B113: 1915 | C113: Office Furniture & Equipment (10 years) | D113: 93527 | E113: 13799 | G113: 107326 | I113: -19988 | J113: -9784 | L113: -29772 | M113: 77554
A114: 8 | B114: 1915 | C114: Office Furniture & Equipment (5 years) | D114: 0 | G114: 0 | I114: 0 | L114: 0 | M114: 0
A115: 10 | B115: 1920 | C115: Computer Equipment - Hardware | D115: 61575 | E115: 24126 | G115: 85701 | I115: -27750 | J115: -12691 | L115: -40441 | M115: 45260
A116: 45 | B116: 1920 | C116: Computer Equip.-Hardware(Post Mar. 22/04) | D116: 0 | G116: 0 | I116: 0 | L116: 0 | M116: 0
A117: 45.1 | B117: 1920 | C117: Computer Equip.-Hardware(Post Mar. 19/07) | D117: 0 | G117: 0 | I117: 0 | L117: 0 | M117: 0
A118: 10 | B118: 1930 | C118: Transportation Equipment | D118: 1076921 | G118: 1076921 | I118: -349952 | J118: -114134 | L118: -464086 | M118: 612835
A119: 8 | B119: 1935 | C119: Stores Equipment | D119: 0 | G119: 0 | I119: 0 | L119: 0 | M119: 0
A120: 8 | B120: 1940 | C120: Tools, Shop & Garage Equipment | D120: 281451 | E120: 181952 | G120: 463403 | I120: -91521 | J120: -35198 | L120: -126719 | M120: 336684
A121: 8 | B121: 1945 | C121: Measurement & Testing Equipment | D121: 20870 | E121: 1476 | G121: 22346 | I121: -4687 | J121: -2087 | L121: -6774 | M121: 15572
A122: 8 | B122: 1950 | C122: Power Operated Equipment | D122: 0 | G122: 0 | I122: 0 | L122: 0 | M122: 0
A123: 8 | B123: 1955 | C123: Communications Equipment | D123: 0 | G123: 0 | I123: 0 | L123: 0 | M123: 0
A124: 8 | B124: 1955 | C124: Communication Equipment (Smart Meters) | D124: 0 | G124: 0 | I124: 0 | L124: 0 | M124: 0
A125: 8 | B125: 1960 | C125: Miscellaneous Equipment | D125: 2456 | E125: 10500 | G125: 12956 | I125: -191 | J125: -844 | L125: -1035 | M125: 11921
A126: 47 | B126: 1970 | C126: Load Management Controls Customer Premises | D126: 0 | G126: 0 | I126: 0 | L126: 0 | M126: 0
A127: 47 | B127: 1975 | C127: Load Management Controls Utility Premises | D127: 0 | G127: 0 | I127: 0 | L127: 0 | M127: 0
A128: 47 | B128: 1980 | C128: System Supervisor Equipment | D128: 97796 | E128: 4312 | G128: 102108 | I128: -2445 | J128: -4998 | L128: -7443 | M128: 94665
A129: 47 | B129: 1985 | C129: Miscellaneous Fixed Assets | D129: 0 | G129: 0 | I129: 0 | L129: 0 | M129: 0
A130: 47 | B130: 1990 | C130: Other Tangible Property | D130: 0 | G130: 0 | I130: 0 | L130: 0 | M130: 0
A131: 47 | B131: 1995 | C131: Contributions & Grants | D131: -2553030 | E131: -392384 | G131: -2945414 | I131: 535197 | J131: 97693 | L131: 632890 | M131: -2312524
A132: 47 | B132: 2440 | C132: Deferred Revenue5 | D132: 0 | I132: 0
D133: 0 | G133: =D133+E133+F133 -> 0 | I133: 0 | L133: =I133+J133+K133 -> 0 | M133: =G133+L133 -> 0
C134: Sub-Total | D134: =SUM(D94:D133) -> 23139938 | E134: =SUM(E94:E133) -> 889568 | F134: =SUM(F94:F133) -> 0 | G134: =SUM(G94:G133) -> 24029506 | I134: =SUM(I94:I133) -> -8404025 | J134: =SUM(J94:J133) -> -861204 | K134: =SUM(K94:K133) -> 0 | L134: =SUM(L94:L133) -> -9265229 | M134: =SUM(M94:M133) -> 14764277
C135: Less Socialized Renewable Energy Generation Investments (input as negative) | G135: =D135+E135+F135 -> 0 | L135: =I135+J135+K135 -> 0 | M135: =G135+L135 -> 0
C136: Less Other Non Rate-Regulated Utility Assets (input as negative) | G136: =D136+E136+F136 -> 0 | L136: =I136+J136+K136 -> 0 | M136: =G136+L136 -> 0
C137: Total PP&E | D137: =SUM(D134:D136) -> 23139938 | E137: =SUM(E134:E136) -> 889568 | F137: =SUM(F134:F136) -> 0 | G137: =SUM(G134:G136) -> 24029506 | I137: =SUM(I134:I136) -> -8404025 | J137: =SUM(J134:J136) -> -861204 | K137: =SUM(K134:K136) -> 0 | L137: =SUM(L134:L136) -> -9265229 | M137: =SUM(M134:M136) -> 14764277
C138: Depreciation Expense adj. from gain or loss on the retirement of assets (pool of like assets), if applicable6
C139: Total | J139: =J137+J138 -> -861204
I141: Less: Fully Allocated Depreciation
A142: 10 | C142: Transportation | I142: Transportation
A143: 8 | C143: Stores Equipment | I143: Stores Equipment
I144: Net Depreciation | K144: =J139-K142-K143 -> -861204
A147: Appendix 2-BA
A148: Fixed Asset Continuity Schedule 1
E150: Accounting Standard | F150: MIFRS
E151: Year | F151: 2014
D153: Cost | J153: Accumulated Depreciation
A154: CCA Class 2 | B154: OEB Account 3 | C154: Description 3 | D154: Opening Balance | E154: Additions 4 | F154: Disposals | G154: Closing Balance | I154: Opening Balance | J154: Additions | K154: Disposals | L154: Closing Balance | M154: Net Book Value
A155: 12 | B155: 1611 | C155: Computer Software (Formally known as Account 1925) | D155: =G94 -> 441731 | E155: 19400 | G155: =D155+E155+F155 -> 461131 | I155: =L94 -> -196324 | J155: -76707 | L155: =I155+J155+K155 -> -273031 | M155: =G155+L155 -> 188100
A156: CEC | B156: 1612 | C156: Land Rights (Formally known as Account 1906) | D156: 0 | G156: =D156+E156+F156 -> 0 | I156: 0 | L156: =I156+J156+K156 -> 0 | M156: =G156+L156 -> 0
A157: N/A | B157: 1805 | C157: Land | D157: 219284 | G157: =D157+E157+F157 -> 219284 | I157: 0 | L157: =I157+J157+K157 -> 0 | M157: =G157+L157 -> 219284
A158: 47 | B158: 1808 | C158: Buildings | D158: 1149319 | E158: 54231 | G158: =D158+E158+F158 -> 1203550 | I158: -180703 | J158: -30007 | L158: =I158+J158+K158 -> -210710 | M158: =G158+L158 -> 992840
A159: 13 | B159: 1810 | C159: Leasehold Improvements | D159: 0 | G159: 0 | I159: 0 | L159: 0 | M159: 0
A160: 47 | B160: 1815 | C160: Transformer Station Equipment >50 kV | D160: 0 | G160: 0 | I160: 0 | L160: 0 | M160: 0
A161: 47 | B161: 1820 | C161: Distribution Station Equipment <50 kV | D161: 2976953 | E161: 80630 | G161: 3057583 | I161: -1774187 | J161: -54397 | L161: -1828584 | M161: 1228999
A162: 47 | B162: 1825 | C162: Storage Battery Equipment | D162: 0 | G162: 0 | I162: 0 | L162: 0 | M162: 0
A163: 47 | B163: 1830 | C163: Poles, Towers & Fixtures | D163: 1775141 | E163: 245546 | G163: 2020687 | I163: -283134 | J163: -51421 | L163: -334555 | M163: 1686132
A164: 47 | B164: 1835 | C164: Overhead Conductors & Devices | D164: 5220689 | E164: 399016 | G164: 5619705 | I164: -1189767 | J164: -109850 | L164: -1299617 | M164: 4320088
A165: 47 | B165: 1840 | C165: Underground Conduit | D165: 1031583 | E165: 18558 | G165: 1050141 | I165: -250688 | J165: -27661 | L165: -278349 | M165: 771792
A166: 47 | B166: 1845 | C166: Underground Conductors & Devices | D166: 3604394 | E166: 18007 | G166: 3622401 | I166: -2097673 | J166: -90546 | L166: -2188219 | M166: 1434182
A167: 47 | B167: 1850 | C167: Line Transformers | D167: 5682018 | E167: 112751 | G167: 5794769 | I167: -2666355 | J167: -161753 | L167: -2828108 | M167: 2966661
A168: 47 | B168: 1855 | C168: Services (Overhead & Underground) | D168: 613039 | E168: 0 | G168: 613039 | I168: -174145 | J168: -9931 | L168: -184076 | M168: 428963
A169: 47 | B169: 1860 | C169: Meters | D169: 227802 | E169: 0 | G169: 227802 | I169: -200475 | J169: -33809 | L169: -234284 | M169: -6482
A170: 47 | B170: 1860 | C170: Meters (Smart Meters) | D170: 2162206 | E170: 68805 | G170: 2231011 | I170: -208398 | J170: -147044 | L170: -355442 | M170: 1875569
A171: N/A | B171: 1905 | C171: Land | D171: 0 | G171: 0 | I171: 0 | L171: 0 | M171: 0
A172: 47 | B172: 1908 | C172: Buildings & Fixtures | D172: 0 | G172: 0 | I172: 0 | L172: 0 | M172: 0
A173: 13 | B173: 1910 | C173: Leasehold Improvements | D173: 0 | G173: 0 | I173: 0 | L173: 0 | M173: 0
A174: 8 | B174: 1915 | C174: Office Furniture & Equipment (10 years) | D174: 107326 | G174: 107326 | I174: -29772 | J174: -10442 | L174: -40214 | M174: 67112
A175: 8 | B175: 1915 | C175: Office Furniture & Equipment (5 years) | D175: 0 | G175: 0 | I175: 0 | L175: 0 | M175: 0
A176: 10 | B176: 1920 | C176: Computer Equipment - Hardware | D176: 85701 | E176: 21136 | G176: 106837 | I176: -40441 | J176: -16868 | L176: -57309 | M176: 49528
A177: 45 | B177: 1920 | C177: Computer Equip.-Hardware(Post Mar. 22/04) | D177: 0 | G177: 0 | I177: 0 | L177: 0 | M177: 0
A178: 45.1 | B178: 1920 | C178: Computer Equip.-Hardware(Post Mar. 19/07) | D178: 0 | G178: 0 | I178: 0 | L178: 0 | M178: 0
A179: 10 | B179: 1930 | C179: Transportation Equipment | D179: 1076921 | E179: 77846 | G179: 1154767 | I179: -464086 | J179: -146082 | L179: -610168 | M179: 544599
A180: 8 | B180: 1935 | C180: Stores Equipment | D180: 0 | G180: 0 | I180: 0 | L180: 0 | M180: 0
A181: 8 | B181: 1940 | C181: Tools, Shop & Garage Equipment | D181: 463403 | E181: 186821 | F181: -48600 | G181: 601624 | I181: -126719 | J181: -53656 | K181: 21870 | L181: -158505 | M181: 443119
A182: 8 | B182: 1945 | C182: Measurement & Testing Equipment | D182: 22346 | G182: 22346 | I182: -6774 | J182: -2225 | L182: -8999 | M182: 13347
A183: 8 | B183: 1950 | C183: Power Operated Equipment | D183: 0 | G183: 0 | I183: 0 | L183: 0 | M183: 0
A184: 8 | B184: 1955 | C184: Communications Equipment | D184: 0 | G184: 0 | I184: 0 | L184: 0 | M184: 0
A185: 8 | B185: 1955 | C185: Communication Equipment (Smart Meters) | D185: 0 | G185: 0 | I185: 0 | L185: 0 | M185: 0
A186: 8 | B186: 1960 | C186: Miscellaneous Equipment | D186: 12956 | E186: 42293 | G186: 55249 | I186: -1035 | J186: -3350 | L186: -4385 | M186: 50864
A187: 47 | B187: 1970 | C187: Load Management Controls Customer Premises | D187: 0 | G187: 0 | I187: 0 | L187: 0 | M187: 0
A188: 47 | B188: 1975 | C188: Load Management Controls Utility Premises | D188: 0 | G188: 0 | I188: 0 | L188: 0 | M188: 0
A189: 47 | B189: 1980 | C189: System Supervisor Equipment | D189: 102108 | E189: 85064 | G189: 187172 | I189: -7443 | J189: -7232 | L189: -14675 | M189: 172497
A190: 47 | B190: 1985 | C190: Miscellaneous Fixed Assets | D190: 0 | G190: 0 | I190: 0 | L190: 0 | M190: 0
A191: 47 | B191: 1990 | C191: Other Tangible Property | D191: 0 | G191: 0 | I191: 0 | L191: 0 | M191: 0
A192: 47 | B192: 1995 | C192: Contributions & Grants | D192: -2945414 | G192: -2945414 | I192: 632890 | J192: 100710 | L192: 733600 | M192: -2211814
A193: 47 | B193: 2440 | C193: Deferred Revenue5 | D193: 0 | I193: 0
D194: 0 | G194: =D194+E194+F194 -> 0 | I194: 0 | L194: =I194+J194+K194 -> 0 | M194: =G194+L194 -> 0
C195: Sub-Total | D195: =SUM(D155:D194) -> 24029506 | E195: =SUM(E155:E194) -> 1430104 | F195: =SUM(F155:F194) -> -48600 | G195: =SUM(G155:G194) -> 25411010 | I195: =SUM(I155:I194) -> -9265229 | J195: =SUM(J155:J194) -> -932271 | K195: =SUM(K155:K194) -> 21870 | L195: =SUM(L155:L194) -> -10175630 | M195: =SUM(M155:M194) -> 15235380
C196: Less Socialized Renewable Energy Generation Investments (input as negative) | G196: =D196+E196+F196 -> 0 | L196: =I196+J196+K196 -> 0 | M196: =G196+L196 -> 0
C197: Less Other Non Rate-Regulated Utility Assets (input as negative) | G197: =D197+E197+F197 -> 0 | L197: =I197+J197+K197 -> 0 | M197: =G197+L197 -> 0
C198: Total PP&E | D198: =SUM(D195:D197) -> 24029506 | E198: =SUM(E195:E197) -> 1430104 | F198: =SUM(F195:F197) -> -48600 | G198: =SUM(G195:G197) -> 25411010 | I198: =SUM(I195:I197) -> -9265229 | J198: =SUM(J195:J197) -> -932271 | K198: =SUM(K195:K197) -> 21870 | L198: =SUM(L195:L197) -> -10175630 | M198: =SUM(M195:M197) -> 15235380
C199: Depreciation Expense adj. from gain or loss on the retirement of assets (pool of like assets), if applicable6
C200: Total | J200: =J198+J199 -> -932271
I202: Less: Fully Allocated Depreciation
A203: 10 | C203: Transportation | I203: Transportation
A204: 8 | C204: Stores Equipment | I204: Stores Equipment
I205: Net Depreciation | K205: =J200-K203-K204 -> -932271
A208: Appendix 2-BA
A209: Fixed Asset Continuity Schedule 1
E211: Accounting Standard | F211: MIFRS
E212: Year | F212: 2015
D214: Cost | J214: Accumulated Depreciation
A215: CCA Class 2 | B215: OEB Account 3 | C215: Description 3 | D215: Opening Balance | E215: Additions 4 | F215: Disposals | G215: Closing Balance | I215: Opening Balance | J215: Additions | K215: Disposals | L215: Closing Balance | M215: Net Book Value
A216: 12 | B216: 1611 | C216: Computer Software (Formally known as Account 1925) | D216: =G155 -> 461131 | E216: 215982 | G216: =D216+E216+F216 -> 677113 | I216: =L155 -> -273031 | J216: -100245 | L216: =I216+J216+K216 -> -373276 | M216: =G216+L216 -> 303837
A217: CEC | B217: 1612 | C217: Land Rights (Formally known as Account 1906) | D217: =G156 -> 0 | G217: =D217+E217+F217 -> 0 | I217: =L156 -> 0 | L217: =I217+J217+K217 -> 0 | M217: =G217+L217 -> 0
A218: N/A | B218: 1805 | C218: Land | D218: 219284 | G218: =D218+E218+F218 -> 219284 | I218: 0 | L218: =I218+J218+K218 -> 0 | M218: =G218+L218 -> 219284
A219: 47 | B219: 1808 | C219: Buildings | D219: 1203550 | G219: =D219+E219+F219 -> 1203550 | I219: -210710 | J219: -30550 | L219: =I219+J219+K219 -> -241260 | M219: =G219+L219 -> 962290
A220: 13 | B220: 1810 | C220: Leasehold Improvements | D220: 0 | G220: 0 | I220: 0 | L220: 0 | M220: 0
A221: 47 | B221: 1815 | C221: Transformer Station Equipment >50 kV | D221: 0 | G221: 0 | I221: 0 | L221: 0 | M221: 0
A222: 47 | B222: 1820 | C222: Distribution Station Equipment <50 kV | D222: 3057583 | E222: 339833 | G222: 3397416 | I222: -1828584 | J222: -59068 | L222: -1887652 | M222: 1509764
A223: 47 | B223: 1825 | C223: Storage Battery Equipment | D223: 0 | G223: 0 | I223: 0 | L223: 0 | M223: 0
A224: 47 | B224: 1830 | C224: Poles, Towers & Fixtures | D224: 2020687 | E224: 295393 | G224: 2316080 | I224: -334555 | J224: -56842 | L224: -391397 | M224: 1924683
A225: 47 | B225: 1835 | C225: Overhead Conductors & Devices | D225: 5619705 | E225: 282760 | G225: 5902465 | I225: -1299617 | J225: -113703 | L225: -1413320 | M225: 4489145
A226: 47 | B226: 1840 | C226: Underground Conduit | D226: 1050141 | G226: 1050141 | I226: -278349 | J226: -27846 | L226: -306195 | M226: 743946
A227: 47 | B227: 1845 | C227: Underground Conductors & Devices | D227: 3622401 | E227: 75391 | G227: 3697792 | I227: -2188219 | J227: -105558 | L227: -2293777 | M227: 1404015
A228: 47 | B228: 1850 | C228: Line Transformers | D228: 5794769 | E228: 62788 | G228: 5857557 | I228: -2828108 | J228: -164261 | L228: -2992369 | M228: 2865188
... 145 more rows

Sheet Appendix 2-BB Service Life
M1: File Number: | O1: 0
M2: Exhibit: | O2: 4
M3: Tab: | O3: 4
M4: Schedule: | O4: 4
M5: Page: | O5: 49
M7: Date: | O7: 2016-04-29
A9: Appendix 2-BB
A10: Service Life Comparison
A11: Table F-1 from Kinetrics Report1
C15: Asset Details | F15: Useful Life | J15: USoA Account Number | K15: USoA Account Description | L15: Current | N15: Proposed | P15: Outside Range of Min, Max TUL?
A16: Parent* | B16: # | C16: Category| Component | Type | F16: MIN UL | G16: TUL | H16: MAX UL | L16: Years | M16: Rate | N16: Years | O16: Rate | P16: Below Min TUL | Q16: Above Max TUL
A17: OH | B17: 1 | C17: Fully Dressed Wood Poles | D17: Overall | F17: 35 | G17: 45 | H17: 75 | J17: 1830 | K17: Poles, Towers and Fixtures | L17: 45 | M17: =IF(ISERROR(1/L17), "", 1/L17) -> 0.02222222222 | N17: 45 | O17: =IF(ISERROR(1/N17), "", 1/N17) -> 0.02222222222 | P17: =IF(ISBLANK(N17),"",IF(N17<F17,"Yes","No")) -> No | Q17: =IF(ISBLANK(N17),"",IF(N17>H17,"Yes","No")) -> No
D18: Cross Arm | E18: Wood | F18: 20 | G18: 40 | H18: 55 | J18: 1830 | K18: Poles, Towers and Fixtures | L18: 45 | M18: =IF(ISERROR(1/L18), "", 1/L18) -> 0.02222222222 | N18: 45 | O18: =IF(ISERROR(1/N18), "", 1/N18) -> 0.02222222222 | P18: =IF(ISBLANK(N18),"",IF(N18<F18,"Yes","No")) -> No | Q18: =IF(ISBLANK(N18),"",IF(N18>H18,"Yes","No")) -> No
E19: Steel | F19: 30 | G19: 70 | H19: 95
B20: 2 | C20: Fully Dressed Concrete Poles | D20: Overall | F20: 50 | G20: 60 | H20: 80
D21: Cross Arm | E21: Wood | F21: 20 | G21: 40 | H21: 55
E22: Steel | F22: 30 | G22: 70 | H22: 95
B23: 3 | C23: Fully Dressed Steel Poles | D23: Overall | F23: 60 | G23: 60 | H23: 80
D24: Cross Arm | E24: Wood | F24: 20 | G24: 40 | H24: 55
E25: Steel | F25: 30 | G25: 70 | H25: 95 | J25: 1830 | K25: Poles, Towers and Fixtures | L25: 45 | M25: 0.02222222222 | N25: 45 | O25: 0.02222222222 | P25: No | Q25: No
B26: 4 | C26: OH Line Switch | F26: 30 | G26: 45 | H26: 55 | J26: 1835 | K26: Undgerground Conductors and Devices | L26: 55 | M26: 0.01818181818 | N26: 45 | O26: 0.02222222222 | P26: No | Q26: No
B27: 5 | C27: OH Line Switch Motor | F27: 15 | G27: 25 | H27: 25
B28: 6 | C28: OH Line Switch RTU | F28: 15 | G28: 20 | H28: 20
B29: 7 | C29: OH Integral Switches | F29: 35 | G29: 45 | H29: 60 | J29: 1835 | K29: Undgerground Conductors and Devices | L29: 55 | M29: 0.01818181818 | N29: 45 | O29: 0.02222222222 | P29: No | Q29: No
B30: 8 | C30: OH Conductors | F30: 50 | G30: 60 | H30: 75 | J30: 1835 | K30: Undgerground Conductors and Devices | L30: 60 | M30: 0.01666666667 | N30: 60 | O30: 0.01666666667 | P30: =IF(ISBLANK(N30),"",IF(N30<F30,"Yes","No")) -> No | Q30: No
B31: 9 | C31: OH Transformers & Voltage Regulators | F31: 30 | G31: 40 | H31: 60 | J31: 1850 | K31: Line Transformers | L31: 35 | M31: 0.02857142857 | N31: 40 | O31: 0.025 | P31: No | Q31: No
B32: 10 | C32: OH Shunt Capacitor Banks | F32: 25 | G32: 30 | H32: 40
B33: 11 | C33: Reclosers | F33: 25 | G33: 40 | H33: 55
A34: TS & MS | B34: 12 | C34: Power Transformers | D34: Overall | F34: 30 | G34: 45 | H34: 60 | J34: 1820 | K34: Distribution Station Equipment | L34: 45 | M34: 0.02222222222 | N34: 45 | O34: 0.02222222222 | P34: No | Q34: No
D35: Bushing | F35: 10 | G35: 20 | H35: 30
D36: Tap Changer | F36: 20 | G36: 30 | H36: 60
B37: 13 | C37: Station Service Transformer | F37: 30 | G37: 45 | H37: 55
B38: 14 | C38: Station Grounding Transformer | F38: 30 | G38: 40 | H38: 40
B39: 15 | C39: Station DC System | D39: Overall | F39: 10 | G39: 20 | H39: 30
D40: Battery Bank | F40: 10 | G40: 15 | H40: 15
D41: Charger | F41: 20 | G41: 20 | H41: 30
B42: 16 | C42: Station Metal Clad Switchgear | D42: Overall | F42: 30 | G42: 40 | H42: 60 | J42: 1820 | K42: Distribution Station Equipment | L42: 45 | M42: 0.02222222222 | N42: 45 | O42: 0.02222222222 | P42: No | Q42: No
D43: Removable Breaker | F43: 25 | G43: 40 | H43: 60 | J43: 1820 | K43: Distribution Station Equipment | L43: 45 | M43: 0.02222222222 | N43: 45 | O43: 0.02222222222 | P43: No | Q43: No
B44: 17 | C44: Station Independent Breakers | F44: 35 | G44: 45 | H44: 65 | J44: 1820 | K44: Distribution Station Equipment | L44: 45 | M44: 0.02222222222 | N44: 45 | O44: 0.02222222222 | P44: No | Q44: No
B45: 18 | C45: Station Switch | F45: 30 | G45: 50 | H45: 60 | J45: 1820 | K45: Distribution Station Equipment | L45: 45 | M45: 0.02222222222 | N45: 45 | O45: 0.02222222222 | P45: No | Q45: No
B46: 19 | C46: Electromechanical Relays | F46: 25 | G46: 35 | H46: 50
B47: 20 | C47: Solid State Relays | F47: 10 | G47: 30 | H47: 45 | J47: 1820 | K47: Distribution Station Equipment | L47: 45 | M47: 0.02222222222 | N47: 45 | O47: 0.02222222222 | P47: No | Q47: No
B48: 21 | C48: Digital & Numeric Relays | F48: 15 | G48: 20 | H48: 20 | J48: 1820 | K48: Distribution Station Equipment | L48: 45 | M48: 0.02222222222 | N48: 45 | O48: 0.02222222222 | P48: No | Q48: Yes
B49: 22 | C49: Rigid Busbars | F49: 30 | G49: 55 | H49: 60
B50: 23 | C50: Steel Structure | F50: 35 | G50: 50 | H50: 90 | J50: 1820 | K50: Distribution Station Equipment | L50: 45 | M50: 0.02222222222 | N50: 45 | O50: 0.02222222222 | P50: No | Q50: No
A51: UG | B51: 24 | C51: Primary Paper Insulated Lead Covered (PILC) Cables | F51: 60 | G51: 65 | H51: 75
B52: 25 | C52: Primary Ethylene-Propylene Rubber (EPR) Cables | F52: 20 | G52: 25 | H52: 25
B53: 26 | C53: Primary Non-Tree Retardant (TR) Cross Linked Polyethylene (XLPE) Cables Direct Buried | F53: 20 | G53: 25 | H53: 30
B54: 27 | C54: Primary Non-TR XLPE Cables in Duct | F54: 20 | G54: 25 | H54: 30
B55: 30 | C55: Secondary PILC Cables | F55: 70 | G55: 75 | H55: 80
B56: 31 | C56: Secondary Cables Direct Buried | F56: 25 | G56: 35 | H56: 40
B57: 32 | C57: Secondary Cables in Duct | F57: 35 | G57: 40 | H57: 60
B58: 33 | C58: Network Tranformers | D58: Overall | F58: 20 | G58: 35 | H58: 50
D59: Protector | F59: 20 | G59: 35 | H59: 40 | J59: 1845 | K59: Undgerground Conductor | L59: 35 | M59: 0.02857142857 | N59: 35 | O59: 0.02857142857 | P59: No | Q59: No
B60: 34 | C60: Pad-Mounted Transformers | F60: 25 | G60: 40 | H60: 45 | J60: 1850 | K60: Transformer | L60: 35 | M60: 0.02857142857 | N60: 35 | O60: 0.02857142857 | P60: No | Q60: No
B61: 35 | C61: Submersible/Vault Transformers | F61: 25 | G61: 35 | H61: 45
B62: 36 | C62: UG Foundation | F62: 35 | G62: 55 | H62: 70 | J62: 1855 | K62: Secondary Services | L62: 55 | M62: 0.01818181818 | N62: 55 | O62: 0.01818181818 | P62: No | Q62: No
B63: 37 | C63: UG Vaults | D63: Overall | F63: 40 | G63: 60 | H63: 80
D64: Roof | F64: 20 | G64: 30 | H64: 45
B65: 38 | C65: UG Vault Switches | F65: 20 | G65: 35 | H65: 50
B66: 39 | C66: Pad-Mounted Switchgear | F66: 20 | G66: 30 | H66: 45
B67: 40 | C67: Ducts | F67: 30 | G67: 50 | H67: 85 | J67: 1840 | K67: Conduit | L67: 50 | M67: 0.02 | N67: 50 | O67: 0.02 | P67: No | Q67: No
B68: 41 | C68: Concrete Encased Duct Banks | F68: 35 | G68: 55 | H68: 80
B69: 42 | C69: Cable Chambers | F69: 50 | G69: 60 | H69: 80
A70: S | B70: 43 | C70: Remote SCADA | F70: 15 | G70: 20 | H70: 30 | J70: 1980 | K70: SCADA | L70: 20 | M70: 0.05 | N70: 20 | O70: 0.05 | P70: No | Q70: No
A73: Table F-2 from Kinetrics Report1
C75: Asset Details | F75: Useful Life Range | J75: USoA Account Number | K75: USoA Account Description | L75: Current | N75: Proposed | P75: Outside Range of Min, Max TUL?
B76: # | C76: Category| Component | Type | L76: Years | M76: Rate | N76: Years | O76: Rate | P76: Below Min Range | Q76: Above Max Range
B77: 1 | C77: Office Equipment | F77: 5 | G77: 15 | J77: 1915 | K77: Office Equipment | L77: 10 | M77: =IF(ISERROR(1/L77), "", 1/L77) -> 0.1 | N77: 10 | O77: =IF(ISERROR(1/N77), "", 1/N77) -> 0.1 | P77: =IF(ISBLANK(N77),"",IF(N77<F77,"Yes","No")) -> No | Q77: =IF(ISBLANK(N77),"",IF(N77>G77,"Yes","No")) -> No
B78: 2 | C78: Vehicles | D78: Trucks & Buckets | F78: 5 | G78: 15 | J78: 1930 | K78: Transportation Equipment | L78: 5 | M78: =IF(ISERROR(1/L78), "", 1/L78) -> 0.2 | N78: 5 | O78: =IF(ISERROR(1/N78), "", 1/N78) -> 0.2 | P78: =IF(ISBLANK(N78),"",IF(N78<F78,"Yes","No")) -> No | Q78: =IF(ISBLANK(N78),"",IF(N78>G78,"Yes","No")) -> No
D79: Trailers | F79: 5 | G79: 20
D80: Vans | F80: 5 | G80: 10
B81: 3 | C81: Administrative Buildings | F81: 50 | G81: 75 | J81: 1808 | K81: Buildings | L81: 50 | M81: 0.02 | N81: 50 | O81: 0.02 | P81: No | Q81: No
B82: 4 | C82: Leasehold Improvements | F82: Lease dependent
B83: 5 | C83: Station Buildings | D83: Station Buildings | F83: 50 | G83: 75 | J83: 1820 | K83: Distribution Station Equipment | L83: 45 | M83: 0.02222222222 | N83: 45 | O83: 0.02222222222 | P83: Yes | Q83: No
D84: Parking | F84: 25 | G84: 30
D85: Fence | F85: 25 | G85: 60 | J85: 1820 | K85: Distribution Station Equipment | L85: 45 | M85: 0.02222222222 | N85: 45 | O85: 0.02222222222 | P85: No | Q85: No
D86: Roof | F86: 20 | G86: 30
B87: 6 | C87: Computer Equipment | D87: Hardware | F87: 3 | G87: 5 | J87: 1920 | K87: Computer Hardware | L87: 5 | M87: 0.2 | N87: 5 | O87: 0.2 | P87: No | Q87: No
D88: Software | F88: 2 | G88: 5 | J88: 1611 | K88: Computer Software | L88: 5 | M88: 0.2 | N88: 5 | O88: 0.2 | P88: No | Q88: No
B89: 7 | C89: Equipment | D89: Power Operated | F89: 5 | G89: 10
D90: Stores | F90: 5 | G90: 10
D91: Tools, Shop, Garage Equipment | F91: 5 | G91: 10 | J91: 1940 | K91: Tools | L91: 10 | M91: 0.1 | N91: 10 | O91: 0.1 | P91: No | Q91: No
D92: Measurement & Testing Equipment | F92: 5 | G92: 10 | J92: 1960 | K92: Measurement & Testing Equipment | L92: 10 | M92: 0.1 | N92: 10 | O92: 0.1 | P92: No | Q92: No
B93: 8 | C93: Communication | D93: Towers | F93: 60 | G93: 70
D94: Wireless | F94: 2 | G94: 10 | J94: 1980 | K94: System Supervisor Equipment | L94: 20 | M94: 0.05 | N94: 20 | O94: 0.05 | P94: No | Q94: Yes
B95: 9 | C95: Residential Energy Meters | F95: 25 | G95: 35
B96: 10 | C96: Industrial/Commercial Energy Meters | F96: 25 | G96: 35 | J96: 1860 | K96: Meters | L96: 25 | M96: 0.04 | N96: 25 | O96: 0.04 | P96: No | Q96: No
B97: 11 | C97: Wholesale Energy Meters | F97: 15 | G97: 30 | J97: 1860 | K97: Meters | L97: 25 | M97: 0.04 | N97: 25 | O97: 0.04 | P97: No | Q97: No
B98: 12 | C98: Current & Potential Transformer (CT & PT) | F98: 35 | G98: 50
B99: 13 | C99: Smart Meters | F99: 5 | G99: 15 | J99: 1860 | K99: Meters | L99: 25 | M99: 0.04 | N99: 25 | O99: 0.04 | P99: No | Q99: Yes
B100: 14 | C100: Repeaters - Smart Metering | F100: 10 | G100: 15
B101: 15 | C101: Data Collectors - Smart Metering | F101: 15 | G101: 20
A104: * TS & MS = Transformer and Municipal Stations UG = Underground Systems S = Monitoring and Control Systems
A106: Note 1: | B106: Tables F-1 and F-2 above are to be used as a reference in order to complete columns J, K, L and N.
B107: See pages 17-19 of Kinetrics Report

Sheet App.2-CA_OldCGAAP_DepExp_2012
K1: File Number: | L1: =EBNUMBER -> EB-2016-0089
K2: Exhibit: | L2: 2
K3: Tab:
K4: Schedule:
K5: Page:
K7: Date:
A9: Appendix 2-CA
A10: Depreciation and Amortization Expense
B11: Assumes the applicant made capitalization and depreciation expense accounting policy changes under CGAAP effective January 1, 2012 and has adopted IFRS for financial reporting purposes effective January 1, 2015.
C13: Year | D13: 2012 | E13: Former CGAAP
A15: Account | B15: Description | C15: Opening Regulatory Gross PP&E as at Jan 1, 2012 | D15: Less Fully Depreciated | E15: Net for Depreciation | F15: Additions | G15: Total for Depreciation 1 | H15: Years | I15: Depreciation Rate | J15: Depreciation Expense | K15: 2012 Depreciation Expense per Appendix 2-BA Fixed Assets, Column J (l) | L15: Variance 2
C16: (a) | D16: (b) | E16: (c) | F16: (d) | G16: (e) = (c) + ½ x (d) | H16: (f) | I16: (g) = 1 / (f) | J16: (h) = (e) / (f) | L16: (m) = (h) - (l)
A17: 1611 | B17: Computer Software (Formally known as Account 1925) | E17: =C17-D17 -> 0 | G17: =E17+0.5*F17 -> 0 | I17: =IF(H17=0,0,1/H17) -> 0 | J17: =IF(H17=0,0,G17/H17) -> 0 | L17: =IF(ISERROR(+J17-K17), 0, +J17-K17) -> 0
A18: 1612 | B18: Land Rights (Formally known as Account 1906) | E18: =C18-D18 -> 0 | G18: =E18+0.5*F18 -> 0 | I18: 0 | J18: 0 | L18: 0
A19: 1805 | B19: Land | E19: 0 | G19: 0 | I19: 0 | J19: 0 | L19: 0
A20: 1808 | B20: Buildings | E20: 0 | G20: 0 | I20: 0 | J20: 0 | L20: 0
A21: 1810 | B21: Leasehold Improvements | E21: 0 | G21: 0 | I21: 0 | J21: 0 | L21: 0
A22: 1815 | B22: Transformer Station Equipment >50 kV | E22: 0 | G22: 0 | I22: 0 | J22: 0 | L22: 0
A23: 1820 | B23: Distribution Station Equipment <50 kV | E23: 0 | G23: 0 | I23: 0 | J23: 0 | L23: 0
A24: 1825 | B24: Storage Battery Equipment | E24: 0 | G24: 0 | I24: 0 | J24: 0 | L24: 0
A25: 1830 | B25: Poles, Towers & Fixtures | E25: 0 | G25: 0 | I25: 0 | J25: 0 | L25: 0
A26: 1835 | B26: Overhead Conductors & Devices | E26: 0 | G26: 0 | I26: 0 | J26: 0 | L26: 0
A27: 1840 | B27: Underground Conduit | E27: 0 | G27: 0 | I27: 0 | J27: 0 | L27: 0
A28: 1845 | B28: Underground Conductors & Devices | E28: 0 | G28: 0 | I28: 0 | J28: 0 | L28: 0
A29: 1850 | B29: Line Transformers | E29: 0 | G29: 0 | I29: 0 | J29: 0 | L29: 0
A30: 1855 | B30: Services (Overhead & Underground) | E30: 0 | G30: 0 | I30: 0 | J30: 0 | L30: 0
A31: 1860 | B31: Meters | E31: 0 | G31: 0 | I31: 0 | J31: 0 | L31: 0
A32: 1860 | B32: Meters (Smart Meters) | E32: 0 | G32: 0 | I32: 0 | J32: 0 | L32: 0
A33: 1905 | B33: Land | E33: 0 | G33: 0 | I33: 0 | J33: 0 | L33: 0
A34: 1908 | B34: Buildings & Fixtures | E34: 0 | G34: 0 | I34: 0 | J34: 0 | L34: 0
A35: 1910 | B35: Leasehold Improvements | E35: 0 | G35: 0 | I35: 0 | J35: 0 | L35: 0
A36: 1915 | B36: Office Furniture & Equipment (10 years) | E36: 0 | G36: 0 | I36: 0 | J36: 0 | L36: 0
A37: 1915 | B37: Office Furniture & Equipment (5 years) | E37: 0 | G37: 0 | I37: 0 | J37: 0 | L37: 0
A38: 1920 | B38: Computer Equipment - Hardware | E38: 0 | G38: 0 | I38: 0 | J38: 0 | L38: 0
A39: 1920 | B39: Computer Equip.-Hardware(Post Mar. 22/04) | E39: 0 | G39: 0 | I39: 0 | J39: 0 | L39: 0
A40: 1920 | B40: Computer Equip.-Hardware(Post Mar. 19/07) | E40: 0 | G40: 0 | I40: 0 | J40: 0 | L40: 0
A41: 1930 | B41: Transportation Equipment | E41: 0 | G41: 0 | I41: 0 | J41: 0 | L41: 0
A42: 1935 | B42: Stores Equipment | E42: 0 | G42: 0 | I42: 0 | J42: 0 | L42: 0
A43: 1940 | B43: Tools, Shop & Garage Equipment | E43: 0 | G43: 0 | I43: 0 | J43: 0 | L43: 0
A44: 1945 | B44: Measurement & Testing Equipment | E44: 0 | G44: 0 | I44: 0 | J44: 0 | L44: 0
A45: 1950 | B45: Power Operated Equipment | E45: 0 | G45: 0 | I45: 0 | J45: 0 | L45: 0
A46: 1955 | B46: Communications Equipment | E46: 0 | G46: 0 | I46: 0 | J46: 0 | L46: 0
A47: 1955 | B47: Communication Equipment (Smart Meters) | E47: 0 | G47: 0 | I47: 0 | J47: 0 | L47: 0
A48: 1960 | B48: Miscellaneous Equipment | E48: 0 | G48: 0 | I48: 0 | J48: 0 | L48: 0
A49: 1970 | B49: Load Management Controls Customer Premises | E49: 0 | G49: 0 | I49: 0 | J49: 0 | L49: 0
A50: 1975 | B50: Load Management Controls Utility Premises | E50: 0 | G50: 0 | I50: 0 | J50: 0 | L50: 0
A51: 1980 | B51: System Supervisor Equipment | E51: 0 | G51: 0 | I51: 0 | J51: 0 | L51: 0
A52: 1985 | B52: Miscellaneous Fixed Assets | E52: 0 | G52: 0 | I52: 0 | J52: 0 | L52: 0
A53: 1990 | B53: Other Tangible Property | E53: 0 | G53: 0 | I53: 0 | J53: 0 | L53: 0
A54: 1995 | B54: Contributions & Grants | E54: 0 | G54: 0 | I54: 0 | J54: 0 | L54: 0
B55: Total | C55: =SUM(C17:C54) -> 0 | D55: =SUM(D17:D54) -> 0 | E55: =SUM(E17:E54) -> 0 | F55: =SUM(F17:F54) -> 0 | G55: =SUM(G17:G54) -> 0 | J55: =SUM(J17:J54) -> 0 | K55: =SUM(K17:K54) -> 0 | L55: =SUM(L17:L54) -> 0
A57: Notes:
A59: 1 | B59: Board policy of the "half-year" rule - the applicant must ensure that additions in the year attract a half-year depreciation expense in the first year. Deviations from this standard practice must be supported in the application.
A60: 2 | B60: The applicant must provide an explanation of material variances in evidence.
A62: General | B62: Applicants must provide a breakdown of depreciation and amortization expense in the above format for all relevant accounts. Asset Retirement Obligations (AROs), depreciation and accretion expense should be disclosed separately consistent with the Notes of historical Audited Financial Statements.

Sheet App.2-CB_NewCGAAP_DepExp_2012
N1: File Number: | O1: =EBNUMBER -> EB-2016-0089
N2: Exhibit: | O2: 4
N3: Tab: | O3: 4
N4: Schedule: | O4: 2
N5: Page: | O5: 42
N7: Date: | O7: 2016-04-29
A9: Appendix 2-CB
A10: Depreciation and Amortization Expense
A11: Assumes the applicant made capitalization and depreciation expense accounting policy changes under CGAAP effective January 1, 2012 and has adopted IFRS for financial reporting purposes effective January 1, 2015.
C13: Year | D13: 2012 | E13: MIFRS
A15: Account | B15: Description | C15: Opening NBV as at Jan 1, 2012 5 | D15: Additions | E15: Average Remaining Life of Opening NBV 4 | F15: Years (new additions only) 3 | G15: Depreciation Rate on New Additions | H15: Depreciation Expense on Opening NBV | I15: Depreciation Expense on Additions 1 | J15: 2012 Depreciation Expense | K15: 2012 Depreciation Expense per Appendix 2-BA Fixed Assets, Column J (l) | L15: Variance 2 | M15: Depreciation Expense on 2012 Full Year Additions | N15: Less Depreciation Expense on Assets Fully Depreciated during the year (o) | O15: 2012 Full Year Depreciation 6
C16: (a) | D16: (d) | E16: (i) | F16: (f) | G16: (g) = 1 / (f) | H16: (j) = (a) / (i) | I16: (h)=((d)*0.5)/(f) | J16: (k) = (j) + (h) | L16: (m) = (k) - (l) | M16: (n) = (d)/(f) | O16: (p) = (j) + (n) - (o)
A17: 1611 | B17: Computer Software (Formally known as Account 1925) | C17: =138259-71150 -> 67109 | D17: 277365 | E17: 2 | F17: 10 | G17: =IF(F17=0,0,1/F17) -> 0.1 | H17: =IF(E17=0,0,+C17/E17) -> 33554.5 | I17: =IF(F17=0,0,+(D17*0.5)/F17) -> 13868.25 | J17: =IF(ISERROR(+H17+I17), 0, +H17+I17) -> 47422.75 | K17: =-'App.2-BA_Fixed Asset Cont'!J17 -> 48998 | L17: =IF(ISERROR(+J17-K17), 0, +J17-K17) -> -1575.25 | M17: =IF(F17=0,0,+(D17)/F17) -> 27736.5 | O17: =IF(ISERROR(+M17+H17-N17), 0, +M17+H17-N17) -> 61291
A18: 1612 | B18: Land Rights (Formally known as Account 1906) | G18: 0 | H18: 0 | I18: 0 | J18: =IF(ISERROR(+H18+I18), 0, +H18+I18) -> 0 | K18: =-'App.2-BA_Fixed Asset Cont'!J18 -> 0 | L18: 0 | M18: 0 | O18: =IF(ISERROR(+M18+H18-N18), 0, +M18+H18-N18) -> 0
A19: 1805 | B19: Land | C19: 219284 | G19: 0 | H19: 0 | I19: 0 | J19: 0 | K19: =-'App.2-BA_Fixed Asset Cont'!J19 -> 0 | L19: 0 | M19: 0 | O19: 0
A20: 1808 | B20: Buildings | C20: =957745-139259 -> 818486 | D20: 153163 | E20: 47.8 | F20: 50 | G20: =IF(F20=0,0,1/F20) -> 0.02 | H20: 17123.13808 | I20: 1531.63 | J20: 18654.76808 | K20: =-'App.2-BA_Fixed Asset Cont'!J20 -> 12729 | L20: 5925.768075 | M20: 3063.26 | O20: 20186.39808
A21: 1810 | B21: Leasehold Improvements | G21: 0 | H21: 0 | I21: 0 | J21: 0 | K21: =-'App.2-BA_Fixed Asset Cont'!J21 -> 0 | L21: 0 | M21: 0 | O21: 0
A22: 1815 | B22: Transformer Station Equipment >50 kV | G22: 0 | H22: 0 | I22: 0 | J22: 0 | K22: =-'App.2-BA_Fixed Asset Cont'!J22 -> 0 | L22: 0 | M22: 0 | O22: 0
A23: 1820 | B23: Distribution Station Equipment <50 kV | C23: =2887416-1684761 -> 1202655 | D23: 22303 | E23: 34.5 | F23: 45 | G23: 0.02222222222 | H23: 34859.56522 | I23: 247.8111111 | J23: 35107.37633 | K23: =-'App.2-BA_Fixed Asset Cont'!J23 -> 33681 | L23: 1426.376329 | M23: 495.6222222 | O23: 35355.18744
A24: 1825 | B24: Storage Battery Equipment | G24: 0 | H24: 0 | I24: 0 | J24: 0 | K24: =-'App.2-BA_Fixed Asset Cont'!J24 -> 0 | L24: 0 | M24: 0 | O24: 0
A25: 1830 | B25: Poles, Towers & Fixtures | C25: =1378277-213013 -> 1165264 | D25: 263466 | E25: 42 | F25: 45 | G25: 0.02222222222 | H25: 27744.38095 | I25: 2927.4 | J25: 30671.78095 | K25: =-'App.2-BA_Fixed Asset Cont'!J25 -> 22649 | L25: 8022.780952 | M25: 5854.8 | O25: 33599.18095
A26: 1835 | B26: Overhead Conductors & Devices | C26: =4255646-1037159 -> 3218487 | D26: 774550 | E26: 45.2 | F26: 55 | G26: 0.01818181818 | H26: 71205.4646 | I26: 7041.363636 | J26: 78246.82824 | K26: =-'App.2-BA_Fixed Asset Cont'!J26 -> 43645 | L26: 34601.82824 | M26: 14082.72727 | O26: 85288.19187
A27: 1840 | B27: Underground Conduit | C27: =941911-211202 -> 730709 | D27: 3350 | E27: 48.5 | F27: 50 | G27: 0.02 | H27: 15066.16495 | I27: 33.5 | J27: 15099.66495 | K27: =-'App.2-BA_Fixed Asset Cont'!J27 -> 12896 | L27: 2203.664948 | M27: 67 | O27: 15133.16495
A28: 1845 | B28: Underground Conductors & Devices | C28: =3224655-1944602 -> 1280053 | D28: 227824 | E28: 22.2 | F28: 35 | G28: 0.02857142857 | H28: 57660.04505 | I28: 3254.628571 | J28: 60914.67362 | K28: =-'App.2-BA_Fixed Asset Cont'!J28 -> 62611 | L28: -1696.326384 | M28: 6509.257143 | O28: 64169.30219
A29: 1850 | B29: Line Transformers | C29: =5262523-2406860 -> 2855663 | D29: 265754 | E29: 21.65 | F29: 35 | G29: 0.02857142857 | H29: 131901.2933 | I29: 3796.485714 | J29: 135697.779 | K29: =-'App.2-BA_Fixed Asset Cont'!J29 -> 101838 | L29: 33859.77902 | M29: 7592.971429 | O29: 139494.2647
A30: 1855 | B30: Services (Overhead & Underground) | C30: =517496-162546 -> 354950 | D30: 14709 | E30: 45.55 | F30: 55 | G30: 0.01818181818 | H30: 7792.535675 | I30: 133.7181818 | J30: 7926.253857 | K30: =-'App.2-BA_Fixed Asset Cont'!J30 -> 2256 | L30: 5670.253857 | M30: 267.4363636 | O30: 8059.972039
A31: 1860 | B31: Meters | C31: =916538-567058 -> 349480 | E31: 11.5 | F31: 25 | G31: 0.04 | H31: 30389.56522 | I31: 0 | J31: 30389.56522 | K31: =-'App.2-BA_Fixed Asset Cont'!J31 -> 31681 | L31: -1291.434783 | M31: 0 | O31: 30389.56522
A32: 1860 | B32: Meters (Smart Meters) | D32: 2044874 | E32: 15 | F32: 15 | G32: 0.06666666667 | H32: 0 | I32: 68162.46667 | J32: 68162.46667 | K32: =-'App.2-BA_Fixed Asset Cont'!J32 -> 68162 | L32: 0.4666666667 | M32: 136324.9333 | O32: 136324.9333
A33: 1905 | B33: Land | G33: 0 | H33: 0 | I33: 0 | J33: 0 | K33: =-'App.2-BA_Fixed Asset Cont'!J33 -> 0 | L33: 0 | M33: 0 | O33: 0
A34: 1908 | B34: Buildings & Fixtures | G34: 0 | H34: 0 | I34: 0 | J34: 0 | K34: =-'App.2-BA_Fixed Asset Cont'!J34 -> 0 | L34: 0 | M34: 0 | O34: 0
A35: 1910 | B35: Leasehold Improvements | G35: 0 | H35: 0 | I35: 0 | J35: 0 | K35: =-'App.2-BA_Fixed Asset Cont'!J35 -> 0 | L35: 0 | M35: 0 | O35: 0
A36: 1915 | B36: Office Furniture & Equipment (10 years) | C36: =62480-13308 -> 49172 | D36: 31047 | E36: 8.25 | F36: 10 | G36: 0.1 | H36: 5960.242424 | I36: 1552.35 | J36: 7512.592424 | K36: =-'App.2-BA_Fixed Asset Cont'!J36 -> 6680 | L36: 832.5924242 | M36: 3104.7 | O36: 9064.942424
A37: 1915 | B37: Office Furniture & Equipment (5 years) | G37: 0 | H37: 0 | I37: 0 | J37: 0 | K37: =-'App.2-BA_Fixed Asset Cont'!J37 -> 0 | L37: 0 | M37: 0 | O37: 0
A38: 1920 | B38: Computer Equipment - Hardware | C38: =40254-19850 -> 20404 | D38: 21321 | E38: 3.5 | F38: 5 | G38: 0.2 | H38: 5829.714286 | I38: 2132.1 | J38: 7961.814286 | K38: =-'App.2-BA_Fixed Asset Cont'!J38 -> 7900 | L38: 61.81428571 | M38: 4264.2 | O38: 10093.91429
A39: 1920 | B39: Computer Equip.-Hardware(Post Mar. 22/04) | G39: 0 | H39: 0 | I39: 0 | J39: 0 | K39: =-'App.2-BA_Fixed Asset Cont'!J39 -> 0 | L39: 0 | M39: 0 | O39: 0
A40: 1920 | B40: Computer Equip.-Hardware(Post Mar. 19/07) | G40: 0 | H40: 0 | I40: 0 | J40: 0 | K40: =-'App.2-BA_Fixed Asset Cont'!J40 -> 0 | L40: 0 | M40: 0 | O40: 0
A41: 1930 | B41: Transportation Equipment | C41: =759706-244837 -> 514869 | D41: 317215 | E41: 6.25 | F41: 8 | G41: 0.125 | H41: 82379.04 | I41: 19825.9375 | J41: 102204.9775 | K41: =-'App.2-BA_Fixed Asset Cont'!J41 -> 105115 | L41: -2910.0225 | M41: 39651.875 | O41: 122030.915
A42: 1935 | B42: Stores Equipment | G42: 0 | H42: 0 | I42: 0 | J42: 0 | K42: =-'App.2-BA_Fixed Asset Cont'!J42 -> 0 | L42: 0 | M42: 0 | O42: 0
A43: 1940 | B43: Tools, Shop & Garage Equipment | C43: =248692-68532 -> 180160 | D43: 32759 | E43: 8.5 | F43: 10 | G43: 0.1 | H43: 21195.29412 | I43: 1637.95 | J43: 22833.24412 | K43: =-'App.2-BA_Fixed Asset Cont'!J43 -> 22989 | L43: -155.7558824 | M43: 3275.9 | O43: 24471.19412
A44: 1945 | B44: Measurement & Testing Equipment | C44: =20870-2915 -> 17955 | E44: 9.5 | F44: 10 | G44: 0.1 | H44: 1890 | I44: 0 | J44: 1890 | K44: =-'App.2-BA_Fixed Asset Cont'!J44 -> 1772 | L44: 118 | M44: 0 | O44: 1890
A45: 1950 | B45: Power Operated Equipment | G45: 0 | H45: 0 | I45: 0 | J45: 0 | K45: =-'App.2-BA_Fixed Asset Cont'!J45 -> 0 | L45: 0 | M45: 0 | O45: 0
A46: 1955 | B46: Communications Equipment | G46: 0 | H46: 0 | I46: 0 | J46: 0 | K46: =-'App.2-BA_Fixed Asset Cont'!J46 -> 0 | L46: 0 | M46: 0 | O46: 0
A47: 1955 | B47: Communication Equipment (Smart Meters) | G47: 0 | H47: 0 | I47: 0 | J47: 0 | K47: =-'App.2-BA_Fixed Asset Cont'!J47 -> 0 | L47: 0 | M47: 0 | O47: 0
A48: 1960 | B48: Miscellaneous Equipment | C48: =1030-34 -> 996 | D48: 1426 | E48: 9.5 | F48: 10 | G48: 0.1 | H48: 104.8421053 | I48: 71.3 | J48: 176.1421053 | K48: =-'App.2-BA_Fixed Asset Cont'!J48 -> 157 | L48: 19.14210526 | M48: 142.6 | O48: 247.4421053
A49: 1970 | B49: Load Management Controls Customer Premises | G49: 0 | H49: 0 | I49: 0 | J49: 0 | K49: =-'App.2-BA_Fixed Asset Cont'!J49 -> 0 | L49: 0 | M49: 0 | O49: 0
A50: 1975 | B50: Load Management Controls Utility Premises | G50: 0 | H50: 0 | I50: 0 | J50: 0 | K50: =-'App.2-BA_Fixed Asset Cont'!J50 -> 0 | L50: 0 | M50: 0 | O50: 0
A51: 1980 | B51: System Supervisor Equipment | D51: 97796 | E51: 20 | F51: 20 | G51: 0.05 | H51: 0 | I51: 2444.9 | J51: 2444.9 | K51: =-'App.2-BA_Fixed Asset Cont'!J51 -> 2445 | L51: -0.1 | M51: 4889.8 | O51: 4889.8
A52: 1985 | B52: Miscellaneous Fixed Assets | G52: 0 | H52: 0 | I52: 0 | J52: 0 | K52: =-'App.2-BA_Fixed Asset Cont'!J52 -> 0 | L52: 0 | M52: 0 | O52: 0
A53: 1990 | B53: Other Tangible Property | G53: 0 | H53: 0 | I53: 0 | J53: 0 | K53: =-'App.2-BA_Fixed Asset Cont'!J53 -> 0 | L53: 0 | M53: 0 | O53: 0
A54: 1995 | B54: Contributions & Grants | C54: =-2400063+448589 -> -1951474 | D54: -152967 | E54: 23.5 | F54: 25 | G54: 0.04 | H54: -83041.44681 | I54: -3059.34 | J54: -86100.78681 | K54: =-'App.2-BA_Fixed Asset Cont'!J54 -> -86608 | L54: 507.2131915 | M54: -6118.68 | O54: -89160.12681
B55: Total | C55: =SUM(C17:C54) -> 11094222 | D55: =SUM(D17:D54) -> 4395955 | H55: =SUM(H17:H54) -> 461614.3392 | I55: 125602.4514 | J55: 587216.7905 | K55: 501596 | L55: 85620.79054 | M55: 251204.9028 | N55: 0 | O55: 712819.2419
A57: Notes:
A59: 1 | B59: Board policy of the "half-year" rule - the applicant must ensure that additions in the year attract a half-year depreciation expense in the first year. Deviations from this standard practice must be supported in the application.
A60: 2 | B60: The applicant must provide an explanation of material variances in evidence.
A61: 3 | B61: The applicant should ensure that the years for new additions of assets are the asset useful lives determined by management in accordance with the Board's regulatory accounting policies. The capitalization and depreciation expense accounting changes should be implemented consistent with the Board’s regulatory accounting policies as set out for modified IFRS as contained in the Report of the Board, Transition to International Financial Reporting Standards, EB-2008-0408, the Kinectrics Report, and the Revised 2012 Accounting Procedures Handbook for Electricity Distributors (“APH”).
A62: 4 | B62: A recalculation should be performed to determine the average remaining life of opening balance of assets (i.e. excluding 2012 additions) under the change in policies under CGAAP. For example, Asset A had a useful life of 20 years under CGAAP without the change in policies. On January 1, 2012, the effective date of the changes in policies, Asset A was 3 years depreciated. As a result, Asset A would have a remaining service life of 17 years (20 years less 3 years) as of January 1, 2012. Due to making the change in policies under CGAAP, management re-assessed the asset useful lives and concluded that the revised useful life of Asset A is now 30 years. Therefore, the average remaining useful life of the opening balance of Asset A is determined to be 27 years (30 years less 3 years) under the revised CGAAP as of January 1, 2012.
A63: 5 | B63: NBV must exclude assets still on the books but which have been fully amortized or depreciated.
A64: 6 | B64: This column refers to the calculated full year depreciation but excludes the depreciation expense on assets fully depreciated during the year. This column is used for the purpose of calculating depreciation expense in the following year on the next worksheet.
A66: General: | B66: Applicants must provide a breakdown of depreciation and amortization expense in the above format for all relevant accounts. Asset Retirement Obligations (AROs), depreciation and accretion expense should be disclosed separately consistent with the Notes of historical Audited Financial Statements.

Sheet App.2-CC_NewCGAAP_DepExp_2013
J1: File Number: | K1: =EBNUMBER -> EB-2016-0089
J2: Exhibit: | K2: 4
J3: Tab: | K3: 4
J4: Schedule: | K4: 2
J5: Page: | K5: 43
J7: Date: | K7: 2016-04-29
A9: Appendix 2-CC
A10: Depreciation and Amortization Expense
A11: Assumes the applicant made capitalization and depreciation expense accounting policy changes under CGAAP effective January 1, 2012 and has adopted IFRS for financial reporting purposes effective January 1, 2015.
C13: 2013 | D13: MIFRS
A15: Account | B15: Description | C15: Additions | D15: Years (new additions only) | E15: Depreciation Rate on New Additions | F15: 2013 Depreciation Expense 1 | G15: 2013 Depreciation Expense per Apppendix 2-BA Fixed Assets, Column J (l) | H15: Variance 2 | I15: Depreciation Expense on 2013 Full Year Additions | J15: Less Depreciation Expense on Assets Fully Depreciated during the year (o) | K15: 2013 Full Year Depreciation 3
C16: (d) | D16: (f) | E16: (g) = 1 / (f) | F16: (h)=2012 Full Year Deprecation + ((d)*0.5)/(f) | H16: (m) = (h) - (l) | I16: (n)=((d))/(f) | K16: (p) = 2012 Full Year Depreciation + (n) - (o)
A17: 1611 | B17: Computer Software (Formally known as Account 1925) | C17: ='App.2-BA_Fixed Asset Cont'!E94 -> 26107 | D17: ='App.2-CB_NewCGAAP_DepExp_2012'!F17 -> 10 | E17: =IF(D17=0,0,1/D17) -> 0.1 | F17: =IF(D17=0,+'App.2-CB_NewCGAAP_DepExp_2012'!O17,+'App.2-CB_NewCGAAP_DepExp_2012'!O17+((C17*0.5)/D17)) -> 62596.35 | G17: =-'App.2-BA_Fixed Asset Cont'!J94 -> 76176 | H17: =IF(ISERROR(+F17-G17), 0, +F17-G17) -> -13579.65 | I17: =IF(D17=0,0,+(C17)/D17) -> 2610.7 | K17: =IF(ISERROR(+I17+'App.2-CB_NewCGAAP_DepExp_2012'!O17-J17), 0, +I17+'App.2-CB_NewCGAAP_DepExp_2012'!O17-J17) -> 63901.7
A18: 1612 | B18: Land Rights (Formally known as Account 1906) | C18: ='App.2-BA_Fixed Asset Cont'!E95 -> 0 | D18: ='App.2-CB_NewCGAAP_DepExp_2012'!F18 -> 0 | E18: 0 | F18: =IF(D18=0,+'App.2-CB_NewCGAAP_DepExp_2012'!O18,+'App.2-CB_NewCGAAP_DepExp_2012'!O18+((C18*0.5)/D18)) -> 0 | G18: =-'App.2-BA_Fixed Asset Cont'!J95 -> 0 | H18: 0 | I18: 0 | K18: =IF(ISERROR(+I18+'App.2-CB_NewCGAAP_DepExp_2012'!O18-J18), 0, +I18+'App.2-CB_NewCGAAP_DepExp_2012'!O18-J18) -> 0
A19: 1805 | B19: Land | C19: ='App.2-BA_Fixed Asset Cont'!E96 -> 0 | D19: ='App.2-CB_NewCGAAP_DepExp_2012'!F19 -> 0 | E19: 0 | F19: =IF(D19=0,+'App.2-CB_NewCGAAP_DepExp_2012'!O19,+'App.2-CB_NewCGAAP_DepExp_2012'!O19+((C19*0.5)/D19)) -> 0 | G19: =-'App.2-BA_Fixed Asset Cont'!J96 -> 0 | H19: 0 | I19: 0 | K19: =IF(ISERROR(+I19+'App.2-CB_NewCGAAP_DepExp_2012'!O19-J19), 0, +I19+'App.2-CB_NewCGAAP_DepExp_2012'!O19-J19) -> 0
A20: 1808 | B20: Buildings | C20: ='App.2-BA_Fixed Asset Cont'!E97 -> 38411 | D20: ='App.2-CB_NewCGAAP_DepExp_2012'!F20 -> 50 | E20: 0.02 | F20: =IF(D20=0,+'App.2-CB_NewCGAAP_DepExp_2012'!O20,+'App.2-CB_NewCGAAP_DepExp_2012'!O20+((C20*0.5)/D20)) -> 20570.50808 | G20: =-'App.2-BA_Fixed Asset Cont'!J97 -> 28715 | H20: -8144.491925 | I20: 768.22 | K20: =IF(ISERROR(+I20+'App.2-CB_NewCGAAP_DepExp_2012'!O20-J20), 0, +I20+'App.2-CB_NewCGAAP_DepExp_2012'!O20-J20) -> 20954.61808
A21: 1810 | B21: Leasehold Improvements | C21: ='App.2-BA_Fixed Asset Cont'!E98 -> 0 | D21: ='App.2-CB_NewCGAAP_DepExp_2012'!F21 -> 0 | E21: 0 | F21: =IF(D21=0,+'App.2-CB_NewCGAAP_DepExp_2012'!O21,+'App.2-CB_NewCGAAP_DepExp_2012'!O21+((C21*0.5)/D21)) -> 0 | G21: =-'App.2-BA_Fixed Asset Cont'!J98 -> 0 | H21: 0 | I21: 0 | K21: =IF(ISERROR(+I21+'App.2-CB_NewCGAAP_DepExp_2012'!O21-J21), 0, +I21+'App.2-CB_NewCGAAP_DepExp_2012'!O21-J21) -> 0
A22: 1815 | B22: Transformer Station Equipment >50 kV | C22: ='App.2-BA_Fixed Asset Cont'!E99 -> 0 | D22: ='App.2-CB_NewCGAAP_DepExp_2012'!F22 -> 0 | E22: 0 | F22: =IF(D22=0,+'App.2-CB_NewCGAAP_DepExp_2012'!O22,+'App.2-CB_NewCGAAP_DepExp_2012'!O22+((C22*0.5)/D22)) -> 0 | G22: =-'App.2-BA_Fixed Asset Cont'!J99 -> 0 | H22: 0 | I22: 0 | K22: =IF(ISERROR(+I22+'App.2-CB_NewCGAAP_DepExp_2012'!O22-J22), 0, +I22+'App.2-CB_NewCGAAP_DepExp_2012'!O22-J22) -> 0
A23: 1820 | B23: Distribution Station Equipment <50 kV | C23: ='App.2-BA_Fixed Asset Cont'!E100 -> 67234 | D23: ='App.2-CB_NewCGAAP_DepExp_2012'!F23 -> 45 | E23: 0.02222222222 | F23: =IF(D23=0,+'App.2-CB_NewCGAAP_DepExp_2012'!O23,+'App.2-CB_NewCGAAP_DepExp_2012'!O23+((C23*0.5)/D23)) -> 36102.23188 | G23: =-'App.2-BA_Fixed Asset Cont'!J100 -> 55745 | H23: -19642.76812 | I23: 1494.088889 | K23: =IF(ISERROR(+I23+'App.2-CB_NewCGAAP_DepExp_2012'!O23-J23), 0, +I23+'App.2-CB_NewCGAAP_DepExp_2012'!O23-J23) -> 36849.27633
A24: 1825 | B24: Storage Battery Equipment | C24: ='App.2-BA_Fixed Asset Cont'!E101 -> 0 | D24: ='App.2-CB_NewCGAAP_DepExp_2012'!F24 -> 0 | E24: 0 | F24: =IF(D24=0,+'App.2-CB_NewCGAAP_DepExp_2012'!O24,+'App.2-CB_NewCGAAP_DepExp_2012'!O24+((C24*0.5)/D24)) -> 0 | G24: =-'App.2-BA_Fixed Asset Cont'!J101 -> 0 | H24: 0 | I24: 0 | K24: =IF(ISERROR(+I24+'App.2-CB_NewCGAAP_DepExp_2012'!O24-J24), 0, +I24+'App.2-CB_NewCGAAP_DepExp_2012'!O24-J24) -> 0
A25: 1830 | B25: Poles, Towers & Fixtures | C25: ='App.2-BA_Fixed Asset Cont'!E102 -> 133398 | D25: ='App.2-CB_NewCGAAP_DepExp_2012'!F25 -> 45 | E25: 0.02222222222 | F25: =IF(D25=0,+'App.2-CB_NewCGAAP_DepExp_2012'!O25,+'App.2-CB_NewCGAAP_DepExp_2012'!O25+((C25*0.5)/D25)) -> 35081.38095 | G25: =-'App.2-BA_Fixed Asset Cont'!J102 -> 47472 | H25: -12390.61905 | I25: 2964.4 | K25: =IF(ISERROR(+I25+'App.2-CB_NewCGAAP_DepExp_2012'!O25-J25), 0, +I25+'App.2-CB_NewCGAAP_DepExp_2012'!O25-J25) -> 36563.58095
A26: 1835 | B26: Overhead Conductors & Devices | C26: ='App.2-BA_Fixed Asset Cont'!E103 -> 190493 | D26: ='App.2-CB_NewCGAAP_DepExp_2012'!F26 -> 55 | E26: 0.01818181818 | F26: =IF(D26=0,+'App.2-CB_NewCGAAP_DepExp_2012'!O26,+'App.2-CB_NewCGAAP_DepExp_2012'!O26+((C26*0.5)/D26)) -> 87019.94642 | G26: =-'App.2-BA_Fixed Asset Cont'!J103 -> 108963 | H26: -21943.05358 | I26: 3463.509091 | K26: =IF(ISERROR(+I26+'App.2-CB_NewCGAAP_DepExp_2012'!O26-J26), 0, +I26+'App.2-CB_NewCGAAP_DepExp_2012'!O26-J26) -> 88751.70097
A27: 1840 | B27: Underground Conduit | C27: ='App.2-BA_Fixed Asset Cont'!E104 -> 86322 | D27: ='App.2-CB_NewCGAAP_DepExp_2012'!F27 -> 50 | E27: 0.02 | F27: =IF(D27=0,+'App.2-CB_NewCGAAP_DepExp_2012'!O27,+'App.2-CB_NewCGAAP_DepExp_2012'!O27+((C27*0.5)/D27)) -> 15996.38495 | G27: =-'App.2-BA_Fixed Asset Cont'!J104 -> 26590 | H27: -10593.61505 | I27: 1726.44 | K27: =IF(ISERROR(+I27+'App.2-CB_NewCGAAP_DepExp_2012'!O27-J27), 0, +I27+'App.2-CB_NewCGAAP_DepExp_2012'!O27-J27) -> 16859.60495
A28: 1845 | B28: Underground Conductors & Devices | C28: ='App.2-BA_Fixed Asset Cont'!E105 -> 151915 | D28: ='App.2-CB_NewCGAAP_DepExp_2012'!F28 -> 35 | E28: 0.02857142857 | F28: =IF(D28=0,+'App.2-CB_NewCGAAP_DepExp_2012'!O28,+'App.2-CB_NewCGAAP_DepExp_2012'!O28+((C28*0.5)/D28)) -> 66339.51647 | G28: =-'App.2-BA_Fixed Asset Cont'!J105 -> 90460 | H28: -24120.48353 | I28: 4340.428571 | K28: =IF(ISERROR(+I28+'App.2-CB_NewCGAAP_DepExp_2012'!O28-J28), 0, +I28+'App.2-CB_NewCGAAP_DepExp_2012'!O28-J28) -> 68509.73076
A29: 1850 | B29: Line Transformers | C29: ='App.2-BA_Fixed Asset Cont'!E106 -> 153741 | D29: ='App.2-CB_NewCGAAP_DepExp_2012'!F29 -> 35 | E29: 0.02857142857 | F29: =IF(D29=0,+'App.2-CB_NewCGAAP_DepExp_2012'!O29,+'App.2-CB_NewCGAAP_DepExp_2012'!O29+((C29*0.5)/D29)) -> 141690.5647 | G29: =-'App.2-BA_Fixed Asset Cont'!J106 -> 157657 | H29: -15966.43527 | I29: 4392.6 | K29: =IF(ISERROR(+I29+'App.2-CB_NewCGAAP_DepExp_2012'!O29-J29), 0, +I29+'App.2-CB_NewCGAAP_DepExp_2012'!O29-J29) -> 143886.8647
A30: 1855 | B30: Services (Overhead & Underground) | C30: ='App.2-BA_Fixed Asset Cont'!E107 -> 80834 | D30: ='App.2-CB_NewCGAAP_DepExp_2012'!F30 -> 55 | E30: 0.01818181818 | F30: =IF(D30=0,+'App.2-CB_NewCGAAP_DepExp_2012'!O30,+'App.2-CB_NewCGAAP_DepExp_2012'!O30+((C30*0.5)/D30)) -> 8794.826584 | G30: =-'App.2-BA_Fixed Asset Cont'!J107 -> 9343 | H30: -548.1734158 | I30: 1469.709091 | K30: =IF(ISERROR(+I30+'App.2-CB_NewCGAAP_DepExp_2012'!O30-J30), 0, +I30+'App.2-CB_NewCGAAP_DepExp_2012'!O30-J30) -> 9529.68113
A31: 1860 | B31: Meters | C31: ='App.2-BA_Fixed Asset Cont'!E108 -> 0 | D31: ='App.2-CB_NewCGAAP_DepExp_2012'!F31 -> 25 | E31: 0.04 | F31: =IF(D31=0,+'App.2-CB_NewCGAAP_DepExp_2012'!O31,+'App.2-CB_NewCGAAP_DepExp_2012'!O31+((C31*0.5)/D31)) -> 30389.56522 | G31: =-'App.2-BA_Fixed Asset Cont'!J108 -> 37804 | H31: -7414.434783 | I31: 0 | K31: =IF(ISERROR(+I31+'App.2-CB_NewCGAAP_DepExp_2012'!O31-J31), 0, +I31+'App.2-CB_NewCGAAP_DepExp_2012'!O31-J31) -> 30389.56522
A32: 1860 | B32: Meters (Smart Meters) | C32: ='App.2-BA_Fixed Asset Cont'!E109 -> 117332 | E32: 0 | F32: =IF(D32=0,+'App.2-CB_NewCGAAP_DepExp_2012'!O32,+'App.2-CB_NewCGAAP_DepExp_2012'!O32+((C32*0.5)/D32)) -> 136324.9333 | G32: =-'App.2-BA_Fixed Asset Cont'!J109 -> 140236 | H32: -3911.066667 | I32: 0 | K32: =IF(ISERROR(+I32+'App.2-CB_NewCGAAP_DepExp_2012'!O32-J32), 0, +I32+'App.2-CB_NewCGAAP_DepExp_2012'!O32-J32) -> 136324.9333
A33: 1905 | B33: Land | C33: ='App.2-BA_Fixed Asset Cont'!E110 -> 0 | D33: ='App.2-CB_NewCGAAP_DepExp_2012'!F33 -> 0 | E33: 0 | F33: =IF(D33=0,+'App.2-CB_NewCGAAP_DepExp_2012'!O33,+'App.2-CB_NewCGAAP_DepExp_2012'!O33+((C33*0.5)/D33)) -> 0 | G33: =-'App.2-BA_Fixed Asset Cont'!J110 -> 0 | H33: 0 | I33: 0 | K33: =IF(ISERROR(+I33+'App.2-CB_NewCGAAP_DepExp_2012'!O33-J33), 0, +I33+'App.2-CB_NewCGAAP_DepExp_2012'!O33-J33) -> 0
A34: 1908 | B34: Buildings & Fixtures | C34: ='App.2-BA_Fixed Asset Cont'!E111 -> 0 | D34: ='App.2-CB_NewCGAAP_DepExp_2012'!F34 -> 0 | E34: 0 | F34: =IF(D34=0,+'App.2-CB_NewCGAAP_DepExp_2012'!O34,+'App.2-CB_NewCGAAP_DepExp_2012'!O34+((C34*0.5)/D34)) -> 0 | G34: =-'App.2-BA_Fixed Asset Cont'!J111 -> 0 | H34: 0 | I34: 0 | K34: =IF(ISERROR(+I34+'App.2-CB_NewCGAAP_DepExp_2012'!O34-J34), 0, +I34+'App.2-CB_NewCGAAP_DepExp_2012'!O34-J34) -> 0
A35: 1910 | B35: Leasehold Improvements | C35: ='App.2-BA_Fixed Asset Cont'!E112 -> 0 | D35: ='App.2-CB_NewCGAAP_DepExp_2012'!F35 -> 0 | E35: 0 | F35: =IF(D35=0,+'App.2-CB_NewCGAAP_DepExp_2012'!O35,+'App.2-CB_NewCGAAP_DepExp_2012'!O35+((C35*0.5)/D35)) -> 0 | G35: =-'App.2-BA_Fixed Asset Cont'!J112 -> 0 | H35: 0 | I35: 0 | K35: =IF(ISERROR(+I35+'App.2-CB_NewCGAAP_DepExp_2012'!O35-J35), 0, +I35+'App.2-CB_NewCGAAP_DepExp_2012'!O35-J35) -> 0
A36: 1915 | B36: Office Furniture & Equipment (10 years) | C36: ='App.2-BA_Fixed Asset Cont'!E113 -> 13799 | D36: ='App.2-CB_NewCGAAP_DepExp_2012'!F36 -> 10 | E36: 0.1 | F36: =IF(D36=0,+'App.2-CB_NewCGAAP_DepExp_2012'!O36,+'App.2-CB_NewCGAAP_DepExp_2012'!O36+((C36*0.5)/D36)) -> 9754.892424 | G36: =-'App.2-BA_Fixed Asset Cont'!J113 -> 9784 | H36: -29.10757576 | I36: 1379.9 | K36: =IF(ISERROR(+I36+'App.2-CB_NewCGAAP_DepExp_2012'!O36-J36), 0, +I36+'App.2-CB_NewCGAAP_DepExp_2012'!O36-J36) -> 10444.84242
A37: 1915 | B37: Office Furniture & Equipment (5 years) | C37: ='App.2-BA_Fixed Asset Cont'!E114 -> 0 | D37: ='App.2-CB_NewCGAAP_DepExp_2012'!F37 -> 0 | E37: 0 | F37: =IF(D37=0,+'App.2-CB_NewCGAAP_DepExp_2012'!O37,+'App.2-CB_NewCGAAP_DepExp_2012'!O37+((C37*0.5)/D37)) -> 0 | G37: =-'App.2-BA_Fixed Asset Cont'!J114 -> 0 | H37: 0 | I37: 0 | K37: =IF(ISERROR(+I37+'App.2-CB_NewCGAAP_DepExp_2012'!O37-J37), 0, +I37+'App.2-CB_NewCGAAP_DepExp_2012'!O37-J37) -> 0
A38: 1920 | B38: Computer Equipment - Hardware | C38: ='App.2-BA_Fixed Asset Cont'!E115 -> 24126 | D38: ='App.2-CB_NewCGAAP_DepExp_2012'!F38 -> 5 | E38: 0.2 | F38: =IF(D38=0,+'App.2-CB_NewCGAAP_DepExp_2012'!O38,+'App.2-CB_NewCGAAP_DepExp_2012'!O38+((C38*0.5)/D38)) -> 12506.51429 | G38: =-'App.2-BA_Fixed Asset Cont'!J115 -> 12691 | H38: -184.4857143 | I38: 4825.2 | K38: =IF(ISERROR(+I38+'App.2-CB_NewCGAAP_DepExp_2012'!O38-J38), 0, +I38+'App.2-CB_NewCGAAP_DepExp_2012'!O38-J38) -> 14919.11429
A39: 1920 | B39: Computer Equip.-Hardware(Post Mar. 22/04) | C39: ='App.2-BA_Fixed Asset Cont'!E116 -> 0 | D39: ='App.2-CB_NewCGAAP_DepExp_2012'!F39 -> 0 | E39: 0 | F39: =IF(D39=0,+'App.2-CB_NewCGAAP_DepExp_2012'!O39,+'App.2-CB_NewCGAAP_DepExp_2012'!O39+((C39*0.5)/D39)) -> 0 | G39: =-'App.2-BA_Fixed Asset Cont'!J116 -> 0 | H39: 0 | I39: 0 | K39: =IF(ISERROR(+I39+'App.2-CB_NewCGAAP_DepExp_2012'!O39-J39), 0, +I39+'App.2-CB_NewCGAAP_DepExp_2012'!O39-J39) -> 0
A40: 1920 | B40: Computer Equip.-Hardware(Post Mar. 19/07) | C40: ='App.2-BA_Fixed Asset Cont'!E117 -> 0 | D40: ='App.2-CB_NewCGAAP_DepExp_2012'!F40 -> 0 | E40: 0 | F40: =IF(D40=0,+'App.2-CB_NewCGAAP_DepExp_2012'!O40,+'App.2-CB_NewCGAAP_DepExp_2012'!O40+((C40*0.5)/D40)) -> 0 | G40: =-'App.2-BA_Fixed Asset Cont'!J117 -> 0 | H40: 0 | I40: 0 | K40: =IF(ISERROR(+I40+'App.2-CB_NewCGAAP_DepExp_2012'!O40-J40), 0, +I40+'App.2-CB_NewCGAAP_DepExp_2012'!O40-J40) -> 0
A41: 1930 | B41: Transportation Equipment | C41: ='App.2-BA_Fixed Asset Cont'!E118 -> 0 | E41: 0 | F41: =IF(D41=0,+'App.2-CB_NewCGAAP_DepExp_2012'!O41,+'App.2-CB_NewCGAAP_DepExp_2012'!O41+((C41*0.5)/D41)) -> 122030.915 | G41: =-'App.2-BA_Fixed Asset Cont'!J118 -> 114134 | H41: 7896.915 | I41: 0 | K41: =IF(ISERROR(+I41+'App.2-CB_NewCGAAP_DepExp_2012'!O41-J41), 0, +I41+'App.2-CB_NewCGAAP_DepExp_2012'!O41-J41) -> 122030.915
A42: 1935 | B42: Stores Equipment | C42: ='App.2-BA_Fixed Asset Cont'!E119 -> 0 | D42: ='App.2-CB_NewCGAAP_DepExp_2012'!F42 -> 0 | E42: 0 | F42: =IF(D42=0,+'App.2-CB_NewCGAAP_DepExp_2012'!O42,+'App.2-CB_NewCGAAP_DepExp_2012'!O42+((C42*0.5)/D42)) -> 0 | G42: =-'App.2-BA_Fixed Asset Cont'!J119 -> 0 | H42: 0 | I42: 0 | K42: =IF(ISERROR(+I42+'App.2-CB_NewCGAAP_DepExp_2012'!O42-J42), 0, +I42+'App.2-CB_NewCGAAP_DepExp_2012'!O42-J42) -> 0
A43: 1940 | B43: Tools, Shop & Garage Equipment | C43: ='App.2-BA_Fixed Asset Cont'!E120 -> 181952 | D43: ='App.2-CB_NewCGAAP_DepExp_2012'!F43 -> 10 | E43: 0.1 | F43: =IF(D43=0,+'App.2-CB_NewCGAAP_DepExp_2012'!O43,+'App.2-CB_NewCGAAP_DepExp_2012'!O43+((C43*0.5)/D43)) -> 33568.79412 | G43: =-'App.2-BA_Fixed Asset Cont'!J120 -> 35198 | H43: -1629.205882 | I43: 18195.2 | K43: =IF(ISERROR(+I43+'App.2-CB_NewCGAAP_DepExp_2012'!O43-J43), 0, +I43+'App.2-CB_NewCGAAP_DepExp_2012'!O43-J43) -> 42666.39412
A44: 1945 | B44: Measurement & Testing Equipment | C44: ='App.2-BA_Fixed Asset Cont'!E121 -> 1476 | D44: ='App.2-CB_NewCGAAP_DepExp_2012'!F44 -> 10 | E44: 0.1 | F44: =IF(D44=0,+'App.2-CB_NewCGAAP_DepExp_2012'!O44,+'App.2-CB_NewCGAAP_DepExp_2012'!O44+((C44*0.5)/D44)) -> 1963.8 | G44: =-'App.2-BA_Fixed Asset Cont'!J121 -> 2087 | H44: -123.2 | I44: 147.6 | K44: =IF(ISERROR(+I44+'App.2-CB_NewCGAAP_DepExp_2012'!O44-J44), 0, +I44+'App.2-CB_NewCGAAP_DepExp_2012'!O44-J44) -> 2037.6
A45: 1950 | B45: Power Operated Equipment | C45: ='App.2-BA_Fixed Asset Cont'!E122 -> 0 | D45: ='App.2-CB_NewCGAAP_DepExp_2012'!F45 -> 0 | E45: 0 | F45: =IF(D45=0,+'App.2-CB_NewCGAAP_DepExp_2012'!O45,+'App.2-CB_NewCGAAP_DepExp_2012'!O45+((C45*0.5)/D45)) -> 0 | G45: =-'App.2-BA_Fixed Asset Cont'!J122 -> 0 | H45: 0 | I45: 0 | K45: =IF(ISERROR(+I45+'App.2-CB_NewCGAAP_DepExp_2012'!O45-J45), 0, +I45+'App.2-CB_NewCGAAP_DepExp_2012'!O45-J45) -> 0
A46: 1955 | B46: Communications Equipment | C46: ='App.2-BA_Fixed Asset Cont'!E123 -> 0 | D46: ='App.2-CB_NewCGAAP_DepExp_2012'!F46 -> 0 | E46: 0 | F46: =IF(D46=0,+'App.2-CB_NewCGAAP_DepExp_2012'!O46,+'App.2-CB_NewCGAAP_DepExp_2012'!O46+((C46*0.5)/D46)) -> 0 | G46: =-'App.2-BA_Fixed Asset Cont'!J123 -> 0 | H46: 0 | I46: 0 | K46: =IF(ISERROR(+I46+'App.2-CB_NewCGAAP_DepExp_2012'!O46-J46), 0, +I46+'App.2-CB_NewCGAAP_DepExp_2012'!O46-J46) -> 0
A47: 1955 | B47: Communication Equipment (Smart Meters) | C47: ='App.2-BA_Fixed Asset Cont'!E124 -> 0 | D47: ='App.2-CB_NewCGAAP_DepExp_2012'!F47 -> 0 | E47: 0 | F47: =IF(D47=0,+'App.2-CB_NewCGAAP_DepExp_2012'!O47,+'App.2-CB_NewCGAAP_DepExp_2012'!O47+((C47*0.5)/D47)) -> 0 | G47: =-'App.2-BA_Fixed Asset Cont'!J124 -> 0 | H47: 0 | I47: 0 | K47: =IF(ISERROR(+I47+'App.2-CB_NewCGAAP_DepExp_2012'!O47-J47), 0, +I47+'App.2-CB_NewCGAAP_DepExp_2012'!O47-J47) -> 0
A48: 1960 | B48: Miscellaneous Equipment | C48: ='App.2-BA_Fixed Asset Cont'!E125 -> 10500 | D48: ='App.2-CB_NewCGAAP_DepExp_2012'!F48 -> 10 | E48: 0.1 | F48: =IF(D48=0,+'App.2-CB_NewCGAAP_DepExp_2012'!O48,+'App.2-CB_NewCGAAP_DepExp_2012'!O48+((C48*0.5)/D48)) -> 772.4421053 | G48: =-'App.2-BA_Fixed Asset Cont'!J125 -> 844 | H48: -71.55789474 | I48: 1050 | K48: =IF(ISERROR(+I48+'App.2-CB_NewCGAAP_DepExp_2012'!O48-J48), 0, +I48+'App.2-CB_NewCGAAP_DepExp_2012'!O48-J48) -> 1297.442105
A49: 1970 | B49: Load Management Controls Customer Premises | C49: ='App.2-BA_Fixed Asset Cont'!E126 -> 0 | D49: ='App.2-CB_NewCGAAP_DepExp_2012'!F49 -> 0 | E49: 0 | F49: =IF(D49=0,+'App.2-CB_NewCGAAP_DepExp_2012'!O49,+'App.2-CB_NewCGAAP_DepExp_2012'!O49+((C49*0.5)/D49)) -> 0 | G49: =-'App.2-BA_Fixed Asset Cont'!J126 -> 0 | H49: 0 | I49: 0 | K49: =IF(ISERROR(+I49+'App.2-CB_NewCGAAP_DepExp_2012'!O49-J49), 0, +I49+'App.2-CB_NewCGAAP_DepExp_2012'!O49-J49) -> 0
A50: 1975 | B50: Load Management Controls Utility Premises | C50: ='App.2-BA_Fixed Asset Cont'!E127 -> 0 | D50: ='App.2-CB_NewCGAAP_DepExp_2012'!F50 -> 0 | E50: 0 | F50: =IF(D50=0,+'App.2-CB_NewCGAAP_DepExp_2012'!O50,+'App.2-CB_NewCGAAP_DepExp_2012'!O50+((C50*0.5)/D50)) -> 0 | G50: =-'App.2-BA_Fixed Asset Cont'!J127 -> 0 | H50: 0 | I50: 0 | K50: =IF(ISERROR(+I50+'App.2-CB_NewCGAAP_DepExp_2012'!O50-J50), 0, +I50+'App.2-CB_NewCGAAP_DepExp_2012'!O50-J50) -> 0
A51: 1980 | B51: System Supervisor Equipment | C51: ='App.2-BA_Fixed Asset Cont'!E128 -> 4312 | D51: ='App.2-CB_NewCGAAP_DepExp_2012'!F51 -> 20 | E51: 0.05 | F51: =IF(D51=0,+'App.2-CB_NewCGAAP_DepExp_2012'!O51,+'App.2-CB_NewCGAAP_DepExp_2012'!O51+((C51*0.5)/D51)) -> 4997.6 | G51: =-'App.2-BA_Fixed Asset Cont'!J128 -> 4998 | H51: -0.4 | I51: 215.6 | K51: =IF(ISERROR(+I51+'App.2-CB_NewCGAAP_DepExp_2012'!O51-J51), 0, +I51+'App.2-CB_NewCGAAP_DepExp_2012'!O51-J51) -> 5105.4
A52: 1985 | B52: Miscellaneous Fixed Assets | C52: ='App.2-BA_Fixed Asset Cont'!E129 -> 0 | D52: ='App.2-CB_NewCGAAP_DepExp_2012'!F52 -> 0 | E52: 0 | F52: =IF(D52=0,+'App.2-CB_NewCGAAP_DepExp_2012'!O52,+'App.2-CB_NewCGAAP_DepExp_2012'!O52+((C52*0.5)/D52)) -> 0 | G52: =-'App.2-BA_Fixed Asset Cont'!J129 -> 0 | H52: 0 | I52: 0 | K52: =IF(ISERROR(+I52+'App.2-CB_NewCGAAP_DepExp_2012'!O52-J52), 0, +I52+'App.2-CB_NewCGAAP_DepExp_2012'!O52-J52) -> 0
A53: 1990 | B53: Other Tangible Property | C53: ='App.2-BA_Fixed Asset Cont'!E130 -> 0 | D53: ='App.2-CB_NewCGAAP_DepExp_2012'!F53 -> 0 | E53: 0 | F53: =IF(D53=0,+'App.2-CB_NewCGAAP_DepExp_2012'!O53,+'App.2-CB_NewCGAAP_DepExp_2012'!O53+((C53*0.5)/D53)) -> 0 | G53: =-'App.2-BA_Fixed Asset Cont'!J130 -> 0 | H53: 0 | I53: 0 | K53: =IF(ISERROR(+I53+'App.2-CB_NewCGAAP_DepExp_2012'!O53-J53), 0, +I53+'App.2-CB_NewCGAAP_DepExp_2012'!O53-J53) -> 0
A54: 1995 | B54: Contributions & Grants | C54: ='App.2-BA_Fixed Asset Cont'!E131 -> -392384 | D54: ='App.2-CB_NewCGAAP_DepExp_2012'!F54 -> 25 | E54: 0.04 | F54: =IF(D54=0,+'App.2-CB_NewCGAAP_DepExp_2012'!O54,+'App.2-CB_NewCGAAP_DepExp_2012'!O54+((C54*0.5)/D54)) -> -97007.80681 | G54: =-'App.2-BA_Fixed Asset Cont'!J131 -> -97693 | H54: 685.1931915 | I54: -15695.36 | K54: =IF(ISERROR(+I54+'App.2-CB_NewCGAAP_DepExp_2012'!O54-J54), 0, +I54+'App.2-CB_NewCGAAP_DepExp_2012'!O54-J54) -> -104855.4868
B55: Total | C55: =SUM(C17:C54) -> 889568 | F55: =SUM(F17:F54) -> 729493.3597 | G55: 861204 | H55: -131710.6403 | I55: 33348.23564 | J55: 0 | K55: 746167.4776
A57: Notes:
A58: 1 | B58: Board policy of the "half-year" rule - the applicant must ensure that additions in the year attract a half-year depreciation expense in the first year. Deviations from this standard practice must be supported in the application.
A59: 2 | B59: The applicant must provide an explanation of material variances in evidence.
A60: 3 | B60: This column refers to the calculated full year depreciation but excludes the depreciation expense on assets fully depreciated during the year. This column is used for the purpose of calculating depreciation expense in the following year on the next worksheet.
A62: General: | B62: Applicants must provide a breakdown of depreciation and amortization expense in the above format for all relevant accounts. Asset Retirement Obligations (AROs), depreciation and accretion expense should be disclosed separately consistent with the Notes of historical Audited Financial Statements.

Sheet App.2-CD_MIFRS_DepExp_2014
J1: File Number: | K1: =EBNUMBER -> EB-2016-0089
J2: Exhibit: | K2: 4
J3: Tab: | K3: 4
J4: Schedule: | K4: 2
J5: Page: | K5: 44
J7: Date: | K7: 2016-04-29
A9: Appendix 2-CD
A10: Depreciation and Amortization Expense
A11: Assumes the applicant made capitalization and depreciation expense accounting policy changes under CGAAP effective January 1, 2012 and has adopted IFRS for financial reporting purposes effective January 1, 2015.
E13: 2014 | F13: MIFRS
A15: Account | B15: Description | C15: Additions | D15: Years (new additions only) | E15: Depreciation Rate on New Additions | F15: 2014 Depreciation Expense 1 | G15: 2014 Depreciation Expense per Apppendix 2-BA Fixed Assets, Column J (l) | H15: Variance 2 | I15: Depreciation Expense on 2014 Full Year Additions | J15: Less Depreciation Expense on Assets Fully Depreciated during the year (o) | K15: 2014 Full Year Depreciation 3
C16: (d) | D16: (f) | E16: (g) = 1 / (f) | F16: (h)=2013 Full Year Deprecation + ((d)*0.5)/(f) | H16: (m) = (h) - (l) | I16: (n)=((d))/(f) | K16: (p) = 2013 Full Year Depreciation + (n) - (o)
A17: 1611 | B17: Computer Software (Formally known as Account 1925) | C17: ='App.2-BA_Fixed Asset Cont'!E155 -> 19400 | D17: ='App.2-CB_NewCGAAP_DepExp_2012'!F17 -> 10 | E17: =IF(D17=0,0,1/D17) -> 0.1 | F17: =IF(D17=0,+'App.2-CC_NewCGAAP_DepExp_2013'!K17,+'App.2-CC_NewCGAAP_DepExp_2013'!K17+((C17*0.5)/D17)) -> 64871.7 | G17: =-'App.2-BA_Fixed Asset Cont'!J155 -> 76707 | H17: =IF(ISERROR(+F17-G17), 0, +F17-G17) -> -11835.3 | I17: =IF(D17=0,0,+(C17)/D17) -> 1940 | K17: =IF(ISERROR(+I17+'App.2-CC_NewCGAAP_DepExp_2013'!K17-J17), 0, +I17+'App.2-CC_NewCGAAP_DepExp_2013'!K17-J17) -> 65841.7
A18: 1612 | B18: Land Rights (Formally known as Account 1906) | C18: ='App.2-BA_Fixed Asset Cont'!E156 -> 0 | D18: ='App.2-CB_NewCGAAP_DepExp_2012'!F18 -> 0 | E18: 0 | F18: =IF(D18=0,+'App.2-CC_NewCGAAP_DepExp_2013'!K18,+'App.2-CC_NewCGAAP_DepExp_2013'!K18+((C18*0.5)/D18)) -> 0 | G18: =-'App.2-BA_Fixed Asset Cont'!J156 -> 0 | H18: 0 | I18: =IF(D18=0,0,+(C18)/D18) -> 0 | K18: =IF(ISERROR(+I18+'App.2-CC_NewCGAAP_DepExp_2013'!K18-J18), 0, +I18+'App.2-CC_NewCGAAP_DepExp_2013'!K18-J18) -> 0
A19: 1805 | B19: Land | C19: ='App.2-BA_Fixed Asset Cont'!E157 -> 0 | D19: ='App.2-CB_NewCGAAP_DepExp_2012'!F19 -> 0 | E19: 0 | F19: =IF(D19=0,+'App.2-CC_NewCGAAP_DepExp_2013'!K19,+'App.2-CC_NewCGAAP_DepExp_2013'!K19+((C19*0.5)/D19)) -> 0 | G19: =-'App.2-BA_Fixed Asset Cont'!J157 -> 0 | H19: 0 | I19: 0 | K19: =IF(ISERROR(+I19+'App.2-CC_NewCGAAP_DepExp_2013'!K19-J19), 0, +I19+'App.2-CC_NewCGAAP_DepExp_2013'!K19-J19) -> 0
A20: 1808 | B20: Buildings | C20: ='App.2-BA_Fixed Asset Cont'!E158 -> 54231 | D20: ='App.2-CB_NewCGAAP_DepExp_2012'!F20 -> 50 | E20: 0.02 | F20: =IF(D20=0,+'App.2-CC_NewCGAAP_DepExp_2013'!K20,+'App.2-CC_NewCGAAP_DepExp_2013'!K20+((C20*0.5)/D20)) -> 21496.92808 | G20: =-'App.2-BA_Fixed Asset Cont'!J158 -> 30007 | H20: -8510.071925 | I20: 1084.62 | K20: =IF(ISERROR(+I20+'App.2-CC_NewCGAAP_DepExp_2013'!K20-J20), 0, +I20+'App.2-CC_NewCGAAP_DepExp_2013'!K20-J20) -> 22039.23808
A21: 1810 | B21: Leasehold Improvements | C21: ='App.2-BA_Fixed Asset Cont'!E159 -> 0 | D21: ='App.2-CB_NewCGAAP_DepExp_2012'!F21 -> 0 | E21: 0 | F21: =IF(D21=0,+'App.2-CC_NewCGAAP_DepExp_2013'!K21,+'App.2-CC_NewCGAAP_DepExp_2013'!K21+((C21*0.5)/D21)) -> 0 | G21: =-'App.2-BA_Fixed Asset Cont'!J159 -> 0 | H21: 0 | I21: 0 | K21: =IF(ISERROR(+I21+'App.2-CC_NewCGAAP_DepExp_2013'!K21-J21), 0, +I21+'App.2-CC_NewCGAAP_DepExp_2013'!K21-J21) -> 0
A22: 1815 | B22: Transformer Station Equipment >50 kV | C22: ='App.2-BA_Fixed Asset Cont'!E160 -> 0 | D22: ='App.2-CB_NewCGAAP_DepExp_2012'!F22 -> 0 | E22: 0 | F22: =IF(D22=0,+'App.2-CC_NewCGAAP_DepExp_2013'!K22,+'App.2-CC_NewCGAAP_DepExp_2013'!K22+((C22*0.5)/D22)) -> 0 | G22: =-'App.2-BA_Fixed Asset Cont'!J160 -> 0 | H22: 0 | I22: 0 | K22: =IF(ISERROR(+I22+'App.2-CC_NewCGAAP_DepExp_2013'!K22-J22), 0, +I22+'App.2-CC_NewCGAAP_DepExp_2013'!K22-J22) -> 0
A23: 1820 | B23: Distribution Station Equipment <50 kV | C23: ='App.2-BA_Fixed Asset Cont'!E161 -> 80630 | D23: ='App.2-CB_NewCGAAP_DepExp_2012'!F23 -> 45 | E23: 0.02222222222 | F23: =IF(D23=0,+'App.2-CC_NewCGAAP_DepExp_2013'!K23,+'App.2-CC_NewCGAAP_DepExp_2013'!K23+((C23*0.5)/D23)) -> 37745.16522 | G23: =-'App.2-BA_Fixed Asset Cont'!J161 -> 54397 | H23: -16651.83478 | I23: 1791.777778 | K23: =IF(ISERROR(+I23+'App.2-CC_NewCGAAP_DepExp_2013'!K23-J23), 0, +I23+'App.2-CC_NewCGAAP_DepExp_2013'!K23-J23) -> 38641.05411
A24: 1825 | B24: Storage Battery Equipment | C24: ='App.2-BA_Fixed Asset Cont'!E162 -> 0 | D24: ='App.2-CB_NewCGAAP_DepExp_2012'!F24 -> 0 | E24: 0 | F24: =IF(D24=0,+'App.2-CC_NewCGAAP_DepExp_2013'!K24,+'App.2-CC_NewCGAAP_DepExp_2013'!K24+((C24*0.5)/D24)) -> 0 | G24: =-'App.2-BA_Fixed Asset Cont'!J162 -> 0 | H24: 0 | I24: 0 | K24: =IF(ISERROR(+I24+'App.2-CC_NewCGAAP_DepExp_2013'!K24-J24), 0, +I24+'App.2-CC_NewCGAAP_DepExp_2013'!K24-J24) -> 0
A25: 1830 | B25: Poles, Towers & Fixtures | C25: ='App.2-BA_Fixed Asset Cont'!E163 -> 245546 | D25: ='App.2-CB_NewCGAAP_DepExp_2012'!F25 -> 45 | E25: 0.02222222222 | F25: =IF(D25=0,+'App.2-CC_NewCGAAP_DepExp_2013'!K25,+'App.2-CC_NewCGAAP_DepExp_2013'!K25+((C25*0.5)/D25)) -> 39291.86984 | G25: =-'App.2-BA_Fixed Asset Cont'!J163 -> 51421 | H25: -12129.13016 | I25: 5456.577778 | K25: =IF(ISERROR(+I25+'App.2-CC_NewCGAAP_DepExp_2013'!K25-J25), 0, +I25+'App.2-CC_NewCGAAP_DepExp_2013'!K25-J25) -> 42020.15873
A26: 1835 | B26: Overhead Conductors & Devices | C26: ='App.2-BA_Fixed Asset Cont'!E164 -> 399016 | D26: ='App.2-CB_NewCGAAP_DepExp_2012'!F26 -> 55 | E26: 0.01818181818 | F26: =IF(D26=0,+'App.2-CC_NewCGAAP_DepExp_2013'!K26,+'App.2-CC_NewCGAAP_DepExp_2013'!K26+((C26*0.5)/D26)) -> 92379.11915 | G26: =-'App.2-BA_Fixed Asset Cont'!J164 -> 109850 | H26: -17470.88085 | I26: 7254.836364 | K26: =IF(ISERROR(+I26+'App.2-CC_NewCGAAP_DepExp_2013'!K26-J26), 0, +I26+'App.2-CC_NewCGAAP_DepExp_2013'!K26-J26) -> 96006.53733
A27: 1840 | B27: Underground Conduit | C27: ='App.2-BA_Fixed Asset Cont'!E165 -> 18558 | D27: ='App.2-CB_NewCGAAP_DepExp_2012'!F27 -> 50 | E27: 0.02 | F27: =IF(D27=0,+'App.2-CC_NewCGAAP_DepExp_2013'!K27,+'App.2-CC_NewCGAAP_DepExp_2013'!K27+((C27*0.5)/D27)) -> 17045.18495 | G27: =-'App.2-BA_Fixed Asset Cont'!J165 -> 27661 | H27: -10615.81505 | I27: 371.16 | K27: =IF(ISERROR(+I27+'App.2-CC_NewCGAAP_DepExp_2013'!K27-J27), 0, +I27+'App.2-CC_NewCGAAP_DepExp_2013'!K27-J27) -> 17230.76495
A28: 1845 | B28: Underground Conductors & Devices | C28: ='App.2-BA_Fixed Asset Cont'!E166 -> 18007 | D28: ='App.2-CB_NewCGAAP_DepExp_2012'!F28 -> 35 | E28: 0.02857142857 | F28: =IF(D28=0,+'App.2-CC_NewCGAAP_DepExp_2013'!K28,+'App.2-CC_NewCGAAP_DepExp_2013'!K28+((C28*0.5)/D28)) -> 68766.97362 | G28: =-'App.2-BA_Fixed Asset Cont'!J166 -> 90546 | H28: -21779.02638 | I28: 514.4857143 | K28: =IF(ISERROR(+I28+'App.2-CC_NewCGAAP_DepExp_2013'!K28-J28), 0, +I28+'App.2-CC_NewCGAAP_DepExp_2013'!K28-J28) -> 69024.21647
A29: 1850 | B29: Line Transformers | C29: ='App.2-BA_Fixed Asset Cont'!E167 -> 112751 | D29: ='App.2-CB_NewCGAAP_DepExp_2012'!F29 -> 35 | E29: 0.02857142857 | F29: =IF(D29=0,+'App.2-CC_NewCGAAP_DepExp_2013'!K29,+'App.2-CC_NewCGAAP_DepExp_2013'!K29+((C29*0.5)/D29)) -> 145497.5933 | G29: =-'App.2-BA_Fixed Asset Cont'!J167 -> 161753 | H29: -16255.4067 | I29: 3221.457143 | K29: =IF(ISERROR(+I29+'App.2-CC_NewCGAAP_DepExp_2013'!K29-J29), 0, +I29+'App.2-CC_NewCGAAP_DepExp_2013'!K29-J29) -> 147108.3219
A30: 1855 | B30: Services (Overhead & Underground) | C30: ='App.2-BA_Fixed Asset Cont'!E168 -> 0 | D30: ='App.2-CB_NewCGAAP_DepExp_2012'!F30 -> 55 | E30: 0.01818181818 | F30: =IF(D30=0,+'App.2-CC_NewCGAAP_DepExp_2013'!K30,+'App.2-CC_NewCGAAP_DepExp_2013'!K30+((C30*0.5)/D30)) -> 9529.68113 | G30: =-'App.2-BA_Fixed Asset Cont'!J168 -> 9931 | H30: -401.3188704 | I30: 0 | K30: =IF(ISERROR(+I30+'App.2-CC_NewCGAAP_DepExp_2013'!K30-J30), 0, +I30+'App.2-CC_NewCGAAP_DepExp_2013'!K30-J30) -> 9529.68113
A31: 1860 | B31: Meters | C31: ='App.2-BA_Fixed Asset Cont'!E169 -> 0 | D31: ='App.2-CB_NewCGAAP_DepExp_2012'!F31 -> 25 | E31: 0.04 | F31: =IF(D31=0,+'App.2-CC_NewCGAAP_DepExp_2013'!K31,+'App.2-CC_NewCGAAP_DepExp_2013'!K31+((C31*0.5)/D31)) -> 30389.56522 | G31: =-'App.2-BA_Fixed Asset Cont'!J169 -> 33809 | H31: -3419.434783 | I31: 0 | K31: =IF(ISERROR(+I31+'App.2-CC_NewCGAAP_DepExp_2013'!K31-J31), 0, +I31+'App.2-CC_NewCGAAP_DepExp_2013'!K31-J31) -> 30389.56522
A32: 1860 | B32: Meters (Smart Meters) | C32: ='App.2-BA_Fixed Asset Cont'!E170 -> 68805 | D32: ='App.2-CB_NewCGAAP_DepExp_2012'!F32 -> 15 | E32: 0.06666666667 | F32: =IF(D32=0,+'App.2-CC_NewCGAAP_DepExp_2013'!K32,+'App.2-CC_NewCGAAP_DepExp_2013'!K32+((C32*0.5)/D32)) -> 138618.4333 | G32: =-'App.2-BA_Fixed Asset Cont'!J170 -> 147044 | H32: -8425.566667 | I32: 4587 | K32: =IF(ISERROR(+I32+'App.2-CC_NewCGAAP_DepExp_2013'!K32-J32), 0, +I32+'App.2-CC_NewCGAAP_DepExp_2013'!K32-J32) -> 140911.9333
A33: 1905 | B33: Land | C33: ='App.2-BA_Fixed Asset Cont'!E171 -> 0 | D33: ='App.2-CB_NewCGAAP_DepExp_2012'!F33 -> 0 | E33: 0 | F33: =IF(D33=0,+'App.2-CC_NewCGAAP_DepExp_2013'!K33,+'App.2-CC_NewCGAAP_DepExp_2013'!K33+((C33*0.5)/D33)) -> 0 | G33: =-'App.2-BA_Fixed Asset Cont'!J171 -> 0 | H33: 0 | I33: 0 | K33: =IF(ISERROR(+I33+'App.2-CC_NewCGAAP_DepExp_2013'!K33-J33), 0, +I33+'App.2-CC_NewCGAAP_DepExp_2013'!K33-J33) -> 0
A34: 1908 | B34: Buildings & Fixtures | C34: ='App.2-BA_Fixed Asset Cont'!E172 -> 0 | D34: ='App.2-CB_NewCGAAP_DepExp_2012'!F34 -> 0 | E34: 0 | F34: =IF(D34=0,+'App.2-CC_NewCGAAP_DepExp_2013'!K34,+'App.2-CC_NewCGAAP_DepExp_2013'!K34+((C34*0.5)/D34)) -> 0 | G34: =-'App.2-BA_Fixed Asset Cont'!J172 -> 0 | H34: 0 | I34: 0 | K34: =IF(ISERROR(+I34+'App.2-CC_NewCGAAP_DepExp_2013'!K34-J34), 0, +I34+'App.2-CC_NewCGAAP_DepExp_2013'!K34-J34) -> 0
A35: 1910 | B35: Leasehold Improvements | C35: ='App.2-BA_Fixed Asset Cont'!E173 -> 0 | D35: ='App.2-CB_NewCGAAP_DepExp_2012'!F35 -> 0 | E35: 0 | F35: =IF(D35=0,+'App.2-CC_NewCGAAP_DepExp_2013'!K35,+'App.2-CC_NewCGAAP_DepExp_2013'!K35+((C35*0.5)/D35)) -> 0 | G35: =-'App.2-BA_Fixed Asset Cont'!J173 -> 0 | H35: 0 | I35: 0 | K35: =IF(ISERROR(+I35+'App.2-CC_NewCGAAP_DepExp_2013'!K35-J35), 0, +I35+'App.2-CC_NewCGAAP_DepExp_2013'!K35-J35) -> 0
A36: 1915 | B36: Office Furniture & Equipment (10 years) | C36: ='App.2-BA_Fixed Asset Cont'!E174 -> 0 | D36: ='App.2-CB_NewCGAAP_DepExp_2012'!F36 -> 10 | E36: 0.1 | F36: =IF(D36=0,+'App.2-CC_NewCGAAP_DepExp_2013'!K36,+'App.2-CC_NewCGAAP_DepExp_2013'!K36+((C36*0.5)/D36)) -> 10444.84242 | G36: =-'App.2-BA_Fixed Asset Cont'!J174 -> 10442 | H36: 2.842424242 | I36: 0 | K36: =IF(ISERROR(+I36+'App.2-CC_NewCGAAP_DepExp_2013'!K36-J36), 0, +I36+'App.2-CC_NewCGAAP_DepExp_2013'!K36-J36) -> 10444.84242
A37: 1915 | B37: Office Furniture & Equipment (5 years) | C37: ='App.2-BA_Fixed Asset Cont'!E175 -> 0 | D37: ='App.2-CB_NewCGAAP_DepExp_2012'!F37 -> 0 | E37: 0 | F37: =IF(D37=0,+'App.2-CC_NewCGAAP_DepExp_2013'!K37,+'App.2-CC_NewCGAAP_DepExp_2013'!K37+((C37*0.5)/D37)) -> 0 | G37: =-'App.2-BA_Fixed Asset Cont'!J175 -> 0 | H37: 0 | I37: 0 | K37: =IF(ISERROR(+I37+'App.2-CC_NewCGAAP_DepExp_2013'!K37-J37), 0, +I37+'App.2-CC_NewCGAAP_DepExp_2013'!K37-J37) -> 0
A38: 1920 | B38: Computer Equipment - Hardware | C38: ='App.2-BA_Fixed Asset Cont'!E176 -> 21136 | D38: ='App.2-CB_NewCGAAP_DepExp_2012'!F38 -> 5 | E38: 0.2 | F38: =IF(D38=0,+'App.2-CC_NewCGAAP_DepExp_2013'!K38,+'App.2-CC_NewCGAAP_DepExp_2013'!K38+((C38*0.5)/D38)) -> 17032.71429 | G38: =-'App.2-BA_Fixed Asset Cont'!J176 -> 16868 | H38: 164.7142857 | I38: 4227.2 | K38: =IF(ISERROR(+I38+'App.2-CC_NewCGAAP_DepExp_2013'!K38-J38), 0, +I38+'App.2-CC_NewCGAAP_DepExp_2013'!K38-J38) -> 19146.31429
A39: 1920 | B39: Computer Equip.-Hardware(Post Mar. 22/04) | C39: ='App.2-BA_Fixed Asset Cont'!E177 -> 0 | D39: ='App.2-CB_NewCGAAP_DepExp_2012'!F39 -> 0 | E39: 0 | F39: =IF(D39=0,+'App.2-CC_NewCGAAP_DepExp_2013'!K39,+'App.2-CC_NewCGAAP_DepExp_2013'!K39+((C39*0.5)/D39)) -> 0 | G39: =-'App.2-BA_Fixed Asset Cont'!J177 -> 0 | H39: 0 | I39: 0 | K39: =IF(ISERROR(+I39+'App.2-CC_NewCGAAP_DepExp_2013'!K39-J39), 0, +I39+'App.2-CC_NewCGAAP_DepExp_2013'!K39-J39) -> 0
A40: 1920 | B40: Computer Equip.-Hardware(Post Mar. 19/07) | C40: ='App.2-BA_Fixed Asset Cont'!E178 -> 0 | D40: ='App.2-CB_NewCGAAP_DepExp_2012'!F40 -> 0 | E40: 0 | F40: =IF(D40=0,+'App.2-CC_NewCGAAP_DepExp_2013'!K40,+'App.2-CC_NewCGAAP_DepExp_2013'!K40+((C40*0.5)/D40)) -> 0 | G40: =-'App.2-BA_Fixed Asset Cont'!J178 -> 0 | H40: 0 | I40: 0 | K40: =IF(ISERROR(+I40+'App.2-CC_NewCGAAP_DepExp_2013'!K40-J40), 0, +I40+'App.2-CC_NewCGAAP_DepExp_2013'!K40-J40) -> 0
A41: 1930 | B41: Transportation Equipment | C41: ='App.2-BA_Fixed Asset Cont'!E179 -> 77846 | D41: ='App.2-CB_NewCGAAP_DepExp_2012'!F41 -> 8 | E41: 0.125 | F41: =IF(D41=0,+'App.2-CC_NewCGAAP_DepExp_2013'!K41,+'App.2-CC_NewCGAAP_DepExp_2013'!K41+((C41*0.5)/D41)) -> 126896.29 | G41: =-'App.2-BA_Fixed Asset Cont'!J179 -> 146082 | H41: -19185.71 | I41: 9730.75 | K41: =IF(ISERROR(+I41+'App.2-CC_NewCGAAP_DepExp_2013'!K41-J41), 0, +I41+'App.2-CC_NewCGAAP_DepExp_2013'!K41-J41) -> 131761.665
A42: 1935 | B42: Stores Equipment | C42: ='App.2-BA_Fixed Asset Cont'!E180 -> 0 | D42: ='App.2-CB_NewCGAAP_DepExp_2012'!F42 -> 0 | E42: 0 | F42: =IF(D42=0,+'App.2-CC_NewCGAAP_DepExp_2013'!K42,+'App.2-CC_NewCGAAP_DepExp_2013'!K42+((C42*0.5)/D42)) -> 0 | G42: =-'App.2-BA_Fixed Asset Cont'!J180 -> 0 | H42: 0 | I42: 0 | K42: =IF(ISERROR(+I42+'App.2-CC_NewCGAAP_DepExp_2013'!K42-J42), 0, +I42+'App.2-CC_NewCGAAP_DepExp_2013'!K42-J42) -> 0
A43: 1940 | B43: Tools, Shop & Garage Equipment | C43: ='App.2-BA_Fixed Asset Cont'!E181 -> 186821 | D43: ='App.2-CB_NewCGAAP_DepExp_2012'!F43 -> 10 | E43: 0.1 | F43: =IF(D43=0,+'App.2-CC_NewCGAAP_DepExp_2013'!K43,+'App.2-CC_NewCGAAP_DepExp_2013'!K43+((C43*0.5)/D43)) -> 52007.44412 | G43: =-'App.2-BA_Fixed Asset Cont'!J181 -> 53656 | H43: -1648.555882 | I43: 18682.1 | K43: =IF(ISERROR(+I43+'App.2-CC_NewCGAAP_DepExp_2013'!K43-J43), 0, +I43+'App.2-CC_NewCGAAP_DepExp_2013'!K43-J43) -> 61348.49412
A44: 1945 | B44: Measurement & Testing Equipment | C44: ='App.2-BA_Fixed Asset Cont'!E182 -> 0 | D44: ='App.2-CB_NewCGAAP_DepExp_2012'!F44 -> 10 | E44: 0.1 | F44: =IF(D44=0,+'App.2-CC_NewCGAAP_DepExp_2013'!K44,+'App.2-CC_NewCGAAP_DepExp_2013'!K44+((C44*0.5)/D44)) -> 2037.6 | G44: =-'App.2-BA_Fixed Asset Cont'!J182 -> 2225 | H44: -187.4 | I44: 0 | K44: =IF(ISERROR(+I44+'App.2-CC_NewCGAAP_DepExp_2013'!K44-J44), 0, +I44+'App.2-CC_NewCGAAP_DepExp_2013'!K44-J44) -> 2037.6
A45: 1950 | B45: Power Operated Equipment | C45: ='App.2-BA_Fixed Asset Cont'!E183 -> 0 | D45: ='App.2-CB_NewCGAAP_DepExp_2012'!F45 -> 0 | E45: 0 | F45: =IF(D45=0,+'App.2-CC_NewCGAAP_DepExp_2013'!K45,+'App.2-CC_NewCGAAP_DepExp_2013'!K45+((C45*0.5)/D45)) -> 0 | G45: =-'App.2-BA_Fixed Asset Cont'!J183 -> 0 | H45: 0 | I45: 0 | K45: =IF(ISERROR(+I45+'App.2-CC_NewCGAAP_DepExp_2013'!K45-J45), 0, +I45+'App.2-CC_NewCGAAP_DepExp_2013'!K45-J45) -> 0
A46: 1955 | B46: Communications Equipment | C46: ='App.2-BA_Fixed Asset Cont'!E184 -> 0 | D46: ='App.2-CB_NewCGAAP_DepExp_2012'!F46 -> 0 | E46: 0 | F46: =IF(D46=0,+'App.2-CC_NewCGAAP_DepExp_2013'!K46,+'App.2-CC_NewCGAAP_DepExp_2013'!K46+((C46*0.5)/D46)) -> 0 | G46: =-'App.2-BA_Fixed Asset Cont'!J184 -> 0 | H46: 0 | I46: 0 | K46: =IF(ISERROR(+I46+'App.2-CC_NewCGAAP_DepExp_2013'!K46-J46), 0, +I46+'App.2-CC_NewCGAAP_DepExp_2013'!K46-J46) -> 0
A47: 1955 | B47: Communication Equipment (Smart Meters) | C47: ='App.2-BA_Fixed Asset Cont'!E185 -> 0 | D47: ='App.2-CB_NewCGAAP_DepExp_2012'!F47 -> 0 | E47: 0 | F47: =IF(D47=0,+'App.2-CC_NewCGAAP_DepExp_2013'!K47,+'App.2-CC_NewCGAAP_DepExp_2013'!K47+((C47*0.5)/D47)) -> 0 | G47: =-'App.2-BA_Fixed Asset Cont'!J185 -> 0 | H47: 0 | I47: 0 | K47: =IF(ISERROR(+I47+'App.2-CC_NewCGAAP_DepExp_2013'!K47-J47), 0, +I47+'App.2-CC_NewCGAAP_DepExp_2013'!K47-J47) -> 0
A48: 1960 | B48: Miscellaneous Equipment | C48: ='App.2-BA_Fixed Asset Cont'!E186 -> 42293 | D48: ='App.2-CB_NewCGAAP_DepExp_2012'!F48 -> 10 | E48: 0.1 | F48: =IF(D48=0,+'App.2-CC_NewCGAAP_DepExp_2013'!K48,+'App.2-CC_NewCGAAP_DepExp_2013'!K48+((C48*0.5)/D48)) -> 3412.092105 | G48: =-'App.2-BA_Fixed Asset Cont'!J186 -> 3350 | H48: 62.09210526 | I48: 4229.3 | K48: =IF(ISERROR(+I48+'App.2-CC_NewCGAAP_DepExp_2013'!K48-J48), 0, +I48+'App.2-CC_NewCGAAP_DepExp_2013'!K48-J48) -> 5526.742105
A49: 1970 | B49: Load Management Controls Customer Premises | C49: ='App.2-BA_Fixed Asset Cont'!E187 -> 0 | D49: ='App.2-CB_NewCGAAP_DepExp_2012'!F49 -> 0 | E49: 0 | F49: =IF(D49=0,+'App.2-CC_NewCGAAP_DepExp_2013'!K49,+'App.2-CC_NewCGAAP_DepExp_2013'!K49+((C49*0.5)/D49)) -> 0 | G49: =-'App.2-BA_Fixed Asset Cont'!J187 -> 0 | H49: 0 | I49: 0 | K49: =IF(ISERROR(+I49+'App.2-CC_NewCGAAP_DepExp_2013'!K49-J49), 0, +I49+'App.2-CC_NewCGAAP_DepExp_2013'!K49-J49) -> 0
A50: 1975 | B50: Load Management Controls Utility Premises | C50: ='App.2-BA_Fixed Asset Cont'!E188 -> 0 | D50: ='App.2-CB_NewCGAAP_DepExp_2012'!F50 -> 0 | E50: 0 | F50: =IF(D50=0,+'App.2-CC_NewCGAAP_DepExp_2013'!K50,+'App.2-CC_NewCGAAP_DepExp_2013'!K50+((C50*0.5)/D50)) -> 0 | G50: =-'App.2-BA_Fixed Asset Cont'!J188 -> 0 | H50: 0 | I50: 0 | K50: =IF(ISERROR(+I50+'App.2-CC_NewCGAAP_DepExp_2013'!K50-J50), 0, +I50+'App.2-CC_NewCGAAP_DepExp_2013'!K50-J50) -> 0
A51: 1980 | B51: System Supervisor Equipment | C51: ='App.2-BA_Fixed Asset Cont'!E189 -> 85064 | D51: ='App.2-CB_NewCGAAP_DepExp_2012'!F51 -> 20 | E51: 0.05 | F51: =IF(D51=0,+'App.2-CC_NewCGAAP_DepExp_2013'!K51,+'App.2-CC_NewCGAAP_DepExp_2013'!K51+((C51*0.5)/D51)) -> 7232 | G51: =-'App.2-BA_Fixed Asset Cont'!J189 -> 7232 | H51: 0 | I51: 4253.2 | K51: =IF(ISERROR(+I51+'App.2-CC_NewCGAAP_DepExp_2013'!K51-J51), 0, +I51+'App.2-CC_NewCGAAP_DepExp_2013'!K51-J51) -> 9358.6
A52: 1985 | B52: Miscellaneous Fixed Assets | C52: ='App.2-BA_Fixed Asset Cont'!E190 -> 0 | D52: ='App.2-CB_NewCGAAP_DepExp_2012'!F52 -> 0 | E52: 0 | F52: =IF(D52=0,+'App.2-CC_NewCGAAP_DepExp_2013'!K52,+'App.2-CC_NewCGAAP_DepExp_2013'!K52+((C52*0.5)/D52)) -> 0 | G52: =-'App.2-BA_Fixed Asset Cont'!J190 -> 0 | H52: 0 | I52: 0 | K52: =IF(ISERROR(+I52+'App.2-CC_NewCGAAP_DepExp_2013'!K52-J52), 0, +I52+'App.2-CC_NewCGAAP_DepExp_2013'!K52-J52) -> 0
A53: 1990 | B53: Other Tangible Property | C53: ='App.2-BA_Fixed Asset Cont'!E191 -> 0 | D53: ='App.2-CB_NewCGAAP_DepExp_2012'!F53 -> 0 | E53: 0 | F53: =IF(D53=0,+'App.2-CC_NewCGAAP_DepExp_2013'!K53,+'App.2-CC_NewCGAAP_DepExp_2013'!K53+((C53*0.5)/D53)) -> 0 | G53: =-'App.2-BA_Fixed Asset Cont'!J191 -> 0 | H53: 0 | I53: 0 | K53: =IF(ISERROR(+I53+'App.2-CC_NewCGAAP_DepExp_2013'!K53-J53), 0, +I53+'App.2-CC_NewCGAAP_DepExp_2013'!K53-J53) -> 0
A54: 1995 | B54: Contributions & Grants | C54: ='App.2-BA_Fixed Asset Cont'!E192 -> 0 | D54: ='App.2-CB_NewCGAAP_DepExp_2012'!F54 -> 25 | E54: =IF(D54=0,0,1/D54) -> 0.04 | F54: =IF(D54=0,+'App.2-CC_NewCGAAP_DepExp_2013'!K54,+'App.2-CC_NewCGAAP_DepExp_2013'!K54+((C54*0.5)/D54)) -> -104855.4868 | G54: =-'App.2-BA_Fixed Asset Cont'!J192 -> -100710 | H54: -4145.486809 | I54: 0 | K54: =IF(ISERROR(+I54+'App.2-CC_NewCGAAP_DepExp_2013'!K54-J54), 0, +I54+'App.2-CC_NewCGAAP_DepExp_2013'!K54-J54) -> -104855.4868
B55: Total | C55: =SUM(C17:C54) -> 1430104 | F55: =SUM(F17:F54) -> 779839.71 | G55: 932271 | H55: -152431.29 | I55: 67344.46478 | J55: 0 | K55: 813511.9423
B56: Depreciation exp. adj. from gain or loss on the retirement of assets (pool of like assets)
B57: Total Depreciation Expense | F57: =+F56+F55 -> 779839.71
A59: Notes:
A60: 1 | B60: Board policy of the "half-year" rule - the applicant must ensure that additions in the year attract a half-year depreciation expense in the first year. Deviations from this standard practice must be supported in the application.
A61: 2 | B61: The applicant must provide an explanation of material variances in evidence.
A62: 3 | B62: This column refers to the calculated full year depreciation but excludes the depreciation expense on assets fully depreciated during the year. This column is used for the purpose of calculating depreciation expense in the following year on the next worksheet.
A64: General: | B64: Applicants must provide a breakdown of depreciation and amortization expense in the above format for all relevant accounts. Asset Retirement Obligations (AROs), depreciation and accretion expense should be disclosed separately consistent with the Notes of historical Audited Financial Statements.

Sheet App.2-CE_MIFRS_DepExp_2015
G1: File Number: | H1: =EBNUMBER -> EB-2016-0089
G2: Exhibit: | H2: 4
G3: Tab: | H3: 4
G4: Schedule: | H4: 2
G5: Page: | H5: 45
G7: Date: | H7: 2016-04-29
A9: Appendix 2-CE
A10: Depreciation and Amortization Expense
A11: Assumes the applicant made capitalization and depreciation expense accounting policy changes under CGAAP effective January 1, 2012 and has adopted IFRS for financial reporting purposes effective January 1, 2015.
C13: 2015 | D13: MIFRS
A15: Account | B15: Description | C15: Additions | D15: Years (new additions only) | E15: Depreciation Rate on New Additions | F15: 2015 Depreciation Expense 1 | G15: 2015 Depreciation Expense per Appendix 2-BA Fixed Assets, Column J (l) | H15: Variance 2 | I15: Depreciation Expense on 2015 Full Year Additions | J15: Less Depreciation Expense on Assets Fully Depreciated during the year (o) | K15: 2015 Full Year Depreciation 3
C16: (d) | D16: (f) | E16: (g) = 1 / (f) | F16: (h)=2014 Full Year Depreciation + ((d)*0.5)/(f) | H16: (m) = (h) - (l) | I16: (n)=((d))/(f) | K16: (p) = 2014 Full Year Depreciation + (n) - (o)
A17: 1611 | B17: Computer Software (Formally known as Account 1925) | C17: ='App.2-BA_Fixed Asset Cont'!E216 -> 215982 | D17: ='App.2-CB_NewCGAAP_DepExp_2012'!F17 -> 10 | E17: =IF(D17=0,0,1/D17) -> 0.1 | F17: =IF(D17=0,'App.2-CD_MIFRS_DepExp_2014'!K17,+'App.2-CD_MIFRS_DepExp_2014'!K17+((C17*0.5)/D17)) -> 76640.8 | G17: =-'App.2-BA_Fixed Asset Cont'!J216 -> 100245 | H17: =IF(ISERROR(+F17-G17), 0, +F17-G17) -> -23604.2 | I17: =IF(D17=0,0,+(C17)/D17) -> 21598.2 | K17: =IF(ISERROR(+I17+'App.2-CD_MIFRS_DepExp_2014'!K17-J17), 0, +I17+'App.2-CD_MIFRS_DepExp_2014'!K17-J17) -> 87439.9
A18: 1612 | B18: Land Rights (Formally known as Account 1906) | C18: ='App.2-BA_Fixed Asset Cont'!E217 -> 0 | D18: ='App.2-CB_NewCGAAP_DepExp_2012'!F18 -> 0 | E18: 0 | F18: =IF(D18=0,'App.2-CD_MIFRS_DepExp_2014'!K18,+'App.2-CD_MIFRS_DepExp_2014'!K18+((C18*0.5)/D18)) -> 0 | G18: =-'App.2-BA_Fixed Asset Cont'!J217 -> 0 | H18: 0 | I18: =IF(D18=0,0,+(C18)/D18) -> 0 | K18: =IF(ISERROR(+I18+'App.2-CD_MIFRS_DepExp_2014'!K18-J18), 0, +I18+'App.2-CD_MIFRS_DepExp_2014'!K18-J18) -> 0
A19: 1805 | B19: Land | C19: ='App.2-BA_Fixed Asset Cont'!E218 -> 0 | D19: ='App.2-CB_NewCGAAP_DepExp_2012'!F19 -> 0 | E19: 0 | F19: =IF(D19=0,'App.2-CD_MIFRS_DepExp_2014'!K19,+'App.2-CD_MIFRS_DepExp_2014'!K19+((C19*0.5)/D19)) -> 0 | G19: =-'App.2-BA_Fixed Asset Cont'!J218 -> 0 | H19: 0 | I19: 0 | K19: =IF(ISERROR(+I19+'App.2-CD_MIFRS_DepExp_2014'!K19-J19), 0, +I19+'App.2-CD_MIFRS_DepExp_2014'!K19-J19) -> 0
A20: 1808 | B20: Buildings | C20: ='App.2-BA_Fixed Asset Cont'!E219 -> 0 | D20: ='App.2-CB_NewCGAAP_DepExp_2012'!F20 -> 50 | E20: 0.02 | F20: =IF(D20=0,'App.2-CD_MIFRS_DepExp_2014'!K20,+'App.2-CD_MIFRS_DepExp_2014'!K20+((C20*0.5)/D20)) -> 22039.23808 | G20: =-'App.2-BA_Fixed Asset Cont'!J219 -> 30550 | H20: -8510.761925 | I20: 0 | K20: =IF(ISERROR(+I20+'App.2-CD_MIFRS_DepExp_2014'!K20-J20), 0, +I20+'App.2-CD_MIFRS_DepExp_2014'!K20-J20) -> 22039.23808
A21: 1810 | B21: Leasehold Improvements | C21: ='App.2-BA_Fixed Asset Cont'!E220 -> 0 | D21: ='App.2-CB_NewCGAAP_DepExp_2012'!F21 -> 0 | E21: 0 | F21: =IF(D21=0,'App.2-CD_MIFRS_DepExp_2014'!K21,+'App.2-CD_MIFRS_DepExp_2014'!K21+((C21*0.5)/D21)) -> 0 | G21: =-'App.2-BA_Fixed Asset Cont'!J220 -> 0 | H21: 0 | I21: 0 | K21: =IF(ISERROR(+I21+'App.2-CD_MIFRS_DepExp_2014'!K21-J21), 0, +I21+'App.2-CD_MIFRS_DepExp_2014'!K21-J21) -> 0
A22: 1815 | B22: Transformer Station Equipment >50 kV | C22: ='App.2-BA_Fixed Asset Cont'!E221 -> 0 | D22: ='App.2-CB_NewCGAAP_DepExp_2012'!F22 -> 0 | E22: 0 | F22: =IF(D22=0,'App.2-CD_MIFRS_DepExp_2014'!K22,+'App.2-CD_MIFRS_DepExp_2014'!K22+((C22*0.5)/D22)) -> 0 | G22: =-'App.2-BA_Fixed Asset Cont'!J221 -> 0 | H22: 0 | I22: 0 | K22: =IF(ISERROR(+I22+'App.2-CD_MIFRS_DepExp_2014'!K22-J22), 0, +I22+'App.2-CD_MIFRS_DepExp_2014'!K22-J22) -> 0
A23: 1820 | B23: Distribution Station Equipment <50 kV | C23: ='App.2-BA_Fixed Asset Cont'!E222 -> 339833 | D23: ='App.2-CB_NewCGAAP_DepExp_2012'!F23 -> 45 | E23: 0.02222222222 | F23: =IF(D23=0,'App.2-CD_MIFRS_DepExp_2014'!K23,+'App.2-CD_MIFRS_DepExp_2014'!K23+((C23*0.5)/D23)) -> 42416.97633 | G23: =-'App.2-BA_Fixed Asset Cont'!J222 -> 59068 | H23: -16651.02367 | I23: 7551.844444 | K23: =IF(ISERROR(+I23+'App.2-CD_MIFRS_DepExp_2014'!K23-J23), 0, +I23+'App.2-CD_MIFRS_DepExp_2014'!K23-J23) -> 46192.89855
A24: 1825 | B24: Storage Battery Equipment | C24: ='App.2-BA_Fixed Asset Cont'!E223 -> 0 | D24: ='App.2-CB_NewCGAAP_DepExp_2012'!F24 -> 0 | E24: 0 | F24: =IF(D24=0,'App.2-CD_MIFRS_DepExp_2014'!K24,+'App.2-CD_MIFRS_DepExp_2014'!K24+((C24*0.5)/D24)) -> 0 | G24: =-'App.2-BA_Fixed Asset Cont'!J223 -> 0 | H24: 0 | I24: 0 | K24: =IF(ISERROR(+I24+'App.2-CD_MIFRS_DepExp_2014'!K24-J24), 0, +I24+'App.2-CD_MIFRS_DepExp_2014'!K24-J24) -> 0
A25: 1830 | B25: Poles, Towers & Fixtures | C25: ='App.2-BA_Fixed Asset Cont'!E224 -> 295393 | D25: ='App.2-CB_NewCGAAP_DepExp_2012'!F25 -> 45 | E25: 0.02222222222 | F25: =IF(D25=0,'App.2-CD_MIFRS_DepExp_2014'!K25,+'App.2-CD_MIFRS_DepExp_2014'!K25+((C25*0.5)/D25)) -> 45302.30317 | G25: =-'App.2-BA_Fixed Asset Cont'!J224 -> 56842 | H25: -11539.69683 | I25: 6564.288889 | K25: =IF(ISERROR(+I25+'App.2-CD_MIFRS_DepExp_2014'!K25-J25), 0, +I25+'App.2-CD_MIFRS_DepExp_2014'!K25-J25) -> 48584.44762
A26: 1835 | B26: Overhead Conductors & Devices | C26: ='App.2-BA_Fixed Asset Cont'!E225 -> 282760 | D26: ='App.2-CB_NewCGAAP_DepExp_2012'!F26 -> 55 | E26: 0.01818181818 | F26: =IF(D26=0,'App.2-CD_MIFRS_DepExp_2014'!K26,+'App.2-CD_MIFRS_DepExp_2014'!K26+((C26*0.5)/D26)) -> 98577.08278 | G26: =-'App.2-BA_Fixed Asset Cont'!J225 -> 113703 | H26: -15125.91722 | I26: 5141.090909 | K26: =IF(ISERROR(+I26+'App.2-CD_MIFRS_DepExp_2014'!K26-J26), 0, +I26+'App.2-CD_MIFRS_DepExp_2014'!K26-J26) -> 101147.6282
A27: 1840 | B27: Underground Conduit | C27: ='App.2-BA_Fixed Asset Cont'!E226 -> 0 | D27: ='App.2-CB_NewCGAAP_DepExp_2012'!F27 -> 50 | E27: 0.02 | F27: =IF(D27=0,'App.2-CD_MIFRS_DepExp_2014'!K27,+'App.2-CD_MIFRS_DepExp_2014'!K27+((C27*0.5)/D27)) -> 17230.76495 | G27: =-'App.2-BA_Fixed Asset Cont'!J226 -> 27846 | H27: -10615.23505 | I27: 0 | K27: =IF(ISERROR(+I27+'App.2-CD_MIFRS_DepExp_2014'!K27-J27), 0, +I27+'App.2-CD_MIFRS_DepExp_2014'!K27-J27) -> 17230.76495
A28: 1845 | B28: Underground Conductors & Devices | C28: ='App.2-BA_Fixed Asset Cont'!E227 -> 75391 | D28: ='App.2-CB_NewCGAAP_DepExp_2012'!F28 -> 35 | E28: 0.02857142857 | F28: =IF(D28=0,'App.2-CD_MIFRS_DepExp_2014'!K28,+'App.2-CD_MIFRS_DepExp_2014'!K28+((C28*0.5)/D28)) -> 70101.23076 | G28: =-'App.2-BA_Fixed Asset Cont'!J227 -> 105558 | H28: -35456.76924 | I28: 2154.028571 | K28: =IF(ISERROR(+I28+'App.2-CD_MIFRS_DepExp_2014'!K28-J28), 0, +I28+'App.2-CD_MIFRS_DepExp_2014'!K28-J28) -> 71178.24505
A29: 1850 | B29: Line Transformers | C29: ='App.2-BA_Fixed Asset Cont'!E228 -> 62788 | D29: ='App.2-CB_NewCGAAP_DepExp_2012'!F29 -> 35 | E29: 0.02857142857 | F29: =IF(D29=0,'App.2-CD_MIFRS_DepExp_2014'!K29,+'App.2-CD_MIFRS_DepExp_2014'!K29+((C29*0.5)/D29)) -> 148005.2933 | G29: =-'App.2-BA_Fixed Asset Cont'!J228 -> 164261 | H29: -16255.7067 | I29: 1793.942857 | K29: =IF(ISERROR(+I29+'App.2-CD_MIFRS_DepExp_2014'!K29-J29), 0, +I29+'App.2-CD_MIFRS_DepExp_2014'!K29-J29) -> 148902.2647
A30: 1855 | B30: Services (Overhead & Underground) | C30: ='App.2-BA_Fixed Asset Cont'!E229 -> 239787 | D30: ='App.2-CB_NewCGAAP_DepExp_2012'!F30 -> 55 | E30: 0.01818181818 | F30: =IF(D30=0,'App.2-CD_MIFRS_DepExp_2014'!K30,+'App.2-CD_MIFRS_DepExp_2014'!K30+((C30*0.5)/D30)) -> 11709.56295 | G30: =-'App.2-BA_Fixed Asset Cont'!J229 -> 12111 | H30: -401.4370522 | I30: 4359.763636 | K30: =IF(ISERROR(+I30+'App.2-CD_MIFRS_DepExp_2014'!K30-J30), 0, +I30+'App.2-CD_MIFRS_DepExp_2014'!K30-J30) -> 13889.44477
A31: 1860 | B31: Meters | C31: ='App.2-BA_Fixed Asset Cont'!E230 -> 0 | D31: ='App.2-CB_NewCGAAP_DepExp_2012'!F31 -> 25 | E31: 0.04 | F31: =IF(D31=0,'App.2-CD_MIFRS_DepExp_2014'!K31,+'App.2-CD_MIFRS_DepExp_2014'!K31+((C31*0.5)/D31)) -> 30389.56522 | G31: =-'App.2-BA_Fixed Asset Cont'!J230 -> 33809 | H31: -3419.434783 | I31: 0 | K31: =IF(ISERROR(+I31+'App.2-CD_MIFRS_DepExp_2014'!K31-J31), 0, +I31+'App.2-CD_MIFRS_DepExp_2014'!K31-J31) -> 30389.56522
A32: 1860 | B32: Meters (Smart Meters) | C32: ='App.2-BA_Fixed Asset Cont'!E231 -> 39921 | D32: ='App.2-CB_NewCGAAP_DepExp_2012'!F32 -> 15 | E32: 0.06666666667 | F32: =IF(D32=0,'App.2-CD_MIFRS_DepExp_2014'!K32,+'App.2-CD_MIFRS_DepExp_2014'!K32+((C32*0.5)/D32)) -> 142242.6333 | G32: =-'App.2-BA_Fixed Asset Cont'!J231 -> 150668 | H32: -8425.366667 | I32: 2661.4 | K32: =IF(ISERROR(+I32+'App.2-CD_MIFRS_DepExp_2014'!K32-J32), 0, +I32+'App.2-CD_MIFRS_DepExp_2014'!K32-J32) -> 143573.3333
A33: 1905 | B33: Land | C33: ='App.2-BA_Fixed Asset Cont'!E232 -> 0 | D33: ='App.2-CB_NewCGAAP_DepExp_2012'!F33 -> 0 | E33: 0 | F33: =IF(D33=0,'App.2-CD_MIFRS_DepExp_2014'!K33,+'App.2-CD_MIFRS_DepExp_2014'!K33+((C33*0.5)/D33)) -> 0 | G33: =-'App.2-BA_Fixed Asset Cont'!J232 -> 0 | H33: 0 | I33: 0 | K33: =IF(ISERROR(+I33+'App.2-CD_MIFRS_DepExp_2014'!K33-J33), 0, +I33+'App.2-CD_MIFRS_DepExp_2014'!K33-J33) -> 0
A34: 1908 | B34: Buildings & Fixtures | C34: ='App.2-BA_Fixed Asset Cont'!E233 -> 0 | D34: ='App.2-CB_NewCGAAP_DepExp_2012'!F34 -> 0 | E34: 0 | F34: =IF(D34=0,'App.2-CD_MIFRS_DepExp_2014'!K34,+'App.2-CD_MIFRS_DepExp_2014'!K34+((C34*0.5)/D34)) -> 0 | G34: =-'App.2-BA_Fixed Asset Cont'!J233 -> 0 | H34: 0 | I34: 0 | K34: =IF(ISERROR(+I34+'App.2-CD_MIFRS_DepExp_2014'!K34-J34), 0, +I34+'App.2-CD_MIFRS_DepExp_2014'!K34-J34) -> 0
A35: 1910 | B35: Leasehold Improvements | C35: ='App.2-BA_Fixed Asset Cont'!E234 -> 0 | D35: ='App.2-CB_NewCGAAP_DepExp_2012'!F35 -> 0 | E35: 0 | F35: =IF(D35=0,'App.2-CD_MIFRS_DepExp_2014'!K35,+'App.2-CD_MIFRS_DepExp_2014'!K35+((C35*0.5)/D35)) -> 0 | G35: =-'App.2-BA_Fixed Asset Cont'!J234 -> 0 | H35: 0 | I35: 0 | K35: =IF(ISERROR(+I35+'App.2-CD_MIFRS_DepExp_2014'!K35-J35), 0, +I35+'App.2-CD_MIFRS_DepExp_2014'!K35-J35) -> 0
A36: 1915 | B36: Office Furniture & Equipment (10 years) | C36: ='App.2-BA_Fixed Asset Cont'!E235 -> 0 | D36: ='App.2-CB_NewCGAAP_DepExp_2012'!F36 -> 10 | E36: 0.1 | F36: =IF(D36=0,'App.2-CD_MIFRS_DepExp_2014'!K36,+'App.2-CD_MIFRS_DepExp_2014'!K36+((C36*0.5)/D36)) -> 10444.84242 | G36: =-'App.2-BA_Fixed Asset Cont'!J235 -> 10442 | H36: 2.842424242 | I36: 0 | K36: =IF(ISERROR(+I36+'App.2-CD_MIFRS_DepExp_2014'!K36-J36), 0, +I36+'App.2-CD_MIFRS_DepExp_2014'!K36-J36) -> 10444.84242
A37: 1915 | B37: Office Furniture & Equipment (5 years) | C37: ='App.2-BA_Fixed Asset Cont'!E236 -> 0 | D37: ='App.2-CB_NewCGAAP_DepExp_2012'!F37 -> 0 | E37: 0 | F37: =IF(D37=0,'App.2-CD_MIFRS_DepExp_2014'!K37,+'App.2-CD_MIFRS_DepExp_2014'!K37+((C37*0.5)/D37)) -> 0 | G37: =-'App.2-BA_Fixed Asset Cont'!J236 -> 0 | H37: 0 | I37: 0 | K37: =IF(ISERROR(+I37+'App.2-CD_MIFRS_DepExp_2014'!K37-J37), 0, +I37+'App.2-CD_MIFRS_DepExp_2014'!K37-J37) -> 0
A38: 1920 | B38: Computer Equipment - Hardware | C38: ='App.2-BA_Fixed Asset Cont'!E237 -> 29160 | D38: ='App.2-CB_NewCGAAP_DepExp_2012'!F38 -> 5 | E38: 0.2 | F38: =IF(D38=0,'App.2-CD_MIFRS_DepExp_2014'!K38,+'App.2-CD_MIFRS_DepExp_2014'!K38+((C38*0.5)/D38)) -> 22062.31429 | G38: =-'App.2-BA_Fixed Asset Cont'!J237 -> 19852 | H38: 2210.314286 | I38: 5832 | K38: =IF(ISERROR(+I38+'App.2-CD_MIFRS_DepExp_2014'!K38-J38), 0, +I38+'App.2-CD_MIFRS_DepExp_2014'!K38-J38) -> 24978.31429
A39: 1920 | B39: Computer Equip.-Hardware(Post Mar. 22/04) | C39: ='App.2-BA_Fixed Asset Cont'!E238 -> 0 | D39: ='App.2-CB_NewCGAAP_DepExp_2012'!F39 -> 0 | E39: 0 | F39: =IF(D39=0,'App.2-CD_MIFRS_DepExp_2014'!K39,+'App.2-CD_MIFRS_DepExp_2014'!K39+((C39*0.5)/D39)) -> 0 | G39: =-'App.2-BA_Fixed Asset Cont'!J238 -> 0 | H39: 0 | I39: 0 | K39: =IF(ISERROR(+I39+'App.2-CD_MIFRS_DepExp_2014'!K39-J39), 0, +I39+'App.2-CD_MIFRS_DepExp_2014'!K39-J39) -> 0
A40: 1920 | B40: Computer Equip.-Hardware(Post Mar. 19/07) | C40: ='App.2-BA_Fixed Asset Cont'!E239 -> 0 | D40: ='App.2-CB_NewCGAAP_DepExp_2012'!F40 -> 0 | E40: 0 | F40: =IF(D40=0,'App.2-CD_MIFRS_DepExp_2014'!K40,+'App.2-CD_MIFRS_DepExp_2014'!K40+((C40*0.5)/D40)) -> 0 | G40: =-'App.2-BA_Fixed Asset Cont'!J239 -> 0 | H40: 0 | I40: 0 | K40: =IF(ISERROR(+I40+'App.2-CD_MIFRS_DepExp_2014'!K40-J40), 0, +I40+'App.2-CD_MIFRS_DepExp_2014'!K40-J40) -> 0
A41: 1930 | B41: Transportation Equipment | C41: ='App.2-BA_Fixed Asset Cont'!E240 -> 0 | D41: ='App.2-CB_NewCGAAP_DepExp_2012'!F41 -> 8 | E41: 0.125 | F41: =IF(D41=0,'App.2-CD_MIFRS_DepExp_2014'!K41,+'App.2-CD_MIFRS_DepExp_2014'!K41+((C41*0.5)/D41)) -> 131761.665 | G41: =-'App.2-BA_Fixed Asset Cont'!J240 -> 147667 | H41: -15905.335 | I41: 0 | K41: =IF(ISERROR(+I41+'App.2-CD_MIFRS_DepExp_2014'!K41-J41), 0, +I41+'App.2-CD_MIFRS_DepExp_2014'!K41-J41) -> 131761.665
A42: 1935 | B42: Stores Equipment | C42: ='App.2-BA_Fixed Asset Cont'!E241 -> 0 | D42: ='App.2-CB_NewCGAAP_DepExp_2012'!F42 -> 0 | E42: 0 | F42: =IF(D42=0,'App.2-CD_MIFRS_DepExp_2014'!K42,+'App.2-CD_MIFRS_DepExp_2014'!K42+((C42*0.5)/D42)) -> 0 | G42: =-'App.2-BA_Fixed Asset Cont'!J241 -> 0 | H42: 0 | I42: 0 | K42: =IF(ISERROR(+I42+'App.2-CD_MIFRS_DepExp_2014'!K42-J42), 0, +I42+'App.2-CD_MIFRS_DepExp_2014'!K42-J42) -> 0
A43: 1940 | B43: Tools, Shop & Garage Equipment | C43: ='App.2-BA_Fixed Asset Cont'!E242 -> 5368 | D43: ='App.2-CB_NewCGAAP_DepExp_2012'!F43 -> 10 | E43: 0.1 | F43: =IF(D43=0,'App.2-CD_MIFRS_DepExp_2014'!K43,+'App.2-CD_MIFRS_DepExp_2014'!K43+((C43*0.5)/D43)) -> 61616.89412 | G43: =-'App.2-BA_Fixed Asset Cont'!J242 -> 62353 | H43: -736.1058824 | I43: 536.8 | K43: =IF(ISERROR(+I43+'App.2-CD_MIFRS_DepExp_2014'!K43-J43), 0, +I43+'App.2-CD_MIFRS_DepExp_2014'!K43-J43) -> 61885.29412
A44: 1945 | B44: Measurement & Testing Equipment | C44: ='App.2-BA_Fixed Asset Cont'!E243 -> 0 | D44: ='App.2-CB_NewCGAAP_DepExp_2012'!F44 -> 10 | E44: 0.1 | F44: =IF(D44=0,'App.2-CD_MIFRS_DepExp_2014'!K44,+'App.2-CD_MIFRS_DepExp_2014'!K44+((C44*0.5)/D44)) -> 2037.6 | G44: =-'App.2-BA_Fixed Asset Cont'!J243 -> 2225 | H44: -187.4 | I44: 0 | K44: =IF(ISERROR(+I44+'App.2-CD_MIFRS_DepExp_2014'!K44-J44), 0, +I44+'App.2-CD_MIFRS_DepExp_2014'!K44-J44) -> 2037.6
A45: 1950 | B45: Power Operated Equipment | C45: ='App.2-BA_Fixed Asset Cont'!E244 -> 0 | D45: ='App.2-CB_NewCGAAP_DepExp_2012'!F45 -> 0 | E45: 0 | F45: =IF(D45=0,'App.2-CD_MIFRS_DepExp_2014'!K45,+'App.2-CD_MIFRS_DepExp_2014'!K45+((C45*0.5)/D45)) -> 0 | G45: =-'App.2-BA_Fixed Asset Cont'!J244 -> 0 | H45: 0 | I45: 0 | K45: =IF(ISERROR(+I45+'App.2-CD_MIFRS_DepExp_2014'!K45-J45), 0, +I45+'App.2-CD_MIFRS_DepExp_2014'!K45-J45) -> 0
A46: 1955 | B46: Communications Equipment | C46: ='App.2-BA_Fixed Asset Cont'!E245 -> 0 | D46: ='App.2-CB_NewCGAAP_DepExp_2012'!F46 -> 0 | E46: 0 | F46: =IF(D46=0,'App.2-CD_MIFRS_DepExp_2014'!K46,+'App.2-CD_MIFRS_DepExp_2014'!K46+((C46*0.5)/D46)) -> 0 | G46: =-'App.2-BA_Fixed Asset Cont'!J245 -> 0 | H46: 0 | I46: 0 | K46: =IF(ISERROR(+I46+'App.2-CD_MIFRS_DepExp_2014'!K46-J46), 0, +I46+'App.2-CD_MIFRS_DepExp_2014'!K46-J46) -> 0
A47: 1955 | B47: Communication Equipment (Smart Meters) | C47: ='App.2-BA_Fixed Asset Cont'!E246 -> 0 | D47: ='App.2-CB_NewCGAAP_DepExp_2012'!F47 -> 0 | E47: 0 | F47: =IF(D47=0,'App.2-CD_MIFRS_DepExp_2014'!K47,+'App.2-CD_MIFRS_DepExp_2014'!K47+((C47*0.5)/D47)) -> 0 | G47: =-'App.2-BA_Fixed Asset Cont'!J246 -> 0 | H47: 0 | I47: 0 | K47: =IF(ISERROR(+I47+'App.2-CD_MIFRS_DepExp_2014'!K47-J47), 0, +I47+'App.2-CD_MIFRS_DepExp_2014'!K47-J47) -> 0
A48: 1960 | B48: Miscellaneous Equipment | C48: ='App.2-BA_Fixed Asset Cont'!E247 -> 107577 | D48: ='App.2-CB_NewCGAAP_DepExp_2012'!F48 -> 10 | E48: 0.1 | F48: =IF(D48=0,'App.2-CD_MIFRS_DepExp_2014'!K48,+'App.2-CD_MIFRS_DepExp_2014'!K48+((C48*0.5)/D48)) -> 10905.59211 | G48: =-'App.2-BA_Fixed Asset Cont'!J247 -> 10844 | H48: 61.59210526 | I48: 10757.7 | K48: =IF(ISERROR(+I48+'App.2-CD_MIFRS_DepExp_2014'!K48-J48), 0, +I48+'App.2-CD_MIFRS_DepExp_2014'!K48-J48) -> 16284.44211
A49: 1970 | B49: Load Management Controls Customer Premises | C49: ='App.2-BA_Fixed Asset Cont'!E248 -> 0 | D49: ='App.2-CB_NewCGAAP_DepExp_2012'!F49 -> 0 | E49: 0 | F49: =IF(D49=0,'App.2-CD_MIFRS_DepExp_2014'!K49,+'App.2-CD_MIFRS_DepExp_2014'!K49+((C49*0.5)/D49)) -> 0 | G49: =-'App.2-BA_Fixed Asset Cont'!J248 -> 0 | H49: 0 | I49: 0 | K49: =IF(ISERROR(+I49+'App.2-CD_MIFRS_DepExp_2014'!K49-J49), 0, +I49+'App.2-CD_MIFRS_DepExp_2014'!K49-J49) -> 0
A50: 1975 | B50: Load Management Controls Utility Premises | C50: ='App.2-BA_Fixed Asset Cont'!E249 -> 0 | D50: ='App.2-CB_NewCGAAP_DepExp_2012'!F50 -> 0 | E50: 0 | F50: =IF(D50=0,'App.2-CD_MIFRS_DepExp_2014'!K50,+'App.2-CD_MIFRS_DepExp_2014'!K50+((C50*0.5)/D50)) -> 0 | G50: =-'App.2-BA_Fixed Asset Cont'!J249 -> 0 | H50: 0 | I50: 0 | K50: =IF(ISERROR(+I50+'App.2-CD_MIFRS_DepExp_2014'!K50-J50), 0, +I50+'App.2-CD_MIFRS_DepExp_2014'!K50-J50) -> 0
A51: 1980 | B51: System Supervisor Equipment | C51: ='App.2-BA_Fixed Asset Cont'!E250 -> 145085 | D51: ='App.2-CB_NewCGAAP_DepExp_2012'!F51 -> 20 | E51: 0.05 | F51: =IF(D51=0,'App.2-CD_MIFRS_DepExp_2014'!K51,+'App.2-CD_MIFRS_DepExp_2014'!K51+((C51*0.5)/D51)) -> 12985.725 | G51: =-'App.2-BA_Fixed Asset Cont'!J250 -> 12986 | H51: -0.275 | I51: 7254.25 | K51: =IF(ISERROR(+I51+'App.2-CD_MIFRS_DepExp_2014'!K51-J51), 0, +I51+'App.2-CD_MIFRS_DepExp_2014'!K51-J51) -> 16612.85
A52: 1985 | B52: Miscellaneous Fixed Assets | C52: ='App.2-BA_Fixed Asset Cont'!E251 -> 0 | D52: ='App.2-CB_NewCGAAP_DepExp_2012'!F52 -> 0 | E52: 0 | F52: =IF(D52=0,'App.2-CD_MIFRS_DepExp_2014'!K52,+'App.2-CD_MIFRS_DepExp_2014'!K52+((C52*0.5)/D52)) -> 0 | G52: =-'App.2-BA_Fixed Asset Cont'!J251 -> 0 | H52: 0 | I52: 0 | K52: =IF(ISERROR(+I52+'App.2-CD_MIFRS_DepExp_2014'!K52-J52), 0, +I52+'App.2-CD_MIFRS_DepExp_2014'!K52-J52) -> 0
A53: 1990 | B53: Other Tangible Property | C53: ='App.2-BA_Fixed Asset Cont'!E252 -> 0 | D53: ='App.2-CB_NewCGAAP_DepExp_2012'!F53 -> 0 | E53: 0 | F53: =IF(D53=0,'App.2-CD_MIFRS_DepExp_2014'!K53,+'App.2-CD_MIFRS_DepExp_2014'!K53+((C53*0.5)/D53)) -> 0 | G53: =-'App.2-BA_Fixed Asset Cont'!J252 -> 0 | H53: 0 | I53: 0 | K53: =IF(ISERROR(+I53+'App.2-CD_MIFRS_DepExp_2014'!K53-J53), 0, +I53+'App.2-CD_MIFRS_DepExp_2014'!K53-J53) -> 0
A54: 1995 | B54: Contributions & Grants | C54: ='App.2-BA_Fixed Asset Cont'!E253 -> -58465 | D54: ='App.2-CB_NewCGAAP_DepExp_2012'!F54 -> 25 | E54: 0.04 | F54: =IF(D54=0,'App.2-CD_MIFRS_DepExp_2014'!K54,+'App.2-CD_MIFRS_DepExp_2014'!K54+((C54*0.5)/D54)) -> -106024.7868 | G54: =-'App.2-BA_Fixed Asset Cont'!J253 -> -106728 | H54: 703.2131915 | I54: -2338.6 | K54: =IF(ISERROR(+I54+'App.2-CD_MIFRS_DepExp_2014'!K54-J54), 0, +I54+'App.2-CD_MIFRS_DepExp_2014'!K54-J54) -> -107194.0868
B55: Total | C55: =SUM(C17:C54) -> 1780580 | F55: =SUM(F17:F54) -> 850445.297 | G55: 1014302 | H55: -163856.703 | I55: 73866.70931 | J55: 0 | K55: 887378.6516
B56: Depreciation exp. adj. from gain or loss on the retirement of assets (pool of like assets)
B57: Total Depreciation expense to be included in the test year revenue requirement | F57: =SUM(F55:F56) -> 850445.297
A58: Notes:
A59: 1 | B59: Board policy of the "half-year" rule - the applicant must ensure that additions in the year attract a half-year depreciation expense in the first year. Deviations from this standard practice must be supported in the application.
A60: 2 | B60: The applicant must provide an explanation of material variances in evidence.
A61: 3 | B61: This column refers to the calculated full year depreciation but excludes the depreciation expense on assets fully depreciated during the year. This column is used for the purpose of calculating depreciation expense in the following year on the next worksheet.
A63: General: | B63: Applicants must provide a breakdown of depreciation and amortization expense in the above format for all relevant accounts. Asset Retirement Obligations (AROs), depreciation and accretion expense should be disclosed separately consistent with the Notes of historical Audited Financial Statements.

Sheet App.2-CF_MIFRS_DepExp_2016
G1: File Number: | H1: =EBNUMBER -> EB-2016-0089
G2: Exhibit: | H2: 4
G3: Tab: | H3: 4
G4: Schedule: | H4: 2
G5: Page: | H5: 46
G7: Date: | H7: 2016-04-29
A9: Appendix 2-CF
A10: Depreciation and Amortization Expense
A11: Assumes the applicant made capitalization and depreciation expense accounting policy changes under CGAAP effective January 1, 2012 and has adopted IFRS for financial reporting purposes effective January 1, 2015.
C13: 2016 | D13: MIFRS
A15: Account | B15: Description | C15: Additions | D15: Years (new additions only) | E15: Depreciation Rate on New Additions | F15: 2016 Depreciation Expense 1 | G15: 2016 Depreciation Expense per Appendix 2-BA Fixed Assets, Column J (l) | H15: Variance 2
C16: (d) | D16: (f) | E16: (g) = 1 / (f) | F16: (h)=2015 Full Year Depreciation + ((d)*0.5)/(f) | H16: (m) = (h) - (l)
A17: 1611 | B17: Computer Software (Formally known as Account 1925) | C17: ='App.2-BA_Fixed Asset Cont'!E274 -> 10000 | D17: ='App.2-CB_NewCGAAP_DepExp_2012'!F17 -> 10 | E17: =IF(D17=0,0,1/D17) -> 0.1 | F17: =IF(D17=0,'App.2-CE_MIFRS_DepExp_2015'!K17,+'App.2-CE_MIFRS_DepExp_2015'!K17+((C17*0.5)/D17)) -> 87939.9 | G17: =-'App.2-BA_Fixed Asset Cont'!J274 -> 108511 | H17: =IF(ISERROR(+F17-G17), 0, +F17-G17) -> -20571.1
A18: 1612 | B18: Land Rights (Formally known as Account 1906) | C18: ='App.2-BA_Fixed Asset Cont'!E275 -> 0 | D18: ='App.2-CB_NewCGAAP_DepExp_2012'!F18 -> 0 | E18: 0 | F18: =IF(D18=0,'App.2-CE_MIFRS_DepExp_2015'!K18,+'App.2-CE_MIFRS_DepExp_2015'!K18+((C18*0.5)/D18)) -> 0 | G18: =-'App.2-BA_Fixed Asset Cont'!J275 -> 0 | H18: 0
A19: 1805 | B19: Land | C19: ='App.2-BA_Fixed Asset Cont'!E276 -> 0 | D19: ='App.2-CB_NewCGAAP_DepExp_2012'!F19 -> 0 | E19: 0 | F19: =IF(D19=0,'App.2-CE_MIFRS_DepExp_2015'!K19,+'App.2-CE_MIFRS_DepExp_2015'!K19+((C19*0.5)/D19)) -> 0 | G19: =-'App.2-BA_Fixed Asset Cont'!J276 -> 0 | H19: 0
A20: 1808 | B20: Buildings | C20: ='App.2-BA_Fixed Asset Cont'!E277 -> 10000 | D20: ='App.2-CB_NewCGAAP_DepExp_2012'!F20 -> 50 | E20: 0.02 | F20: =IF(D20=0,'App.2-CE_MIFRS_DepExp_2015'!K20,+'App.2-CE_MIFRS_DepExp_2015'!K20+((C20*0.5)/D20)) -> 22139.23808 | G20: =-'App.2-BA_Fixed Asset Cont'!J277 -> 30649 | H20: -8509.761925
A21: 1810 | B21: Leasehold Improvements | C21: ='App.2-BA_Fixed Asset Cont'!E278 -> 0 | D21: ='App.2-CB_NewCGAAP_DepExp_2012'!F21 -> 0 | E21: 0 | F21: =IF(D21=0,'App.2-CE_MIFRS_DepExp_2015'!K21,+'App.2-CE_MIFRS_DepExp_2015'!K21+((C21*0.5)/D21)) -> 0 | G21: =-'App.2-BA_Fixed Asset Cont'!J278 -> 0 | H21: 0
A22: 1815 | B22: Transformer Station Equipment >50 kV | C22: ='App.2-BA_Fixed Asset Cont'!E279 -> 0 | D22: ='App.2-CB_NewCGAAP_DepExp_2012'!F22 -> 0 | E22: 0 | F22: =IF(D22=0,'App.2-CE_MIFRS_DepExp_2015'!K22,+'App.2-CE_MIFRS_DepExp_2015'!K22+((C22*0.5)/D22)) -> 0 | G22: =-'App.2-BA_Fixed Asset Cont'!J279 -> 0 | H22: 0
A23: 1820 | B23: Distribution Station Equipment <50 kV | C23: ='App.2-BA_Fixed Asset Cont'!E280 -> 599000 | D23: ='App.2-CB_NewCGAAP_DepExp_2012'!F23 -> 45 | E23: 0.02222222222 | F23: =IF(D23=0,'App.2-CE_MIFRS_DepExp_2015'!K23,+'App.2-CE_MIFRS_DepExp_2015'!K23+((C23*0.5)/D23)) -> 52848.45411 | G23: =-'App.2-BA_Fixed Asset Cont'!J280 -> 69500 | H23: -16651.54589
A24: 1825 | B24: Storage Battery Equipment | C24: ='App.2-BA_Fixed Asset Cont'!E281 -> 0 | D24: ='App.2-CB_NewCGAAP_DepExp_2012'!F24 -> 0 | E24: 0 | F24: =IF(D24=0,'App.2-CE_MIFRS_DepExp_2015'!K24,+'App.2-CE_MIFRS_DepExp_2015'!K24+((C24*0.5)/D24)) -> 0 | G24: =-'App.2-BA_Fixed Asset Cont'!J281 -> 0 | H24: 0
A25: 1830 | B25: Poles, Towers & Fixtures | C25: ='App.2-BA_Fixed Asset Cont'!E282 -> 207631 | D25: ='App.2-CB_NewCGAAP_DepExp_2012'!F25 -> 45 | E25: 0.02222222222 | F25: =IF(D25=0,'App.2-CE_MIFRS_DepExp_2015'!K25,+'App.2-CE_MIFRS_DepExp_2015'!K25+((C25*0.5)/D25)) -> 50891.45873 | G25: =-'App.2-BA_Fixed Asset Cont'!J282 -> 63074 | H25: -12182.54127
A26: 1835 | B26: Overhead Conductors & Devices | C26: ='App.2-BA_Fixed Asset Cont'!E283 -> 197837 | D26: ='App.2-CB_NewCGAAP_DepExp_2012'!F26 -> 55 | E26: 0.01818181818 | F26: =IF(D26=0,'App.2-CE_MIFRS_DepExp_2015'!K26,+'App.2-CE_MIFRS_DepExp_2015'!K26+((C26*0.5)/D26)) -> 102946.1464 | G26: =-'App.2-BA_Fixed Asset Cont'!J283 -> 118090 | H26: -15143.85358
A27: 1840 | B27: Underground Conduit | C27: ='App.2-BA_Fixed Asset Cont'!E284 -> 0 | D27: ='App.2-CB_NewCGAAP_DepExp_2012'!F27 -> 50 | E27: 0.02 | F27: =IF(D27=0,'App.2-CE_MIFRS_DepExp_2015'!K27,+'App.2-CE_MIFRS_DepExp_2015'!K27+((C27*0.5)/D27)) -> 17230.76495 | G27: =-'App.2-BA_Fixed Asset Cont'!J284 -> 27846 | H27: -10615.23505
A28: 1845 | B28: Underground Conductors & Devices | C28: ='App.2-BA_Fixed Asset Cont'!E285 -> 58750 | D28: ='App.2-CB_NewCGAAP_DepExp_2012'!F28 -> 35 | E28: 0.02857142857 | F28: =IF(D28=0,'App.2-CE_MIFRS_DepExp_2015'!K28,+'App.2-CE_MIFRS_DepExp_2015'!K28+((C28*0.5)/D28)) -> 72017.53076 | G28: =-'App.2-BA_Fixed Asset Cont'!J285 -> 106536 | H28: -34518.46924
A29: 1850 | B29: Line Transformers | C29: ='App.2-BA_Fixed Asset Cont'!E286 -> 56280 | D29: ='App.2-CB_NewCGAAP_DepExp_2012'!F29 -> 35 | E29: 0.02857142857 | F29: =IF(D29=0,'App.2-CE_MIFRS_DepExp_2015'!K29,+'App.2-CE_MIFRS_DepExp_2015'!K29+((C29*0.5)/D29)) -> 149706.2647 | G29: =-'App.2-BA_Fixed Asset Cont'!J286 -> 165321 | H29: -15614.73527
A30: 1855 | B30: Services (Overhead & Underground) | C30: ='App.2-BA_Fixed Asset Cont'!E287 -> 140302 | D30: ='App.2-CB_NewCGAAP_DepExp_2012'!F30 -> 55 | E30: 0.01818181818 | F30: =IF(D30=0,'App.2-CE_MIFRS_DepExp_2015'!K30,+'App.2-CE_MIFRS_DepExp_2015'!K30+((C30*0.5)/D30)) -> 15164.91749 | G30: =-'App.2-BA_Fixed Asset Cont'!J287 -> 15647 | H30: -482.0825067
A31: 1860 | B31: Meters | C31: ='App.2-BA_Fixed Asset Cont'!E288 -> 0 | D31: ='App.2-CB_NewCGAAP_DepExp_2012'!F31 -> 25 | E31: 0.04 | F31: =IF(D31=0,'App.2-CE_MIFRS_DepExp_2015'!K31,+'App.2-CE_MIFRS_DepExp_2015'!K31+((C31*0.5)/D31)) -> 30389.56522 | G31: =-'App.2-BA_Fixed Asset Cont'!J288 -> -40292 | H31: 70681.56522
A32: 1860 | B32: Meters (Smart Meters) | C32: ='App.2-BA_Fixed Asset Cont'!E289 -> 35000 | D32: ='App.2-CB_NewCGAAP_DepExp_2012'!F32 -> 15 | E32: 0.06666666667 | F32: =IF(D32=0,'App.2-CE_MIFRS_DepExp_2015'!K32,+'App.2-CE_MIFRS_DepExp_2015'!K32+((C32*0.5)/D32)) -> 144740 | G32: =-'App.2-BA_Fixed Asset Cont'!J289 -> 153399 | H32: -8659
A33: 1905 | B33: Land | C33: ='App.2-BA_Fixed Asset Cont'!E290 -> 0 | D33: ='App.2-CB_NewCGAAP_DepExp_2012'!F33 -> 0 | E33: 0 | F33: =IF(D33=0,'App.2-CE_MIFRS_DepExp_2015'!K33,+'App.2-CE_MIFRS_DepExp_2015'!K33+((C33*0.5)/D33)) -> 0 | G33: =-'App.2-BA_Fixed Asset Cont'!J290 -> 0 | H33: 0
A34: 1908 | B34: Buildings & Fixtures | C34: ='App.2-BA_Fixed Asset Cont'!E291 -> 0 | D34: ='App.2-CB_NewCGAAP_DepExp_2012'!F34 -> 0 | E34: 0 | F34: =IF(D34=0,'App.2-CE_MIFRS_DepExp_2015'!K34,+'App.2-CE_MIFRS_DepExp_2015'!K34+((C34*0.5)/D34)) -> 0 | G34: =-'App.2-BA_Fixed Asset Cont'!J291 -> 0 | H34: 0
A35: 1910 | B35: Leasehold Improvements | C35: ='App.2-BA_Fixed Asset Cont'!E292 -> 0 | D35: ='App.2-CB_NewCGAAP_DepExp_2012'!F35 -> 0 | E35: 0 | F35: =IF(D35=0,'App.2-CE_MIFRS_DepExp_2015'!K35,+'App.2-CE_MIFRS_DepExp_2015'!K35+((C35*0.5)/D35)) -> 0 | G35: =-'App.2-BA_Fixed Asset Cont'!J292 -> 0 | H35: 0
A36: 1915 | B36: Office Furniture & Equipment (10 years) | C36: ='App.2-BA_Fixed Asset Cont'!E293 -> 0 | D36: ='App.2-CB_NewCGAAP_DepExp_2012'!F36 -> 10 | E36: 0.1 | F36: =IF(D36=0,'App.2-CE_MIFRS_DepExp_2015'!K36,+'App.2-CE_MIFRS_DepExp_2015'!K36+((C36*0.5)/D36)) -> 10444.84242 | G36: =-'App.2-BA_Fixed Asset Cont'!J293 -> 10442 | H36: 2.842424242
A37: 1915 | B37: Office Furniture & Equipment (5 years) | C37: ='App.2-BA_Fixed Asset Cont'!E294 -> 0 | D37: ='App.2-CB_NewCGAAP_DepExp_2012'!F37 -> 0 | E37: 0 | F37: =IF(D37=0,'App.2-CE_MIFRS_DepExp_2015'!K37,+'App.2-CE_MIFRS_DepExp_2015'!K37+((C37*0.5)/D37)) -> 0 | G37: =-'App.2-BA_Fixed Asset Cont'!J294 -> 0 | H37: 0
A38: 1920 | B38: Computer Equipment - Hardware | C38: ='App.2-BA_Fixed Asset Cont'!E295 -> 15000 | D38: ='App.2-CB_NewCGAAP_DepExp_2012'!F38 -> 5 | E38: 0.2 | F38: =IF(D38=0,'App.2-CE_MIFRS_DepExp_2015'!K38,+'App.2-CE_MIFRS_DepExp_2015'!K38+((C38*0.5)/D38)) -> 26478.31429 | G38: =-'App.2-BA_Fixed Asset Cont'!J295 -> 20649 | H38: 5829.314286
A39: 1920 | B39: Computer Equip.-Hardware(Post Mar. 22/04) | C39: ='App.2-BA_Fixed Asset Cont'!E296 -> 0 | D39: ='App.2-CB_NewCGAAP_DepExp_2012'!F39 -> 0 | E39: 0 | F39: =IF(D39=0,'App.2-CE_MIFRS_DepExp_2015'!K39,+'App.2-CE_MIFRS_DepExp_2015'!K39+((C39*0.5)/D39)) -> 0 | G39: =-'App.2-BA_Fixed Asset Cont'!J296 -> 0 | H39: 0
A40: 1920 | B40: Computer Equip.-Hardware(Post Mar. 19/07) | C40: ='App.2-BA_Fixed Asset Cont'!E297 -> 0 | D40: ='App.2-CB_NewCGAAP_DepExp_2012'!F40 -> 0 | E40: 0 | F40: =IF(D40=0,'App.2-CE_MIFRS_DepExp_2015'!K40,+'App.2-CE_MIFRS_DepExp_2015'!K40+((C40*0.5)/D40)) -> 0 | G40: =-'App.2-BA_Fixed Asset Cont'!J297 -> 0 | H40: 0
A41: 1930 | B41: Transportation Equipment | C41: ='App.2-BA_Fixed Asset Cont'!E298 -> 280000 | D41: ='App.2-CB_NewCGAAP_DepExp_2012'!F41 -> 8 | E41: 0.125 | F41: =IF(D41=0,'App.2-CE_MIFRS_DepExp_2015'!K41,+'App.2-CE_MIFRS_DepExp_2015'!K41+((C41*0.5)/D41)) -> 149261.665 | G41: =-'App.2-BA_Fixed Asset Cont'!J298 -> 148750 | H41: 511.665
A42: 1935 | B42: Stores Equipment | C42: ='App.2-BA_Fixed Asset Cont'!E299 -> 0 | D42: ='App.2-CB_NewCGAAP_DepExp_2012'!F42 -> 0 | E42: 0 | F42: =IF(D42=0,'App.2-CE_MIFRS_DepExp_2015'!K42,+'App.2-CE_MIFRS_DepExp_2015'!K42+((C42*0.5)/D42)) -> 0 | G42: =-'App.2-BA_Fixed Asset Cont'!J299 -> 0 | H42: 0
A43: 1940 | B43: Tools, Shop & Garage Equipment | C43: ='App.2-BA_Fixed Asset Cont'!E300 -> 5000 | D43: ='App.2-CB_NewCGAAP_DepExp_2012'!F43 -> 10 | E43: 0.1 | F43: =IF(D43=0,'App.2-CE_MIFRS_DepExp_2015'!K43,+'App.2-CE_MIFRS_DepExp_2015'!K43+((C43*0.5)/D43)) -> 62135.29412 | G43: =-'App.2-BA_Fixed Asset Cont'!J300 -> 62587 | H43: -451.7058824
A44: 1945 | B44: Measurement & Testing Equipment | C44: ='App.2-BA_Fixed Asset Cont'!E301 -> 0 | D44: ='App.2-CB_NewCGAAP_DepExp_2012'!F44 -> 10 | E44: 0.1 | F44: =IF(D44=0,'App.2-CE_MIFRS_DepExp_2015'!K44,+'App.2-CE_MIFRS_DepExp_2015'!K44+((C44*0.5)/D44)) -> 2037.6 | G44: =-'App.2-BA_Fixed Asset Cont'!J301 -> 2225 | H44: -187.4
A45: 1950 | B45: Power Operated Equipment | C45: ='App.2-BA_Fixed Asset Cont'!E302 -> 0 | D45: ='App.2-CB_NewCGAAP_DepExp_2012'!F45 -> 0 | E45: 0 | F45: =IF(D45=0,'App.2-CE_MIFRS_DepExp_2015'!K45,+'App.2-CE_MIFRS_DepExp_2015'!K45+((C45*0.5)/D45)) -> 0 | G45: =-'App.2-BA_Fixed Asset Cont'!J302 -> 0 | H45: 0
A46: 1955 | B46: Communications Equipment | C46: ='App.2-BA_Fixed Asset Cont'!E303 -> 0 | D46: ='App.2-CB_NewCGAAP_DepExp_2012'!F46 -> 0 | E46: 0 | F46: =IF(D46=0,'App.2-CE_MIFRS_DepExp_2015'!K46,+'App.2-CE_MIFRS_DepExp_2015'!K46+((C46*0.5)/D46)) -> 0 | G46: =-'App.2-BA_Fixed Asset Cont'!J303 -> 0 | H46: 0
A47: 1955 | B47: Communication Equipment (Smart Meters) | C47: ='App.2-BA_Fixed Asset Cont'!E304 -> 0 | D47: ='App.2-CB_NewCGAAP_DepExp_2012'!F47 -> 0 | E47: 0 | F47: =IF(D47=0,'App.2-CE_MIFRS_DepExp_2015'!K47,+'App.2-CE_MIFRS_DepExp_2015'!K47+((C47*0.5)/D47)) -> 0 | G47: =-'App.2-BA_Fixed Asset Cont'!J304 -> 0 | H47: 0
A48: 1960 | B48: Miscellaneous Equipment | C48: ='App.2-BA_Fixed Asset Cont'!E305 -> 78000 | D48: ='App.2-CB_NewCGAAP_DepExp_2012'!F48 -> 10 | E48: 0.1 | F48: =IF(D48=0,'App.2-CE_MIFRS_DepExp_2015'!K48,+'App.2-CE_MIFRS_DepExp_2015'!K48+((C48*0.5)/D48)) -> 20184.44211 | G48: =-'App.2-BA_Fixed Asset Cont'!J305 -> 19773 | H48: 411.4421053
A49: 1970 | B49: Load Management Controls Customer Premises | C49: ='App.2-BA_Fixed Asset Cont'!E306 -> 0 | D49: ='App.2-CB_NewCGAAP_DepExp_2012'!F49 -> 0 | E49: 0 | F49: =IF(D49=0,'App.2-CE_MIFRS_DepExp_2015'!K49,+'App.2-CE_MIFRS_DepExp_2015'!K49+((C49*0.5)/D49)) -> 0 | G49: =-'App.2-BA_Fixed Asset Cont'!J306 -> 0 | H49: 0
A50: 1975 | B50: Load Management Controls Utility Premises | C50: ='App.2-BA_Fixed Asset Cont'!E307 -> 0 | D50: ='App.2-CB_NewCGAAP_DepExp_2012'!F50 -> 0 | E50: 0 | F50: =IF(D50=0,'App.2-CE_MIFRS_DepExp_2015'!K50,+'App.2-CE_MIFRS_DepExp_2015'!K50+((C50*0.5)/D50)) -> 0 | G50: =-'App.2-BA_Fixed Asset Cont'!J307 -> 0 | H50: 0
A51: 1980 | B51: System Supervisor Equipment | C51: ='App.2-BA_Fixed Asset Cont'!E308 -> 0 | D51: ='App.2-CB_NewCGAAP_DepExp_2012'!F51 -> 20 | E51: 0.05 | F51: =IF(D51=0,'App.2-CE_MIFRS_DepExp_2015'!K51,+'App.2-CE_MIFRS_DepExp_2015'!K51+((C51*0.5)/D51)) -> 16612.85 | G51: =-'App.2-BA_Fixed Asset Cont'!J308 -> 16613 | H51: -0.15
A52: 1985 | B52: Miscellaneous Fixed Assets | C52: ='App.2-BA_Fixed Asset Cont'!E309 -> 0 | D52: ='App.2-CB_NewCGAAP_DepExp_2012'!F52 -> 0 | E52: 0 | F52: =IF(D52=0,'App.2-CE_MIFRS_DepExp_2015'!K52,+'App.2-CE_MIFRS_DepExp_2015'!K52+((C52*0.5)/D52)) -> 0 | G52: =-'App.2-BA_Fixed Asset Cont'!J309 -> 0 | H52: 0
A53: 1990 | B53: Other Tangible Property | C53: ='App.2-BA_Fixed Asset Cont'!E310 -> 0 | D53: ='App.2-CB_NewCGAAP_DepExp_2012'!F53 -> 0 | E53: 0 | F53: =IF(D53=0,'App.2-CE_MIFRS_DepExp_2015'!K53,+'App.2-CE_MIFRS_DepExp_2015'!K53+((C53*0.5)/D53)) -> 0 | G53: =-'App.2-BA_Fixed Asset Cont'!J310 -> 0 | H53: 0
A54: 1995 | B54: Contributions & Grants | C54: ='App.2-BA_Fixed Asset Cont'!E311 -> 0 | D54: ='App.2-CB_NewCGAAP_DepExp_2012'!F54 -> 25 | E54: 0.04 | F54: =IF(D54=0,'App.2-CE_MIFRS_DepExp_2015'!K54,+'App.2-CE_MIFRS_DepExp_2015'!K54+((C54*0.5)/D54)) -> -107194.0868 | G54: =-'App.2-BA_Fixed Asset Cont'!J311 -> -107897 | H54: 702.9131915
B55: Total | C55: =SUM(C17:C54) -> 1692800 | F55: =SUM(F17:F54) -> 925975.1616 | G55: =SUM(G17:G54) -> 991423 | H55: =SUM(H17:H54) -> -65447.83839
B56: Depreciation exp. adj. from gain or loss on the retirement of assets (pool of like assets)
B57: Total Depreciation expense to be included in the test year revenue requirement | F57: =SUM(F55:F56) -> 925975.1616
A58: Notes:
A59: 1 | B59: Board policy of the "half-year" rule - the applicant must ensure that additions in the year attract a half-year depreciation expense in the first year. Deviations from this standard practice must be supported in the application.
A60: 2 | B60: The applicant must provide an explanation of material variances in evidence.
A63: General: | B63: Applicants must provide a breakdown of depreciation and amortization expense in the above format for all relevant accounts. Asset Retirement Obligations (AROs), depreciation and accretion expense should be disclosed separately consistent with the Notes of historical Audited Financial Statements.

Sheet App.2-CG_OldCGAAP_DepExp_2013
K1: File Number: | L1: =EBNUMBER -> EB-2016-0089
K2: Exhibit:
K3: Tab:
K4: Schedule:
K5: Page:
K7: Date:
A9: Appendix 2-CG
A10: Depreciation and Amortization Expense
B11: Assumes the applicant made capitalization and depreciation expense accounting policy changes under CGAAP effective January 1, 2013 and has adopted IFRS for financial reporting purposes effective January 1, 2015.
C13: Year | D13: 2013 | E13: Former CGAAP
A15: Account | B15: Description | C15: Opening Regulatory Gross PP&E as at Jan 1, 2013 | D15: Less Fully Depreciated | E15: Net for Depreciation | F15: Additions | G15: Total for Depreciation 1 | H15: Years | I15: Depreciation Rate | J15: Depreciation Expense | K15: 2013 Depreciation Expense per Appendix 2-BA Fixed Assets, Column J (l) | L15: Variance 2
C16: (a) | D16: (b) | E16: (c) | F16: (d) | G16: (e) = (c) + ½ x (d) | H16: (f) | I16: (g) = 1 / (f) | J16: (h) = (e) / (f) | L16: (m) = (h) - (l)
A17: 1611 | B17: Computer Software (Formally known as Account 1925) | E17: =C17-D17 -> 0 | G17: =E17+0.5*F17 -> 0 | I17: =IF(H17=0,0,1/H17) -> 0 | J17: =IF(H17=0,0,G17/H17) -> 0 | L17: =IF(ISERROR(+J17-K17), 0, +J17-K17) -> 0
A18: 1612 | B18: Land Rights (Formally known as Account 1906) | E18: =C18-D18 -> 0 | G18: =E18+0.5*F18 -> 0 | I18: 0 | J18: 0 | L18: 0
A19: 1805 | B19: Land | E19: 0 | G19: 0 | I19: 0 | J19: 0 | L19: 0
A20: 1808 | B20: Buildings | E20: 0 | G20: 0 | I20: 0 | J20: 0 | L20: 0
A21: 1810 | B21: Leasehold Improvements | E21: 0 | G21: 0 | I21: 0 | J21: 0 | L21: 0
A22: 1815 | B22: Transformer Station Equipment >50 kV | E22: 0 | G22: 0 | I22: 0 | J22: 0 | L22: 0
A23: 1820 | B23: Distribution Station Equipment <50 kV | E23: 0 | G23: 0 | I23: 0 | J23: 0 | L23: 0
A24: 1825 | B24: Storage Battery Equipment | E24: 0 | G24: 0 | I24: 0 | J24: 0 | L24: 0
A25: 1830 | B25: Poles, Towers & Fixtures | E25: 0 | G25: 0 | I25: 0 | J25: 0 | L25: 0
A26: 1835 | B26: Overhead Conductors & Devices | E26: 0 | G26: 0 | I26: 0 | J26: 0 | L26: 0
A27: 1840 | B27: Underground Conduit | E27: 0 | G27: 0 | I27: 0 | J27: 0 | L27: 0
A28: 1845 | B28: Underground Conductors & Devices | E28: 0 | G28: 0 | I28: 0 | J28: 0 | L28: 0
A29: 1850 | B29: Line Transformers | E29: 0 | G29: 0 | I29: 0 | J29: 0 | L29: 0
A30: 1855 | B30: Services (Overhead & Underground) | E30: 0 | G30: 0 | I30: 0 | J30: 0 | L30: 0
A31: 1860 | B31: Meters | E31: 0 | G31: 0 | I31: 0 | J31: 0 | L31: 0
A32: 1860 | B32: Meters (Smart Meters) | E32: 0 | G32: 0 | I32: 0 | J32: 0 | L32: 0
A33: 1905 | B33: Land | E33: 0 | G33: 0 | I33: 0 | J33: 0 | L33: 0
A34: 1908 | B34: Buildings & Fixtures | E34: 0 | G34: 0 | I34: 0 | J34: 0 | L34: 0
A35: 1910 | B35: Leasehold Improvements | E35: 0 | G35: 0 | I35: 0 | J35: 0 | L35: 0
A36: 1915 | B36: Office Furniture & Equipment (10 years) | E36: 0 | G36: 0 | I36: 0 | J36: 0 | L36: 0
A37: 1915 | B37: Office Furniture & Equipment (5 years) | E37: 0 | G37: 0 | I37: 0 | J37: 0 | L37: 0
A38: 1920 | B38: Computer Equipment - Hardware | E38: 0 | G38: 0 | I38: 0 | J38: 0 | L38: 0
A39: 1920 | B39: Computer Equip.-Hardware(Post Mar. 22/04) | E39: 0 | G39: 0 | I39: 0 | J39: 0 | L39: 0
A40: 1920 | B40: Computer Equip.-Hardware(Post Mar. 19/07) | E40: 0 | G40: 0 | I40: 0 | J40: 0 | L40: 0
A41: 1930 | B41: Transportation Equipment | E41: 0 | G41: 0 | I41: 0 | J41: 0 | L41: 0
A42: 1935 | B42: Stores Equipment | E42: 0 | G42: 0 | I42: 0 | J42: 0 | L42: 0
A43: 1940 | B43: Tools, Shop & Garage Equipment | E43: 0 | G43: 0 | I43: 0 | J43: 0 | L43: 0
A44: 1945 | B44: Measurement & Testing Equipment | E44: 0 | G44: 0 | I44: 0 | J44: 0 | L44: 0
A45: 1950 | B45: Power Operated Equipment | E45: 0 | G45: 0 | I45: 0 | J45: 0 | L45: 0
A46: 1955 | B46: Communications Equipment | E46: 0 | G46: 0 | I46: 0 | J46: 0 | L46: 0
A47: 1955 | B47: Communication Equipment (Smart Meters) | E47: 0 | G47: 0 | I47: 0 | J47: 0 | L47: 0
A48: 1960 | B48: Miscellaneous Equipment | E48: 0 | G48: 0 | I48: 0 | J48: 0 | L48: 0
A49: 1970 | B49: Load Management Controls - Customer Premises | E49: 0 | G49: 0 | I49: 0 | J49: 0 | L49: 0
A50: 1975 | B50: Load Management Controls Utility Premises | E50: 0 | G50: 0 | I50: 0 | J50: 0 | L50: 0
A51: 1980 | B51: System Supervisor Equipment | E51: 0 | G51: 0 | I51: 0 | J51: 0 | L51: 0
A52: 1985 | B52: Miscellaneous Fixed Assets | E52: 0 | G52: 0 | I52: 0 | J52: 0 | L52: 0
A53: 1990 | B53: Other Tangible Property | E53: 0 | G53: 0 | I53: 0 | J53: 0 | L53: 0
A54: 1995 | B54: Contributions & Grants | E54: 0 | G54: 0 | I54: 0 | J54: 0 | L54: 0
B55: Total | C55: =SUM(C17:C54) -> 0 | D55: =SUM(D17:D54) -> 0 | E55: =SUM(E17:E54) -> 0 | F55: =SUM(F17:F54) -> 0 | G55: =SUM(G17:G54) -> 0 | J55: =SUM(J17:J54) -> 0 | K55: =SUM(K17:K54) -> 0 | L55: =SUM(L17:L54) -> 0
A57: Notes:
A59: 1 | B59: Board policy of the "half-year" rule - the applicant must ensure that additions in the year attract a half-year depreciation expense in the first year. Deviations from this standard practice must be supported in the application.
A60: 2 | B60: The applicant must provide an explanation of material variances in evidence.
A62: General | B62: Applicants must provide a breakdown of depreciation and amortization expense in the above format for all relevant accounts. Asset Retirement Obligations (AROs), depreciation and accretion expense should be disclosed separately consistent with the Notes of historical Audited Financial Statements.

Sheet App.2-CH_NewCGAAP_DepExp_2013
N1: File Number: | O1: =EBNUMBER -> EB-2016-0089
N2: Exhibit:
N3: Tab:
N4: Schedule:
N5: Page:
N7: Date:
A9: Appendix 2-CH
A10: Depreciation and Amortization Expense
A11: Assumes the applicant made capitalization and depreciation expense accounting policy changes under CGAAP effective January 1, 2013 and has adopted IFRS for financial reporting purposes effective January 1, 2015.
C13: Year | D13: 2013 | E13: Revised CGAAP
A15: Account | B15: Description | C15: Opening NBV as at Jan 1, 2013 5 | D15: Additions | E15: Average Remaining Life of Opening NBV 4 | F15: Years (new additions only) 3 | G15: Depreciation Rate on New Additions | H15: Depreciation Expense on Opening NBV | I15: Depreciation Expense on Additions 1 | J15: 2013 Depreciation Expense | K15: 2013 Depreciation Expense per Appendix 2-BA Fixed Assets, Column J (l) | L15: Variance 2 | M15: Depreciation Expense on 2013 Full Year Additions | N15: Less Depreciation Expense on Assets Fully Depreciated during the year (o) | O15: 2013 Full Year Depreciation 6
C16: (a) | D16: (d) | E16: (i) | F16: (f) | G16: (g) = 1 / (f) | H16: (j) = (a) / (i) | I16: (h)=((d)*0.5)/(f) | J16: (k) = (j) + (h) | L16: (m) = (k) - (l) | M16: (n) = (d)/(f) | O16: (p) = (j) + (n) - (o)
A17: 1611 | B17: Computer Software (Formally known as Account 1925) | G17: =IF(F17=0,0,1/F17) -> 0 | H17: =IF(E17=0,0,+C17/E17) -> 0 | I17: =IF(F17=0,0,+(D17*0.5)/F17) -> 0 | J17: =IF(ISERROR(+H17+I17), 0, +H17+I17) -> 0 | L17: =IF(ISERROR(+J17-K17), 0, +J17-K17) -> 0 | M17: =IF(F17=0,0,+(D17)/F17) -> 0 | O17: =IF(ISERROR(+M17+H17-N17), 0, +M17+H17-N17) -> 0
A18: 1612 | B18: Land Rights (Formally known as Account 1906) | G18: 0 | H18: 0 | I18: 0 | J18: 0 | L18: 0 | M18: 0 | O18: =IF(ISERROR(+M18+H18-N18), 0, +M18+H18-N18) -> 0
A19: 1805 | B19: Land | G19: 0 | H19: 0 | I19: 0 | J19: 0 | L19: 0 | M19: 0 | O19: 0
A20: 1808 | B20: Buildings | G20: 0 | H20: 0 | I20: 0 | J20: 0 | L20: 0 | M20: 0 | O20: 0
A21: 1810 | B21: Leasehold Improvements | G21: 0 | H21: 0 | I21: 0 | J21: 0 | L21: 0 | M21: 0 | O21: 0
A22: 1815 | B22: Transformer Station Equipment >50 kV | G22: 0 | H22: 0 | I22: 0 | J22: 0 | L22: 0 | M22: 0 | O22: 0
A23: 1820 | B23: Distribution Station Equipment <50 kV | G23: 0 | H23: 0 | I23: 0 | J23: 0 | L23: 0 | M23: 0 | O23: 0
A24: 1825 | B24: Storage Battery Equipment | G24: 0 | H24: 0 | I24: 0 | J24: 0 | L24: 0 | M24: 0 | O24: 0
A25: 1830 | B25: Poles, Towers & Fixtures | G25: 0 | H25: 0 | I25: 0 | J25: 0 | L25: 0 | M25: 0 | O25: 0
A26: 1835 | B26: Overhead Conductors & Devices | G26: 0 | H26: 0 | I26: 0 | J26: 0 | L26: 0 | M26: 0 | O26: 0
A27: 1840 | B27: Underground Conduit | G27: 0 | H27: 0 | I27: 0 | J27: 0 | L27: 0 | M27: 0 | O27: 0
A28: 1845 | B28: Underground Conductors & Devices | G28: 0 | H28: 0 | I28: 0 | J28: 0 | L28: 0 | M28: 0 | O28: 0
A29: 1850 | B29: Line Transformers | G29: 0 | H29: 0 | I29: 0 | J29: 0 | L29: 0 | M29: 0 | O29: 0
A30: 1855 | B30: Services (Overhead & Underground) | G30: 0 | H30: 0 | I30: 0 | J30: 0 | L30: 0 | M30: 0 | O30: 0
A31: 1860 | B31: Meters | G31: 0 | H31: 0 | I31: 0 | J31: 0 | L31: 0 | M31: 0 | O31: 0
A32: 1860 | B32: Meters (Smart Meters) | G32: 0 | H32: 0 | I32: 0 | J32: 0 | L32: 0 | M32: 0 | O32: 0
A33: 1905 | B33: Land | G33: 0 | H33: 0 | I33: 0 | J33: 0 | L33: 0 | M33: 0 | O33: 0
A34: 1908 | B34: Buildings & Fixtures | G34: 0 | H34: 0 | I34: 0 | J34: 0 | L34: 0 | M34: 0 | O34: 0
A35: 1910 | B35: Leasehold Improvements | G35: 0 | H35: 0 | I35: 0 | J35: 0 | L35: 0 | M35: 0 | O35: 0
A36: 1915 | B36: Office Furniture & Equipment (10 years) | G36: 0 | H36: 0 | I36: 0 | J36: 0 | L36: 0 | M36: 0 | O36: 0
A37: 1915 | B37: Office Furniture & Equipment (5 years) | G37: 0 | H37: 0 | I37: 0 | J37: 0 | L37: 0 | M37: 0 | O37: 0
A38: 1920 | B38: Computer Equipment - Hardware | G38: 0 | H38: 0 | I38: 0 | J38: 0 | L38: 0 | M38: 0 | O38: 0
A39: 1920 | B39: Computer Equip.-Hardware(Post Mar. 22/04) | G39: 0 | H39: 0 | I39: 0 | J39: 0 | L39: 0 | M39: 0 | O39: 0
A40: 1920 | B40: Computer Equip.-Hardware(Post Mar. 19/07) | G40: 0 | H40: 0 | I40: 0 | J40: 0 | L40: 0 | M40: 0 | O40: 0
A41: 1930 | B41: Transportation Equipment | G41: 0 | H41: 0 | I41: 0 | J41: 0 | L41: 0 | M41: 0 | O41: 0
A42: 1935 | B42: Stores Equipment | G42: 0 | H42: 0 | I42: 0 | J42: 0 | L42: 0 | M42: 0 | O42: 0
A43: 1940 | B43: Tools, Shop & Garage Equipment | G43: 0 | H43: 0 | I43: 0 | J43: 0 | L43: 0 | M43: 0 | O43: 0
A44: 1945 | B44: Measurement & Testing Equipment | G44: 0 | H44: 0 | I44: 0 | J44: 0 | L44: 0 | M44: 0 | O44: 0
A45: 1950 | B45: Power Operated Equipment | G45: 0 | H45: 0 | I45: 0 | J45: 0 | L45: 0 | M45: 0 | O45: 0
A46: 1955 | B46: Communications Equipment | G46: 0 | H46: 0 | I46: 0 | J46: 0 | L46: 0 | M46: 0 | O46: 0
A47: 1955 | B47: Communication Equipment (Smart Meters) | G47: 0 | H47: 0 | I47: 0 | J47: 0 | L47: 0 | M47: 0 | O47: 0
A48: 1960 | B48: Miscellaneous Equipment | G48: 0 | H48: 0 | I48: 0 | J48: 0 | L48: 0 | M48: 0 | O48: 0
A49: 1970 | B49: Load Management Controls - Customer Premises | G49: 0 | H49: 0 | I49: 0 | J49: 0 | L49: 0 | M49: 0 | O49: 0
A50: 1975 | B50: Load Management Controls Utility Premises | G50: 0 | H50: 0 | I50: 0 | J50: 0 | L50: 0 | M50: 0 | O50: 0
A51: 1980 | B51: System Supervisor Equipment | G51: 0 | H51: 0 | I51: 0 | J51: 0 | L51: 0 | M51: 0 | O51: 0
A52: 1985 | B52: Miscellaneous Fixed Assets | G52: 0 | H52: 0 | I52: 0 | J52: 0 | L52: 0 | M52: 0 | O52: 0
A53: 1990 | B53: Other Tangible Property | G53: 0 | H53: 0 | I53: 0 | J53: 0 | L53: 0 | M53: 0 | O53: 0
A54: 1995 | B54: Contributions & Grants | G54: 0 | H54: 0 | I54: 0 | J54: 0 | L54: 0 | M54: 0 | O54: 0
B55: Total | C55: =SUM(C17:C54) -> 0 | D55: =SUM(D17:D54) -> 0 | H55: =SUM(H17:H54) -> 0 | I55: 0 | J55: 0 | K55: 0 | L55: 0 | M55: 0 | N55: 0 | O55: 0
A57: Notes:
A59: 1 | B59: Board policy of the "half-year" rule - the applicant must ensure that additions in the year attract a half-year depreciation expense in the first year. Deviations from this standard practice must be supported in the application.
A60: 2 | B60: The applicant must provide an explanation of material variances in evidence.
A61: 3 | B61: The applicant should ensure that the years for new additions of assets are the asset useful lives determined by management in accordance with the Board's regulatory accounting policies. The capitalization and depreciation expense accounting changes should be implemented consistent with the Board’s regulatory accounting policies as set out for MIFRS as contained in the Report of the Board, Transition to International Financial Reporting Standards, EB-2008-0408, the Kinectrics Report, and the Revised 2012 Accounting Procedures Handbook for Electricity Distributors.
A62: 4 | B62: A recalculation should be performed to determine the average remaining life of opening balance of assets (i.e. excluding 2013 additions) under the change in policies under CGAAP. For example, Asset A had a useful life of 20 years under CGAAP without the change in policies. On January 1, 2013, the effective date of the changes in policies, Asset A was 3 years depreciated. As a result, Asset A would have a remaining service life of 17 years (20 years less 3 years) as of January 1, 2013. Due to making the change in policies under CGAAP, management re-assessed the asset useful lives and concluded that the revised useful life of Asset A is now 30 years. Therefore, the average remaining useful life of the opening balance of Asset A is determined to be 27 years (30 years less 3 years) under the revised CGAAP as of January 1, 2013.
A63: 5 | B63: NBV must exclude assets still on the books but which have been fully amortized or depreciated.
A64: 6 | B64: This column refers to the calculated full year depreciation but excludes the depreciation expense on assets fully depreciated during the year. This column is used for the purpose of calculating depreciation expense in the following year on the next worksheet.
A66: General: | B66: Applicants must provide a breakdown of depreciation and amortization expense in the above format for all relevant accounts. Asset Retirement Obligations (AROs), depreciation and accretion expense should be disclosed separately consistent with the Notes of historical Audited Financial Statements.

Sheet App.2-CI_MIFRS_DepExp_2014
J1: File Number: | K1: =EBNUMBER -> EB-2016-0089
J2: Exhibit:
J3: Tab:
J4: Schedule:
J5: Page:
J7: Date:
A9: Appendix 2-CI
A10: Depreciation and Amortization Expense
A11: Assumes the applicant made capitalization and depreciation expense accounting policy changes under CGAAP effective January 1, 2013 and has adopted IFRS for financial reporting purposes effective January 1, 2015.
E13: 2014 | F13: MIFRS
A15: Account | B15: Description | C15: Additions | D15: Years (new additions only) | E15: Depreciation Rate on New Additions | F15: 2014 Depreciation Expense 1 | G15: 2014 Depreciation Expense per Apppendix 2-BA Fixed Assets, Column J (l) | H15: Variance 2 | I15: Depreciation Expense on 2014 Full Year Additions | J15: Less Depreciation Expense on Assets Fully Depreciated during the year (o) | K15: 2014 Full Year Depreciation 3
C16: (d) | D16: (f) | E16: (g) = 1 / (f) | F16: (h)=2013 Full Year Deprecation + ((d)*0.5)/(f) | H16: (m) = (h) - (l) | I16: (n)=((d))/(f) | K16: (p) = 2013 Full Year Depreciation + (n) - (o)
A17: 1611 | B17: Computer Software (Formally known as Account 1925) | E17: =IF(D17=0,0,1/D17) -> 0 | F17: =IF(D17=0,+'App.2-CH_NewCGAAP_DepExp_2013'!O17,+'App.2-CH_NewCGAAP_DepExp_2013'!O17+((C17*0.5)/D17)) -> 0 | H17: =IF(ISERROR(+F17-G17), 0, +F17-G17) -> 0 | I17: =IF(D17=0,0,+(C17)/D17) -> 0 | K17: =IF(ISERROR(+I17+'App.2-CH_NewCGAAP_DepExp_2013'!O17-J17), 0, +I17+'App.2-CH_NewCGAAP_DepExp_2013'!O17-J17) -> 0
A18: 1612 | B18: Land Rights (Formally known as Account 1906) | E18: 0 | F18: =IF(D18=0,+'App.2-CH_NewCGAAP_DepExp_2013'!O18,+'App.2-CH_NewCGAAP_DepExp_2013'!O18+((C18*0.5)/D18)) -> 0 | H18: 0 | I18: 0 | K18: =IF(ISERROR(+I18+'App.2-CH_NewCGAAP_DepExp_2013'!O18-J18), 0, +I18+'App.2-CH_NewCGAAP_DepExp_2013'!O18-J18) -> 0
A19: 1805 | B19: Land | E19: 0 | F19: =IF(D19=0,+'App.2-CH_NewCGAAP_DepExp_2013'!O19,+'App.2-CH_NewCGAAP_DepExp_2013'!O19+((C19*0.5)/D19)) -> 0 | H19: 0 | I19: 0 | K19: =IF(ISERROR(+I19+'App.2-CH_NewCGAAP_DepExp_2013'!O19-J19), 0, +I19+'App.2-CH_NewCGAAP_DepExp_2013'!O19-J19) -> 0
A20: 1808 | B20: Buildings | E20: 0 | F20: =IF(D20=0,+'App.2-CH_NewCGAAP_DepExp_2013'!O20,+'App.2-CH_NewCGAAP_DepExp_2013'!O20+((C20*0.5)/D20)) -> 0 | H20: 0 | I20: 0 | K20: =IF(ISERROR(+I20+'App.2-CH_NewCGAAP_DepExp_2013'!O20-J20), 0, +I20+'App.2-CH_NewCGAAP_DepExp_2013'!O20-J20) -> 0
A21: 1810 | B21: Leasehold Improvements | E21: 0 | F21: =IF(D21=0,+'App.2-CH_NewCGAAP_DepExp_2013'!O21,+'App.2-CH_NewCGAAP_DepExp_2013'!O21+((C21*0.5)/D21)) -> 0 | H21: 0 | I21: 0 | K21: =IF(ISERROR(+I21+'App.2-CH_NewCGAAP_DepExp_2013'!O21-J21), 0, +I21+'App.2-CH_NewCGAAP_DepExp_2013'!O21-J21) -> 0
A22: 1815 | B22: Transformer Station Equipment >50 kV | E22: 0 | F22: =IF(D22=0,+'App.2-CH_NewCGAAP_DepExp_2013'!O22,+'App.2-CH_NewCGAAP_DepExp_2013'!O22+((C22*0.5)/D22)) -> 0 | H22: 0 | I22: 0 | K22: =IF(ISERROR(+I22+'App.2-CH_NewCGAAP_DepExp_2013'!O22-J22), 0, +I22+'App.2-CH_NewCGAAP_DepExp_2013'!O22-J22) -> 0
A23: 1820 | B23: Distribution Station Equipment <50 kV | E23: 0 | F23: =IF(D23=0,+'App.2-CH_NewCGAAP_DepExp_2013'!O23,+'App.2-CH_NewCGAAP_DepExp_2013'!O23+((C23*0.5)/D23)) -> 0 | H23: 0 | I23: 0 | K23: =IF(ISERROR(+I23+'App.2-CH_NewCGAAP_DepExp_2013'!O23-J23), 0, +I23+'App.2-CH_NewCGAAP_DepExp_2013'!O23-J23) -> 0
A24: 1825 | B24: Storage Battery Equipment | E24: 0 | F24: =IF(D24=0,+'App.2-CH_NewCGAAP_DepExp_2013'!O24,+'App.2-CH_NewCGAAP_DepExp_2013'!O24+((C24*0.5)/D24)) -> 0 | H24: 0 | I24: 0 | K24: =IF(ISERROR(+I24+'App.2-CH_NewCGAAP_DepExp_2013'!O24-J24), 0, +I24+'App.2-CH_NewCGAAP_DepExp_2013'!O24-J24) -> 0
A25: 1830 | B25: Poles, Towers & Fixtures | E25: 0 | F25: =IF(D25=0,+'App.2-CH_NewCGAAP_DepExp_2013'!O25,+'App.2-CH_NewCGAAP_DepExp_2013'!O25+((C25*0.5)/D25)) -> 0 | H25: 0 | I25: 0 | K25: =IF(ISERROR(+I25+'App.2-CH_NewCGAAP_DepExp_2013'!O25-J25), 0, +I25+'App.2-CH_NewCGAAP_DepExp_2013'!O25-J25) -> 0
A26: 1835 | B26: Overhead Conductors & Devices | E26: 0 | F26: =IF(D26=0,+'App.2-CH_NewCGAAP_DepExp_2013'!O26,+'App.2-CH_NewCGAAP_DepExp_2013'!O26+((C26*0.5)/D26)) -> 0 | H26: 0 | I26: 0 | K26: =IF(ISERROR(+I26+'App.2-CH_NewCGAAP_DepExp_2013'!O26-J26), 0, +I26+'App.2-CH_NewCGAAP_DepExp_2013'!O26-J26) -> 0
A27: 1840 | B27: Underground Conduit | E27: 0 | F27: =IF(D27=0,+'App.2-CH_NewCGAAP_DepExp_2013'!O27,+'App.2-CH_NewCGAAP_DepExp_2013'!O27+((C27*0.5)/D27)) -> 0 | H27: 0 | I27: 0 | K27: =IF(ISERROR(+I27+'App.2-CH_NewCGAAP_DepExp_2013'!O27-J27), 0, +I27+'App.2-CH_NewCGAAP_DepExp_2013'!O27-J27) -> 0
A28: 1845 | B28: Underground Conductors & Devices | E28: 0 | F28: =IF(D28=0,+'App.2-CH_NewCGAAP_DepExp_2013'!O28,+'App.2-CH_NewCGAAP_DepExp_2013'!O28+((C28*0.5)/D28)) -> 0 | H28: 0 | I28: 0 | K28: =IF(ISERROR(+I28+'App.2-CH_NewCGAAP_DepExp_2013'!O28-J28), 0, +I28+'App.2-CH_NewCGAAP_DepExp_2013'!O28-J28) -> 0
A29: 1850 | B29: Line Transformers | E29: 0 | F29: =IF(D29=0,+'App.2-CH_NewCGAAP_DepExp_2013'!O29,+'App.2-CH_NewCGAAP_DepExp_2013'!O29+((C29*0.5)/D29)) -> 0 | H29: 0 | I29: 0 | K29: =IF(ISERROR(+I29+'App.2-CH_NewCGAAP_DepExp_2013'!O29-J29), 0, +I29+'App.2-CH_NewCGAAP_DepExp_2013'!O29-J29) -> 0
A30: 1855 | B30: Services (Overhead & Underground) | E30: 0 | F30: =IF(D30=0,+'App.2-CH_NewCGAAP_DepExp_2013'!O30,+'App.2-CH_NewCGAAP_DepExp_2013'!O30+((C30*0.5)/D30)) -> 0 | H30: 0 | I30: 0 | K30: =IF(ISERROR(+I30+'App.2-CH_NewCGAAP_DepExp_2013'!O30-J30), 0, +I30+'App.2-CH_NewCGAAP_DepExp_2013'!O30-J30) -> 0
A31: 1860 | B31: Meters | E31: 0 | F31: =IF(D31=0,+'App.2-CH_NewCGAAP_DepExp_2013'!O31,+'App.2-CH_NewCGAAP_DepExp_2013'!O31+((C31*0.5)/D31)) -> 0 | H31: 0 | I31: 0 | K31: =IF(ISERROR(+I31+'App.2-CH_NewCGAAP_DepExp_2013'!O31-J31), 0, +I31+'App.2-CH_NewCGAAP_DepExp_2013'!O31-J31) -> 0
A32: 1860 | B32: Meters (Smart Meters) | E32: 0 | F32: =IF(D32=0,+'App.2-CH_NewCGAAP_DepExp_2013'!O32,+'App.2-CH_NewCGAAP_DepExp_2013'!O32+((C32*0.5)/D32)) -> 0 | H32: 0 | I32: 0 | K32: =IF(ISERROR(+I32+'App.2-CH_NewCGAAP_DepExp_2013'!O32-J32), 0, +I32+'App.2-CH_NewCGAAP_DepExp_2013'!O32-J32) -> 0
A33: 1905 | B33: Land | E33: 0 | F33: =IF(D33=0,+'App.2-CH_NewCGAAP_DepExp_2013'!O33,+'App.2-CH_NewCGAAP_DepExp_2013'!O33+((C33*0.5)/D33)) -> 0 | H33: 0 | I33: 0 | K33: =IF(ISERROR(+I33+'App.2-CH_NewCGAAP_DepExp_2013'!O33-J33), 0, +I33+'App.2-CH_NewCGAAP_DepExp_2013'!O33-J33) -> 0
A34: 1908 | B34: Buildings & Fixtures | E34: 0 | F34: =IF(D34=0,+'App.2-CH_NewCGAAP_DepExp_2013'!O34,+'App.2-CH_NewCGAAP_DepExp_2013'!O34+((C34*0.5)/D34)) -> 0 | H34: 0 | I34: 0 | K34: =IF(ISERROR(+I34+'App.2-CH_NewCGAAP_DepExp_2013'!O34-J34), 0, +I34+'App.2-CH_NewCGAAP_DepExp_2013'!O34-J34) -> 0
A35: 1910 | B35: Leasehold Improvements | E35: 0 | F35: =IF(D35=0,+'App.2-CH_NewCGAAP_DepExp_2013'!O35,+'App.2-CH_NewCGAAP_DepExp_2013'!O35+((C35*0.5)/D35)) -> 0 | H35: 0 | I35: 0 | K35: =IF(ISERROR(+I35+'App.2-CH_NewCGAAP_DepExp_2013'!O35-J35), 0, +I35+'App.2-CH_NewCGAAP_DepExp_2013'!O35-J35) -> 0
A36: 1915 | B36: Office Furniture & Equipment (10 years) | E36: 0 | F36: =IF(D36=0,+'App.2-CH_NewCGAAP_DepExp_2013'!O36,+'App.2-CH_NewCGAAP_DepExp_2013'!O36+((C36*0.5)/D36)) -> 0 | H36: 0 | I36: 0 | K36: =IF(ISERROR(+I36+'App.2-CH_NewCGAAP_DepExp_2013'!O36-J36), 0, +I36+'App.2-CH_NewCGAAP_DepExp_2013'!O36-J36) -> 0
A37: 1915 | B37: Office Furniture & Equipment (5 years) | E37: 0 | F37: =IF(D37=0,+'App.2-CH_NewCGAAP_DepExp_2013'!O37,+'App.2-CH_NewCGAAP_DepExp_2013'!O37+((C37*0.5)/D37)) -> 0 | H37: 0 | I37: 0 | K37: =IF(ISERROR(+I37+'App.2-CH_NewCGAAP_DepExp_2013'!O37-J37), 0, +I37+'App.2-CH_NewCGAAP_DepExp_2013'!O37-J37) -> 0
A38: 1920 | B38: Computer Equipment - Hardware | E38: 0 | F38: =IF(D38=0,+'App.2-CH_NewCGAAP_DepExp_2013'!O38,+'App.2-CH_NewCGAAP_DepExp_2013'!O38+((C38*0.5)/D38)) -> 0 | H38: 0 | I38: 0 | K38: =IF(ISERROR(+I38+'App.2-CH_NewCGAAP_DepExp_2013'!O38-J38), 0, +I38+'App.2-CH_NewCGAAP_DepExp_2013'!O38-J38) -> 0
A39: 1920 | B39: Computer Equip.-Hardware(Post Mar. 22/04) | E39: 0 | F39: =IF(D39=0,+'App.2-CH_NewCGAAP_DepExp_2013'!O39,+'App.2-CH_NewCGAAP_DepExp_2013'!O39+((C39*0.5)/D39)) -> 0 | H39: 0 | I39: 0 | K39: =IF(ISERROR(+I39+'App.2-CH_NewCGAAP_DepExp_2013'!O39-J39), 0, +I39+'App.2-CH_NewCGAAP_DepExp_2013'!O39-J39) -> 0
A40: 1920 | B40: Computer Equip.-Hardware(Post Mar. 19/07) | E40: 0 | F40: =IF(D40=0,+'App.2-CH_NewCGAAP_DepExp_2013'!O40,+'App.2-CH_NewCGAAP_DepExp_2013'!O40+((C40*0.5)/D40)) -> 0 | H40: 0 | I40: 0 | K40: =IF(ISERROR(+I40+'App.2-CH_NewCGAAP_DepExp_2013'!O40-J40), 0, +I40+'App.2-CH_NewCGAAP_DepExp_2013'!O40-J40) -> 0
A41: 1930 | B41: Transportation Equipment | E41: 0 | F41: =IF(D41=0,+'App.2-CH_NewCGAAP_DepExp_2013'!O41,+'App.2-CH_NewCGAAP_DepExp_2013'!O41+((C41*0.5)/D41)) -> 0 | H41: 0 | I41: 0 | K41: =IF(ISERROR(+I41+'App.2-CH_NewCGAAP_DepExp_2013'!O41-J41), 0, +I41+'App.2-CH_NewCGAAP_DepExp_2013'!O41-J41) -> 0
A42: 1935 | B42: Stores Equipment | E42: 0 | F42: =IF(D42=0,+'App.2-CH_NewCGAAP_DepExp_2013'!O42,+'App.2-CH_NewCGAAP_DepExp_2013'!O42+((C42*0.5)/D42)) -> 0 | H42: 0 | I42: 0 | K42: =IF(ISERROR(+I42+'App.2-CH_NewCGAAP_DepExp_2013'!O42-J42), 0, +I42+'App.2-CH_NewCGAAP_DepExp_2013'!O42-J42) -> 0
A43: 1940 | B43: Tools, Shop & Garage Equipment | E43: 0 | F43: =IF(D43=0,+'App.2-CH_NewCGAAP_DepExp_2013'!O43,+'App.2-CH_NewCGAAP_DepExp_2013'!O43+((C43*0.5)/D43)) -> 0 | H43: 0 | I43: 0 | K43: =IF(ISERROR(+I43+'App.2-CH_NewCGAAP_DepExp_2013'!O43-J43), 0, +I43+'App.2-CH_NewCGAAP_DepExp_2013'!O43-J43) -> 0
A44: 1945 | B44: Measurement & Testing Equipment | E44: 0 | F44: =IF(D44=0,+'App.2-CH_NewCGAAP_DepExp_2013'!O44,+'App.2-CH_NewCGAAP_DepExp_2013'!O44+((C44*0.5)/D44)) -> 0 | H44: 0 | I44: 0 | K44: =IF(ISERROR(+I44+'App.2-CH_NewCGAAP_DepExp_2013'!O44-J44), 0, +I44+'App.2-CH_NewCGAAP_DepExp_2013'!O44-J44) -> 0
A45: 1950 | B45: Power Operated Equipment | E45: 0 | F45: =IF(D45=0,+'App.2-CH_NewCGAAP_DepExp_2013'!O45,+'App.2-CH_NewCGAAP_DepExp_2013'!O45+((C45*0.5)/D45)) -> 0 | H45: 0 | I45: 0 | K45: =IF(ISERROR(+I45+'App.2-CH_NewCGAAP_DepExp_2013'!O45-J45), 0, +I45+'App.2-CH_NewCGAAP_DepExp_2013'!O45-J45) -> 0
A46: 1955 | B46: Communications Equipment | E46: 0 | F46: =IF(D46=0,+'App.2-CH_NewCGAAP_DepExp_2013'!O46,+'App.2-CH_NewCGAAP_DepExp_2013'!O46+((C46*0.5)/D46)) -> 0 | H46: 0 | I46: 0 | K46: =IF(ISERROR(+I46+'App.2-CH_NewCGAAP_DepExp_2013'!O46-J46), 0, +I46+'App.2-CH_NewCGAAP_DepExp_2013'!O46-J46) -> 0
A47: 1955 | B47: Communication Equipment (Smart Meters) | E47: 0 | F47: =IF(D47=0,+'App.2-CH_NewCGAAP_DepExp_2013'!O47,+'App.2-CH_NewCGAAP_DepExp_2013'!O47+((C47*0.5)/D47)) -> 0 | H47: 0 | I47: 0 | K47: =IF(ISERROR(+I47+'App.2-CH_NewCGAAP_DepExp_2013'!O47-J47), 0, +I47+'App.2-CH_NewCGAAP_DepExp_2013'!O47-J47) -> 0
A48: 1960 | B48: Miscellaneous Equipment | E48: 0 | F48: =IF(D48=0,+'App.2-CH_NewCGAAP_DepExp_2013'!O48,+'App.2-CH_NewCGAAP_DepExp_2013'!O48+((C48*0.5)/D48)) -> 0 | H48: 0 | I48: 0 | K48: =IF(ISERROR(+I48+'App.2-CH_NewCGAAP_DepExp_2013'!O48-J48), 0, +I48+'App.2-CH_NewCGAAP_DepExp_2013'!O48-J48) -> 0
A49: 1970 | B49: Load Management Controls - Customer Premises | E49: 0 | F49: =IF(D49=0,+'App.2-CH_NewCGAAP_DepExp_2013'!O49,+'App.2-CH_NewCGAAP_DepExp_2013'!O49+((C49*0.5)/D49)) -> 0 | H49: 0 | I49: 0 | K49: =IF(ISERROR(+I49+'App.2-CH_NewCGAAP_DepExp_2013'!O49-J49), 0, +I49+'App.2-CH_NewCGAAP_DepExp_2013'!O49-J49) -> 0
A50: 1975 | B50: Load Management Controls Utility Premises | E50: 0 | F50: =IF(D50=0,+'App.2-CH_NewCGAAP_DepExp_2013'!O50,+'App.2-CH_NewCGAAP_DepExp_2013'!O50+((C50*0.5)/D50)) -> 0 | H50: 0 | I50: 0 | K50: =IF(ISERROR(+I50+'App.2-CH_NewCGAAP_DepExp_2013'!O50-J50), 0, +I50+'App.2-CH_NewCGAAP_DepExp_2013'!O50-J50) -> 0
A51: 1980 | B51: System Supervisor Equipment | E51: 0 | F51: =IF(D51=0,+'App.2-CH_NewCGAAP_DepExp_2013'!O51,+'App.2-CH_NewCGAAP_DepExp_2013'!O51+((C51*0.5)/D51)) -> 0 | H51: 0 | I51: 0 | K51: =IF(ISERROR(+I51+'App.2-CH_NewCGAAP_DepExp_2013'!O51-J51), 0, +I51+'App.2-CH_NewCGAAP_DepExp_2013'!O51-J51) -> 0
A52: 1985 | B52: Miscellaneous Fixed Assets | E52: 0 | F52: =IF(D52=0,+'App.2-CH_NewCGAAP_DepExp_2013'!O52,+'App.2-CH_NewCGAAP_DepExp_2013'!O52+((C52*0.5)/D52)) -> 0 | H52: 0 | I52: 0 | K52: =IF(ISERROR(+I52+'App.2-CH_NewCGAAP_DepExp_2013'!O52-J52), 0, +I52+'App.2-CH_NewCGAAP_DepExp_2013'!O52-J52) -> 0
A53: 1990 | B53: Other Tangible Property | E53: 0 | F53: =IF(D53=0,+'App.2-CH_NewCGAAP_DepExp_2013'!O53,+'App.2-CH_NewCGAAP_DepExp_2013'!O53+((C53*0.5)/D53)) -> 0 | H53: 0 | I53: 0 | K53: =IF(ISERROR(+I53+'App.2-CH_NewCGAAP_DepExp_2013'!O53-J53), 0, +I53+'App.2-CH_NewCGAAP_DepExp_2013'!O53-J53) -> 0
A54: 1995 | B54: Contributions & Grants | E54: =IF(D54=0,0,1/D54) -> 0 | F54: =IF(D54=0,+'App.2-CH_NewCGAAP_DepExp_2013'!O54,+'App.2-CH_NewCGAAP_DepExp_2013'!O54+((C54*0.5)/D54)) -> 0 | H54: 0 | I54: 0 | K54: =IF(ISERROR(+I54+'App.2-CH_NewCGAAP_DepExp_2013'!O54-J54), 0, +I54+'App.2-CH_NewCGAAP_DepExp_2013'!O54-J54) -> 0
B55: Total | C55: =SUM(C17:C54) -> 0 | F55: =SUM(F17:F54) -> 0 | G55: 0 | H55: 0 | I55: 0 | J55: 0 | K55: 0
B56: Depreciation exp. adj. from gain or loss on the retirement of assets (pool of like assets)
B57: Total Depreciation Expense | F57: =SUM(F55:F56) -> 0
A59: Notes:
A60: 1 | B60: Board policy of the "half-year" rule - the applicant must ensure that additions in the year attract a half-year depreciation expense in the first year. Deviations from this standard practice must be supported in the application.
A61: 2 | B61: The applicant must provide an explanation of material variances in evidence.
A62: 3 | B62: This column refers to the calculated full year depreciation but excludes the depreciation expense on assets fully depreciated during the year. This column is used for the purpose of calculating depreciation expense in the following year on the next worksheet.
A64: General: | B64: Applicants must provide a breakdown of depreciation and amortization expense in the above format for all relevant accounts. Asset Retirement Obligations (AROs), depreciation and accretion expense should be disclosed separately consistent with the Notes of historical Audited Financial Statements.

Sheet App.2-CJ MIFRS_DepExp_2015
G1: File Number: | H1: =EBNUMBER -> EB-2016-0089
G2: Exhibit:
G3: Tab:
G4: Schedule:
G5: Page:
G7: Date:
A9: Appendix 2-CJ
A10: Depreciation and Amortization Expense
A11: Assumes the applicant made capitalization and depreciation expense accounting policy changes under CGAAP effective January 1, 2013 and has adopted IFRS for financial reporting purposes effective January 1, 2015.
D13: 2015 | E13: MIFRS
A15: Account | B15: Description | C15: Additions | D15: Years (new additions only) | E15: Depreciation Rate on New Additions | F15: 2015 Depreciation Expense 1 | G15: 2015 Depreciation Expense per Appendix 2-BA Fixed Assets, Column J (l) | H15: Variance 2 | I15: Depreciation Expense on 2015 Full Year Additions | J15: Less Depreciation Expense on Assets Fully Depreciated during the year (o) | K15: 2015 Full Year Depreciation 3
C16: (d) | D16: (f) | E16: (g) = 1 / (f) | F16: (h)=2014 Full Year Depreciation + ((d)*0.5)/(f) | H16: (m) = (h) - (l) | I16: (n)=((d))/(f) | K16: (p) = 2014 Full Year Depreciation + (n) - (o)
A17: 1611 | B17: Computer Software (Formally known as Account 1925) | E17: =IF(D17=0,0,1/D17) -> 0 | F17: =IF(D17=0,'App.2-CI_MIFRS_DepExp_2014'!K17,+'App.2-CI_MIFRS_DepExp_2014'!K17+((C17*0.5)/D17)) -> 0 | H17: =IF(ISERROR(+F17-G17), 0, +F17-G17) -> 0 | I17: =IF(D17=0,0,+(C17)/D17) -> 0 | K17: =IF(ISERROR(+I17+'App.2-CI_MIFRS_DepExp_2014'!K17-J17), 0, +I17+'App.2-CI_MIFRS_DepExp_2014'!K17-J17) -> 0
A18: 1612 | B18: Land Rights (Formally known as Account 1906) | E18: 0 | F18: =IF(D18=0,'App.2-CI_MIFRS_DepExp_2014'!K18,+'App.2-CI_MIFRS_DepExp_2014'!K18+((C18*0.5)/D18)) -> 0 | H18: 0 | I18: =IF(D18=0,0,+(C18)/D18) -> 0 | K18: =IF(ISERROR(+I18+'App.2-CI_MIFRS_DepExp_2014'!K18-J18), 0, +I18+'App.2-CI_MIFRS_DepExp_2014'!K18-J18) -> 0
A19: 1805 | B19: Land | E19: 0 | F19: =IF(D19=0,'App.2-CI_MIFRS_DepExp_2014'!K19,+'App.2-CI_MIFRS_DepExp_2014'!K19+((C19*0.5)/D19)) -> 0 | H19: 0 | I19: 0 | K19: =IF(ISERROR(+I19+'App.2-CI_MIFRS_DepExp_2014'!K19-J19), 0, +I19+'App.2-CI_MIFRS_DepExp_2014'!K19-J19) -> 0
A20: 1808 | B20: Buildings | E20: 0 | F20: =IF(D20=0,'App.2-CI_MIFRS_DepExp_2014'!K20,+'App.2-CI_MIFRS_DepExp_2014'!K20+((C20*0.5)/D20)) -> 0 | H20: 0 | I20: 0 | K20: =IF(ISERROR(+I20+'App.2-CI_MIFRS_DepExp_2014'!K20-J20), 0, +I20+'App.2-CI_MIFRS_DepExp_2014'!K20-J20) -> 0
A21: 1810 | B21: Leasehold Improvements | E21: 0 | F21: =IF(D21=0,'App.2-CI_MIFRS_DepExp_2014'!K21,+'App.2-CI_MIFRS_DepExp_2014'!K21+((C21*0.5)/D21)) -> 0 | H21: 0 | I21: 0 | K21: =IF(ISERROR(+I21+'App.2-CI_MIFRS_DepExp_2014'!K21-J21), 0, +I21+'App.2-CI_MIFRS_DepExp_2014'!K21-J21) -> 0
A22: 1815 | B22: Transformer Station Equipment >50 kV | E22: 0 | F22: =IF(D22=0,'App.2-CI_MIFRS_DepExp_2014'!K22,+'App.2-CI_MIFRS_DepExp_2014'!K22+((C22*0.5)/D22)) -> 0 | H22: 0 | I22: 0 | K22: =IF(ISERROR(+I22+'App.2-CI_MIFRS_DepExp_2014'!K22-J22), 0, +I22+'App.2-CI_MIFRS_DepExp_2014'!K22-J22) -> 0
A23: 1820 | B23: Distribution Station Equipment <50 kV | E23: 0 | F23: =IF(D23=0,'App.2-CI_MIFRS_DepExp_2014'!K23,+'App.2-CI_MIFRS_DepExp_2014'!K23+((C23*0.5)/D23)) -> 0 | H23: 0 | I23: 0 | K23: =IF(ISERROR(+I23+'App.2-CI_MIFRS_DepExp_2014'!K23-J23), 0, +I23+'App.2-CI_MIFRS_DepExp_2014'!K23-J23) -> 0
A24: 1825 | B24: Storage Battery Equipment | E24: 0 | F24: =IF(D24=0,'App.2-CI_MIFRS_DepExp_2014'!K24,+'App.2-CI_MIFRS_DepExp_2014'!K24+((C24*0.5)/D24)) -> 0 | H24: 0 | I24: 0 | K24: =IF(ISERROR(+I24+'App.2-CI_MIFRS_DepExp_2014'!K24-J24), 0, +I24+'App.2-CI_MIFRS_DepExp_2014'!K24-J24) -> 0
A25: 1830 | B25: Poles, Towers & Fixtures | E25: 0 | F25: =IF(D25=0,'App.2-CI_MIFRS_DepExp_2014'!K25,+'App.2-CI_MIFRS_DepExp_2014'!K25+((C25*0.5)/D25)) -> 0 | H25: 0 | I25: 0 | K25: =IF(ISERROR(+I25+'App.2-CI_MIFRS_DepExp_2014'!K25-J25), 0, +I25+'App.2-CI_MIFRS_DepExp_2014'!K25-J25) -> 0
A26: 1835 | B26: Overhead Conductors & Devices | E26: 0 | F26: =IF(D26=0,'App.2-CI_MIFRS_DepExp_2014'!K26,+'App.2-CI_MIFRS_DepExp_2014'!K26+((C26*0.5)/D26)) -> 0 | H26: 0 | I26: 0 | K26: =IF(ISERROR(+I26+'App.2-CI_MIFRS_DepExp_2014'!K26-J26), 0, +I26+'App.2-CI_MIFRS_DepExp_2014'!K26-J26) -> 0
A27: 1840 | B27: Underground Conduit | E27: 0 | F27: =IF(D27=0,'App.2-CI_MIFRS_DepExp_2014'!K27,+'App.2-CI_MIFRS_DepExp_2014'!K27+((C27*0.5)/D27)) -> 0 | H27: 0 | I27: 0 | K27: =IF(ISERROR(+I27+'App.2-CI_MIFRS_DepExp_2014'!K27-J27), 0, +I27+'App.2-CI_MIFRS_DepExp_2014'!K27-J27) -> 0
A28: 1845 | B28: Underground Conductors & Devices | E28: 0 | F28: =IF(D28=0,'App.2-CI_MIFRS_DepExp_2014'!K28,+'App.2-CI_MIFRS_DepExp_2014'!K28+((C28*0.5)/D28)) -> 0 | H28: 0 | I28: 0 | K28: =IF(ISERROR(+I28+'App.2-CI_MIFRS_DepExp_2014'!K28-J28), 0, +I28+'App.2-CI_MIFRS_DepExp_2014'!K28-J28) -> 0
A29: 1850 | B29: Line Transformers | E29: 0 | F29: =IF(D29=0,'App.2-CI_MIFRS_DepExp_2014'!K29,+'App.2-CI_MIFRS_DepExp_2014'!K29+((C29*0.5)/D29)) -> 0 | H29: 0 | I29: 0 | K29: =IF(ISERROR(+I29+'App.2-CI_MIFRS_DepExp_2014'!K29-J29), 0, +I29+'App.2-CI_MIFRS_DepExp_2014'!K29-J29) -> 0
A30: 1855 | B30: Services (Overhead & Underground) | E30: 0 | F30: =IF(D30=0,'App.2-CI_MIFRS_DepExp_2014'!K30,+'App.2-CI_MIFRS_DepExp_2014'!K30+((C30*0.5)/D30)) -> 0 | H30: 0 | I30: 0 | K30: =IF(ISERROR(+I30+'App.2-CI_MIFRS_DepExp_2014'!K30-J30), 0, +I30+'App.2-CI_MIFRS_DepExp_2014'!K30-J30) -> 0
A31: 1860 | B31: Meters | E31: 0 | F31: =IF(D31=0,'App.2-CI_MIFRS_DepExp_2014'!K31,+'App.2-CI_MIFRS_DepExp_2014'!K31+((C31*0.5)/D31)) -> 0 | H31: 0 | I31: 0 | K31: =IF(ISERROR(+I31+'App.2-CI_MIFRS_DepExp_2014'!K31-J31), 0, +I31+'App.2-CI_MIFRS_DepExp_2014'!K31-J31) -> 0
A32: 1860 | B32: Meters (Smart Meters) | E32: 0 | F32: =IF(D32=0,'App.2-CI_MIFRS_DepExp_2014'!K32,+'App.2-CI_MIFRS_DepExp_2014'!K32+((C32*0.5)/D32)) -> 0 | H32: 0 | I32: 0 | K32: =IF(ISERROR(+I32+'App.2-CI_MIFRS_DepExp_2014'!K32-J32), 0, +I32+'App.2-CI_MIFRS_DepExp_2014'!K32-J32) -> 0
A33: 1905 | B33: Land | E33: 0 | F33: =IF(D33=0,'App.2-CI_MIFRS_DepExp_2014'!K33,+'App.2-CI_MIFRS_DepExp_2014'!K33+((C33*0.5)/D33)) -> 0 | H33: 0 | I33: 0 | K33: =IF(ISERROR(+I33+'App.2-CI_MIFRS_DepExp_2014'!K33-J33), 0, +I33+'App.2-CI_MIFRS_DepExp_2014'!K33-J33) -> 0
A34: 1908 | B34: Buildings & Fixtures | E34: 0 | F34: =IF(D34=0,'App.2-CI_MIFRS_DepExp_2014'!K34,+'App.2-CI_MIFRS_DepExp_2014'!K34+((C34*0.5)/D34)) -> 0 | H34: 0 | I34: 0 | K34: =IF(ISERROR(+I34+'App.2-CI_MIFRS_DepExp_2014'!K34-J34), 0, +I34+'App.2-CI_MIFRS_DepExp_2014'!K34-J34) -> 0
A35: 1910 | B35: Leasehold Improvements | E35: 0 | F35: =IF(D35=0,'App.2-CI_MIFRS_DepExp_2014'!K35,+'App.2-CI_MIFRS_DepExp_2014'!K35+((C35*0.5)/D35)) -> 0 | H35: 0 | I35: 0 | K35: =IF(ISERROR(+I35+'App.2-CI_MIFRS_DepExp_2014'!K35-J35), 0, +I35+'App.2-CI_MIFRS_DepExp_2014'!K35-J35) -> 0
A36: 1915 | B36: Office Furniture & Equipment (10 years) | E36: 0 | F36: =IF(D36=0,'App.2-CI_MIFRS_DepExp_2014'!K36,+'App.2-CI_MIFRS_DepExp_2014'!K36+((C36*0.5)/D36)) -> 0 | H36: 0 | I36: 0 | K36: =IF(ISERROR(+I36+'App.2-CI_MIFRS_DepExp_2014'!K36-J36), 0, +I36+'App.2-CI_MIFRS_DepExp_2014'!K36-J36) -> 0
A37: 1915 | B37: Office Furniture & Equipment (5 years) | E37: 0 | F37: =IF(D37=0,'App.2-CI_MIFRS_DepExp_2014'!K37,+'App.2-CI_MIFRS_DepExp_2014'!K37+((C37*0.5)/D37)) -> 0 | H37: 0 | I37: 0 | K37: =IF(ISERROR(+I37+'App.2-CI_MIFRS_DepExp_2014'!K37-J37), 0, +I37+'App.2-CI_MIFRS_DepExp_2014'!K37-J37) -> 0
A38: 1920 | B38: Computer Equipment - Hardware | E38: 0 | F38: =IF(D38=0,'App.2-CI_MIFRS_DepExp_2014'!K38,+'App.2-CI_MIFRS_DepExp_2014'!K38+((C38*0.5)/D38)) -> 0 | H38: 0 | I38: 0 | K38: =IF(ISERROR(+I38+'App.2-CI_MIFRS_DepExp_2014'!K38-J38), 0, +I38+'App.2-CI_MIFRS_DepExp_2014'!K38-J38) -> 0
A39: 1920 | B39: Computer Equip.-Hardware(Post Mar. 22/04) | E39: 0 | F39: =IF(D39=0,'App.2-CI_MIFRS_DepExp_2014'!K39,+'App.2-CI_MIFRS_DepExp_2014'!K39+((C39*0.5)/D39)) -> 0 | H39: 0 | I39: 0 | K39: =IF(ISERROR(+I39+'App.2-CI_MIFRS_DepExp_2014'!K39-J39), 0, +I39+'App.2-CI_MIFRS_DepExp_2014'!K39-J39) -> 0
A40: 1920 | B40: Computer Equip.-Hardware(Post Mar. 19/07) | E40: 0 | F40: =IF(D40=0,'App.2-CI_MIFRS_DepExp_2014'!K40,+'App.2-CI_MIFRS_DepExp_2014'!K40+((C40*0.5)/D40)) -> 0 | H40: 0 | I40: 0 | K40: =IF(ISERROR(+I40+'App.2-CI_MIFRS_DepExp_2014'!K40-J40), 0, +I40+'App.2-CI_MIFRS_DepExp_2014'!K40-J40) -> 0
A41: 1930 | B41: Transportation Equipment | E41: 0 | F41: =IF(D41=0,'App.2-CI_MIFRS_DepExp_2014'!K41,+'App.2-CI_MIFRS_DepExp_2014'!K41+((C41*0.5)/D41)) -> 0 | H41: 0 | I41: 0 | K41: =IF(ISERROR(+I41+'App.2-CI_MIFRS_DepExp_2014'!K41-J41), 0, +I41+'App.2-CI_MIFRS_DepExp_2014'!K41-J41) -> 0
A42: 1935 | B42: Stores Equipment | E42: 0 | F42: =IF(D42=0,'App.2-CI_MIFRS_DepExp_2014'!K42,+'App.2-CI_MIFRS_DepExp_2014'!K42+((C42*0.5)/D42)) -> 0 | H42: 0 | I42: 0 | K42: =IF(ISERROR(+I42+'App.2-CI_MIFRS_DepExp_2014'!K42-J42), 0, +I42+'App.2-CI_MIFRS_DepExp_2014'!K42-J42) -> 0
A43: 1940 | B43: Tools, Shop & Garage Equipment | E43: 0 | F43: =IF(D43=0,'App.2-CI_MIFRS_DepExp_2014'!K43,+'App.2-CI_MIFRS_DepExp_2014'!K43+((C43*0.5)/D43)) -> 0 | H43: 0 | I43: 0 | K43: =IF(ISERROR(+I43+'App.2-CI_MIFRS_DepExp_2014'!K43-J43), 0, +I43+'App.2-CI_MIFRS_DepExp_2014'!K43-J43) -> 0
A44: 1945 | B44: Measurement & Testing Equipment | E44: 0 | F44: =IF(D44=0,'App.2-CI_MIFRS_DepExp_2014'!K44,+'App.2-CI_MIFRS_DepExp_2014'!K44+((C44*0.5)/D44)) -> 0 | H44: 0 | I44: 0 | K44: =IF(ISERROR(+I44+'App.2-CI_MIFRS_DepExp_2014'!K44-J44), 0, +I44+'App.2-CI_MIFRS_DepExp_2014'!K44-J44) -> 0
A45: 1950 | B45: Power Operated Equipment | E45: 0 | F45: =IF(D45=0,'App.2-CI_MIFRS_DepExp_2014'!K45,+'App.2-CI_MIFRS_DepExp_2014'!K45+((C45*0.5)/D45)) -> 0 | H45: 0 | I45: 0 | K45: =IF(ISERROR(+I45+'App.2-CI_MIFRS_DepExp_2014'!K45-J45), 0, +I45+'App.2-CI_MIFRS_DepExp_2014'!K45-J45) -> 0
A46: 1955 | B46: Communications Equipment | E46: 0 | F46: =IF(D46=0,'App.2-CI_MIFRS_DepExp_2014'!K46,+'App.2-CI_MIFRS_DepExp_2014'!K46+((C46*0.5)/D46)) -> 0 | H46: 0 | I46: 0 | K46: =IF(ISERROR(+I46+'App.2-CI_MIFRS_DepExp_2014'!K46-J46), 0, +I46+'App.2-CI_MIFRS_DepExp_2014'!K46-J46) -> 0
A47: 1955 | B47: Communication Equipment (Smart Meters) | E47: 0 | F47: =IF(D47=0,'App.2-CI_MIFRS_DepExp_2014'!K47,+'App.2-CI_MIFRS_DepExp_2014'!K47+((C47*0.5)/D47)) -> 0 | H47: 0 | I47: 0 | K47: =IF(ISERROR(+I47+'App.2-CI_MIFRS_DepExp_2014'!K47-J47), 0, +I47+'App.2-CI_MIFRS_DepExp_2014'!K47-J47) -> 0
A48: 1960 | B48: Miscellaneous Equipment | E48: 0 | F48: =IF(D48=0,'App.2-CI_MIFRS_DepExp_2014'!K48,+'App.2-CI_MIFRS_DepExp_2014'!K48+((C48*0.5)/D48)) -> 0 | H48: 0 | I48: 0 | K48: =IF(ISERROR(+I48+'App.2-CI_MIFRS_DepExp_2014'!K48-J48), 0, +I48+'App.2-CI_MIFRS_DepExp_2014'!K48-J48) -> 0
A49: 1970 | B49: Load Management Controls - Customer Premises | E49: 0 | F49: =IF(D49=0,'App.2-CI_MIFRS_DepExp_2014'!K49,+'App.2-CI_MIFRS_DepExp_2014'!K49+((C49*0.5)/D49)) -> 0 | H49: 0 | I49: 0 | K49: =IF(ISERROR(+I49+'App.2-CI_MIFRS_DepExp_2014'!K49-J49), 0, +I49+'App.2-CI_MIFRS_DepExp_2014'!K49-J49) -> 0
A50: 1975 | B50: Load Management Controls Utility Premises | E50: 0 | F50: =IF(D50=0,'App.2-CI_MIFRS_DepExp_2014'!K50,+'App.2-CI_MIFRS_DepExp_2014'!K50+((C50*0.5)/D50)) -> 0 | H50: 0 | I50: 0 | K50: =IF(ISERROR(+I50+'App.2-CI_MIFRS_DepExp_2014'!K50-J50), 0, +I50+'App.2-CI_MIFRS_DepExp_2014'!K50-J50) -> 0
A51: 1980 | B51: System Supervisor Equipment | E51: 0 | F51: =IF(D51=0,'App.2-CI_MIFRS_DepExp_2014'!K51,+'App.2-CI_MIFRS_DepExp_2014'!K51+((C51*0.5)/D51)) -> 0 | H51: 0 | I51: 0 | K51: =IF(ISERROR(+I51+'App.2-CI_MIFRS_DepExp_2014'!K51-J51), 0, +I51+'App.2-CI_MIFRS_DepExp_2014'!K51-J51) -> 0
A52: 1985 | B52: Miscellaneous Fixed Assets | E52: 0 | F52: =IF(D52=0,'App.2-CI_MIFRS_DepExp_2014'!K52,+'App.2-CI_MIFRS_DepExp_2014'!K52+((C52*0.5)/D52)) -> 0 | H52: 0 | I52: 0 | K52: =IF(ISERROR(+I52+'App.2-CI_MIFRS_DepExp_2014'!K52-J52), 0, +I52+'App.2-CI_MIFRS_DepExp_2014'!K52-J52) -> 0
A53: 1990 | B53: Other Tangible Property | E53: 0 | F53: =IF(D53=0,'App.2-CI_MIFRS_DepExp_2014'!K53,+'App.2-CI_MIFRS_DepExp_2014'!K53+((C53*0.5)/D53)) -> 0 | H53: 0 | I53: 0 | K53: =IF(ISERROR(+I53+'App.2-CI_MIFRS_DepExp_2014'!K53-J53), 0, +I53+'App.2-CI_MIFRS_DepExp_2014'!K53-J53) -> 0
A54: 1995 | B54: Contributions & Grants | E54: 0 | F54: =IF(D54=0,'App.2-CI_MIFRS_DepExp_2014'!K54,+'App.2-CI_MIFRS_DepExp_2014'!K54+((C54*0.5)/D54)) -> 0 | H54: 0 | I54: 0 | K54: =IF(ISERROR(+I54+'App.2-CI_MIFRS_DepExp_2014'!K54-J54), 0, +I54+'App.2-CI_MIFRS_DepExp_2014'!K54-J54) -> 0
B55: Total | C55: =SUM(C17:C54) -> 0 | F55: =SUM(F17:F54) -> 0 | G55: 0 | H55: 0 | I55: 0 | J55: 0 | K55: 0
B56: Depreciation exp. adj. from gain or loss on the retirement of assets (pool of like assets)
B57: Total Depreciation expense to be included in the test year revenue requirement | F57: =SUM(F55:F56) -> 0
A58: Notes:
A59: 1 | B59: Board policy of the "half-year" rule - the applicant must ensure that additions in the year attract a half-year depreciation expense in the first year. Deviations from this standard practice must be supported in the application.
A60: 2 | B60: The applicant must provide an explanation of material variances in evidence.
A61: 3 | B61: This column refers to the calculated full year depreciation but excludes the depreciation expense on assets fully depreciated during the year. This column is used for the purpose of calculating depreciation expense in the following year on the next worksheet.
A64: General: | B64: Applicants must provide a breakdown of depreciation and amortization expense in the above format for all relevant accounts. Asset Retirement Obligations (AROs), depreciation and accretion expense should be disclosed separately consistent with the Notes of historical Audited Financial Statements.

Sheet App.2-CK MIFRS_DepExp_2016
G1: File Number: | H1: =EBNUMBER -> EB-2016-0089
G2: Exhibit:
G3: Tab:
G4: Schedule:
G5: Page:
G7: Date:
A9: Appendix 2-CK
A10: Depreciation and Amortization Expense
A11: Assumes the applicant made capitalization and depreciation expense accounting policy changes under CGAAP effective January 1, 2013 and has adopted IFRS for financial reporting purposes effective January 1, 2015.
D13: 2016 | E13: MIFRS
A15: Account | B15: Description | C15: Additions | D15: Years (new additions only) | E15: Depreciation Rate on New Additions | F15: 2016 Depreciation Expense 1 | G15: 2016 Depreciation Expense per Appendix 2-BA Fixed Assets, Column J (l) | H15: Variance 2
C16: (d) | D16: (f) | E16: (g) = 1 / (f) | F16: (h)=2015 Full Year Depreciation + ((d)*0.5)/(f) | H16: (m) = (h) - (l)
A17: 1611 | B17: Computer Software (Formally known as Account 1925) | E17: =IF(D17=0,0,1/D17) -> 0 | F17: =IF(D17=0,'App.2-CJ MIFRS_DepExp_2015'!K17,+'App.2-CJ MIFRS_DepExp_2015'!K17+((C17*0.5)/D17)) -> 0 | H17: =IF(ISERROR(+F17-G17), 0, +F17-G17) -> 0
A18: 1612 | B18: Land Rights (Formally known as Account 1906) | E18: 0 | F18: =IF(D18=0,'App.2-CJ MIFRS_DepExp_2015'!K18,+'App.2-CJ MIFRS_DepExp_2015'!K18+((C18*0.5)/D18)) -> 0 | H18: 0
A19: 1805 | B19: Land | E19: 0 | F19: =IF(D19=0,'App.2-CJ MIFRS_DepExp_2015'!K19,+'App.2-CJ MIFRS_DepExp_2015'!K19+((C19*0.5)/D19)) -> 0 | H19: 0
A20: 1808 | B20: Buildings | E20: 0 | F20: =IF(D20=0,'App.2-CJ MIFRS_DepExp_2015'!K20,+'App.2-CJ MIFRS_DepExp_2015'!K20+((C20*0.5)/D20)) -> 0 | H20: 0
A21: 1810 | B21: Leasehold Improvements | E21: 0 | F21: =IF(D21=0,'App.2-CJ MIFRS_DepExp_2015'!K21,+'App.2-CJ MIFRS_DepExp_2015'!K21+((C21*0.5)/D21)) -> 0 | H21: 0
A22: 1815 | B22: Transformer Station Equipment >50 kV | E22: 0 | F22: =IF(D22=0,'App.2-CJ MIFRS_DepExp_2015'!K22,+'App.2-CJ MIFRS_DepExp_2015'!K22+((C22*0.5)/D22)) -> 0 | H22: 0
A23: 1820 | B23: Distribution Station Equipment <50 kV | E23: 0 | F23: =IF(D23=0,'App.2-CJ MIFRS_DepExp_2015'!K23,+'App.2-CJ MIFRS_DepExp_2015'!K23+((C23*0.5)/D23)) -> 0 | H23: 0
A24: 1825 | B24: Storage Battery Equipment | E24: 0 | F24: =IF(D24=0,'App.2-CJ MIFRS_DepExp_2015'!K24,+'App.2-CJ MIFRS_DepExp_2015'!K24+((C24*0.5)/D24)) -> 0 | H24: 0
A25: 1830 | B25: Poles, Towers & Fixtures | E25: 0 | F25: =IF(D25=0,'App.2-CJ MIFRS_DepExp_2015'!K25,+'App.2-CJ MIFRS_DepExp_2015'!K25+((C25*0.5)/D25)) -> 0 | H25: 0
A26: 1835 | B26: Overhead Conductors & Devices | E26: 0 | F26: =IF(D26=0,'App.2-CJ MIFRS_DepExp_2015'!K26,+'App.2-CJ MIFRS_DepExp_2015'!K26+((C26*0.5)/D26)) -> 0 | H26: 0
A27: 1840 | B27: Underground Conduit | E27: 0 | F27: =IF(D27=0,'App.2-CJ MIFRS_DepExp_2015'!K27,+'App.2-CJ MIFRS_DepExp_2015'!K27+((C27*0.5)/D27)) -> 0 | H27: 0
A28: 1845 | B28: Underground Conductors & Devices | E28: 0 | F28: =IF(D28=0,'App.2-CJ MIFRS_DepExp_2015'!K28,+'App.2-CJ MIFRS_DepExp_2015'!K28+((C28*0.5)/D28)) -> 0 | H28: 0
A29: 1850 | B29: Line Transformers | E29: 0 | F29: =IF(D29=0,'App.2-CJ MIFRS_DepExp_2015'!K29,+'App.2-CJ MIFRS_DepExp_2015'!K29+((C29*0.5)/D29)) -> 0 | H29: 0
A30: 1855 | B30: Services (Overhead & Underground) | E30: 0 | F30: =IF(D30=0,'App.2-CJ MIFRS_DepExp_2015'!K30,+'App.2-CJ MIFRS_DepExp_2015'!K30+((C30*0.5)/D30)) -> 0 | H30: 0
A31: 1860 | B31: Meters | E31: 0 | F31: =IF(D31=0,'App.2-CJ MIFRS_DepExp_2015'!K31,+'App.2-CJ MIFRS_DepExp_2015'!K31+((C31*0.5)/D31)) -> 0 | H31: 0
A32: 1860 | B32: Meters (Smart Meters) | E32: 0 | F32: =IF(D32=0,'App.2-CJ MIFRS_DepExp_2015'!K32,+'App.2-CJ MIFRS_DepExp_2015'!K32+((C32*0.5)/D32)) -> 0 | H32: 0
A33: 1905 | B33: Land | E33: 0 | F33: =IF(D33=0,'App.2-CJ MIFRS_DepExp_2015'!K33,+'App.2-CJ MIFRS_DepExp_2015'!K33+((C33*0.5)/D33)) -> 0 | H33: 0
A34: 1908 | B34: Buildings & Fixtures | E34: 0 | F34: =IF(D34=0,'App.2-CJ MIFRS_DepExp_2015'!K34,+'App.2-CJ MIFRS_DepExp_2015'!K34+((C34*0.5)/D34)) -> 0 | H34: 0
A35: 1910 | B35: Leasehold Improvements | E35: 0 | F35: =IF(D35=0,'App.2-CJ MIFRS_DepExp_2015'!K35,+'App.2-CJ MIFRS_DepExp_2015'!K35+((C35*0.5)/D35)) -> 0 | H35: 0
A36: 1915 | B36: Office Furniture & Equipment (10 years) | E36: 0 | F36: =IF(D36=0,'App.2-CJ MIFRS_DepExp_2015'!K36,+'App.2-CJ MIFRS_DepExp_2015'!K36+((C36*0.5)/D36)) -> 0 | H36: 0
A37: 1915 | B37: Office Furniture & Equipment (5 years) | E37: 0 | F37: =IF(D37=0,'App.2-CJ MIFRS_DepExp_2015'!K37,+'App.2-CJ MIFRS_DepExp_2015'!K37+((C37*0.5)/D37)) -> 0 | H37: 0
A38: 1920 | B38: Computer Equipment - Hardware | E38: 0 | F38: =IF(D38=0,'App.2-CJ MIFRS_DepExp_2015'!K38,+'App.2-CJ MIFRS_DepExp_2015'!K38+((C38*0.5)/D38)) -> 0 | H38: 0
A39: 1920 | B39: Computer Equip.-Hardware(Post Mar. 22/04) | E39: 0 | F39: =IF(D39=0,'App.2-CJ MIFRS_DepExp_2015'!K39,+'App.2-CJ MIFRS_DepExp_2015'!K39+((C39*0.5)/D39)) -> 0 | H39: 0
A40: 1920 | B40: Computer Equip.-Hardware(Post Mar. 19/07) | E40: 0 | F40: =IF(D40=0,'App.2-CJ MIFRS_DepExp_2015'!K40,+'App.2-CJ MIFRS_DepExp_2015'!K40+((C40*0.5)/D40)) -> 0 | H40: 0
A41: 1930 | B41: Transportation Equipment | E41: 0 | F41: =IF(D41=0,'App.2-CJ MIFRS_DepExp_2015'!K41,+'App.2-CJ MIFRS_DepExp_2015'!K41+((C41*0.5)/D41)) -> 0 | H41: 0
A42: 1935 | B42: Stores Equipment | E42: 0 | F42: =IF(D42=0,'App.2-CJ MIFRS_DepExp_2015'!K42,+'App.2-CJ MIFRS_DepExp_2015'!K42+((C42*0.5)/D42)) -> 0 | H42: 0
A43: 1940 | B43: Tools, Shop & Garage Equipment | E43: 0 | F43: =IF(D43=0,'App.2-CJ MIFRS_DepExp_2015'!K43,+'App.2-CJ MIFRS_DepExp_2015'!K43+((C43*0.5)/D43)) -> 0 | H43: 0
A44: 1945 | B44: Measurement & Testing Equipment | E44: 0 | F44: =IF(D44=0,'App.2-CJ MIFRS_DepExp_2015'!K44,+'App.2-CJ MIFRS_DepExp_2015'!K44+((C44*0.5)/D44)) -> 0 | H44: 0
A45: 1950 | B45: Power Operated Equipment | E45: 0 | F45: =IF(D45=0,'App.2-CJ MIFRS_DepExp_2015'!K45,+'App.2-CJ MIFRS_DepExp_2015'!K45+((C45*0.5)/D45)) -> 0 | H45: 0
A46: 1955 | B46: Communications Equipment | E46: 0 | F46: =IF(D46=0,'App.2-CJ MIFRS_DepExp_2015'!K46,+'App.2-CJ MIFRS_DepExp_2015'!K46+((C46*0.5)/D46)) -> 0 | H46: 0
A47: 1955 | B47: Communication Equipment (Smart Meters) | E47: 0 | F47: =IF(D47=0,'App.2-CJ MIFRS_DepExp_2015'!K47,+'App.2-CJ MIFRS_DepExp_2015'!K47+((C47*0.5)/D47)) -> 0 | H47: 0
A48: 1960 | B48: Miscellaneous Equipment | E48: 0 | F48: =IF(D48=0,'App.2-CJ MIFRS_DepExp_2015'!K48,+'App.2-CJ MIFRS_DepExp_2015'!K48+((C48*0.5)/D48)) -> 0 | H48: 0
A49: 1970 | B49: Load Management Controls - Customer Premises | E49: 0 | F49: =IF(D49=0,'App.2-CJ MIFRS_DepExp_2015'!K49,+'App.2-CJ MIFRS_DepExp_2015'!K49+((C49*0.5)/D49)) -> 0 | H49: 0
A50: 1975 | B50: Load Management Controls Utility Premises | E50: 0 | F50: =IF(D50=0,'App.2-CJ MIFRS_DepExp_2015'!K50,+'App.2-CJ MIFRS_DepExp_2015'!K50+((C50*0.5)/D50)) -> 0 | H50: 0
A51: 1980 | B51: System Supervisor Equipment | E51: 0 | F51: =IF(D51=0,'App.2-CJ MIFRS_DepExp_2015'!K51,+'App.2-CJ MIFRS_DepExp_2015'!K51+((C51*0.5)/D51)) -> 0 | H51: 0
A52: 1985 | B52: Miscellaneous Fixed Assets | E52: 0 | F52: =IF(D52=0,'App.2-CJ MIFRS_DepExp_2015'!K52,+'App.2-CJ MIFRS_DepExp_2015'!K52+((C52*0.5)/D52)) -> 0 | H52: 0
A53: 1990 | B53: Other Tangible Property | E53: 0 | F53: =IF(D53=0,'App.2-CJ MIFRS_DepExp_2015'!K53,+'App.2-CJ MIFRS_DepExp_2015'!K53+((C53*0.5)/D53)) -> 0 | H53: 0
A54: 1995 | B54: Contributions & Grants | E54: 0 | F54: =IF(D54=0,'App.2-CJ MIFRS_DepExp_2015'!K54,+'App.2-CJ MIFRS_DepExp_2015'!K54+((C54*0.5)/D54)) -> 0 | H54: 0
B55: Total | C55: =SUM(C17:C54) -> 0 | F55: =SUM(F17:F54) -> 0 | G55: =SUM(G17:G54) -> 0 | H55: =SUM(H17:H54) -> 0
B56: Depreciation exp. adj. from gain or loss on the retirement of assets (pool of like assets)
B57: Total Depreciation expense to be included in the test year revenue requirement | F57: =SUM(F55:F56) -> 0
A58: Notes:
A59: 1 | B59: Board policy of the "half-year" rule - the applicant must ensure that additions in the year attract a half-year depreciation expense in the first year. Deviations from this standard practice must be supported in the application.
A60: 2 | B60: The applicant must provide an explanation of material variances in evidence.
A62: General: | B62: Applicants must provide a breakdown of depreciation and amortization expense in the above format for all relevant accounts. Asset Retirement Obligations (AROs), depreciation and accretion expense should be disclosed separately consistent with the Notes of historical Audited Financial Statements.

Sheet App.2-D_Overhead
F1: File Number: | G1: =EBNUMBER -> EB-2016-0089
F2: Exhibit: | G2: 4
F3: Tab: | G3: 4
F4: Schedule: | G4: 2
F5: Page: | G5: 16
F7: Date: | G7: 2016-04-29
A9: Appendix 2-D
A10: Overhead Expense
A12: Applicants are to provide a breakdown of OM&A before capitalization in the below table. OM&A before capitalization may be broken down by cost center, program, drivers or another format best suited to focus on capitalized vs. uncapitalized OM&A.
A14: OM&A Before Capitalization
B15: 2012 | C15: 2013 | D15: 2014 | E15: 2015 | F15: 2016
B16: Historical Year | C16: Historical Year | D16: Historical Year | E16: Bridge Year | F16: Test Year
A27: Total OM&A Before Capitalization (B) | B27: =SUM(B17:B26) -> 0 | C27: =SUM(C17:C26) -> 0 | D27: =SUM(D17:D26) -> 0 | E27: =SUM(E17:E26) -> 0 | F27: =SUM(F17:F26) -> 0
A29: Applicants are to provide a breakdown of capitalized OM&A in the below table. Capitalized OM&A may be broken down using the categories listed in the table below if possible. Otherwise, applicants are to provide its own break down of capitalized OM&A.
A31: Capitalized OM&A | G31: Directly | H31: Explanation for Change in Overhead Capitalized
B32: 2012 | C32: 2013 | D32: 2014 | E32: 2015 | F32: 2016 | G32: Attributable?
B33: Historical Year | C33: Historical Year | D33: Historical Year | E33: Bridge Year | F33: Test Year | G33: (Y/N)
A34: employee benefits
A35: costs of site preparation
A36: initial delivery and handling costs
A37: costs of testing whether the asset is functioning properly
A38: professional fees
A40: costs of opening a new facility
A41: costs of introducing a new product or service (including costs of advertising and promotional activities)
A42: costs of conducting business in a new location or with a new class of customer (including costs of staff training)
A43: administration and other general overhead costs
A45: Insert description of additional item(s) and new rows if needed
A47: Total Capitalized OM&A (A) | B47: =SUM(B34:B46) -> 0 | C47: =SUM(C34:C46) -> 0 | D47: =SUM(D34:D46) -> 0 | E47: =SUM(E34:E46) -> 0 | F47: =SUM(F34:F46) -> 0
A49: % of Capitalized OM&A (=A/B) | B49: =IF(ISERROR(B47/B27),"0%",B47/B27) -> 0% | C49: =IF(ISERROR(C47/C27),"0%",C47/C27) -> 0% | D49: =IF(ISERROR(D47/D27),"0%",D47/D27) -> 0% | E49: =IF(ISERROR(E47/E27),"0%",E47/E27) -> 0% | F49: =IF(ISERROR(F47/F27),"0%",F47/F27) -> 0%

Sheet App.2-EA_Account 1575 (2015)
I1: File Number: | J1: =EBNUMBER -> EB-2016-0089
I2: Exhibit: | J2: 9
I3: Tab: | J3: 1
I4: Schedule: | J4: 5
I5: Page: | J5: 14
I7: Date: | J7: 2016-04-29
A9: Appendix 2-EA
A10: Account 1575 - IFRS-CGAAP Transitional PP&E Amounts
A11: 2015 Adopters of IFRS for Financial Reporting Purposes
A13: For applicants that adopted IFRS on January 1, 2015 for financial reporting purposes
B17: =RebaseYear &" Rebasing Year" -> 2012 Rebasing Year | C17: 2012 | D17: 2013 | E17: 2014 | F17: 2015 | G17: 2016 Rebasing Year
A18: Reporting Basis | B18: CGAAP | C18: CGAAP | D18: CGAAP | E18: CGAAP | F18: MIFRS | G18: MIFRS
B19: Forecast | C19: Actual | D19: Actual | E19: Actual | F19: Forecast | G19: Forecast
E20: $ | F20: $
A21: PP&E Values under CGAAP
A22: Opening net PP&E - Note 1 | F22: =+E25 -> 0
A23: Net Additions - Note 4
A24: Net Depreciation (amounts should be negative) - Note 4
A25: Closing net PP&E (1) | E25: =E22+E23+E24 -> 0 | F25: =SUM(F22:F24) -> 0
A27: PP&E Values under MIFRS (Starts from 2014, the transition year)
A28: Opening net PP&E - Note 1 | F28: =+E31 -> 0
A29: Net Additions - Note 4
A30: Net Depreciation (amounts should be negative) - Note 4
A31: Closing net PP&E (2) | E31: =SUM(E28:E30) -> 0 | F31: =SUM(F28:F30) -> 0
A33: Difference in Closing net PP&E, former CGAAP vs. revised CGAAP | E33: =E25-E31 -> 0 | F33: =F25-F31 -> 0
A36: Effect on Deferral and Variance Account Rate Riders
A37: Closing balance in Account 1576 | G37: =IF(ISERROR(F33), 0, F33) -> 0 | I37: WACC
A38: Return on Rate Base Associated with Account 1576 balance at WACC - Note 2 | G38: =F33*J37*J38 -> 0 | H38: # of years of rate rider disposition period
A39: Amount included in Deferral and Variance Account Rate Rider Calculation | G39: =G37+G38 -> 0
A41: Notes:
A42: 1 For an applicant that adopted IFRS on January 1, 2015, the PP&E values as of January 1, 2014 under both CGAAP and MIFRS should be the same.
A43: 2 Return on rate base associated with deferred balance is calculated as:
A44: the deferral account closing balance as of 2015 rebasing year x WACC X # of years of rate rider disposition period
A45: * Please note that the calculation should be adjusted once WACC is updated and finalized in the rate application.
A46: 3 The PP&E deferral account is cleared by including the total balance in the deferral and variance account rate rider calculation.
A47: 4 Net additions are additions net of disposals; Net depreciation is additions to depreciation net of disposals.

Sheet App.2-EB_Account 1576 (2012)
I1: File Number: | J1: =EBNUMBER -> EB-2016-0089
I2: Exhibit: | J2: 9
I3: Tab: | J3: 1
I4: Schedule: | J4: 5
I5: Page: | J5: 14
I7: Date: | J7: 2016-04-29
A9: Appendix 2-EB
A10: Account 1576 - Accounting Changes under CGAAP
A11: 2012 Changes in Accounting Policies under CGAAP
A13: For applicants that made capitalization and depreciation expense accounting policy changes under CGAAP effective January 1, 2012
B17: =RebaseYear &" Rebasing Year" -> 2012 Rebasing Year | C17: 2012 | D17: 2013 | E17: 2014 | F17: 2015 | G17: 2016 Rebasing Year
A18: Reporting Basis | B18: CGAAP | C18: CGAAP | D18: CGAAP | E18: CGAAP | F18: MIFRS | G18: MIFRS
B19: Forecast | C19: Actual | D19: Actual | E19: Actual | F19: Forecast | G19: Forecast
C20: $ | D20: $ | E20: $ | F20: $
A21: PP&E Values under former CGAAP
A22: Opening net PP&E - Note 1 | D22: =+C25 -> 0 | E22: =+D25 -> 0 | F22: =+E25 -> 0
A23: Net Additions - Note 4
A24: Net Depreciation (amounts should be negative) - Note 4
A25: Closing net PP&E (1) | C25: =C22+C23+C24 -> 0 | D25: =D22+D23+D24 -> 0 | E25: =E22+E23+E24 -> 0 | F25: =F22+F23+F24 -> 0
A27: PP&E Values under revised CGAAP (Starts from 2012)
A28: Opening net PP&E - Note 1 | D28: =+C31 -> 0 | E28: =+D31 -> 0 | F28: =+E31 -> 0
A29: Net Additions - Note 4
A30: Net Depreciation (amounts should be negative) - Note 4
A31: Closing net PP&E (2) | C31: =SUM(C28:C30) -> 0 | D31: =SUM(D28:D30) -> 0 | E31: =SUM(E28:E30) -> 0 | F31: =SUM(F28:F30) -> 0
A33: Difference in Closing net PP&E, former CGAAP vs. revised CGAAP | C33: =C25-C31 -> 0 | D33: =D25-D31 -> 0 | E33: =E25-E31 -> 0 | F33: =F25-F31 -> 0
A36: Effect on Deferral and Variance Account Rate Riders
A37: Closing balance in Account 1576 | G37: =IF(ISERROR(F33), 0, F33) -> 0 | I37: WACC
A38: Return on Rate Base Associated with Account 1576 balance at WACC - Note 2 | G38: =F33*J37*J38 -> 0 | H38: # of years of rate rider disposition period
A39: Amount included in Deferral and Variance Account Rate Rider Calculation | G39: =G37+G38 -> 0
A41: Notes:
A42: 1 For an applicant that made the capitalization and depreciation expense accounting policy changes on January 1, 2012, the PP&E values as of January 1, 2012 under both former CGAAP and revised CGAAP should be the same.
A43: 2 Return on rate base associated with Account 1576 balance is calculated as:
A44: the variance account ending balance as of 2015 rebasing year x WACC X # of years of rate rider disposition period
A45: * Please note that the calculation should be adjusted once WACC is updated and finalized in the rate application.
A46: 3 Account 1576 is cleared by including the total balance in the deferral and variance account rate rider calculation.
A47: 4 Net additions are additions net of disposals; Net depreciation is additions to depreciation net of disposals.

Sheet App.2-EC_Account 1576 (2013)
I1: File Number: | J1: =EBNUMBER -> EB-2016-0089
I2: Exhibit: | J2: 9
I3: Tab: | J3: 1
I4: Schedule: | J4: 5
I5: Page: | J5: 14
I7: Date: | J7: 2016-04-29
A9: Appendix 2-EC
A10: Account 1576 - Accounting Changes under CGAAP
A11: 2013 Changes in Accounting Policies under CGAAP
A13: For applicants that made capitalization and depreciation expense accounting policy changes under CGAAP effective January 1, 2013
B17: =RebaseYear &" Rebasing Year" -> 2012 Rebasing Year | C17: 2012 | D17: 2013 | E17: 2014 | F17: 2015 | G17: 2016 Rebasing Year
A18: Reporting Basis | B18: CGAAP | C18: CGAAP | D18: CGAAP | E18: CGAAP | F18: MIFRS | G18: MIFRS
B19: Forecast | C19: Actual | D19: Actual | E19: Actual | F19: Forecast | G19: Forecast
D20: $ | E20: $ | F20: $
A21: PP&E Values under former CGAAP
A22: Opening net PP&E - Note 1 | E22: =+D25 -> 0 | F22: =+E25 -> 0
A23: Net Additions - Note 4
A24: Net Depreciation (amounts should be negative) - Note 4
A25: Closing net PP&E (1) | D25: =D22+D23+D24 -> 0 | E25: =E22+E23+E24 -> 0 | F25: =F22+F23+F24 -> 0
A27: PP&E Values under revised CGAAP (Starts from 2012)
A28: Opening net PP&E - Note 1 | E28: =+D31 -> 0 | F28: =+E31 -> 0
A29: Net Additions - Note 4
A30: Net Depreciation (amounts should be negative) - Note 4
A31: Closing net PP&E (2) | D31: =SUM(D28:D30) -> 0 | E31: =SUM(E28:E30) -> 0 | F31: =SUM(F28:F30) -> 0
A33: Difference in Closing net PP&E, former CGAAP vs. revised CGAAP | D33: =D25-D31 -> 0 | E33: =E25-E31 -> 0 | F33: =F25-F31 -> 0
A36: Effect on Deferral and Variance Account Rate Riders
A37: Closing balance in Account 1576 | G37: =IF(ISERROR(F33), 0, F33) -> 0 | I37: WACC
A38: Return on Rate Base Associated with Account 1576 balance at WACC - Note 2 | G38: =F33*J37*J38 -> 0 | H38: # of years of rate rider disposition period
A39: Amount included in Deferral and Variance Account Rate Rider Calculation | G39: =G37+G38 -> 0
A41: Notes:
A42: 1 For an applicant that made the capitalization and depreciation expense accounting policy changes on January 1, 2013, the PP&E values as of January 1, 2013 under both former CGAAP and revised CGAAP should be the same.
A43: 2 Return on rate base associated with Account 1576 balance is calculated as:
A44: the variance account ending balance as of 2015 rebasing year x WACC X # of years of rate rider disposition period
A45: * Please note that the calculation should be adjusted once WACC is updated and finalized in the rate application.
A46: 3 Account 1576 is cleared by including the total balance in the deferral and variance account rate rider calculation.
A47: 4 Net additions are additions net of disposals; Net depreciation is additions to depreciation net of disposals.

Sheet App.2-FA Proposed REG Invest.
J1: File Number: | K1: =EBNUMBER -> EB-2016-0089
J2: Exhibit:
J3: Tab:
J4: Schedule:
J5: Page:
J7: Date:
A9: Appendix 2-FA
A10: Renewable Generation Connection Investment Summary (past investments or over the future rate setting period)
A12: Enter the details of the Renewable Generation Connection projects as described in the appropriate section of the Filing Requirements.
A13: All costs entered on this page will be transferred to the appropriate cells in the appendices that follow.
A14: For Part A, Renewable Enabling Improvements (REI), these amounts will be transferred to Appendix 2 - FB
A15: For Part B, Expansions, these amounts will be transferred to Appendix 2 - FC
A17: If there are more than five projects proposed to be in-service in a certain year, please amend the tables below and ensure that the formulae for the Total Amounts in any given rate year are updated.
A18: Based on the current methodology and allocation, amounts allocated represent 6% for REI Connection Investments and 17% for Expansion Investments. (EB-2009-0349, 6-10-2010, p. 15, note 9)
A20: There are two scenarios described below. Separate sets of spreadsheets (2-FA, 2-FB, 2-FC) should be submited for each scenario as required.
A21: Scenario 1: Past Investments with No Recovery. The distributor has made investments in the past (during the IRM Years), but has not received approval for these projects and therefore did not receive
A22: revenue from the IESO under Regulation 330/09 and did not receive ratepayer revenue for the direct benefit portion of the investment.
A23: The WCA percentage, debt percentages, interest rates, kWh, tax rates, amortization period, CCA Class and percentage should correspond to the distributor's last Cost of Service approval.
A24: The Direct Benefit portion of the calculated Revenue Requirement for each year should be summed and can be applied for recovery from the distributor's ratepayers through a rate rider.
A25: The Provincial Recovery portion of the calculated Revenue Requirement for each year should be summed and can be applied for recovery from the IESO through a separate order.
A27: Scenario 2: Investments in the Test Year and Beyond. Distributor plans to make investments in 2016 and/or beyond. These investments should be added to 2-FA in the appropriate year.
A28: The WCA percentage, debt percentages, interest rates, kWh, tax rates, amortization period, CCA Class and percentage should correspond to the distributor's current application.
A30: Part A | G30: Test Year
A31: REI Investments (Direct Benefit at 6%) | C31: 2012 | D31: 2013 | E31: 2014 | F31: 2015 | G31: 2016 | H31: =G31+1 -> 2017 | I31: =H31+1 -> 2018 | J31: =I31+1 -> 2019 | K31: =J31+1 -> 2020
A32: Project 1
A33: Name: REI Connection Project
A34: Capital Costs | C34: 0 | D34: 0 | E34: 0 | F34: 0 | G34: 0 | H34: 0 | I34: 0 | J34: 0 | K34: 0
A35: OM&A (Start-Up) | C35: 0 | D35: 0 | E35: 0 | F35: 0 | G35: 0 | H35: 0 | I35: 0 | J35: 0 | K35: 0
A36: OM&A (Ongoing) | C36: 0 | D36: 0 | E36: 0 | F36: 0 | G36: 0 | H36: 0 | I36: 0 | J36: 0 | K36: 0
A38: Project 2
A39: Name: REI Connection Project
A40: Capital Costs | C40: 0 | D40: 0 | E40: 0 | F40: 0 | G40: 0 | H40: 0 | I40: 0 | J40: 0 | K40: 0
A41: OM&A (Start-Up) | C41: 0 | D41: 0 | E41: 0 | F41: 0 | G41: 0 | H41: 0 | I41: 0 | J41: 0 | K41: 0
A42: OM&A (Ongoing) | C42: 0 | D42: 0 | E42: 0 | F42: 0 | G42: 0 | H42: 0 | I42: 0 | J42: 0 | K42: 0
A44: Project 3
A45: Name: REI Connection Project
A46: Capital Costs | C46: 0 | D46: 0 | E46: 0 | F46: 0 | G46: 0 | H46: 0 | I46: 0 | J46: 0 | K46: 0
A47: OM&A (Start-Up) | C47: 0 | D47: 0 | E47: 0 | F47: 0 | G47: 0 | H47: 0 | I47: 0 | J47: 0 | K47: 0
A48: OM&A (Ongoing) | C48: 0 | D48: 0 | E48: 0 | F48: 0 | G48: 0 | H48: 0 | I48: 0 | J48: 0 | K48: 0
A50: Project 4
A51: Name: REI Connection Project
A52: Capital Costs | C52: 0 | D52: 0 | E52: 0 | F52: 0 | G52: 0 | H52: 0 | I52: 0 | J52: 0 | K52: 0
A53: OM&A (Start-Up) | C53: 0 | D53: 0 | E53: 0 | F53: 0 | G53: 0 | H53: 0 | I53: 0 | J53: 0 | K53: 0
A54: OM&A (Ongoing) | C54: 0 | D54: 0 | E54: 0 | F54: 0 | G54: 0 | H54: 0 | I54: 0 | J54: 0 | K54: 0
A56: Project 5
A57: Name: REI Connection Project
A58: Capital Costs | C58: 0 | D58: 0 | E58: 0 | F58: 0 | G58: 0 | H58: 0 | I58: 0 | J58: 0 | K58: 0
A59: OM&A (Start-Up) | C59: 0 | D59: 0 | E59: 0 | F59: 0 | G59: 0 | H59: 0 | I59: 0 | J59: 0 | K59: 0
A60: OM&A (Ongoing) | C60: 0 | D60: 0 | E60: 0 | F60: 0 | G60: 0 | H60: 0 | I60: 0 | J60: 0 | K60: 0
A62: Total Capital Costs | C62: =SUM(C58,C52,C46,C40,C34) -> 0 | D62: 0 | E62: 0 | F62: 0 | G62: =SUM(G58,G52,G46,G40,G34) -> 0 | H62: =SUM(H58,H52,H46,H40,H34) -> 0 | I62: 0 | J62: 0 | K62: 0
A63: Total OM&A (Start-Up) | C63: 0 | D63: 0 | E63: 0 | F63: 0 | G63: =SUM(G59,G53,G47,G41,G35) -> 0 | H63: 0 | I63: 0 | J63: 0 | K63: 0
A64: Total OM&A (Ongoing) | C64: 0 | D64: 0 | E64: 0 | F64: 0 | G64: =SUM(G60,G54,G48,G42,G36) -> 0 | H64: 0 | I64: 0 | J64: 0 | K64: 0
A67: Part B | G67: Test Year
A68: Expansion Investments (Direct Benefit at 17%) | C68: 2012 | D68: 2013 | E68: 2014 | F68: 2015 | G68: 2016 | H68: =G68+1 -> 2017 | I68: =H68+1 -> 2018 | J68: =I68+1 -> 2019 | K68: =J68+1 -> 2020
A69: Project 1
A70: Name: Expansion Connection Project
A71: Capital Costs | C71: 0 | D71: 0 | E71: 0 | F71: 0 | G71: 0 | H71: 0 | I71: 0 | J71: 0 | K71: 0
A72: OM&A (Start-Up) | C72: 0 | D72: 0 | E72: 0 | F72: 0 | G72: 0 | H72: 0 | I72: 0 | J72: 0 | K72: 0
A73: OM&A (Ongoing) | C73: 0 | D73: 0 | E73: 0 | F73: 0 | G73: 0 | H73: 0 | I73: 0 | J73: 0 | K73: 0
A75: Project 2
A76: Name: Expansion Connection Project
A77: Capital Costs | C77: 0 | D77: 0 | E77: 0 | F77: 0 | G77: 0 | H77: 0 | I77: 0 | J77: 0 | K77: 0
A78: OM&A (Start-Up) | C78: 0 | D78: 0 | E78: 0 | F78: 0 | G78: 0 | H78: 0 | I78: 0 | J78: 0 | K78: 0
A79: OM&A (Ongoing) | C79: 0 | D79: 0 | E79: 0 | F79: 0 | G79: 0 | H79: 0 | I79: 0 | J79: 0 | K79: 0
A81: Project 3
A82: Name: Expansion Connection Project
A83: Capital Costs | C83: 0 | D83: 0 | E83: 0 | F83: 0 | G83: 0 | H83: 0 | I83: 0 | J83: 0 | K83: 0
A84: OM&A (Start-Up) | C84: 0 | D84: 0 | E84: 0 | F84: 0 | G84: 0 | H84: 0 | I84: 0 | J84: 0 | K84: 0
A85: OM&A (Ongoing) | C85: 0 | D85: 0 | E85: 0 | F85: 0 | G85: 0 | H85: 0 | I85: 0 | J85: 0 | K85: 0
A87: Project 4
A88: Name: Expansion Connection Project
A89: Capital Costs | C89: 0 | D89: 0 | E89: 0 | F89: 0 | G89: 0 | H89: 0 | I89: 0 | J89: 0 | K89: 0
A90: OM&A (Start-Up) | C90: 0 | D90: 0 | E90: 0 | F90: 0 | G90: 0 | H90: 0 | I90: 0 | J90: 0 | K90: 0
A91: OM&A (Ongoing) | C91: 0 | D91: 0 | E91: 0 | F91: 0 | G91: 0 | H91: 0 | I91: 0 | J91: 0 | K91: 0
A93: Project 5
A94: Name: Expansion Connection Project
A95: Capital Costs | C95: 0 | D95: 0 | E95: 0 | F95: 0 | G95: 0 | H95: 0 | I95: 0 | J95: 0 | K95: 0
A96: OM&A (Start-Up) | C96: 0 | D96: 0 | E96: 0 | F96: 0 | G96: 0 | H96: 0 | I96: 0 | J96: 0 | K96: 0
A97: OM&A (Ongoing) | C97: 0 | D97: 0 | E97: 0 | F97: 0 | G97: 0 | H97: 0 | I97: 0 | J97: 0 | K97: 0
A99: Total Capital Costs | C99: =SUM(C95,C89,C83,C77,C71) -> 0 | D99: 0 | E99: 0 | F99: 0 | G99: =SUM(G95,G89,G83,G77,G71) -> 0 | H99: =SUM(H95,H89,H83,H77,H71) -> 0 | I99: 0 | J99: 0 | K99: 0
A100: Total OM&A (Start-Up) | C100: 0 | D100: 0 | E100: 0 | F100: 0 | G100: =SUM(G96,G90,G84,G78,G72) -> 0 | H100: 0 | I100: 0 | J100: 0 | K100: 0
A101: Total OM&A (Ongoing) | C101: 0 | D101: 0 | E101: 0 | F101: 0 | G101: =SUM(G97,G91,G85,G79,G73) -> 0 | H101: 0 | I101: 0 | J101: 0 | K101: 0

Sheet App.2-FB Calc of REG Improvemnt
N1: File Number: | O1: =EBNUMBER -> EB-2016-0089
N2: Exhibit:
N3: Tab:
N4: Schedule:
N5: Page:
N7: Date:
A9: Appendix 2-FB
A10: Calculation of Renewable Generation Connection Direct Benefits/Provincial Amount: Renewable Enabling Improvement Investments
A12: This table will calculate the distributor/provincial shares of the investments entered in Part A of Appendix 2-FA.
A13: Enter values in green shaded cells: WCA percentage, debt percentages, interest rates, kWh, tax rates, amortization period, CCA Class and percentage.
A14: For historical investments, enter these variables for your last cost of service test year. For 2016 and beyond, enter variables as in the application.
A15: Rate Riders are not calculated for Test Year as these assets and costs are already in the distributor's rate base/revenue requirement.
C17: 2012 | F17: 2013 | I17: 2014 | L17: 2015 | O17: 2016 Test Year | R17: 2017 | U17: 2018 | V17: 2016 | X17: 2019 | AA17: 2020
D18: Direct Benefit | E18: Provincial | G18: Direct Benefit | H18: Provincial | J18: Direct Benefit | K18: Provincial | M18: Direct Benefit | N18: Provincial | P18: Direct Benefit | Q18: Provincial | S18: Direct Benefit | T18: Provincial | V18: Direct Benefit | W18: Provincial | Y18: Direct Benefit | Z18: Provincial | AB18: Direct Benefit | AC18: Provincial
C19: Total | D19: 0.06 | E19: 0.94 | F19: Total | G19: 0.06 | H19: 0.94 | I19: Total | J19: 0.06 | K19: 0.94 | L19: Total | M19: 0.06 | N19: 0.94 | O19: Total | P19: 0.06 | Q19: 0.94 | R19: Total | S19: 0.06 | T19: 0.94 | U19: Total | V19: 0.06 | W19: 0.94 | X19: Total | Y19: 0.06 | Z19: 0.94 | AA19: Total | AB19: 0.06 | AC19: 0.94
A20: Net Fixed Assets (average) | C20: =D82 -> 0 | D20: =C20*D19 -> 0 | E20: =C20*E19 -> 0 | F20: =E82 -> 0 | G20: =F20*G19 -> 0 | H20: =F20*H19 -> 0 | I20: =F82 -> 0 | J20: =I20*J19 -> 0 | K20: =I20*K19 -> 0 | L20: =G82 -> 0 | M20: =L20*M19 -> 0 | N20: =L20*N19 -> 0 | O20: =H82 -> 0 | P20: =O20*P19 -> 0 | Q20: =O20*Q19 -> 0 | R20: =I82 -> 0 | S20: =R20*S19 -> 0 | T20: =R20*T19 -> 0 | U20: =J82 -> 0 | V20: =U20*V19 -> 0 | W20: =U20*W19 -> 0 | X20: =K82 -> 0 | Y20: =X20*Y19 -> 0 | Z20: =X20*Z19 -> 0 | AA20: =L82 -> 0 | AB20: =AA20*AB19 -> 0 | AC20: =AA20*AC19 -> 0
A21: Incremental OM&A (on-going, N/A for Provincial Recovery) | C21: ='App.2-FA Proposed REG Invest.'!C64 -> 0 | D21: =C21 -> 0 | F21: ='App.2-FA Proposed REG Invest.'!D64 -> 0 | G21: =F21 -> 0 | I21: ='App.2-FA Proposed REG Invest.'!E64 -> 0 | J21: =I21 -> 0 | L21: ='App.2-FA Proposed REG Invest.'!F64 -> 0 | M21: =L21 -> 0 | O21: ='App.2-FA Proposed REG Invest.'!G64 -> 0 | P21: =O21 -> 0 | R21: ='App.2-FA Proposed REG Invest.'!H64 -> 0 | S21: =R21 -> 0 | U21: ='App.2-FA Proposed REG Invest.'!I64 -> 0 | V21: =U21 -> 0 | X21: ='App.2-FA Proposed REG Invest.'!J64 -> 0 | Y21: =X21 -> 0 | AA21: ='App.2-FA Proposed REG Invest.'!K64 -> 0 | AB21: =AA21 -> 0
A22: Incremental OM&A (start-up, applicable for Provincial Recovery) | C22: ='App.2-FA Proposed REG Invest.'!C63 -> 0 | D22: =C22*D19 -> 0 | E22: =C22*E19 -> 0 | F22: ='App.2-FA Proposed REG Invest.'!D63 -> 0 | G22: =F22*G19 -> 0 | H22: =F22*H19 -> 0 | I22: ='App.2-FA Proposed REG Invest.'!E63 -> 0 | J22: =I22*J19 -> 0 | K22: =I22*K19 -> 0 | L22: ='App.2-FA Proposed REG Invest.'!F63 -> 0 | M22: =L22*M19 -> 0 | N22: =L22*N19 -> 0 | O22: ='App.2-FA Proposed REG Invest.'!G63 -> 0 | P22: =O22*P19 -> 0 | Q22: =O22*Q19 -> 0 | R22: ='App.2-FA Proposed REG Invest.'!H63 -> 0 | S22: =R22*S19 -> 0 | T22: =R22*T19 -> 0 | U22: ='App.2-FA Proposed REG Invest.'!I63 -> 0 | V22: =U22*V19 -> 0 | W22: =U22*W19 -> 0 | X22: ='App.2-FA Proposed REG Invest.'!J63 -> 0 | Y22: =X22*Y19 -> 0 | Z22: =X22*Z19 -> 0 | AA22: ='App.2-FA Proposed REG Invest.'!K63 -> 0 | AB22: =AA22*AB19 -> 0 | AC22: =AA22*AC19 -> 0
A23: WCA | D23: =(D21+D22)*$B$23 -> 0 | E23: =E22*$B$23 -> 0 | G23: =(G21+G22)*$B$23 -> 0 | H23: =H22*$B$23 -> 0 | J23: =(J21+J22)*$B$23 -> 0 | K23: =K22*$B$23 -> 0 | M23: =(M21+M22)*$B$23 -> 0 | N23: =N22*$B$23 -> 0 | P23: =(P21+P22)*$B$23 -> 0 | Q23: =Q22*$B$23 -> 0 | S23: =(S21+S22)*$B$23 -> 0 | T23: =T22*$B$23 -> 0 | V23: =(V21+V22)*$B$23 -> 0 | W23: =W22*$B$23 -> 0 | Y23: =(Y21+Y22)*$B$23 -> 0 | Z23: =Z22*$B$23 -> 0 | AB23: =(AB21+AB22)*$B$23 -> 0 | AC23: =AC22*$B$23 -> 0
A24: Rate Base | D24: =SUM(D20+D23) -> 0 | E24: =SUM(E20+E23) -> 0 | G24: =SUM(G20+G23) -> 0 | H24: =SUM(H20+H23) -> 0 | J24: =SUM(J20+J23) -> 0 | K24: =SUM(K20+K23) -> 0 | M24: =SUM(M20+M23) -> 0 | N24: =SUM(N20+N23) -> 0 | P24: =SUM(P20+P23) -> 0 | Q24: =SUM(Q20+Q23) -> 0 | S24: =SUM(S20+S23) -> 0 | T24: =SUM(T20+T23) -> 0 | V24: =SUM(V20+V23) -> 0 | W24: =SUM(W20+W23) -> 0 | Y24: =SUM(Y20+Y23) -> 0 | Z24: =SUM(Z20+Z23) -> 0 | AB24: =SUM(AB20+AB23) -> 0 | AC24: =SUM(AC20+AC23) -> 0
A27: Deemed ST Debt | D27: =D24*$B$27 -> 0 | E27: =E24*$B$27 -> 0 | G27: =G24*$B$27 -> 0 | H27: =H24*$B$27 -> 0 | J27: =J24*$B$27 -> 0 | K27: =K24*$B$27 -> 0 | M27: =M24*$B$27 -> 0 | N27: =N24*$B$27 -> 0 | P27: =P24*$B$27 -> 0 | Q27: =Q24*$B$27 -> 0 | S27: =S24*$B$27 -> 0 | T27: =T24*$B$27 -> 0 | V27: =V24*$B$27 -> 0 | W27: =W24*$B$27 -> 0 | Y27: =Y24*$B$27 -> 0 | Z27: =Z24*$B$27 -> 0 | AB27: =AB24*$B$27 -> 0 | AC27: =AC24*$B$27 -> 0
A28: Deemed LT Debt | D28: =D24*$B$28 -> 0 | E28: =E24*$B$28 -> 0 | G28: =G24*$B$28 -> 0 | H28: =H24*$B$28 -> 0 | J28: =J24*$B$28 -> 0 | K28: =K24*$B$28 -> 0 | M28: =M24*$B$28 -> 0 | N28: =N24*$B$28 -> 0 | P28: =P24*$B$28 -> 0 | Q28: =Q24*$B$28 -> 0 | S28: =S24*$B$28 -> 0 | T28: =T24*$B$28 -> 0 | V28: =V24*$B$28 -> 0 | W28: =W24*$B$28 -> 0 | Y28: =Y24*$B$28 -> 0 | Z28: =Z24*$B$28 -> 0 | AB28: =AB24*$B$28 -> 0 | AC28: =AC24*$B$28 -> 0
A29: Deemed Equity | D29: =D24*$B$29 -> 0 | E29: =E24*$B$29 -> 0 | G29: =G24*$B$29 -> 0 | H29: =H24*$B$29 -> 0 | J29: =J24*$B$29 -> 0 | K29: =K24*$B$29 -> 0 | M29: =M24*$B$29 -> 0 | N29: =N24*$B$29 -> 0 | P29: =P24*$B$29 -> 0 | Q29: =Q24*$B$29 -> 0 | S29: =S24*$B$29 -> 0 | T29: =T24*$B$29 -> 0 | V29: =V24*$B$29 -> 0 | W29: =W24*$B$29 -> 0 | Y29: =Y24*$B$29 -> 0 | Z29: =Z24*$B$29 -> 0 | AB29: =AB24*$B$29 -> 0 | AC29: =AC24*$B$29 -> 0
A31: ST Interest | D31: =D27*$B31 -> 0 | E31: 0 | G31: =G27*$B31 -> 0 | H31: 0 | J31: =J27*$B31 -> 0 | K31: 0 | M31: =M27*$B31 -> 0 | N31: 0 | P31: =P27*$B31 -> 0 | Q31: 0 | S31: =S27*$B31 -> 0 | T31: 0 | V31: =V27*$B31 -> 0 | W31: 0 | Y31: =Y27*$B31 -> 0 | Z31: 0 | AB31: =AB27*$B31 -> 0 | AC31: 0
A32: LT Interest | D32: 0 | E32: 0 | G32: 0 | H32: 0 | J32: 0 | K32: 0 | M32: 0 | N32: 0 | P32: 0 | Q32: 0 | S32: 0 | T32: 0 | V32: 0 | W32: 0 | Y32: 0 | Z32: 0 | AB32: 0 | AC32: 0
A33: ROE | D33: 0 | E33: 0 | G33: 0 | H33: 0 | J33: 0 | K33: 0 | M33: 0 | N33: 0 | P33: 0 | Q33: 0 | S33: 0 | T33: 0 | V33: 0 | W33: 0 | Y33: 0 | Z33: 0 | AB33: 0 | AC33: 0
A34: Cost of Capital Total | D34: =SUM(D31:D33) -> 0 | E34: =SUM(E31:E33) -> 0 | G34: =SUM(G31:G33) -> 0 | H34: =SUM(H31:H33) -> 0 | J34: =SUM(J31:J33) -> 0 | K34: =SUM(K31:K33) -> 0 | M34: =SUM(M31:M33) -> 0 | N34: =SUM(N31:N33) -> 0 | P34: =SUM(P31:P33) -> 0 | Q34: =SUM(Q31:Q33) -> 0 | S34: =SUM(S31:S33) -> 0 | T34: =SUM(T31:T33) -> 0 | V34: =SUM(V31:V33) -> 0 | W34: =SUM(W31:W33) -> 0 | Y34: =SUM(Y31:Y33) -> 0 | Z34: =SUM(Z31:Z33) -> 0 | AB34: =SUM(AB31:AB33) -> 0 | AC34: =SUM(AC31:AC33) -> 0
A36: OM&A | D36: =D21+D22 -> 0 | E36: =E22 -> 0 | G36: =G21+G22 -> 0 | H36: =H22 -> 0 | J36: =J21+J22 -> 0 | K36: =K22 -> 0 | M36: =M21+M22 -> 0 | N36: =N22 -> 0 | P36: =P21+P22 -> 0 | Q36: =Q22 -> 0 | S36: =S21+S22 -> 0 | T36: =T22 -> 0 | V36: =V21+V22 -> 0 | W36: =W22 -> 0 | Y36: =Y21+Y22 -> 0 | Z36: =Z22 -> 0 | AB36: =AB21+AB22 -> 0 | AC36: =AC22 -> 0
A37: Amortization | C37: =D77 -> 0 | D37: =C37*D$19 -> 0 | E37: =C37*E$19 -> 0 | F37: =E77 -> 0 | G37: =F37*G$19 -> 0 | H37: =F37*H$19 -> 0 | I37: =F77 -> 0 | J37: =I37*J$19 -> 0 | K37: =I37*K$19 -> 0 | L37: =G77 -> 0 | M37: =L37*M$19 -> 0 | N37: =L37*N$19 -> 0 | O37: =H77 -> 0 | P37: =O37*P$19 -> 0 | Q37: =O37*Q$19 -> 0 | R37: =I76+I77 -> 0 | S37: =R37*S$19 -> 0 | T37: =R37*T$19 -> 0 | U37: =J76+J77 -> 0 | V37: =U37*V$19 -> 0 | W37: =U37*W$19 -> 0 | X37: =K76+K77 -> 0 | Y37: =X37*Y$19 -> 0 | Z37: =X37*Z$19 -> 0 | AA37: =L76+L77 -> 0 | AB37: =AA37*AB$19 -> 0 | AC37: =AA37*AC$19 -> 0
A38: Grossed-up PILs | D38: =D65 -> 0 | E38: =E65 -> 0 | G38: =G65 -> 0 | H38: =H65 -> 0 | J38: =J65 -> 0 | K38: =K65 -> 0 | M38: =M65 -> 0 | N38: =N65 -> 0 | P38: =P65 -> 0 | Q38: =Q65 -> 0 | S38: =S65 -> 0 | T38: =T65 -> 0 | V38: =V65 -> 0 | W38: =W65 -> 0 | Y38: =Y65 -> 0 | Z38: =Z65 -> 0 | AB38: =AB65 -> 0 | AC38: =AC65 -> 0
A40: Revenue Requirement | D40: =SUM(D34:D38) -> 0 | E40: =SUM(E34:E38) -> 0 | G40: =SUM(G34:G38) -> 0 | H40: =SUM(H34:H38) -> 0 | J40: =SUM(J34:J38) -> 0 | K40: =SUM(K34:K38) -> 0 | M40: =SUM(M34:M38) -> 0 | N40: =SUM(N34:N38) -> 0 | P40: =SUM(P34:P38) -> 0 | Q40: =SUM(Q34:Q38) -> 0 | S40: =SUM(S34:S38) -> 0 | T40: =SUM(T34:T38) -> 0 | V40: =SUM(V34:V38) -> 0 | W40: =SUM(W34:W38) -> 0 | Y40: =SUM(Y34:Y38) -> 0 | Z40: =SUM(Z34:Z38) -> 0 | AB40: =SUM(AB34:AB38) -> 0 | AC40: =SUM(AC34:AC38) -> 0
A43: Provincial Rate Protection | E43: =E40 -> 0 | H43: =H40 -> 0 | K43: =K40 -> 0 | N43: =N40 -> 0 | Q43: =Q40 -> 0 | T43: =T40 -> 0 | W43: =W40 -> 0 | Z43: =Z40 -> 0 | AC43: =AC40 -> 0
A45: Monthly Amount Paid by IESO | E45: =E43/12 -> 0 | H45: =H43/12 -> 0 | K45: =K43/12 -> 0 | N45: =N43/12 -> 0 | Q45: =Q43/12 -> 0 | T45: =T43/12 -> 0 | W45: =W43/12 -> 0 | Z45: =Z43/12 -> 0 | AC45: =AC43/12 -> 0
A47: Note 1: The difference between the actual costs of approved eligible investments and revenue received from the IESO should be recorded in a variance account. The Board may provide
A48: regulatory accounting guidance regarding a variance account either in an individual proceeding or on a generic basis.
A49: Note 2: For the 2016 Test Year, Costs and Revenues of the Direct Benefit are to be included in the test year applicant Rate Base and Revenues.
A51: PILs Calculation
D52: 2012 | G52: 2013 | J52: 2014 | M52: 2015 | P52: 2016 | S52: =P52+1 -> 2017 | V52: =S52+1 -> 2018 | Y52: =V52+1 -> 2019 | AB52: =Y52+1 -> 2020
A53: Income Tax | D53: Direct Benefit | E53: Provincial | G53: Direct Benefit | H53: Provincial | J53: Direct Benefit | K53: Provincial | M53: Direct Benefit | N53: Provincial | P53: Direct Benefit | Q53: Provincial | S53: Direct Benefit | T53: Provincial | V53: Direct Benefit | W53: Provincial | Y53: Direct Benefit | Z53: Provincial | AB53: Direct Benefit | AC53: Provincial
X54: Total | AA54: Total
A55: Net Income - ROE on Rate Base | D55: =D33 -> 0 | E55: =E33 -> 0 | G55: =G33 -> 0 | H55: =H33 -> 0 | J55: =J33 -> 0 | K55: =K33 -> 0 | M55: =M33 -> 0 | N55: =N33 -> 0 | P55: =P33 -> 0 | Q55: =Q33 -> 0 | S55: =S33 -> 0 | T55: =T33 -> 0 | V55: =V33 -> 0 | W55: =W33 -> 0 | Y55: =Y33 -> 0 | Z55: =Z33 -> 0 | AB55: =AB33 -> 0 | AC55: =AC33 -> 0
A56: Amortization (6% DB and 94% P) | D56: =D37 -> 0 | E56: =E37 -> 0 | G56: =G37 -> 0 | H56: =H37 -> 0 | J56: =J37 -> 0 | K56: =K37 -> 0 | M56: =M37 -> 0 | N56: =N37 -> 0 | P56: =P37 -> 0 | Q56: =Q37 -> 0 | S56: =S37 -> 0 | T56: =T37 -> 0 | V56: =V37 -> 0 | W56: =W37 -> 0 | Y56: =Y37 -> 0 | Z56: =Z37 -> 0 | AB56: =AB37 -> 0 | AC56: =AC37 -> 0
A57: CCA (6% DB and 94% P) | D57: =-D94*D$19 -> 0 | E57: =-D94*E$19 -> 0 | G57: =-E94*G19 -> 0 | H57: =-E94*H$19 -> 0 | J57: =-F94*J$19 -> 0 | K57: =-F94*K$19 -> 0 | M57: =-G94*M$19 -> 0 | N57: =-G94*N$19 -> 0 | P57: =-H94*P$19 -> 0 | Q57: =-H94*Q$19 -> 0 | S57: =-I94*S$19 -> 0 | T57: =-I94*T$19 -> 0 | V57: =-J94*V$19 -> 0 | W57: =-J94*W$19 -> 0 | Y57: =-K94*Y$19 -> 0 | Z57: =-K94*Z$19 -> 0 | AB57: =-L94*AB$19 -> 0 | AC57: =-L94*AC$19 -> 0
A58: Taxable income | D58: =SUM(D55:D57) -> 0 | E58: =SUM(E55:E57) -> 0 | G58: =SUM(G55:G57) -> 0 | H58: =SUM(H55:H57) -> 0 | J58: =SUM(J55:J57) -> 0 | K58: =SUM(K55:K57) -> 0 | M58: =SUM(M55:M57) -> 0 | N58: =SUM(N55:N57) -> 0 | P58: =SUM(P55:P57) -> 0 | Q58: =SUM(Q55:Q57) -> 0 | S58: =SUM(S55:S57) -> 0 | T58: =SUM(T55:T57) -> 0 | V58: =SUM(V55:V57) -> 0 | W58: =SUM(W55:W57) -> 0 | Y58: =SUM(Y55:Y57) -> 0 | Z58: =SUM(Z55:Z57) -> 0 | AB58: =SUM(AB55:AB57) -> 0 | AC58: =SUM(AC55:AC57) -> 0
A60: Tax Rate (to be entered)
A62: Income Taxes Payable | D62: =D58*D60 -> 0 | E62: =E58*E60 -> 0 | G62: =G58*G60 -> 0 | H62: =H58*H60 -> 0 | J62: =J58*J60 -> 0 | K62: =K58*K60 -> 0 | M62: =M58*M60 -> 0 | N62: =N58*N60 -> 0 | P62: =P58*P60 -> 0 | Q62: =Q58*Q60 -> 0 | S62: =S58*S60 -> 0 | T62: =T58*T60 -> 0 | V62: =V58*V60 -> 0 | W62: =W58*W60 -> 0 | Y62: =Y58*Y60 -> 0 | Z62: =Z58*Z60 -> 0 | AB62: =AB58*AB60 -> 0 | AC62: =AC58*AC60 -> 0
A63: Gross Up
A64: Income Taxes Payable | D64: =D62/(1-D60) -> 0 | E64: =E62/(1-E60) -> 0 | G64: =G62/(1-G60) -> 0 | H64: =H62/(1-H60) -> 0 | J64: =J62/(1-J60) -> 0 | K64: =K62/(1-K60) -> 0 | M64: =M62/(1-M60) -> 0 | N64: =N62/(1-N60) -> 0 | P64: =P62/(1-P60) -> 0 | Q64: =Q62/(1-Q60) -> 0 | S64: =S62/(1-S60) -> 0 | T64: =T62/(1-T60) -> 0 | V64: =V62/(1-V60) -> 0 | W64: =W62/(1-W60) -> 0 | Y64: =Y62/(1-Y60) -> 0 | Z64: =Z62/(1-Z60) -> 0 | AB64: =AB62/(1-AB60) -> 0 | AC64: =AC62/(1-AC60) -> 0
A65: Grossed Up PILs | D65: =SUM(D64:D64) -> 0 | E65: =SUM(E64:E64) -> 0 | G65: =SUM(G64:G64) -> 0 | H65: =SUM(H64:H64) -> 0 | J65: =SUM(J64:J64) -> 0 | K65: =SUM(K64:K64) -> 0 | M65: =SUM(M64:M64) -> 0 | N65: =SUM(N64:N64) -> 0 | P65: =SUM(P64:P64) -> 0 | Q65: =SUM(Q64:Q64) -> 0 | S65: =SUM(S64:S64) -> 0 | T65: =SUM(T64:T64) -> 0 | V65: =SUM(V64:V64) -> 0 | W65: =SUM(W64:W64) -> 0 | Y65: =SUM(Y64:Y64) -> 0 | Z65: =SUM(Z64:Z64) -> 0 | AB65: =SUM(AB64:AB64) -> 0 | AC65: =SUM(AC64:AC64) -> 0
D68: 2012 | E68: 2013 | F68: 2014 | G68: 2015 | H68: 2016 | I68: =H68+1 -> 2017 | J68: =I68+1 -> 2018 | K68: =J68+1 -> 2019 | L68: =K68+1 -> 2020
A69: Net Fixed Assets
B70: Enter applicable amortization in years: | C70: 25
A71: Opening Gross Fixed Assets | E71: =D73 -> 0 | F71: 0 | G71: 0 | H71: 0 | I71: 0 | J71: 0 | K71: 0 | L71: 0
A72: Gross Capital Additions | D72: ='App.2-FA Proposed REG Invest.'!C62 -> 0 | E72: ='App.2-FA Proposed REG Invest.'!D62 -> 0 | F72: ='App.2-FA Proposed REG Invest.'!E62 -> 0 | G72: ='App.2-FA Proposed REG Invest.'!F62 -> 0 | H72: ='App.2-FA Proposed REG Invest.'!G62 -> 0 | I72: ='App.2-FA Proposed REG Invest.'!H62 -> 0 | J72: ='App.2-FA Proposed REG Invest.'!I62 -> 0 | K72: ='App.2-FA Proposed REG Invest.'!J62 -> 0 | L72: ='App.2-FA Proposed REG Invest.'!K62 -> 0
A73: Closing Gross Fixed Assets | D73: =SUM(D71:D72) -> 0 | E73: 0 | F73: 0 | G73: 0 | H73: 0 | I73: 0 | J73: 0 | K73: 0 | L73: 0
A75: Opening Accumulated Amortization | E75: =+D78 -> 0 | F75: =E78 -> 0 | G75: 0 | H75: 0 | I75: 0 | J75: 0 | K75: 0 | L75: 0
A76: Current Year Amortization (before additions) | D76: =IF(ISERROR(D71/$C$70), 0, D71/$C$70) -> 0 | E76: 0 | F76: 0 | G76: 0 | H76: 0 | I76: 0 | J76: 0 | K76: 0 | L76: 0
A77: Additions (half year) | D77: =D72/$C$70/2 -> 0 | E77: =E72/$C$70/2 -> 0 | F77: =F72/$C$70/2 -> 0 | G77: =G72/$C$70/2 -> 0 | H77: =H72/$C$70/2 -> 0 | I77: =I72/C70/2 -> 0 | J77: =J72/C70/2 -> 0 | K77: =K72/C70/2 -> 0 | L77: =L72/C70/2 -> 0
A78: Closing Accumulated Amortization | D78: =SUM(D75+D76+D77) -> 0 | E78: =SUM(E75+E76+E77) -> 0 | F78: =SUM(F75+F76+F77) -> 0 | G78: =SUM(G75+G76+G77) -> 0 | H78: =SUM(H75+H76+H77) -> 0 | I78: =SUM(I75:I77) -> 0 | J78: =SUM(J75:J77) -> 0 | K78: =SUM(K75:K77) -> 0 | L78: =SUM(L75:L77) -> 0
A80: Opening Net Fixed Assets | D80: =D71-D75 -> 0 | E80: =E71-E75 -> 0 | F80: =F71-F75 -> 0 | G80: =G71-G75 -> 0 | H80: =H71-H75 -> 0 | I80: =H81 -> 0 | J80: =I81 -> 0 | K80: =J81 -> 0 | L80: =K81 -> 0
A81: Closing Net Fixed Assets | D81: =D73-D78 -> 0 | E81: 0 | F81: 0 | G81: 0 | H81: 0 | I81: 0 | J81: 0 | K81: 0 | L81: 0
A82: Average Net Fixed Assets | D82: =SUM(D80:D81)/2 -> 0 | E82: 0 | F82: 0 | G82: 0 | H82: 0 | I82: 0 | J82: 0 | K82: 0 | L82: 0
A84: UCC for PILs Calculation
D85: 2012 | E85: 2013 | F85: 2014 | G85: 2015 | H85: 2016 | I85: =H85+1 -> 2017 | J85: =I85+1 -> 2018 | K85: =J85+1 -> 2019 | L85: =K85+1 -> 2020
A87: Opening UCC | E87: =D95 -> 0 | F87: 0 | G87: 0 | H87: 0 | I87: 0 | J87: 0 | K87: 0 | L87: 0
A88: Capital Additions (from Appendix 2-FA) | D88: =D72 -> 0 | E88: 0 | F88: 0 | G88: 0 | H88: 0 | I88: 0 | J88: 0 | K88: 0 | L88: 0
A89: UCC Before Half Year Rule | D89: =SUM(D87:D88) -> 0 | E89: 0 | F89: 0 | G89: 0 | H89: 0 | I89: 0 | J89: 0 | K89: 0 | L89: 0
A90: Half Year Rule (1/2 Additions - Disposals) | D90: =D88/2 -> 0 | E90: 0 | F90: 0 | G90: 0 | H90: 0 | I90: 0 | J90: 0 | K90: 0 | L90: 0
A91: Reduced UCC | D91: =D89-D90 -> 0 | E91: 0 | F91: 0 | G91: 0 | H91: 0 | I91: 0 | J91: 0 | K91: 0 | L91: 0
A92: CCA Rate Class (to be entered) | C92: 47 | D92: =C92 -> 47 | E92: =D92 -> 47 | F92: 47 | G92: 47 | H92: 47 | I92: 47 | J92: 47 | K92: 47 | L92: 47
A93: CCA Rate (to be entered) | C93: 0.08 | D93: =C93 -> 0.08 | E93: 0.08 | F93: 0.08 | G93: 0.08 | H93: 0.08 | I93: 0.08 | J93: 0.08 | K93: 0.08 | L93: 0.08
A94: CCA | D94: =D91*D93 -> 0 | E94: 0 | F94: 0 | G94: 0 | H94: 0 | I94: 0 | J94: 0 | K94: 0 | L94: 0
A95: Closing UCC | D95: =D89-D94 -> 0 | E95: 0 | F95: 0 | G95: 0 | H95: 0 | I95: 0 | J95: 0 | K95: 0 | L95: 0

Sheet App.2-FC Calc of REG Expansion
N1: File Number: | O1: =EBNUMBER -> EB-2016-0089
N2: Exhibit:
N3: Tab:
N4: Schedule:
N5: Page:
N7: Date:
A9: Appendix 2-FC
A10: Calculation of Renewable Generation Connection Direct Benefits/Provincial Amount: Renewable Expansion Investments
A12: This table will calculate the distributor/provincial shares of the investments entered in Part B of Appendix 2-FA.
A13: Enter values in green shaded cells: WCA percentage, debt percentages, interest rates, kWh, tax rates, amortization period, CCA Class and percentage.
A14: For historical investments, enter these variables for your last cost of service test year. For 2016 and beyond, enter variables as in the application.
A15: Rate Riders are not calculated for Test Year as these assets and costs are already in the distributor's rate base.
D18: 2012 | G18: 2013 | J18: 2014 | M18: 2015 | P18: 2016 TEST YEAR | S18: 2017 | T18: 2016 | V18: 2018 | Y18: 2019 | AB18: 2020
E19: Direct Benefit | F19: Provincial | H19: Direct Benefit | I19: Provincial | K19: Direct Benefit | L19: Provincial | N19: Direct Benefit | O19: Provincial | Q19: Direct Benefit | R19: Provincial | T19: Direct Benefit | U19: Provincial | W19: Direct Benefit | X19: Provincial | Z19: Direct Benefit | AA19: Provincial | AC19: Direct Benefit | AD19: Provincial
D20: Total | E20: 0.17 | F20: 0.83 | G20: Total | H20: 0.17 | I20: 0.83 | J20: Total | K20: 0.17 | L20: 0.83 | M20: Total | N20: 0.17 | O20: 0.83 | P20: Total | Q20: 0.17 | R20: 0.83 | S20: Total | T20: 0.17 | U20: 0.83 | V20: Total | W20: 0.17 | X20: 0.83 | Y20: Total | Z20: 0.17 | AA20: 0.83 | AB20: Total | AC20: 0.17 | AD20: 0.83
A21: Net Fixed Assets (average) | D21: =D82 -> 0 | E21: =D21*E20 -> 0 | F21: =D21*F20 -> 0 | G21: =E82 -> 0 | H21: =G21*H20 -> 0 | I21: =G21*I20 -> 0 | J21: =F82 -> 0 | K21: =J21*K20 -> 0 | L21: =J21*L20 -> 0 | M21: =G82 -> 0 | N21: =M21*N20 -> 0 | O21: =M21*O20 -> 0 | P21: =H82 -> 0 | Q21: =P21*Q20 -> 0 | R21: =P21*R20 -> 0 | S21: =I82 -> 0 | T21: =S21*T20 -> 0 | U21: =S21*U20 -> 0 | V21: =J82 -> 0 | W21: =V21*W20 -> 0 | X21: =V21*X20 -> 0 | Y21: =K82 -> 0 | Z21: =Y21*Z20 -> 0 | AA21: =Y21*AA20 -> 0 | AB21: =L82 -> 0 | AC21: =AB21*AC20 -> 0 | AD21: =AB21*AD20 -> 0
A22: Incremental OM&A (on-going, N/A for Provincial Recovery) | D22: ='App.2-FA Proposed REG Invest.'!C101 -> 0 | E22: =D22 -> 0 | G22: ='App.2-FA Proposed REG Invest.'!D$101 -> 0 | H22: =G22 -> 0 | J22: ='App.2-FA Proposed REG Invest.'!E$101 -> 0 | K22: =J22 -> 0 | M22: ='App.2-FA Proposed REG Invest.'!F$101 -> 0 | N22: =M22 -> 0 | P22: ='App.2-FA Proposed REG Invest.'!G$101 -> 0 | Q22: =P22 -> 0 | S22: ='App.2-FA Proposed REG Invest.'!H$101 -> 0 | T22: =S22 -> 0 | V22: ='App.2-FA Proposed REG Invest.'!I$101 -> 0 | W22: =V22 -> 0 | Y22: ='App.2-FA Proposed REG Invest.'!J$101 -> 0 | Z22: =Y22 -> 0 | AB22: ='App.2-FA Proposed REG Invest.'!K$101 -> 0 | AC22: =AB22 -> 0
A23: Incremental OM&A (start-up, applicable for Provincial Recovery) | D23: ='App.2-FA Proposed REG Invest.'!C100 -> 0 | E23: =D23*E20 -> 0 | F23: =D23*F20 -> 0 | G23: ='App.2-FA Proposed REG Invest.'!D$100 -> 0 | H23: =G23*H20 -> 0 | I23: =G23*I20 -> 0 | J23: ='App.2-FA Proposed REG Invest.'!E$100 -> 0 | K23: =J23*K20 -> 0 | L23: =J23*L20 -> 0 | M23: ='App.2-FA Proposed REG Invest.'!F$100 -> 0 | N23: =M23*N20 -> 0 | O23: =M23*O20 -> 0 | P23: ='App.2-FA Proposed REG Invest.'!G$100 -> 0 | Q23: =P23*Q20 -> 0 | R23: =P23*R20 -> 0 | S23: ='App.2-FA Proposed REG Invest.'!H$100 -> 0 | T23: =S23*T20 -> 0 | U23: =S23*U20 -> 0 | V23: ='App.2-FA Proposed REG Invest.'!I$100 -> 0 | W23: =V23*W20 -> 0 | X23: =V23*X20 -> 0 | Y23: ='App.2-FA Proposed REG Invest.'!J$100 -> 0 | Z23: =Y23*Z20 -> 0 | AA23: =Y23*AA20 -> 0 | AB23: ='App.2-FA Proposed REG Invest.'!K$100 -> 0 | AC23: =AB23*AC20 -> 0 | AD23: =AB23*AD20 -> 0
A24: WCA | E24: =(E22+E23)*$B$24 -> 0 | F24: =F23*$B$24 -> 0 | H24: =(H22+H23)*$B$24 -> 0 | I24: =I23*$B$24 -> 0 | K24: =(K22+K23)*$B$24 -> 0 | L24: =L23*$B$24 -> 0 | N24: =(N22+N23)*$B$24 -> 0 | O24: =O23*$B$24 -> 0 | Q24: =(Q22+Q23)*$B$24 -> 0 | R24: =R23*$B$24 -> 0 | T24: =(T22+T23)*$B$24 -> 0 | U24: =U23*$B$24 -> 0 | W24: =(W22+W23)*$B$24 -> 0 | X24: =X23*$B$24 -> 0 | Z24: =(Z22+Z23)*$B$24 -> 0 | AA24: =AA23*$B$24 -> 0 | AC24: =(AC22+AC23)*$B$24 -> 0 | AD24: =AD23*$B$24 -> 0
A25: Rate Base | E25: =SUM(E21+E24) -> 0 | F25: =SUM(F21+F24) -> 0 | H25: =SUM(H21+H24) -> 0 | I25: =SUM(I21+I24) -> 0 | K25: =SUM(K21+K24) -> 0 | L25: =SUM(L21+L24) -> 0 | N25: =SUM(N21+N24) -> 0 | O25: =SUM(O21+O24) -> 0 | Q25: =SUM(Q21+Q24) -> 0 | R25: =SUM(R21+R24) -> 0 | T25: =SUM(T21+T24) -> 0 | U25: =SUM(U21+U24) -> 0 | W25: =SUM(W21+W24) -> 0 | X25: =SUM(X21+X24) -> 0 | Z25: =SUM(Z21+Z24) -> 0 | AA25: =SUM(AA21+AA24) -> 0 | AC25: =SUM(AC21+AC24) -> 0 | AD25: =SUM(AD21+AD24) -> 0
A28: Deemed ST Debt | E28: =E25*$B$28 -> 0 | F28: =F25*$B$28 -> 0 | H28: =H25*$B$28 -> 0 | I28: =I25*$B$28 -> 0 | K28: =K25*$B$28 -> 0 | L28: =L25*$B$28 -> 0 | N28: =N25*$B$28 -> 0 | O28: =O25*$B$28 -> 0 | Q28: =Q25*$B$28 -> 0 | R28: =R25*$B$28 -> 0 | T28: =T25*$B$28 -> 0 | U28: =U25*$B$28 -> 0 | W28: =W25*$B$28 -> 0 | X28: =X25*$B$28 -> 0 | Z28: =Z25*$B$28 -> 0 | AA28: =AA25*$B$28 -> 0 | AC28: =AC25*$B$28 -> 0 | AD28: =AD25*$B$28 -> 0
A29: Deemed LT Debt | E29: =E25*$B$29 -> 0 | F29: =F25*$B$29 -> 0 | H29: =H25*$B$29 -> 0 | I29: =I25*$B$29 -> 0 | K29: =K25*$B$29 -> 0 | L29: =L25*$B$29 -> 0 | N29: =N25*$B$29 -> 0 | O29: =O25*$B$29 -> 0 | Q29: =Q25*$B$29 -> 0 | R29: =R25*$B$29 -> 0 | T29: =T25*$B$29 -> 0 | U29: =U25*$B$29 -> 0 | W29: =W25*$B$29 -> 0 | X29: =X25*$B$29 -> 0 | Z29: =Z25*$B$29 -> 0 | AA29: =AA25*$B$29 -> 0 | AC29: =AC25*$B$29 -> 0 | AD29: =AD25*$B$29 -> 0
A30: Deemed Equity | E30: =E25*$B$30 -> 0 | F30: =F25*$B$30 -> 0 | H30: =H25*$B$30 -> 0 | I30: =I25*$B$30 -> 0 | K30: =K25*$B$30 -> 0 | L30: =L25*$B$30 -> 0 | N30: =N25*$B$30 -> 0 | O30: =O25*$B$30 -> 0 | Q30: =Q25*$B$30 -> 0 | R30: =R25*$B$30 -> 0 | T30: =T25*$B$30 -> 0 | U30: =U25*$B$30 -> 0 | W30: =W25*$B$30 -> 0 | X30: =X25*$B$30 -> 0 | Z30: =Z25*$B$30 -> 0 | AA30: =AA25*$B$30 -> 0 | AC30: =AC25*$B$30 -> 0 | AD30: =AD25*$B$30 -> 0
A32: ST Interest | E32: =E28*$B$32 -> 0 | F32: =F28*$B$32 -> 0 | H32: =H28*$B$32 -> 0 | I32: =I28*$B$32 -> 0 | K32: =K28*$B$32 -> 0 | L32: =L28*$B$32 -> 0 | N32: =N28*$B$32 -> 0 | O32: =O28*$B$32 -> 0 | Q32: =Q28*$B$32 -> 0 | R32: =R28*$B$32 -> 0 | T32: =T28*$B$32 -> 0 | U32: =U28*$B$32 -> 0 | W32: =W28*$B$32 -> 0 | X32: =X28*$B$32 -> 0 | Z32: =Z28*$B$32 -> 0 | AA32: =AA28*$B$32 -> 0 | AC32: =AC28*$B$32 -> 0 | AD32: =AD28*$B$32 -> 0
A33: LT Interest | E33: =E29*$B$33 -> 0 | F33: =F29*$B$33 -> 0 | H33: =H29*$B$33 -> 0 | I33: =I29*$B$33 -> 0 | K33: =K29*$B$33 -> 0 | L33: =L29*$B$33 -> 0 | N33: =N29*$B$33 -> 0 | O33: =O29*$B$33 -> 0 | Q33: =Q29*$B$33 -> 0 | R33: =R29*$B$33 -> 0 | T33: =T29*$B$33 -> 0 | U33: =U29*$B$33 -> 0 | W33: =W29*$B$33 -> 0 | X33: =X29*$B$33 -> 0 | Z33: =Z29*$B$33 -> 0 | AA33: =AA29*$B$33 -> 0 | AC33: =AC29*$B$33 -> 0 | AD33: =AD29*$B$33 -> 0
A34: ROE | E34: =E30*$B$34 -> 0 | F34: =F30*$B$34 -> 0 | H34: =H30*$B$34 -> 0 | I34: =I30*$B$34 -> 0 | K34: =K30*$B$34 -> 0 | L34: =L30*$B$34 -> 0 | N34: =N30*$B$34 -> 0 | O34: =O30*$B$34 -> 0 | Q34: =Q30*$B$34 -> 0 | R34: =R30*$B$34 -> 0 | T34: =T30*$B$34 -> 0 | U34: =U30*$B$34 -> 0 | W34: =W30*$B$34 -> 0 | X34: =X30*$B$34 -> 0 | Z34: =Z30*$B$34 -> 0 | AA34: =AA30*$B$34 -> 0 | AC34: =AC30*$B$34 -> 0 | AD34: =AD30*$B$34 -> 0
A35: Cost of Capital Total | E35: =SUM(E32:E34) -> 0 | F35: =SUM(F32:F34) -> 0 | H35: =SUM(H32:H34) -> 0 | I35: =SUM(I32:I34) -> 0 | K35: =SUM(K32:K34) -> 0 | L35: =SUM(L32:L34) -> 0 | N35: =SUM(N32:N34) -> 0 | O35: =SUM(O32:O34) -> 0 | Q35: =SUM(Q32:Q34) -> 0 | R35: =SUM(R32:R34) -> 0 | T35: =SUM(T32:T34) -> 0 | U35: =SUM(U32:U34) -> 0 | W35: =SUM(W32:W34) -> 0 | X35: =SUM(X32:X34) -> 0 | Z35: =SUM(Z32:Z34) -> 0 | AA35: =SUM(AA32:AA34) -> 0 | AC35: =SUM(AC32:AC34) -> 0 | AD35: =SUM(AD32:AD34) -> 0
A37: OM&A | E37: =E22+E23 -> 0 | F37: =F23 -> 0 | H37: =H22+H23 -> 0 | I37: =I23 -> 0 | K37: =K22+K23 -> 0 | L37: =L23 -> 0 | N37: =N22+N23 -> 0 | O37: =O23 -> 0 | Q37: =Q22+Q23 -> 0 | R37: =R23 -> 0 | T37: =T22+T23 -> 0 | U37: =U23 -> 0 | W37: =W22+W23 -> 0 | X37: =X23 -> 0 | Z37: =Z22+Z23 -> 0 | AA37: =AA23 -> 0 | AC37: =AC22+AC23 -> 0 | AD37: =AD23 -> 0
A38: Amortization | D38: =D78 -> 0 | E38: =D38*E$20 -> 0 | F38: =D38*F$20 -> 0 | G38: =E78 -> 0 | H38: =G38*H$20 -> 0 | I38: =G38*I$20 -> 0 | J38: =F78 -> 0 | K38: =J38*K$20 -> 0 | L38: =J38*L$20 -> 0 | M38: =G78 -> 0 | N38: =M38*N$20 -> 0 | O38: =M38*O$20 -> 0 | P38: =H76+H77 -> 0 | Q38: =P38*Q$20 -> 0 | R38: =P38*R$20 -> 0 | S38: =I76+I77 -> 0 | T38: =S38*T$20 -> 0 | U38: =S38*U$20 -> 0 | V38: =J76+J77 -> 0 | W38: =V38*W$20 -> 0 | X38: =V38*X$20 -> 0 | Y38: =K76+K77 -> 0 | Z38: =Y38*Z$20 -> 0 | AA38: =Y38*AA$20 -> 0 | AB38: =L76+L77 -> 0 | AC38: =AB38*AC$20 -> 0 | AD38: =AB38*AD$20 -> 0
A39: Grossed-up PILs | E39: =E66 -> 0 | F39: =F66 -> 0 | H39: =H66 -> 0 | I39: =I66 -> 0 | K39: =K66 -> 0 | L39: =L66 -> 0 | N39: =N66 -> 0 | O39: =O66 -> 0 | Q39: =Q66 -> 0 | R39: =R66 -> 0 | T39: =T66 -> 0 | U39: =U66 -> 0 | W39: =W66 -> 0 | X39: =X66 -> 0 | Z39: =Z66 -> 0 | AA39: =AA66 -> 0 | AC39: =AC66 -> 0 | AD39: =AD66 -> 0
A41: Revenue Requirement | E41: =SUM(E35:E39) -> 0 | F41: =SUM(F35:F39) -> 0 | H41: =SUM(H35:H39) -> 0 | I41: =SUM(I35:I39) -> 0 | K41: =SUM(K35:K39) -> 0 | L41: =SUM(L35:L39) -> 0 | N41: =SUM(N35:N39) -> 0 | O41: =SUM(O35:O39) -> 0 | Q41: =SUM(Q35:Q39) -> 0 | R41: =SUM(R35:R39) -> 0 | T41: =SUM(T35:T39) -> 0 | U41: =SUM(U35:U39) -> 0 | W41: =SUM(W35:W39) -> 0 | X41: =SUM(X35:X39) -> 0 | Z41: =SUM(Z35:Z39) -> 0 | AA41: =SUM(AA35:AA39) -> 0 | AC41: =SUM(AC35:AC39) -> 0 | AD41: =SUM(AD35:AD39) -> 0
A44: Provincial Rate Protection | F44: =F41 -> 0 | I44: =I41 -> 0 | L44: =L41 -> 0 | O44: =O41 -> 0 | R44: =R41 -> 0 | U44: =U41 -> 0 | X44: =X41 -> 0 | AA44: =AA41 -> 0 | AD44: =AD41 -> 0
A46: Monthly Amount Paid by IESO | F46: =F44/12 -> 0 | I46: =I44/12 -> 0 | L46: =L44/12 -> 0 | O46: =O44/12 -> 0 | R46: =R44/12 -> 0 | U46: =U44/12 -> 0 | X46: =X44/12 -> 0 | AA46: =AA44/12 -> 0 | AD46: =AD44/12 -> 0
A48: Note 1: The difference between the actual costs of approved eligible investments and revenue received from the IESO should be recorded in a variance account. The Board may provide
A49: regulatory accounting guidance regarding a variance account either in an individual proceeding or on a generic basis.
A50: Note 2: For the 2016 Test Year, Costs and Revenues of the Direct Benefit are to be included in the test year applicant Rate Base and Revenues.
A52: PILs Calculation
E53: 2012 | H53: 2013 | K53: 2014 | N53: 2015 | Q53: 2016 TEST YEAR | T53: 2017 | W53: 2018 | Z53: 2019 | AC53: 2020
A54: Income Tax | E54: Direct Benefit | F54: Provincial | H54: Direct Benefit | I54: Provincial | K54: Direct Benefit | L54: Provincial | N54: Direct Benefit | O54: Provincial | Q54: Direct Benefit | R54: Provincial | T54: Direct Benefit | U54: Provincial | W54: Direct Benefit | X54: Provincial | Z54: Direct Benefit | AA54: Provincial | AC54: Direct Benefit | AD54: Provincial
V55: Total | Y55: Total | AB55: Total
A56: Net Income - ROE on Rate Base | E56: =E34 -> 0 | F56: =F34 -> 0 | H56: =H34 -> 0 | I56: =I34 -> 0 | K56: =K34 -> 0 | L56: =L34 -> 0 | N56: =N34 -> 0 | O56: =O34 -> 0 | Q56: =Q34 -> 0 | R56: =R34 -> 0 | T56: =T34 -> 0 | U56: =U34 -> 0 | W56: =W34 -> 0 | X56: =X34 -> 0 | Z56: =Z34 -> 0 | AA56: =AA34 -> 0 | AC56: =AC34 -> 0 | AD56: =AD34 -> 0
A57: Amortization (17% DB and 83% P) | E57: =E38 -> 0 | F57: =F38 -> 0 | H57: =H38 -> 0 | I57: =I38 -> 0 | K57: =K38 -> 0 | L57: =L38 -> 0 | N57: =N38 -> 0 | O57: =O38 -> 0 | Q57: =Q38 -> 0 | R57: =R38 -> 0 | T57: =T38 -> 0 | U57: =U38 -> 0 | W57: =W38 -> 0 | X57: =X38 -> 0 | Z57: =Z38 -> 0 | AA57: =AA38 -> 0 | AC57: =AC38 -> 0 | AD57: =AD38 -> 0
A58: CCA (17% DB and 83% P) | E58: =-D94*E$20 -> 0 | F58: =-D94*F$20 -> 0 | H58: =-E94*H$20 -> 0 | I58: =-E94*I$20 -> 0 | K58: =-F94*K$20 -> 0 | L58: =-F94*L$20 -> 0 | N58: =-G94*N$20 -> 0 | O58: =-G94*O$20 -> 0 | Q58: =-H94*Q$20 -> 0 | R58: =-H94*R$20 -> 0 | T58: =-I94*T$20 -> 0 | U58: =-I94*U$20 -> 0 | W58: =-J94*W$20 -> 0 | X58: =-J94*X$20 -> 0 | Z58: =-K94*Z$20 -> 0 | AA58: =-K94*AA$20 -> 0 | AC58: =-L94*AC$20 -> 0 | AD58: =-L94*AD$20 -> 0
A59: Taxable income | E59: =SUM(E56:E58) -> 0 | F59: =SUM(F56:F58) -> 0 | H59: =SUM(H56:H58) -> 0 | I59: =SUM(I56:I58) -> 0 | K59: =SUM(K56:K58) -> 0 | L59: =SUM(L56:L58) -> 0 | N59: =SUM(N56:N58) -> 0 | O59: =SUM(O56:O58) -> 0 | Q59: =SUM(Q56:Q58) -> 0 | R59: =SUM(R56:R58) -> 0 | T59: =SUM(T56:T58) -> 0 | U59: =SUM(U56:U58) -> 0 | W59: =SUM(W56:W58) -> 0 | X59: =SUM(X56:X58) -> 0 | Z59: =SUM(Z56:Z58) -> 0 | AA59: =SUM(AA56:AA58) -> 0 | AC59: =SUM(AC56:AC58) -> 0 | AD59: =SUM(AD56:AD58) -> 0
A61: Tax Rate (to be entered)
A63: Income Taxes Payable | E63: =E59*E61 -> 0 | F63: =F59*F61 -> 0 | H63: =H59*H61 -> 0 | I63: =I59*I61 -> 0 | K63: =K59*K61 -> 0 | L63: =L59*L61 -> 0 | N63: =N59*N61 -> 0 | O63: =O59*O61 -> 0 | Q63: =Q59*Q61 -> 0 | R63: =R59*R61 -> 0 | T63: =T59*T61 -> 0 | U63: =U59*U61 -> 0 | W63: =W59*W61 -> 0 | X63: =X59*X61 -> 0 | Z63: =Z59*Z61 -> 0 | AA63: =AA59*AA61 -> 0 | AC63: =AC59*AC61 -> 0 | AD63: =AD59*AD61 -> 0
A64: Gross Up
A65: Income Taxes Payable | E65: =E63/(1-E61) -> 0 | F65: =F63/(1-F61) -> 0 | H65: =H63/(1-H61) -> 0 | I65: =I63/(1-I61) -> 0 | K65: =K63/(1-K61) -> 0 | L65: =L63/(1-L61) -> 0 | N65: =N63/(1-N61) -> 0 | O65: =O63/(1-O61) -> 0 | Q65: =Q63/(1-Q61) -> 0 | R65: =R63/(1-R61) -> 0 | T65: =T63/(1-T61) -> 0 | U65: =U63/(1-U61) -> 0 | W65: =W63/(1-W61) -> 0 | X65: =X63/(1-X61) -> 0 | Z65: =Z63/(1-Z61) -> 0 | AA65: =AA63/(1-AA61) -> 0 | AC65: =AC63/(1-AC61) -> 0 | AD65: =AD63/(1-AD61) -> 0
A66: Grossed Up PILs | E66: =SUM(E65:E65) -> 0 | F66: =SUM(F65:F65) -> 0 | H66: =SUM(H65:H65) -> 0 | I66: =SUM(I65:I65) -> 0 | K66: =SUM(K65:K65) -> 0 | L66: =SUM(L65:L65) -> 0 | N66: =SUM(N65:N65) -> 0 | O66: =SUM(O65:O65) -> 0 | Q66: =SUM(Q65:Q65) -> 0 | R66: =SUM(R65:R65) -> 0 | T66: =SUM(T65:T65) -> 0 | U66: =SUM(U65:U65) -> 0 | W66: =SUM(W65:W65) -> 0 | X66: =SUM(X65:X65) -> 0 | Z66: =SUM(Z65:Z65) -> 0 | AA66: =SUM(AA65:AA65) -> 0 | AC66: =SUM(AC65:AC65) -> 0 | AD66: =SUM(AD65:AD65) -> 0
A69: Net Fixed Assets | D69: 2011 | E69: 2012 | F69: 2013 | G69: 2014 | H69: 2015 | I69: 2016 | J69: 2017 | K69: 2018 | L69: 2019
B70: Enter applicable amortization in years: | C70: 25
A71: Opening Gross Fixed Assets | E71: =D73 -> 0 | F71: 0 | G71: 0 | H71: 0 | I71: 0 | J71: 0 | K71: 0 | L71: 0
A72: Gross Capital Additions | D72: ='App.2-FA Proposed REG Invest.'!C99 -> 0 | E72: ='App.2-FA Proposed REG Invest.'!D99 -> 0 | F72: ='App.2-FA Proposed REG Invest.'!E99 -> 0 | G72: ='App.2-FA Proposed REG Invest.'!F99 -> 0 | H72: ='App.2-FA Proposed REG Invest.'!G99 -> 0 | I72: ='App.2-FA Proposed REG Invest.'!H99 -> 0 | J72: ='App.2-FA Proposed REG Invest.'!I99 -> 0 | K72: ='App.2-FA Proposed REG Invest.'!J99 -> 0 | L72: ='App.2-FA Proposed REG Invest.'!K99 -> 0
A73: Closing Gross Fixed Assets | D73: =SUM(D71:D72) -> 0 | E73: 0 | F73: 0 | G73: 0 | H73: 0 | I73: 0 | J73: 0 | K73: 0 | L73: 0
A75: Opening Accumulated Amortization | E75: =+D78 -> 0 | F75: =E78 -> 0 | G75: 0 | H75: 0 | I75: 0 | J75: 0 | K75: 0 | L75: 0
A76: Current Year Amortization (before additions) | E76: =IF(ISERROR(E71/$C$70), 0, E71/$C$70) -> 0 | F76: =IF(ISERROR(F71/$C$70), 0, F71/$C$70) -> 0 | G76: =IF(ISERROR(G71/$C$70), 0, G71/$C$70) -> 0 | H76: =H71/$C$70 -> 0 | I76: =I71/$C$70 -> 0 | J76: =J71/$C$70 -> 0 | K76: =K71/$C$70 -> 0 | L76: =L71/$C$70 -> 0
A77: Additions (half year) | D77: =D72/C70/2 -> 0 | E77: =E72/C70/2 -> 0 | F77: =F72/C70/2 -> 0 | G77: =G72/C70/2 -> 0 | H77: =H72/C70/2 -> 0 | I77: =I72/C70/2 -> 0 | J77: =J72/C70/2 -> 0 | K77: =K72/C70/2 -> 0 | L77: =L72/C70/2 -> 0
A78: Closing Accumulated Amortization | D78: =SUM(D75+D77) -> 0 | E78: =SUM(E75:E77) -> 0 | F78: 0 | G78: 0 | H78: 0 | I78: 0 | J78: 0 | K78: 0 | L78: 0
A80: Opening Net Fixed Assets | D80: =D71-D75 -> 0 | E80: =E71-E75 -> 0 | F80: =F71-F75 -> 0 | G80: =G71-G75 -> 0 | H80: =G81 -> 0 | I80: =H81 -> 0 | J80: =I81 -> 0 | K80: =J81 -> 0 | L80: =K81 -> 0
A81: Closing Net Fixed Assets | D81: =D73-D78 -> 0 | E81: 0 | F81: 0 | G81: 0 | H81: 0 | I81: 0 | J81: 0 | K81: 0 | L81: 0
A82: Average Net Fixed Assets | D82: =SUM(D80:D81)/2 -> 0 | E82: 0 | F82: 0 | G82: 0 | H82: 0 | I82: 0 | J82: 0 | K82: 0 | L82: 0
A84: UCC for PILs Calculation
D85: 2014 | E85: 2014 | F85: 2014 | G85: 2014 | H85: 2015 | I85: 2016 | J85: 2017 | K85: 2018 | L85: 2019
A87: Opening UCC | E87: =D95 -> 0 | F87: 0 | G87: 0 | H87: 0 | I87: 0 | J87: 0 | K87: 0 | L87: 0
A88: Capital Additions (from Appendix 2-FA) | D88: =D72 -> 0 | E88: 0 | F88: 0 | G88: 0 | H88: 0 | I88: 0 | J88: 0 | K88: 0 | L88: 0
A89: UCC Before Half Year Rule | D89: =SUM(D87:D88) -> 0 | E89: 0 | F89: 0 | G89: 0 | H89: 0 | I89: 0 | J89: 0 | K89: 0 | L89: 0
A90: Half Year Rule (1/2 Additions - Disposals) | D90: =D88/2 -> 0 | E90: 0 | F90: 0 | G90: 0 | H90: 0 | I90: 0 | J90: 0 | K90: 0 | L90: 0
A91: Reduced UCC | D91: =D89-D90 -> 0 | E91: 0 | F91: 0 | G91: 0 | H91: 0 | I91: 0 | J91: 0 | K91: 0 | L91: 0
A92: CCA Rate Class (to be entered) | C92: 47 | D92: =$C$92 -> 47 | E92: =$C$92 -> 47 | F92: 47 | G92: 47 | H92: 47 | I92: 47 | J92: 47 | K92: 47 | L92: 47
A93: CCA Rate (to be entered) | C93: 0.08 | D93: =$C$93 -> 0.08 | E93: =$C$93 -> 0.08 | F93: 0.08 | G93: 0.08 | H93: 0.08 | I93: 0.08 | J93: 0.08 | K93: 0.08 | L93: 0.08
A94: CCA | D94: =D91*D$93 -> 0 | E94: 0 | F94: 0 | G94: 0 | H94: 0 | I94: 0 | J94: 0 | K94: 0 | L94: 0
A95: Closing UCC | D95: =D89-D94 -> 0 | E95: 0 | F95: 0 | G95: 0 | H95: 0 | I95: 0 | J95: 0 | K95: 0 | L95: 0

Sheet App.2-G SQI
I1: File Number: | K1: =EBNUMBER -> EB-2016-0089
I2: Exhibit: | K2: 2
I3: Tab: | K3: 5
I4: Schedule: | K4: 9
I5: Page: | K5: 58
I7: Date: | K7: 2016-04-29
A9: Appendix 2-G
A10: Service Reliability Indicators
A11: 2011 - 2015
A13: Index | B13: Including outages caused by loss of supply | G13: Excluding outages caused by loss of supply
B14: 2011 | C14: 2012 | D14: 2013 | E14: 2014 | F14: 2015 | G14: 2011 | H14: 2012 | I14: 2013 | J14: 2014 | K14: 2015
A15: SAIDI | B15: 2.26 | C15: 3.27 | D15: 3.36 | E15: 1.06 | F15: 0.69 | G15: 1.94 | H15: 0.5 | I15: 2.48 | J15: 1.06 | K15: 0.49
A16: SAIFI | B16: 1.61 | C16: 3.26 | D16: 2.45 | E16: 0.34 | F16: 0.86 | G16: 1.51 | H16: 1 | I16: 1.24 | J16: 0.34 | K16: 0.46
A18: 5 Year Historical Average
A19: SAIDI | F19: =IF(ISERROR(AVERAGE(B15:F15)), "", AVERAGE(B15:F15)) -> 2.128 | K19: =IF(ISERROR(AVERAGE(G15:K15)), "", AVERAGE(G15:K15)) -> 1.294
A20: SAIFI | F20: =IF(ISERROR(AVERAGE(B16:F16)), "", AVERAGE(B16:F16)) -> 1.704 | K20: =IF(ISERROR(AVERAGE(G16:K16)), "", AVERAGE(G16:K16)) -> 0.91
A22: SAIDI = System Average Interruption Duration Index
A23: SAIFI = System Average Interruption Frequency Index
A26: Indicator | C26: OEB Minimum Standard | D26: 2011 | E26: 2012 | F26: 2013 | G26: 2014 | H26: 2015
A27: Low Voltage Connections | C27: 0.9 | D27: 1 | E27: 1 | F27: 1 | G27: 0.94 | H27: 1
A28: High Voltage Connections | C28: 0.9 | D28: 1 | E28: 1 | F28: 1 | G28: 1 | H28: 1
A29: Telephone Accessibility | C29: 0.65 | D29: 1 | E29: 1 | F29: 1 | G29: 0.97 | H29: 0.92
A30: Appointments Met | C30: 0.9 | D30: 1 | E30: 1 | F30: 1 | G30: 1 | H30: 1
A31: Written Response to Enquires | C31: 0.8 | D31: 1 | E31: 1 | F31: 1 | G31: 1 | H31: 1
A32: Emergency Urban Response | C32: 0.8 | D32: 1 | E32: 1 | F32: 1 | G32: 1 | H32: 1
A33: Emergency Rural Response | C33: 0.8 | D33: N/A | E33: N/A | F33: N/A | G33: N/A | H33: N/A
A34: Telephone Call Abandon Rate | C34: 0.1 | D34: 0 | E34: 0 | F34: 0 | G34: 0.005 | H34: 0.009
A35: Appointment Scheduling | C35: 0.9 | D35: 1 | E35: 1 | F35: 1 | G35: 1 | H35: 1
A36: Rescheduling a Missed Appointment | C36: 1 | D36: N/A | E36: N/A | F36: N/A | G36: N/A | H36: N/A
A37: Reconnection Performance Standard | C37: 0.85 | D37: N/A | E37: N/A | F37: 1 | G37: 0.93 | H37: 0.97

Sheet App.2-H_Other_Oper_Rev
H1: File Number: | I1: =EBNUMBER -> EB-2016-0089
H2: Exhibit: | I2: 3
H3: Tab: | I3: 5
H4: Schedule: | I4: 1
H5: Page: | I5: 49-50
H7: Date: | I7: 2016-04-29
A9: Appendix 2-H
A10: Other Operating Revenue
A12: USoA # | B12: USoA Description | C12: =E13-2 & " Actual" -> 2012 Actual | D12: =E13-1 & " Actual" & CHAR(178) -> 2013 Actual² | E12: ="Actual Year" & CHAR(178) -> Actual Year² | F12: ="Actual Year" & CHAR(178) -> Actual Year² | G12: ="Actual Year" & CHAR(178) -> Actual Year² | H12: ="Bridge Year" & CHAR(178) -> Bridge Year² | I12: Test Year
C13: =D13-1 -> 2012 | D13: =E13-1 -> 2013 | E13: =H13-2 -> 2014 | F13: =E13 -> 2014 | G13: =I13-2 -> 2015 | H13: =BridgeYear -> 2016 | I13: =TestYear -> 2017
B14: Reporting Basis | C14: MIFRS | D14: MIFRS | E14: CGAAP | F14: MIFRS | G14: MIFRS | H14: MIFRS | I14: MIFRS
A15: 4235 | B15: Specific Service Charges | C15: =[13]Summary!D7 -> 150289.2 | D15: =[13]Summary!E7 -> 280943.87 | E15: =[13]Summary!F7 -> 233900.46 | F15: =[13]Summary!G7 -> 233900.46 | G15: =[13]Summary!H7 -> 141958.31 | H15: =[13]Summary!I7 -> 143626.5821 | I15: =[13]Summary!J7 -> 146169.6196
A16: 4225 | B16: Late Payment Charges | C16: =[13]Summary!D8 -> 49483 | D16: =[13]Summary!E8 -> 63493.31 | E16: =[13]Summary!F8 -> 51364.18 | F16: =[13]Summary!G8 -> 51364.18 | G16: =[13]Summary!H8 -> 68476.86 | H16: =[13]Summary!I8 -> 69921 | I16: =[13]Summary!J8 -> 73000
A17: 4082 | B17: Retail Services Revenues | C17: =[13]Summary!D9 -> 7814.5 | D17: =[13]Summary!E9 -> 7982.5 | E17: =[13]Summary!F9 -> 7592.5 | F17: =[13]Summary!G9 -> 7592.5 | G17: =[13]Summary!H9 -> 8056 | H17: =[13]Summary!I9 -> 7861 | I17: =[13]Summary!J9 -> 7959
A18: 4084 | B18: Service Transaction Requests | C18: =[13]Summary!D10 -> 2956.2 | D18: =[13]Summary!E10 -> 2798.25 | E18: =[13]Summary!F10 -> 2611.5 | F18: =[13]Summary!G10 -> 2611.5 | G18: =[13]Summary!H10 -> 2620.35 | H18: =[13]Summary!I10 -> 2747 | I18: =[13]Summary!J10 -> 2984
A19: 4086 | B19: SSS Administration | C19: =[13]Summary!D11 -> 36197.86 | D19: =[13]Summary!E11 -> 35886.21 | E19: =[13]Summary!F11 -> 36267.74 | F19: =[13]Summary!G11 -> 36267.74 | G19: =[13]Summary!H11 -> 35555.34 | H19: =[13]Summary!I11 -> 36622.0002 | I19: =[13]Summary!J11 -> 37720.66021
A20: 4210 | B20: Rent from Electric Property | C20: =[13]Summary!D12 -> 118744.36 | D20: =[13]Summary!E12 -> 104029.12 | E20: =[13]Summary!F12 -> 129893.11 | F20: =[13]Summary!G12 -> 129893.11 | G20: =[13]Summary!H12 -> 137621.96 | H20: =[13]Summary!I12 -> 141750.6188 | I20: =[13]Summary!J12 -> 146003.1374
A21: 4355 | B21: Gain on Disposition | C21: =[13]Summary!D13 -> 0 | D21: =[13]Summary!E13 -> 9250 | E21: =[13]Summary!F13 -> 0 | F21: =[13]Summary!G13 -> 0 | G21: =[13]Summary!H13 -> 2500 | H21: =[13]Summary!I13 -> 0 | I21: =[13]Summary!J13 -> 0
A22: 4360 | B22: Loss on Disposition | C22: =[13]Summary!D14 -> 0 | D22: =[13]Summary!E14 -> 0 | E22: =[13]Summary!F14 -> -11230 | F22: =[13]Summary!G14 -> -11230 | G22: =[13]Summary!H14 -> 0 | H22: =[13]Summary!I14 -> 0 | I22: =[13]Summary!J14 -> 0
A23: 4390 | B23: Miscellaneous Non-Operating | C23: =[13]Summary!D15 -> 5146.74 | D23: =[13]Summary!E15 -> -30 | E23: =[13]Summary!F15 -> 0 | F23: =[13]Summary!G15 -> 0 | G23: =[13]Summary!H15 -> 0 | H23: =[13]Summary!I15 -> 0 | I23: =[13]Summary!J15 -> 0
A24: 4405 | B24: Interest and Dividend | C24: =[13]Summary!D16 -> -31248 | D24: =[13]Summary!E16 -> 4518 | E24: =[13]Summary!F16 -> 5051.77 | F24: =[13]Summary!G16 -> 5051.77 | G24: =[13]Summary!H16 -> 5451.1 | H24: =[13]Summary!I16 -> 5691.35 | I24: =[13]Summary!J16 -> 5748.2635
A26: Specific Service Charges | C26: =C15 -> 150289.2 | D26: 280943.87 | E26: 233900.46 | F26: 233900.46 | G26: 141958.31 | H26: 143626.5821 | I26: 146169.6196
A27: Late Payment Charges | C27: 49483 | D27: 63493.31 | E27: 51364.18 | F27: 51364.18 | G27: 68476.86 | H27: 69921 | I27: 73000
A28: Other Operating Revenues | C28: =C17+C18+C19+C20 -> 165712.92 | D28: =D17+D18+D19+D20 -> 150696.08 | E28: 176364.85 | F28: 176364.85 | G28: 183853.65 | H28: 188980.619 | I28: 194666.7976
A29: Other Income or Deductions | C29: =C21+C22+C23+C24 -> -26101.26 | D29: =D21+D22+D23+D24 -> 13738 | E29: -6178.23 | F29: -6178.23 | G29: 7951.1 | H29: 5691.35 | I29: 5748.2635
A30: Total | C30: =SUM(C26:C29) -> 339383.86 | D30: 508871.26 | E30: 455451.26 | F30: 455451.26 | G30: =SUM(G26:G29) -> 402239.92 | H30: 408219.5511 | I30: 419584.6806
A32: Description | C32: Account(s)
A33: Specific Service Charges: | C33: 4235
A34: Late Payment Charges: | C34: 4225
A35: Other Distribution Revenues: | C35: 4080, 4082, 4084, 4090, 4205, 4210, 4215, 4220, 4240, 4245
A36: Other Income and Expenses: | C36: 4305, 4310, 4315, 4320, 4325, 4330, 4335, 4340, 4345, 4350, 4355, 4360, 4365, 4370, 4375, 4380, 4385, 4390, 4395, 4398, 4405, 4415
A39: Note: Add all applicable accounts listed above to the table and include all relevant information.
A41: Account Breakdown Details
A43: For each "Other Operating Revenue" and "Other Income or Deductions" Account, a detailed breakdown of the account components is required. See the example below for Account 4405, Interest and Dividend Income.
A46: Account 4086 - SSS Administration | C46: 2012 Actual | D46: 2013 Actual | E46: 2014 Actual | F46: 2014 Actual | G46: 2014 Actual | H46: Bridge Year | I46: Test Year
C47: 2012 | D47: 2013 | E47: 2014 | F47: 2014 | G47: 2015 | H47: 2016 | I47: 2017
A48: Reporting Basis | C48: MIFRS | D48: MIFRS | E48: CGAAP | F48: MIFRS | G48: MIFRS | H48: MIFRS | I48: MIFRS
A49: Residential | C49: 23333 | D49: 24249 | F49: 24701 | G49: 24892 | H49: 25640 | I49: 26410
A50: General Service less than 50 kW | C50: 2930 | D50: 2883 | F50: 2836 | G50: 2826 | H50: 2911 | I50: 2998
A51: General Service 50-2999 kW | C51: 341 | D51: 325 | F51: 341 | G51: 287 | H51: 295 | I51: 304
A52: General Service 3000-4999 kW | C52: 3 | D52: 3 | F52: 3 | G52: 3 | H52: 3 | I52: 3
A53: Street Lighting | C53: 9127 | D53: 7853 | F53: 7946 | G53: 7167 | H53: 7382 | I53: 7603
A54: Sentinel Lights | C54: 234 | D54: 307 | F54: 219 | G54: 122 | H54: 126 | I54: 130
A55: Unmtered Scattered Load | C55: 230 | D55: 266 | F55: 222 | G55: 258 | H55: 265 | I55: 273
A56: Total | C56: =SUM(C49:C55) -> 36198 | D56: =SUM(D49:D55) -> 35886 | E56: 0 | F56: 36268 | G56: 35555 | H56: 36622 | I56: 37721
A59: Account 4210 - Rent from Electric Property | C59: 2012 Actual | D59: 2013 Actual | E59: 2014 Actual | F59: 2014 Actual | G59: 2014 Actual | H59: Bridge Year | I59: Test Year
C60: 2012 | D60: 2013 | E60: 2014 | F60: 2014 | G60: 2015 | H60: 2016 | I60: 2017
A61: Reporting Basis | C61: MIFRS | D61: MIFRS | E61: CGAAP | F61: MIFRS | G61: MIFRS | H61: MIFRS | I61: MIFRS
A62: Pole rentals | C62: 51600 | D62: 55600 | F62: 64800 | G62: 60930 | H62: 62758 | I62: 64640
A63: Building rental - affiliate | C63: 67144 | D63: 48429 | F63: 65093 | G63: 76692 | H63: 78993 | I63: 81363
A64: Total | C64: =SUM(C62:C63) -> 118744 | D64: =SUM(D62:D63) -> 104029 | E64: 0 | F64: 129893 | G64: 137622 | H64: 141751 | I64: 146003
A67: Account 4355/4360 - Gain/Loss on Disposition | C67: 2012 Actual | D67: 2013 Actual | E67: 2014 Actual | F67: 2014 Actual | G67: 2014 Actual | H67: Bridge Year | I67: Test Year
C68: 2012 | D68: 2013 | E68: 2014 | F68: 2014 | G68: 2015 | H68: 2016 | I68: 2017
A69: Reporting Basis | C69: MIFRS | D69: MIFRS | E69: CGAAP | F69: MIFRS | G69: MIFRS | H69: MIFRS | I69: MIFRS
A70: Truck | C70: 0 | D70: 1750
A71: Bucket truck | C71: 0 | D71: 7500
A72: Tension machine | F72: -16730
A73: Derrick truck | F73: 5500
A74: Chevrolet van - 2007 | G74: 2500
A75: Total | C75: =SUM(C70:C74) -> 0 | D75: 9250 | E75: 0 | F75: -11230 | G75: 2500 | H75: 0 | I75: 0
A78: Account 4405 - Interest and Dividend Income
C79: 2012 Actual | D79: 2013 Actual | E79: 2014 Actual | F79: 2014 Actual | G79: 2014 Actual | H79: Bridge Year | I79: Test Year
C80: 2012 | D80: 2013 | E80: 2014 | F80: 2014 | G80: 2015 | H80: 2016 | I80: 2017
A81: Reporting Basis | C81: MIFRS | D81: MIFRS | E81: CGAAP | F81: MIFRS | G81: MIFRS | H81: MIFRS | I81: MIFRS
A82: Bank deposit interest | C82: =431.64+430.27+401.44+429.52+415.42+428.05+414.65+428.19+427.04+413.62+427.13+382.95+43.36 -> 5073.28 | D82: 4518 | F82: =387.39+30+387.77+29.32+350.57+25.15+388.48+27.87+376.34+27+389.25+26.63+376.83+24.89+389.85+25.02+390.38+23.51+378.14+22.78+391.13+16.51+378.86+2.1+186 -> 5051.77 | G82: =391.87+7.89+385.76+5.01+308.36+1.72+18.13+341.67+1.15+330.93+7.92+342.25+7.1+281.77+5.2+265.3+4.26+240.09+3.28+232.49+2.62+240.38+0.92+232.76+1.35+1974.93-184 -> 5451.11 | H82: 5691 | I82: 5748
A83: Smart meter adjustment | C83: =-33639.9-2681.99+0.3 -> -36321.59
A85: Total | C85: =SUM(C82:C84) -> -31248.31 | D85: 4518 | E85: 0 | F85: 5051.77 | G85: 5451.11 | H85: 5691 | I85: 5748
A88: Notes:
A89: 1 | B89: List and specify any other interest revenue.
A90: 2 | B90: In the transition year to IFRS, the applicant is to present information in both MIFRS and CGAAP. For the typical applicant that adopted IFRS on January 1, 2015, 2014 must be presented in both a CGAAP and MIFRS basis.

Sheet App_2-I LF_CDM
G1: File Number: | H1: =EBNUMBER -> EB-2016-0089
G2: Exhibit: | H2: 3
G3: Tab: | H3: 2
G4: Schedule: | H4: 1
G5: Page: | H5: 34-35
G7: Date: | H7: 2016-04-29
A9: Appendix 2-I
A10: Load Forecast CDM Adjustment Work Form (2016)
A12: 2014 is the last year of the current four year (2011-2014) CDM program, and 2015 is the first year of a new six year (2015-2020) CDM program, per the Ministerial directives of March 31, 2014. With 2016, there is a need to recognize the full year impact of the current 2011-2014 CDM program, as well as to estimate reasonable impacts for each year for the new 2015-2020 CDM program. These are combined to estimate the adjustment for CDM program impacts on the 2016 load forecast.
A14: Appendix 2-I was developed to help determine what would be the amount of CDM savings needed in each year to cumulatively achieve the four year 2011-2014 CDM target. This then determined the amount of kWh (and with translation, kW of demand) savings that were converted in dollars balances for the LRAMVA, and also to determine the related adjustment to the load forecast to account for OPA-reported savings. Beginning for the 2015 year, it has been adjusted because of the persistence of 2011-2014 CDM programs will be an adjustment to the load forecast in addition to the estimated savings for the first year (2015) for the new 2015-2020 CDM plan.
A16: It is assumed that the new six year (2015-2020) CDM program will work similar to the existing 2011-2014 CDM program, meaning that distributors will offer programs each year that, cumulatively over the six years (from January 1, 2015 to December 31, 2020) will cumulatively achieve the new six year CDM target. This is the approach contemplated in the Ministerial directive letters of March 31, 2014 to the Board and to the OPA. Thus, distributors will be able to offer programs on a basis so that cumulatively over the period, the impacts, including persistence, of the CDM programs will accumulate towards achieving each distributor's 2015-2020 CDM target.
A18: With this approach, it is necessary to account for estimated savings for the last year of the current program, particularly the estimated savings for new CDM programs offered in 2014, as well as the estimated savings for new CDM programs that the distributor will offer in 2015 towards achievement of the new six year (2015-2020) CDM program. This necessitates expansion of this Appendix 2-I to deal with both the 2011-2014 and 2015-2020 CDM plans. It is expected that this approach will be updated each year.
A20: 2011-2014 CDM Program - 2014, last year of the current CDM plan
A22: Input the 2011-2014 CDM target in Cell B21.
A24: Input the measured results for 2011 CDM programs for each of the years 2011 and persistence into 2012, 2013 and 2014 into cells B31 to E31. These results are taken from the final 2011 CDM Report issued by the OPA for that distributor in the fall of 2012.
A26: Measured results for 2012 CDM programs for each of the years 2012 and persistence into 2013 and 2014 are input into cells C32 to E32. These results are taken from the final 2012 CDM Report issued by the OPA for that distributor in the fall of 2013.
A28: Measured results for 2013 CDM programs for each of the years 2013 and persistence into 2014 are input into cells C33 to E33. These results are taken from the final 2013 CDM Report issued by the OPA for that distributor in the fall of 2014. Until that report is issued, the distributor should use the results from the preliminary 2013 CDM Report issued in the spring of 2014.
A30: Measured results for 2014 CDM programs for each of the years 2013 and persistence into 2014 are input into cells C33 to E33. These results are taken from the final 2013 CDM Report issued by the OPA for that distributor in the fall of 2014. Until that report is issued, the distributor should use the results from the preliminary 2013 CDM Report issued in the spring of 2014. The distributor also needs to input the persistence of 2014 CDM programs into 2015 and 2016 in cells G45 and G46.
A33: 4 Year (2011-2014) kWh Target: | G33: Persistence of 2014 CDM Program into 2015 and 2016
A34: 13600000
B35: 2011 | C35: 2012 | D35: 2013 | E35: 2014 | F35: Total | G35: 2015 | H35: 2016 | K35: =B35 -> 2011 | L35: =C35 -> 2012 | M35: =D35 -> 2013 | N35: =E35 -> 2014
A36: 2011 CDM Programs | B36: =B42/$F$46 -> 0.1310861423 | C36: =C42/$F$46 -> 0.1310861423 | D36: 0.1310861423 | E36: 0.1217228464 | F36: =SUM(B36:E36) -> 0.5149812734 | J36: =A36 -> 2011 CDM Programs | K36: =50% -> 0.5 | L36: 1 | M36: 1 | N36: 1
A37: 2012 CDM Programs | C37: 0.06554307116 | D37: 0.06554307116 | E37: 0.06554307116 | F37: =SUM(B37:E37) -> 0.1966292135 | J37: =A37 -> 2012 CDM Programs | L37: 0.5 | M37: 1 | N37: 1
A38: 2013 CDM Programs | D38: 0.07490636704 | E38: 0.07490636704 | F38: =SUM(B38:E38) -> 0.1498127341 | J38: =A38 -> 2013 CDM Programs | M38: 0.5 | N38: 1
A39: 2014 CDM Programs | E39: 0.1123595506 | F39: =SUM(B39:E39) -> 0.1123595506 | J39: =A39 -> 2014 CDM Programs | N39: 0.5
A40: Total in Year | B40: =SUM(B36:B39) -> 0.1310861423 | C40: =SUM(C36:C39) -> 0.1966292135 | D40: =SUM(D36:D39) -> 0.2715355805 | E40: =SUM(E36:E39) -> 0.3745318352 | F40: =SUM(B40:E40) -> 0.9737827715
A41: kWh
A42: 2011 CDM Programs | B42: ='[14]10. CDM Adjustment'!C26 -> 1400000 | C42: ='[14]10. CDM Adjustment'!D26 -> 1400000 | D42: ='[14]10. CDM Adjustment'!E26 -> 1400000 | E42: ='[14]10. CDM Adjustment'!F26 -> 1300000 | F42: =SUM(B42:E42) -> 5500000
A43: 2012 CDM Programs | B43: 100000 | C43: ='[14]10. CDM Adjustment'!D27 -> 700000 | D43: ='[14]10. CDM Adjustment'!E27 -> 700000 | E43: ='[14]10. CDM Adjustment'!F27 -> 700000 | F43: =SUM(B43:E43) -> 2200000
A44: 2013 CDM Programs | D44: ='[14]10. CDM Adjustment'!E28 -> 800000 | E44: ='[14]10. CDM Adjustment'!F28 -> 800000 | F44: =SUM(B44:E44) -> 1600000
A45: 2014 CDM Programs | D45: ='[14]10. CDM Adjustment'!E29 -> 180000 | E45: ='[14]10. CDM Adjustment'!F29 -> 1200000 | F45: =SUM(B45:E45) -> 1380000
A46: Total in Year | B46: =SUM(B42:B45) -> 1500000 | C46: =SUM(C42:C45) -> 2100000 | D46: =SUM(D42:D45) -> 3080000 | E46: =SUM(E42:E45) -> 4000000 | F46: =SUM(F42:F45) -> 10680000
A48: 2015-2020 CDM Program - 2016, second year of the current CDM plan
A50: For the first year of the new 2015-2020 CDM plan, it is assumed that each year's program will achieve an equal amount of new CDM savings. The new targets for 2015-2020 do not take into account persistence beyond the first year, but the IESO will encourage distributors to promote and implement CDM plans that will have longer term persistence of savings. This results in each year's program being about 1/6 (18.67%) of the cumulative 2015-2020 CDM target for kWh savings. A distributor may propose an alternative approach but would be expected to document in its application why it believes that its proposal is more reasonable. In its proposal, the distributor should ensure that the sum of the results for each year's CDM program from 2015 to 2020 add up to its 2015-2020 CDM target as established by the IESO.
A52: 6 Year (2015-2020) kWh Target:
A53: 12170000
B54: 2015 | C54: 2016 | D54: 2017 | E54: 2018 | F54: 2019 | G54: 2020 | H54: Total
A55: %
A56: 2015 CDM Programs | B56: =B64/$H$70 -> 0.1882638455 | H56: =SUM(B56:G56) -> 0.1882638455
A57: 2016 CDM Programs | C57: =C65/$H$70 -> 0.1882638455 | H57: =SUM(B57:G57) -> 0.1882638455
A58: 2017 CDM Programs | D58: =D66/$H$70 -> 0.1882638455 | H58: =SUM(B58:G58) -> 0.1882638455
A59: 2018 CDM Programs | E59: =E67/$H$70 -> 0.1882638455 | H59: =SUM(E59:G59) -> 0.1882638455
A60: 2019 CDM Programs | F60: =F68/$H$70 -> 0.1882638455 | H60: =SUM(F60:G60) -> 0.1882638455
A61: 2020 CDM Programs | G61: =G69/$H$70 -> 0.1882638455 | H61: =SUM(B61:G61) -> 0.1882638455
A62: Total in Year | B62: =SUM(B56:B61) -> 0.1882638455 | C62: =SUM(C56:C61) -> 0.1882638455 | D62: =SUM(D56:D61) -> 0.1882638455 | E62: =SUM(E56:E59) -> 0.1882638455 | F62: =SUM(F56:F60) -> 0.1882638455 | G62: =SUM(G56:G61) -> 0.1882638455 | H62: =SUM(B62:G62) -> 1.129583073
A63: kWh
A64: =A56 -> 2015 CDM Programs | B64: 2291171 | C64: =B64 -> 2291171 | H64: =SUM(B64:G64) -> 4582342
A65: 2016 CDM Programs | C65: =B64 -> 2291171 | H65: =SUM(B65:G65) -> 2291171
A66: 2017 CDM Programs | D66: =C65 -> 2291171 | H66: =SUM(B66:G66) -> 2291171
A67: 2018 CDM Programs | E67: =D66 -> 2291171 | H67: =SUM(E67:G67) -> 2291171
A68: 2019 CDM Programs | F68: =E67 -> 2291171 | H68: =SUM(F68:G68) -> 2291171
A69: 2020 CDM Programs | G69: =F68 -> 2291171 | H69: =SUM(B69:G69) -> 2291171
A70: Total in Year | B70: =SUM(B64:B69) -> 2291171 | C70: =SUM(C64:C69) -> 4582342 | D70: =SUM(D64:D69) -> 2291171 | E70: =SUM(E64:E67) -> 2291171 | F70: =SUM(F64:F68) -> 2291171 | G70: =SUM(G64:G69) -> 2291171 | H70: =A53 -> 12170000
A72: Determination of 2016 Load Forecast Adjustment
A74: The Board has determined that the "net" number should be used in its Decision and Order with respect to Centre Wellington Hydro Ltd.'s 2013 Cost of Service rates (EB-2012-0113). This approach has also been used in Settlement Agreements accepted by the Board in other 2013 and 2-14 applications. The distributor should select whether the adjustment is done on a "net" or "gross" basis, but must support a proposal for the adjustment being done on a "gross" basis. Sheet 2-I defaults to the adjustment being done on a "net" basis consistent with Board policy and practice.
A76: From each of the 2006-2010 CDM Final Report, and the 2011, 2012, 2013 and 2014 CDM Final Reports, issued by the OPA (now IESO) for the distributor, the distributor should input the "gross" and "net" results of the cumulative CDM savings for 2014 into cells D84 to E88. The model will calculate the cumulative savings for all programs from 2006 to 2012 and determine the "net" to "gross" factor "g".
A78: Net-to-Gross Conversion
A80: Is CDM adjustment being done on a "net" or "gross" basis? | F80: net
C82: "Gross" | D82: "Net" | E82: Difference | F82: "Net-to-Gross" Conversion Factor
A83: Persistence of Historical CDM programs to 2014 | C83: kWh | D83: kWh | E83: kWh | F83: ('g')
A84: 2006-2010 CDM programs
A85: 2011 CDM program
A86: 2012 CDM program
A87: 2013 CDM program
A88: 2014 CDM program
A89: 2006 to 2014 OPA CDM programs: Persistence to 2016 | C89: =SUM(C84:C88) -> 0 | D89: =SUM(D84:D88) -> 0 | E89: =C89-D89 -> 0 | F89: =IF(D89=0,0,IF(F80="net",0,E89/D89)) -> 0
A91: The default values represent the factor that each year's CDM program is factored into the manual CDM adjustment. Distributors can choose alternative weights of "0", "0.5" or "1" from the drop-down menu for each cell, but must support its alternatives.
A93: These factors do not mean that CDM programs are excluded, but the assumption that impacts of previous year CDM programs are already implicitly reflected in the actual data for the historical years that are the basis for the load forecast prior to any manual CDM adjustment for the 2016 test year.
A95: Weight Factor for Inclusion in CDM Adjustment to 2014 Load Forecast
B96: 2011 | C96: 2012 | D96: 2013 | E96: 2014 | F96: 2015 | G96: 2016 | H96: 2017
A97: Weight Factor for each year's CDM program impact on 2014 load forecast | B97: 0 | C97: 0 | D97: 0 | E97: 0 | F97: 0.5 | G97: 1 | H97: 0.5 | I97: Distributor can select "0", "0.5", or "1" from drop-down list
A98: Default Value selection rationale. | B98: Full year persistence of 2011 CDM programs on 2015 load forecast. Full impact assumed because of 50% impact in 2011 (first year) but full year persistence impact on 2012 and 2013, and thus reflected in base forecast before the CDM adjustment. | C98: Full year persistence of 2012 CDM programs on 2015 load forecast. Full impact assumed because of 50% impact in 2012 (first year) but full year persistence impact on 2013, and thus reflected in base forecast before the CDM adjustment. | D98: Default is 0, but one option is for full year impact of persistence of 2013 CDM programs on 2015 load forecast, but 50% impact in base forecast (first year impact of 2013 CDM programs on 2013 load forecast, which is part of the data for the load forecast. | E98: Default is 0, but one option is for full year impact of persistence of 2014 CDM programs on 2014 load forecast, but 50% impact in base forecast (first year impact of 2014 CDM programs on 2014 actuals, which is part of the data for the load forecast. | F98: Default is 0, but one option is for full year impact of persistence of 2014 CDM programs on 2014 load forecast, but 50% impact in base forecast (first year impact of 2014 CDM programs on 2014 actuals, which is part of the data for the load forecast. | G98: Full year impact of persistence of 2015 programs on 2015 load forecast. 2015 CDM program impacts are not in the base forecast. | H98: Only 50% of 2016 CDM programs are assumed to impact the 2016 load forecast based on the "half-year" rule.
A100: 2011-2014 and 2015-2020 LRAMVA and 2015 CDM adjustment to Load Forecast
A102: One manual adjustment for CDM impacts to the 2015 load forecast is made. However, the distributor will have two associated annualized CDM impacts, one for the 2011-2014 CDM program and the second for the 2015-2020 CDM plan. In addition, the distributor needs to reflect the CDM adjustment that was explicitly factored into its 2011 load forecast in its 2011 cost of service application (assuming that it rebased in that year). this amount, and equal persistence for 2012, 2013 and 2014 is used as an offset to determine what the net balance of the 2011-2014 LRAMVA balance should be for disposition.
A104: The Amount used for the CDM threshold of the LRAMVA is the kWh that will be used to determine the base amount for the LRAMVA balance for 2014, for assessing performance against the four-year target. The base amount for 2011-2013 is 0 (zero) for 2014 Cost of Service applications, as the utility rebased prior to the 2011-2014 CDM programs, and there was no adjustment to reflect the impacts of the 2011-2014 programs on the load forecast used to determine their last cost of service-based rates.
A106: The proposed loss factor should correspond with the loss factor calculated in Appendix 2-R
A108: The Manual Adjustment for the 2016 Load Forecast is the amount manually subtracted from the load forecast derived from the base forecast from historical data.
A110: If the distributor has developed their load forecast on a system purchased basis, then the manual adjustment should be on system purchased basis, including the adjustment for losses. If the load forecast has been developed on a billed basis, either on a system basis or on a class-specific basis, the manual adjustment should be on a billed basis, excluding losses.
A112: The distributor should determine the allocation of the savings to all customer classes in a reasonable manner (e.g. taking into account what programs and what OPA-measured impacts were directed at specific customer classes), for both the LRAMVA and for the load forecast adjustment.
B114: 2011 | C114: 2012 | D114: 2013 | E114: 2014 | F114: 2015 | G114: 2016 | H114: 2016 | I114: Total for 2016
B115: kWh
A116: Amount used for CDM threshold for LRAMVA (2014) | B116: =E42 -> 1300000 | C116: =E43 -> 700000 | D116: =E44 -> 800000 | E116: =E45 -> 1200000
A118: CDM adjustment for test year forecast (per Board Decision in distributor's most recent Cost of Service Application) (enter as negative) | C118: 2718000 | D118: =B118 -> 0 | E118: =B118 -> 0
A120: Amount used for CDM threshold for LRAMVA (2016) | E120: =H45 -> 0 | F120: =B64 -> 2291171 | G120: =C65 -> 2291171 | H120: =D66 -> 2291171 | I120: =SUM(B120:H120) -> 6873513
A122: Manual Adjustment for 2016 Load Forecast (billed basis) | B122: =B116*(1+F89)*B97 -> 0 | C122: =C116*(1+F89)*C97 -> 0 | D122: =D116*(1+F89)*D97 -> 0 | E122: =E116*(1+F89)*E97 -> 0 | F122: =F120*(1+F89)*F97 -> 1145585.5 | G122: =G120*(1+F89)*G97 -> 2291171 | H122: =H120*(1+F89)*H97 -> 1145585.5 | I122: =SUM(B122:H122) -> 4582342
A124: Proposed Loss Factor (TLF) | B124: 0.0369 | C124: Format: X.XX%
A125: Manual Adjustment for 2016 Load Forecast (system purchased basis) | B125: =B122*(1+$B124) -> 0 | C125: 0 | D125: 0 | E125: 0 | F125: 1187857.605 | G125: 2375715.21 | H125: 1187857.605 | I125: =SUM(B125:H125) -> 4751430.42
A127: Manual adjustment uses "gross" versus "net" (i.e. numbers multiplied by (1 + g). The Weight factor is also used calculate the impact of each year's program on the CDM adjustment to the 2016 load forecast.

Sheet App.2-IA_Act_Frcst_Data
G1: File Number: | H1: =EBNUMBER -> EB-2016-0089
G2: Exhibit: | H2: 3
G3: Tab: | H3: 4
G4: Schedule: | H4: 1
G5: Page: | H5: 48
G7: Date: | H7: 2016-04-29
A9: Appendix 2-IA
A10: Summary and Variances of Actual and Forecast Data
A12: Replace "Rate Class #" with the appropriate rate classification.
B14: =RebaseYear & " Board Approved" -> 2012 Board Approved | C14: =TestYear - 5 -> 2012 | D14: =TestYear - 4 -> 2013 | E14: =TestYear - 3 -> 2014 | F14: =TestYear - 2 -> 2015 | G14: =TestYear -1 &" Bridge" -> 2016 Bridge | H14: =TestYear&" Test" -> 2017 Test
A15: Residential
A16: # of Customers | B16: 8603 | C16: ='[14]11. Final Load Forecast'!J14 -> 8525 | D16: ='[14]11. Final Load Forecast'!K14 -> 8627 | E16: ='[14]11. Final Load Forecast'!L14 -> 8760.5 | F16: ='[14]11. Final Load Forecast'!M14 -> 8885 | G16: ='[14]11. Final Load Forecast'!N14 -> 9026.923938 | H16: ='[14]11. Final Load Forecast'!O14 -> 9171.114887
A17: kWh | B17: 73125152 | C17: ='[14]11. Final Load Forecast'!J15 -> 69638829.03 | D17: ='[14]11. Final Load Forecast'!K15 -> 72749469 | E17: ='[14]11. Final Load Forecast'!L15 -> 73843736.41 | F17: ='[14]11. Final Load Forecast'!M15 -> 78182241.88 | G17: ='[14]11. Final Load Forecast'!N15 -> 78325866.66 | H17: ='[14]11. Final Load Forecast'!O15 -> 77564089.1
A18: kW
A19: Variance Analysis
A20: =A16 -> # of Customers | C20: =IF(ISERROR((C16-$B16)/$B16), 0, (C16-$B16)/$B16) -> -0.009066604673 | D20: 0.002789724515 | E20: 0.01830756713 | F20: 0.03277926305 | G20: 0.04927629171 | H20: 0.06603683452
A21: kWh | C21: -0.04767611243 | D21: -0.005137534573 | E21: 0.009826774941 | F21: 0.06915664099 | G21: 0.07112073635 | H21: 0.06070328711
A22: kW | C22: 0 | D22: 0 | E22: 0 | F22: 0 | G22: 0 | H22: 0
A24: General Service < 50 kW
A25: # of Customers | B25: 1102 | C25: ='[14]11. Final Load Forecast'!J18 -> 1067 | D25: ='[14]11. Final Load Forecast'!K18 -> 1058 | E25: ='[14]11. Final Load Forecast'!L18 -> 1068.5 | F25: ='[14]11. Final Load Forecast'!M18 -> 1077.5 | G25: ='[14]11. Final Load Forecast'!N18 -> 1082.154515 | H25: ='[14]11. Final Load Forecast'!O18 -> 1086.829136
A26: kWh | B26: 35160634 | C26: ='[14]11. Final Load Forecast'!J19 -> 32579253.12 | D26: ='[14]11. Final Load Forecast'!K19 -> 32626864.95 | E26: ='[14]11. Final Load Forecast'!L19 -> 31604930.25 | F26: ='[14]11. Final Load Forecast'!M19 -> 32315230.17 | G26: ='[14]11. Final Load Forecast'!N19 -> 32374594.9 | H26: ='[14]11. Final Load Forecast'!O19 -> 32059727.78
A27: kW
A28: Variance Analysis
A29: =A25 -> # of Customers | C29: =IF(ISERROR((C25-$B25)/$B25), 0, (C25-$B25)/$B25) -> -0.03176043557 | D29: -0.03992740472 | E29: -0.03039927405 | F29: -0.0222323049 | G29: -0.01800860707 | H29: -0.01376666398
A30: kWh | C30: -0.07341678999 | D30: -0.07206266675 | E30: -0.1011274071 | F30: -0.08092583964 | G30: -0.07923745347 | H30: -0.088192557
A31: kW | C31: 0 | D31: 0 | E31: 0 | F31: 0 | G31: 0 | H31: 0
A33: General Service 50-2999 kW
A34: # of Customers | B34: 127 | C34: ='[14]11. Final Load Forecast'!J22 -> 137 | D34: ='[14]11. Final Load Forecast'!K22 -> 141.5 | E34: ='[14]11. Final Load Forecast'!L22 -> 138 | F34: ='[14]11. Final Load Forecast'!M22 -> 134 | G34: ='[14]11. Final Load Forecast'!N22 -> 132.7796947 | H34: ='[14]11. Final Load Forecast'!O22 -> 131.5705023
A35: kWh | B35: 120608902 | C35: ='[14]11. Final Load Forecast'!J23 -> 128532327 | D35: ='[14]11. Final Load Forecast'!K23 -> 125354819 | E35: ='[14]11. Final Load Forecast'!L23 -> 119336146 | F35: ='[14]11. Final Load Forecast'!M23 -> 115685946 | G35: ='[14]11. Final Load Forecast'!N23 -> 115898467 | H35: ='[14]11. Final Load Forecast'!O23 -> 114771267.8
A36: kW | B36: 303629 | C36: ='[14]11. Final Load Forecast'!J24 -> 322335 | D36: ='[14]11. Final Load Forecast'!K24 -> 323427 | E36: ='[14]11. Final Load Forecast'!L24 -> 314352.2 | F36: ='[14]11. Final Load Forecast'!M24 -> 306814.4 | G36: ='[14]11. Final Load Forecast'!N24 -> 292715.5229 | H36: ='[14]11. Final Load Forecast'!O24 -> 289868.6458
A37: Variance Analysis
A38: =A34 -> # of Customers | C38: =IF(ISERROR((C34-$B34)/$B34), 0, (C34-$B34)/$B34) -> 0.07874015748 | D38: 0.1141732283 | E38: 0.08661417323 | F38: 0.05511811024 | G38: 0.04550940673 | H38: 0.03598820735
A39: kWh | C39: 0.06569519222 | D39: 0.03934964104 | E39: -0.01055275339 | F39: -0.04081751776 | G39: -0.03905545056 | H39: -0.04840135408
A40: kW | C40: 0.06160808091 | D40: 0.06520457532 | E40: 0.03531678463 | F40: 0.01049109275 | G40: -0.03594346077 | H40: -0.04531963072
A42: General Service 3000-4999 kW
A43: # of Customers | B43: 1 | C43: ='[14]11. Final Load Forecast'!J34 -> 1 | D43: ='[14]11. Final Load Forecast'!K34 -> 1 | E43: ='[14]11. Final Load Forecast'!L34 -> 1 | F43: ='[14]11. Final Load Forecast'!M34 -> 1 | G43: ='[14]11. Final Load Forecast'!N34 -> 1 | H43: ='[14]11. Final Load Forecast'!O34 -> 1
A44: kWh | B44: 19295356 | C44: ='[14]11. Final Load Forecast'!J35 -> 15193348 | D44: ='[14]11. Final Load Forecast'!K35 -> 13952451 | E44: ='[14]11. Final Load Forecast'!L35 -> 12584229 | F44: ='[14]11. Final Load Forecast'!M35 -> 14943860 | G44: ='[14]11. Final Load Forecast'!N35 -> 14971312.63 | H44: ='[14]11. Final Load Forecast'!O35 -> 14825705.44
A45: kW | B45: 47442 | C45: ='[14]11. Final Load Forecast'!J36 -> 39662.6 | D45: ='[14]11. Final Load Forecast'!K36 -> 37942.6 | E45: ='[14]11. Final Load Forecast'!L36 -> 36603.6 | F45: ='[14]11. Final Load Forecast'!M36 -> 33867.5 | G45: ='[14]11. Final Load Forecast'!N36 -> 36976.76018 | H45: ='[14]11. Final Load Forecast'!O36 -> 39488.80016
A46: Variance Analysis
A47: =A43 -> # of Customers | C47: =IF(ISERROR((C43-$B43)/$B43), 0, (C43-$B43)/$B43) -> 0 | D47: 0 | E47: 0 | F47: 0 | G47: 0 | H47: 0
A48: kWh | C48: -0.2125904285 | D48: -0.2769010844 | E48: -0.3478104783 | F48: -0.2255203791 | G48: -0.2240976205 | H48: -0.2316438507
A49: kW | C49: -0.1639770667 | D49: -0.2002318621 | E49: -0.2284557987 | F49: -0.2861283251 | G49: -0.2205901905 | H49: -0.167640484
A51: Street Lighting
A52: # of Customers | B52: 2804 | C52: ='[14]11. Final Load Forecast'!J26 -> 2802 | D52: ='[14]11. Final Load Forecast'!K26 -> 2862 | E52: ='[14]11. Final Load Forecast'!L26 -> 2634 | F52: ='[14]11. Final Load Forecast'!M26 -> 2694 | G52: ='[14]11. Final Load Forecast'!N26 -> 2696.56775 | H52: ='[14]11. Final Load Forecast'!O26 -> 2699.137947
A53: kWh | B53: 1215575 | C53: ='[14]11. Final Load Forecast'!J27 -> 1222128 | D53: ='[14]11. Final Load Forecast'!K27 -> 1249953 | E53: ='[14]11. Final Load Forecast'!L27 -> 1258253 | F53: ='[14]11. Final Load Forecast'!M27 -> 1439933 | G53: ='[14]11. Final Load Forecast'!N27 -> 1442578.23 | H53: ='[14]11. Final Load Forecast'!O27 -> 1428548.08
A54: kW | B54: 3343 | C54: ='[14]11. Final Load Forecast'!J28 -> 3340 | D54: ='[14]11. Final Load Forecast'!K28 -> 3386 | E54: ='[14]11. Final Load Forecast'!L28 -> 3408.6 | F54: ='[14]11. Final Load Forecast'!M28 -> 3416 | G54: ='[14]11. Final Load Forecast'!N28 -> 3874.953408 | H54: ='[14]11. Final Load Forecast'!O28 -> 3837.266592
A55: Variance Analysis
A56: =A52 -> # of Customers | C56: =IF(ISERROR((C52-$B52)/$B52), 0, (C52-$B52)/$B52) -> -0.0007132667618 | D56: 0.02068473609 | E56: -0.06062767475 | F56: -0.0392296719 | G56: -0.03831392654 | H56: -0.03739730834
A57: kWh | C57: 0.005390864406 | D57: 0.02828126607 | E57: 0.03510931041 | F57: 0.1845694424 | G57: 0.186745557 | H57: 0.17520357
A58: kW | C58: -0.0008973975471 | D58: 0.01286269818 | E58: 0.01962309303 | F58: 0.02183667365 | G58: 0.1591245613 | H58: 0.1478512091
A60: Sentinel Lights
A61: # of Customers | B61: 54 | C61: ='[14]11. Final Load Forecast'!J30 -> 54 | D61: ='[14]11. Final Load Forecast'!K30 -> 54 | E61: ='[14]11. Final Load Forecast'!L30 -> 54 | F61: ='[14]11. Final Load Forecast'!M30 -> 54 | G61: ='[14]11. Final Load Forecast'!N30 -> 53.89001732 | H61: ='[14]11. Final Load Forecast'!O30 -> 53.78025865
A62: kWh | B62: 78431 | C62: ='[14]11. Final Load Forecast'!J31 -> 41938 | D62: ='[14]11. Final Load Forecast'!K31 -> 44355 | E62: ='[14]11. Final Load Forecast'!L31 -> 42943 | F62: ='[14]11. Final Load Forecast'!M31 -> 43818 | G62: ='[14]11. Final Load Forecast'!N31 -> 43898.4959 | H62: ='[14]11. Final Load Forecast'!O31 -> 43471.55024
A63: kW | B63: 218 | C63: ='[14]11. Final Load Forecast'!J32 -> 132 | D63: ='[14]11. Final Load Forecast'!K32 -> 132 | E63: ='[14]11. Final Load Forecast'!L32 -> 132 | F63: ='[14]11. Final Load Forecast'!M32 -> 132 | G63: ='[14]11. Final Load Forecast'!N32 -> 133.5651128 | H63: ='[14]11. Final Load Forecast'!O32 -> 132.2660924
A64: Variance Analysis
A65: =A61 -> # of Customers | C65: =IF(ISERROR((C61-$B61)/$B61), 0, (C61-$B61)/$B61) -> 0 | D65: 0 | E65: 0 | F65: 0 | G65: -0.002036716258 | H65: -0.004069284303
A66: kWh | C66: -0.4652879601 | D66: -0.4344710637 | E66: -0.4524741493 | F66: -0.4413178463 | G66: -0.4402915186 | H66: -0.4457351017
A67: kW | C67: -0.3944954128 | D67: -0.3944954128 | E67: -0.3944954128 | F67: -0.3944954128 | G67: -0.3873159961 | H67: -0.3932748057
A69: Unmetered Scattered Load
A70: # of Customers | B70: 77 | C70: ='[14]11. Final Load Forecast'!J38 -> 94.5 | D70: ='[14]11. Final Load Forecast'!K38 -> 93.5 | E70: ='[14]11. Final Load Forecast'!L38 -> 93 | F70: ='[14]11. Final Load Forecast'!M38 -> 90 | G70: ='[14]11. Final Load Forecast'!N38 -> 92.77157868 | H70: ='[14]11. Final Load Forecast'!O38 -> 95.62850901
A71: kWh | B71: 716623 | C71: ='[14]11. Final Load Forecast'!J39 -> 627467 | D71: ='[14]11. Final Load Forecast'!K39 -> 668402 | E71: ='[14]11. Final Load Forecast'!L39 -> 555548 | F71: ='[14]11. Final Load Forecast'!M39 -> 602228 | G71: ='[14]11. Final Load Forecast'!N39 -> 603334.3236 | H71: ='[14]11. Final Load Forecast'!O39 -> 597466.4466
A72: kW
A73: Variance Analysis
A74: =A70 -> # of Customers | C74: =IF(ISERROR((C70-$B70)/$B70), 0, (C70-$B70)/$B70) -> 0.2272727273 | D74: 0.2142857143 | E74: 0.2077922078 | F74: 0.1688311688 | G74: 0.2048256972 | H74: 0.2419286885
A75: kWh | C75: -0.1244113013 | D75: -0.06728921623 | E75: -0.2247695092 | F75: -0.1596306566 | G75: -0.1580868552 | H75: -0.1662750894
A76: kW | C76: 0 | D76: 0 | E76: 0 | F76: 0 | G76: 0 | H76: 0
A79: Totals
A80: Customers / Connections | B80: =SUM(B16,B25,B34,B43,B52,B61,B70) -> 12768 | C80: =SUM(C16,C25,C34,C43,C52,C61,C70) -> 12680.5 | D80: 12837 | E80: 12749 | F80: 12935.5 | G80: 13086.08749 | H80: 13239.06124
A81: kWh | B81: =SUM(B17,B26,B35,B44,B53,B62,B71) -> 250200673 | C81: 247835290.1 | D81: 246646314 | E81: 239225785.7 | F81: 243213257.1 | G81: 243660052.2 | H81: 241290276.2
A82: kW from applicable classes | B82: 354632 | C82: 365469.6 | D82: 364887.6 | E82: 354496.4 | F82: 344229.9 | G82: 333700.8017 | H82: 333326.9787
A84: Totals - Variance
A85: Customers / Connections | C85: =IF(ISERROR((C80-$B80)/$B80), 0, (C80-$B80)/$B80) -> -0.006853070175 | D85: =IF(ISERROR((D80-$B80)/$B80), 0, (D80-$B80)/$B80) -> 0.005404135338 | E85: -0.001488095238 | F85: 0.01311873434 | G85: 0.02491286758 | H85: 0.03689389419
A86: kWh | C86: =IF(ISERROR((C81-$B81)/$B81), 0, (C81-$B81)/$B81) -> -0.009453942798 | D86: -0.01420603312 | E86: -0.04386433979 | F86: -0.0279272468 | G86: -0.02614149951 | H86: -0.03561300085
A87: kW from applicable classes | C87: =IF(ISERROR((C82-$B82)/$B82), 0, (C82-$B82)/$B82) -> 0.03056012994 | D87: 0.02891899208 | E87: -0.0003823682014 | F87: -0.02933209637 | G87: -0.05902230579 | H87: -0.06007642095

Sheet App.2-JA_OM&A_Summary_Analys
L1: File Number: | M1: =EBNUMBER -> EB-2016-0089
L2: Exhibit: | M2: 4
L3: Tab: | M3: 1
L4: Schedule: | M4: 1
L5: Page: | M5: 6
L7: Date: | M7: 2016-04-29
A9: Appendix 2-JA
A10: Summary of Recoverable OM&A Expenses
B13: ="Last Rebasing Year (" & RebaseYear & " Board-Approved)" -> Last Rebasing Year (2012 Board-Approved) | C13: ="Last Rebasing Year (" & RebaseYear & " Actuals)" -> Last Rebasing Year (2012 Actuals) | D13: 2013 Actuals | E13: =BridgeYear -2 & " Actuals" -> 2014 Actuals | F13: =BridgeYear -1 & " Actuals" -> 2015 Actuals | G13: =BridgeYear & " Bridge Year" -> 2016 Bridge Year | H13: =TestYear & " Test Year" -> 2017 Test Year
A14: Reporting Basis | B14: MIFRS | C14: MIFRS | D14: MIFRS | E14: MIFRS | F14: MIFRS | G14: MIFRS | H14: MIFRS
A15: Operations | B15: 724871 | C15: 553856 | D15: 658284 | E15: 596391 | F15: 508337 | G15: 510101 | H15: 525404
A16: Maintenance | B16: 322942 | C16: 135286 | D16: 239277 | E16: 219341 | F16: 175003 | G16: 190084 | H16: 195787
A17: SubTotal | B17: =SUM(B15:B16) -> 1047813 | C17: =SUM(C15:C16) -> 689142 | D17: 897561 | E17: 815732 | F17: 683340 | G17: 700185 | H17: 721191
